Workbook

Sheet Overview
A2: CDCM Annual Review Pack
A4: Company: | B4: ='CDCM Forecast Data'!E3 -> WPD South West
A5: Date of Issue: | B5: ='CDCM Forecast Data'!E4 -> 2017-01-01
A7: ="Although every effort has been made to ensure the accuracy of the information provided in this annual review pack, " & 'CDCM Forecast Data'!E3 & " does not accept any liability for the accuracy of the information contained herein and, in particular, " & 'CDCM Forecast Data'!E3 & " or any of its employees, shall not be held liable for any misstatement or opinion on which the recipient of this statement relies or seeks to rely." -> Although every effort has been made to ensure the accuracy of the information provided in this annual review pack, WPD South West does not accept any liability for the accuracy of the information contained herein and, in particular, WPD South West or any of its employees, shall not be held liable for any misstatement or opinion on which the recipient of this statement relies or seeks to rely.
A12: Contents:
A14: Sheet Name | B14: Detail
A15: Commentary | B15: This sheet contains the DNO's commentary on the forecast input CDCM data for the forecast over the 5 year period.
A16: CDCM Forecast Data | B16: This sheet contains historical and forecast data for all CDCM inputs except for volume data (table 1053) and matrix of applicability data (table 1025 - 1028). The RPI forecast is seperated out and listed as a standalone assumption. Any forecasts that relate to RPI will be linked to this row. Comments are provided alongside each forecast explaining any assumptions made by the DNO.
A17: Table 1 | B17: This sheet contains the DNO's table 1 produced in accordance with DCUSA Schedule 15 "cost information table".
A18: Mat of App | B18: This sheet contains the forecast CDCM matrix of applicability data (table 1025 - 1028). The default value is that the same matrix will be used for each of the five years.
A19: CDCM Volume Forecasts | B19: This sheet contains forecast CDCM volume data (table 1053). The matrix at the top can be used to apply different growth rates to groups of customers.
A20: CDCM Timebands | B20: Contains the time bands that the DNO plans to use for the coming year and advance warning of any changes.
A21: CDCM Input Sheet (Y) | B21: This sheet contains the CDCM input sheet for base year 0 (Y) in a format that can be copy and pasted (paste-value) into the CDCM spreadsheet model.
A22: CDCM Input Sheet (Y + 1) | B22: This sheet contains the CDCM input sheet for base year +1 (Y+1) in a format that can be copy and pasted (paste-value) into the CDCM spreadsheet model.
A23: CDCM Input Sheet (Y + 2) | B23: This sheet contains the CDCM input sheet for base year +2 (Y+2) in a format that can be copy and pasted (paste-value) into the CDCM spreadsheet model.
A24: CDCM Input Sheet (Y + 3) | B24: This sheet contains the CDCM input sheet for base year +3 (Y+3) in a format that can be copy and pasted (paste-value) into the CDCM spreadsheet model.
A25: CDCM Input Sheet (Y + 4) | B25: This sheet contains the CDCM input sheet for base year +4 (Y+4) in a format that can be copy and pasted (paste-value) into the CDCM spreadsheet model.
A26: Tariffs ARP | B26: This sheet contains the CDCM tariffs that are produced from the CDCM input data, after the Macro on this sheet has been run. It contains the tariffs for each of the 5 years.
A29: This document, model or dataset has been prepared by or for Reckon LLP on the instructions of the DCUSA Panel or
A30: one of its working groups. Only the DCUSA Panel and its working groups have authority to approve this
A31: material as meeting their requirements. Reckon LLP makes no representation about the suitability of this
A32: material for the purposes of complying with any licence conditions or furthering any relevant objective.

Sheet Commentary
B3: ='CDCM Forecast Data'!E3 -> WPD South West

Sheet CDCM Forecast Data
D3: Company: | E3: ='[2]CDCM Forecast Data'!E3:F3 -> WPD South West
D4: Date of Issue: | E4: ='[2]CDCM Forecast Data'!E4:F4 -> 2017-01-01
D5: Status | E5: ='[2]CDCM Forecast Data'!E5:F5 -> ARP
C9: Historical CDCM Input Data (Actuals) | E9: ="CDCM Values - "&E5 -> CDCM Values - ARP | F9: Forecast CDCM Values
B10: Year Ref -> | C10: Y-2 | D10: Y-1 | E10: Y | F10: Y+1 | G10: Y+2 | H10: Y+3 | I10: Y+4
B11: Charging Year -> | C11: 2016/17 | D11: 2017/18 | E11: 2018/19 | F11: 2019/20 | G11: 2020/21 | H11: 2021/22 | I11: 2022/23
B12: DPCR -> | C12: RIIO - ED1 | D12: RIIO - ED1 | E12: RIIO - ED1 | F12: RIIO - ED1 | G12: RIIO - ED1 | H12: RIIO - ED1 | I12: RIIO - ED1 | J12: Assumptions
B13: RPI Forecast: | D13: ='[3]Table 1'!E3 -> 0.03127874885 | E13: ='[3]Table 1'!F3 -> 0.03033006244 | F13: ='[3]Table 1'!G3 -> 0.0303030303 | G13: ='[3]Table 1'!H3 -> 0.03109243697 | H13: ='[3]Table 1'!I3 -> 0.0293398533 | I13: ='[3]Table 1'!J3 -> 0.03087885986
A14: 1 | B14: 1000 Company name, charging year and model version
A15: 2 | B15: Company | C15: ='[2]CDCM Forecast Data'!C15 -> 0
A16: 3 | B16: Year
A17: 4 | B17: Version
A18: 5 | B18: 1010 Financial and general assumptions
A19: 6 | B19: Rate of return | C19: ='[2]CDCM Forecast Data'!C19 -> 0.0435 | D19: ='[2]CDCM Forecast Data'!D19 -> 0.0431 | E19: ='[2]CDCM Forecast Data'!E19 -> 0.0421 | F19: ='[2]CDCM Forecast Data'!F19 -> 0.0421 | G19: ='[2]CDCM Forecast Data'!G19 -> 0.0421 | H19: ='[2]CDCM Forecast Data'!H19 -> 0.0421 | I19: ='[2]CDCM Forecast Data'!I19 -> 0.0421
A20: 7 | B20: Annualisation period (years) | C20: ='[2]CDCM Forecast Data'!C20 -> 40 | D20: ='[2]CDCM Forecast Data'!D20 -> 40 | E20: ='[2]CDCM Forecast Data'!E20 -> 40 | F20: ='[2]CDCM Forecast Data'!F20 -> 40 | G20: ='[2]CDCM Forecast Data'!G20 -> 40 | H20: ='[2]CDCM Forecast Data'!H20 -> 40 | I20: ='[2]CDCM Forecast Data'!I20 -> 40
A21: 8 | B21: Power factor | C21: ='[2]CDCM Forecast Data'!C21 -> 0.95 | D21: ='[2]CDCM Forecast Data'!D21 -> 0.95 | E21: ='[2]CDCM Forecast Data'!E21 -> 0.95 | F21: ='[2]CDCM Forecast Data'!F21 -> 0.95 | G21: ='[2]CDCM Forecast Data'!G21 -> 0.95 | H21: ='[2]CDCM Forecast Data'!H21 -> 0.95 | I21: ='[2]CDCM Forecast Data'!I21 -> 0.95
A22: 9 | B22: Days in the charging period | C22: ='[2]CDCM Forecast Data'!C22 -> 365 | D22: ='[2]CDCM Forecast Data'!D22 -> 365 | E22: ='[2]CDCM Forecast Data'!E22 -> 365 | F22: ='[2]CDCM Forecast Data'!F22 -> 365 | G22: ='[2]CDCM Forecast Data'!G22 -> 366 | H22: ='[2]CDCM Forecast Data'!H22 -> 365 | I22: ='[2]CDCM Forecast Data'!I22 -> 365
A23: 10 | B23: 1017 Diversity allowance between top and bottom of network level
A24: 11 | B24: GSPs | C24: ='[2]CDCM Forecast Data'!C24 -> 0.022 | D24: ='[2]CDCM Forecast Data'!D24 -> 0.022 | E24: ='[2]CDCM Forecast Data'!E24 -> 0.022 | F24: ='[2]CDCM Forecast Data'!F24 -> 0.022 | G24: ='[2]CDCM Forecast Data'!G24 -> 0.022 | H24: ='[2]CDCM Forecast Data'!H24 -> 0.022 | I24: ='[2]CDCM Forecast Data'!I24 -> 0.022
A25: 12 | B25: 132kV | C25: ='[2]CDCM Forecast Data'!C25 -> 0.031 | D25: ='[2]CDCM Forecast Data'!D25 -> 0.031 | E25: ='[2]CDCM Forecast Data'!E25 -> 0.031 | F25: ='[2]CDCM Forecast Data'!F25 -> 0.031 | G25: ='[2]CDCM Forecast Data'!G25 -> 0.031 | H25: ='[2]CDCM Forecast Data'!H25 -> 0.031 | I25: ='[2]CDCM Forecast Data'!I25 -> 0.031
A26: 13 | B26: EHV | C26: ='[2]CDCM Forecast Data'!C26 -> 0.075 | D26: ='[2]CDCM Forecast Data'!D26 -> 0.075 | E26: ='[2]CDCM Forecast Data'!E26 -> 0.075 | F26: ='[2]CDCM Forecast Data'!F26 -> 0.075 | G26: ='[2]CDCM Forecast Data'!G26 -> 0.075 | H26: ='[2]CDCM Forecast Data'!H26 -> 0.075 | I26: ='[2]CDCM Forecast Data'!I26 -> 0.075
A27: 14 | B27: HV | C27: ='[2]CDCM Forecast Data'!C27 -> 0.37 | D27: ='[2]CDCM Forecast Data'!D27 -> 0.37 | E27: ='[2]CDCM Forecast Data'!E27 -> 0.37 | F27: ='[2]CDCM Forecast Data'!F27 -> 0.37 | G27: ='[2]CDCM Forecast Data'!G27 -> 0.37 | H27: ='[2]CDCM Forecast Data'!H27 -> 0.37 | I27: ='[2]CDCM Forecast Data'!I27 -> 0.37
A28: 15 | B28: 1018 Proportion of relevant load going through 132kV/HV direct transformation | C28: ='[2]CDCM Forecast Data'!C28 -> 0 | D28: ='[2]CDCM Forecast Data'!D28 -> 0 | E28: ='[2]CDCM Forecast Data'!E28 -> 0 | F28: ='[2]CDCM Forecast Data'!F28 -> 0 | G28: ='[2]CDCM Forecast Data'!G28 -> 0 | H28: ='[2]CDCM Forecast Data'!H28 -> 0 | I28: ='[2]CDCM Forecast Data'!I28 -> 0
A29: 16 | B29: 1019 Network model GSP demand (MW) | C29: ='[2]CDCM Forecast Data'!C29 -> 500 | D29: ='[2]CDCM Forecast Data'!D29 -> 500 | E29: ='[2]CDCM Forecast Data'!E29 -> 500 | F29: ='[2]CDCM Forecast Data'!F29 -> 500 | G29: ='[2]CDCM Forecast Data'!G29 -> 500 | H29: ='[2]CDCM Forecast Data'!H29 -> 500 | I29: ='[2]CDCM Forecast Data'!I29 -> 500
A30: 17 | B30: 1020 Gross asset cost by network level (£)
A31: 18 | B31: 132kV | C31: ='[2]CDCM Forecast Data'!C31 -> 111419930.2 | D31: ='[2]CDCM Forecast Data'!D31 -> 114846093.1 | E31: ='[2]CDCM Forecast Data'!E31 -> 118377610.4 | F31: =E31*(1+F$13) -> 121964810.8 | G31: 125756994 | H31: 129446685.7 | I31: 133443851.8
A32: 19 | B32: 132kV/EHV | C32: ='[2]CDCM Forecast Data'!C32 -> 15781435.27 | D32: ='[2]CDCM Forecast Data'!D32 -> 16266714.4 | E32: ='[2]CDCM Forecast Data'!E32 -> 16766915.87 | F32: 17275004.23 | G32: 17812126.21 | H32: 18334731.38 | I32: 18900886.98
A33: 20 | B33: EHV | C33: ='[2]CDCM Forecast Data'!C33 -> 39840185.59 | D33: ='[2]CDCM Forecast Data'!D33 -> 41065271.3 | E33: ='[2]CDCM Forecast Data'!E33 -> 42328028.39 | F33: 43610695.92 | G33: 44966658.73 | H33: 46285973.9 | I33: 47715232
A34: 21 | B34: EHV/HV | C34: ='[2]CDCM Forecast Data'!C34 -> 40041227.15 | D34: ='[2]CDCM Forecast Data'!D34 -> 41272494.88 | E34: ='[2]CDCM Forecast Data'!E34 -> 42541624.1 | F34: 43830764.23 | G34: 45193569.5 | H34: 46519542.2 | I34: 47956012.62
A35: 22 | B35: 132kV/HV | C35: ='[2]CDCM Forecast Data'!C35 -> 0 | D35: ='[2]CDCM Forecast Data'!D35 -> 0 | E35: ='[2]CDCM Forecast Data'!E35 -> 0 | F35: 0 | G35: 0 | H35: 0 | I35: 0
A36: 23 | B36: HV | C36: ='[2]CDCM Forecast Data'!C36 -> 142603119.3 | D36: ='[2]CDCM Forecast Data'!D36 -> 146988165.2 | E36: ='[2]CDCM Forecast Data'!E36 -> 151508051.3 | F36: 156099204.3 | G36: 160952709 | H36: 165675037.9 | I36: 170790894.1
A37: 24 | B37: HV/LV | C37: ='[2]CDCM Forecast Data'!C37 -> 60769296.66 | D37: ='[2]CDCM Forecast Data'!D37 -> 62637952.53 | E37: ='[2]CDCM Forecast Data'!E37 -> 64564069.57 | F37: 66520556.53 | G37: 68588842.74 | H37: 70601229.32 | I37: 72781314.79
A38: 25 | B38: LV circuits | C38: ='[2]CDCM Forecast Data'!C38 -> 130516403.4 | D38: ='[2]CDCM Forecast Data'!D38 -> 134529782.8 | E38: ='[2]CDCM Forecast Data'!E38 -> 138666573.7 | F38: 142868591 | G38: 147310723.7 | H38: 151632798.7 | I38: 156315046.7
A39: 26 | B39: 1022 LV service model asset cost (£)
A40: 27 | B40: LV service model 1 | C40: ='[2]CDCM Forecast Data'!C40 -> 5105.17672 | D40: ='[2]CDCM Forecast Data'!D40 -> 5262.160904 | E40: ='[2]CDCM Forecast Data'!E40 -> 5423.972352 | F40: =E40*(1+F$13) -> 5588.33515 | G40: 5762.090109 | H40: 5931.148987 | I40: 6114.296106
A41: 28 | B41: LV service model 2 | C41: ='[2]CDCM Forecast Data'!C41 -> 574.28134 | D41: ='[2]CDCM Forecast Data'!D41 -> 591.9404912 | E41: ='[2]CDCM Forecast Data'!E41 -> 610.1426613 | F41: 628.6318329 | G41: 648.1775285 | H41: 667.1949621 | I41: 687.7971818
A42: 29 | B42: LV service model 3 | C42: ='[2]CDCM Forecast Data'!C42 -> 699.18344 | D42: ='[2]CDCM Forecast Data'!D42 -> 720.6833308 | E42: ='[2]CDCM Forecast Data'!E42 -> 742.8443432 | F42: 765.3547778 | G42: 789.151523 | H42: 812.305113 | I42: 837.3881687
A43: 30 | B43: LV service model 4 | C43: ='[2]CDCM Forecast Data'!C43 -> 518.5284 | D43: ='[2]CDCM Forecast Data'!D43 -> 534.4731483 | E43: ='[2]CDCM Forecast Data'!E43 -> 550.9081976 | F43: 567.6023854 | G43: 585.2505268 | H43: 602.4216914 | I43: 621.0237864
A44: 31 | B44: LV service model 5 | C44: ='[2]CDCM Forecast Data'!C44 -> 1178.730448 | D44: ='[2]CDCM Forecast Data'!D44 -> 1214.976409 | E44: ='[2]CDCM Forecast Data'!E44 -> 1252.336934 | F44: 1290.286538 | G44: 1330.404691 | H44: 1369.438569 | I44: 1411.725271
A45: 32 | B45: LV service model 6 | C45: ='[2]CDCM Forecast Data'!C45 -> 907.87362 | D45: ='[2]CDCM Forecast Data'!D45 -> 935.7907338 | E45: ='[2]CDCM Forecast Data'!E45 -> 964.5662989 | F45: 993.7955807 | G45: 1024.695107 | H45: 1054.759511 | I45: 1087.329282
A46: 33 | B46: LV service model 7 | C46: ='[2]CDCM Forecast Data'!C46 -> 0 | D46: ='[2]CDCM Forecast Data'!D46 -> 0 | E46: ='[2]CDCM Forecast Data'!E46 -> 0 | F46: 0 | G46: 0 | H46: 0 | I46: 0
A47: 34 | B47: LV service model 8 | C47: ='[2]CDCM Forecast Data'!C47 -> 474.8232 | D47: ='[2]CDCM Forecast Data'!D47 -> 489.4240134 | E47: ='[2]CDCM Forecast Data'!E47 -> 504.4738018 | F47: 519.7608867 | G47: 535.9215193 | H47: 551.6453781 | I47: 568.6795584
A48: 35 | B48: 1023 HV service model asset cost (£)
A49: 36 | B49: HV service model 1 | C49: ='[2]CDCM Forecast Data'!C49 -> 9007.159776 | D49: ='[2]CDCM Forecast Data'!D49 -> 9284.129939 | E49: ='[2]CDCM Forecast Data'!E49 -> 9569.616935 | F49: =E49*(1+F$13) -> 9859.605327 | G49: 10166.16448 | H49: 10464.43826 | I49: 10787.56818
A50: 37 | B50: HV service model 2 | C50: ='[2]CDCM Forecast Data'!C50 -> 4342.656 | D50: ='[2]CDCM Forecast Data'!D50 -> 4476.192672 | E50: ='[2]CDCM Forecast Data'!E50 -> 4613.835597 | F50: 4753.648797 | G50: 4901.451322 | H50: 5045.259185 | I50: 5201.051036
A51: 38 | B51: HV service model 3 | C51: ='[2]CDCM Forecast Data'!C51 -> 0 | D51: ='[2]CDCM Forecast Data'!D51 -> 0 | E51: ='[2]CDCM Forecast Data'!E51 -> 0 | F51: 0 | G51: 0 | H51: 0 | I51: 0
A52: 39 | B52: HV service model 4 | C52: ='[2]CDCM Forecast Data'!C52 -> 0 | D52: ='[2]CDCM Forecast Data'!D52 -> 0 | E52: ='[2]CDCM Forecast Data'!E52 -> 0 | F52: 0 | G52: 0 | H52: 0 | I52: 0
A53: 40 | B53: HV service model 5 | C53: ='[2]CDCM Forecast Data'!C53 -> 0 | D53: ='[2]CDCM Forecast Data'!D53 -> 0 | E53: ='[2]CDCM Forecast Data'!E53 -> 0 | F53: 0 | G53: 0 | H53: 0 | I53: 0
A54: 41 | B54: 1025 Matrix of applicability of LV service models to tariffs with fixed charges
A55: 42 | B55: 1026 Matrix of applicability of LV service models to unmetered tariffs
A56: 43 | B56: 1028 Matrix of applicability of HV service models to tariffs with fixed charges
A57: 44 | B57: 1032 Loss adjustment factors to transmission
A58: 45 | B58: 132kV | C58: ='[2]CDCM Forecast Data'!C58 -> 1.008 | D58: ='[2]CDCM Forecast Data'!D58 -> 1.008 | E58: ='[2]CDCM Forecast Data'!E58 -> 1.002 | F58: ='[2]CDCM Forecast Data'!F58 -> 1.002 | G58: ='[2]CDCM Forecast Data'!G58 -> 1.002 | H58: ='[2]CDCM Forecast Data'!H58 -> 1.002 | I58: ='[2]CDCM Forecast Data'!I58 -> 1.002
A59: 46 | B59: 132kV/EHV | C59: ='[2]CDCM Forecast Data'!C59 -> 1.011 | D59: ='[2]CDCM Forecast Data'!D59 -> 1.011 | E59: ='[2]CDCM Forecast Data'!E59 -> 1.006 | F59: ='[2]CDCM Forecast Data'!F59 -> 1.006 | G59: ='[2]CDCM Forecast Data'!G59 -> 1.006 | H59: ='[2]CDCM Forecast Data'!H59 -> 1.006 | I59: ='[2]CDCM Forecast Data'!I59 -> 1.006
A60: 47 | B60: EHV | C60: ='[2]CDCM Forecast Data'!C60 -> 1.024 | D60: ='[2]CDCM Forecast Data'!D60 -> 1.024 | E60: ='[2]CDCM Forecast Data'!E60 -> 1.012 | F60: ='[2]CDCM Forecast Data'!F60 -> 1.012 | G60: ='[2]CDCM Forecast Data'!G60 -> 1.012 | H60: ='[2]CDCM Forecast Data'!H60 -> 1.012 | I60: ='[2]CDCM Forecast Data'!I60 -> 1.012
A61: 48 | B61: EHV/HV | C61: ='[2]CDCM Forecast Data'!C61 -> 1.034 | D61: ='[2]CDCM Forecast Data'!D61 -> 1.034 | E61: ='[2]CDCM Forecast Data'!E61 -> 1.021 | F61: ='[2]CDCM Forecast Data'!F61 -> 1.021 | G61: ='[2]CDCM Forecast Data'!G61 -> 1.021 | H61: ='[2]CDCM Forecast Data'!H61 -> 1.021 | I61: ='[2]CDCM Forecast Data'!I61 -> 1.021
A62: 49 | B62: HV | C62: ='[2]CDCM Forecast Data'!C62 -> 1.057 | D62: ='[2]CDCM Forecast Data'!D62 -> 1.057 | E62: ='[2]CDCM Forecast Data'!E62 -> 1.038 | F62: ='[2]CDCM Forecast Data'!F62 -> 1.038 | G62: ='[2]CDCM Forecast Data'!G62 -> 1.038 | H62: ='[2]CDCM Forecast Data'!H62 -> 1.038 | I62: ='[2]CDCM Forecast Data'!I62 -> 1.038
A63: 50 | B63: HV/LV | C63: ='[2]CDCM Forecast Data'!C63 -> 1.07 | D63: ='[2]CDCM Forecast Data'!D63 -> 1.07 | E63: ='[2]CDCM Forecast Data'!E63 -> 1.049 | F63: ='[2]CDCM Forecast Data'!F63 -> 1.049 | G63: ='[2]CDCM Forecast Data'!G63 -> 1.049 | H63: ='[2]CDCM Forecast Data'!H63 -> 1.049 | I63: ='[2]CDCM Forecast Data'!I63 -> 1.049
A64: 51 | B64: LV circuits | C64: ='[2]CDCM Forecast Data'!C64 -> 1.085 | D64: ='[2]CDCM Forecast Data'!D64 -> 1.085 | E64: ='[2]CDCM Forecast Data'!E64 -> 1.062 | F64: ='[2]CDCM Forecast Data'!F64 -> 1.062 | G64: ='[2]CDCM Forecast Data'!G64 -> 1.062 | H64: ='[2]CDCM Forecast Data'!H64 -> 1.062 | I64: ='[2]CDCM Forecast Data'!I64 -> 1.062
A65: 52 | B65: 1037 Embedded network (LDNO) discounts
A66: 53 | B66: LDNO LV: LV user | C66: ='[2]CDCM Forecast Data'!C66 -> 0.3707332985 | D66: ='[2]CDCM Forecast Data'!D66 -> 0.3712611553 | E66: ='[2]CDCM Forecast Data'!E66 -> 0.3726799999 | F66: ='[2]CDCM Forecast Data'!F66 -> 0.3726799999 | G66: ='[2]CDCM Forecast Data'!G66 -> 0.3726799999 | H66: ='[2]CDCM Forecast Data'!H66 -> 0.3726799999 | I66: ='[2]CDCM Forecast Data'!I66 -> 0.3726799999
A67: 54 | B67: LDNO HV: LV user | C67: ='[2]CDCM Forecast Data'!C67 -> 0.625763256 | D67: ='[2]CDCM Forecast Data'!D67 -> 0.6267306492 | E67: ='[2]CDCM Forecast Data'!E67 -> 0.6188090826 | F67: ='[2]CDCM Forecast Data'!F67 -> 0.6188090826 | G67: ='[2]CDCM Forecast Data'!G67 -> 0.6188090826 | H67: ='[2]CDCM Forecast Data'!H67 -> 0.6188090826 | I67: ='[2]CDCM Forecast Data'!I67 -> 0.6188090826
A68: 55 | B68: LDNO HV: LV sub user | C68: ='[2]CDCM Forecast Data'!C68 -> 0.386350894 | D68: ='[2]CDCM Forecast Data'!D68 -> 0.3873865381 | E68: ='[2]CDCM Forecast Data'!E68 -> 0.3749541673 | F68: ='[2]CDCM Forecast Data'!F68 -> 0.3749541673 | G68: ='[2]CDCM Forecast Data'!G68 -> 0.3749541673 | H68: ='[2]CDCM Forecast Data'!H68 -> 0.3749541673 | I68: ='[2]CDCM Forecast Data'!I68 -> 0.3749541673
A69: 56 | B69: LDNO HV: HV user | C69: ='[2]CDCM Forecast Data'!C69 -> 0.2721561708 | D69: ='[2]CDCM Forecast Data'!D69 -> 0.2730601202 | E69: ='[2]CDCM Forecast Data'!E69 -> 0.2586328942 | F69: ='[2]CDCM Forecast Data'!F69 -> 0.2586328942 | G69: ='[2]CDCM Forecast Data'!G69 -> 0.2586328942 | H69: ='[2]CDCM Forecast Data'!H69 -> 0.2586328942 | I69: ='[2]CDCM Forecast Data'!I69 -> 0.2586328942
A70: 57 | B70: 1041 Load profile data for demand users: coincidence factor
A71: 58 | B71: Domestic Unrestricted | C71: ='[2]CDCM Forecast Data'!C71 -> 0.8959837386 | D71: ='[2]CDCM Forecast Data'!D71 -> 0.8959837386 | E71: ='Smoothed Input Details'!E15 -> 0.916120013 | F71: =E71 -> 0.916120013 | G71: =F71 -> 0.916120013 | H71: =G71 -> 0.916120013 | I71: =H71 -> 0.916120013
A72: 59 | B72: Domestic Two Rate | C72: ='[2]CDCM Forecast Data'!C72 -> 0.3245779496 | D72: ='[2]CDCM Forecast Data'!D72 -> 0.3245779496 | E72: ='Smoothed Input Details'!E16 -> 0.3425106348 | F72: =E72 -> 0.3425106348 | G72: 0.3425106348 | H72: 0.3425106348 | I72: 0.3425106348
A73: 60 | B73: Domestic Off Peak (related MPAN) | C73: ='[2]CDCM Forecast Data'!C73 -> 0 | D73: ='[2]CDCM Forecast Data'!D73 -> 0
A74: 61 | B74: Small Non Domestic Unrestricted | C74: ='[2]CDCM Forecast Data'!C74 -> 0.650404445 | D74: ='[2]CDCM Forecast Data'!D74 -> 0.650404445 | E74: ='Smoothed Input Details'!E18 -> 0.6358102486 | F74: =E74 -> 0.6358102486 | G74: =F74 -> 0.6358102486 | H74: =G74 -> 0.6358102486 | I74: =H74 -> 0.6358102486
A75: 62 | B75: Small Non Domestic Two Rate | C75: ='[2]CDCM Forecast Data'!C75 -> 0.607484391 | D75: ='[2]CDCM Forecast Data'!D75 -> 0.607484391 | E75: ='Smoothed Input Details'!E19 -> 0.5884054495 | F75: 0.5884054495 | G75: 0.5884054495 | H75: 0.5884054495 | I75: 0.5884054495
A76: 63 | B76: Small Non Domestic Off Peak (related MPAN) | C76: ='[2]CDCM Forecast Data'!C76 -> 0 | D76: ='[2]CDCM Forecast Data'!D76 -> 0
A77: 64 | B77: LV Medium Non-Domestic | C77: ='[2]CDCM Forecast Data'!C77 -> 0.8656552911 | D77: ='[2]CDCM Forecast Data'!D77 -> 0.8656552911 | E77: ='Smoothed Input Details'!E21 -> 0.8585513205 | F77: =E77 -> 0.8585513205 | G77: =F77 -> 0.8585513205 | H77: =G77 -> 0.8585513205 | I77: =H77 -> 0.8585513205
A78: 65 | B78: LV Sub Medium Non-Domestic | C78: ='[2]CDCM Forecast Data'!C78 -> 0.8393389627 | D78: ='[2]CDCM Forecast Data'!D78 -> 0.8393389627 | E78: ='Smoothed Input Details'!E22 -> 0.8382314172 | F78: 0.8382314172 | G78: 0.8382314172 | H78: 0.8382314172 | I78: 0.8382314172
A79: 66 | B79: HV Medium Non-Domestic | C79: ='[2]CDCM Forecast Data'!C79 -> 0.6970776727 | D79: ='[2]CDCM Forecast Data'!D79 -> 0.6970776727 | E79: ='Smoothed Input Details'!E23 -> 0.6632207801 | F79: 0.6632207801 | G79: 0.6632207801 | H79: 0.6632207801 | I79: 0.6632207801
A80: 67 | B80: LV Network Domestic | C80: ='[2]CDCM Forecast Data'!C80 -> 0.8061995478 | D80: ='[2]CDCM Forecast Data'!D80 -> 0.8061995478 | E80: ='Smoothed Input Details'!E24 -> 0.8259895753 | F80: 0.8259895753 | G80: 0.8259895753 | H80: 0.8259895753 | I80: 0.8259895753
A81: 68 | B81: LV Network Non-Domestic Non-CT | C81: ='[2]CDCM Forecast Data'!C81 -> 0.6417754507 | D81: ='[2]CDCM Forecast Data'!D81 -> 0.6417754507 | E81: ='Smoothed Input Details'!E25 -> 0.6262796049 | F81: 0.6262796049 | G81: 0.6262796049 | H81: 0.6262796049 | I81: 0.6262796049
A82: 69 | B82: LV HH Metered | C82: ='[2]CDCM Forecast Data'!C82 -> 0.8173631553 | D82: ='[2]CDCM Forecast Data'!D82 -> 0.8173631553 | E82: ='Smoothed Input Details'!E26 -> 0.803287895 | F82: 0.803287895 | G82: 0.803287895 | H82: 0.803287895 | I82: 0.803287895
A83: 70 | B83: LV Sub HH Metered | C83: ='[2]CDCM Forecast Data'!C83 -> 0.7785052724 | D83: ='[2]CDCM Forecast Data'!D83 -> 0.7785052724 | E83: ='Smoothed Input Details'!E27 -> 0.7658193845 | F83: 0.7658193845 | G83: 0.7658193845 | H83: 0.7658193845 | I83: 0.7658193845
A84: 71 | B84: HV HH Metered | C84: ='[2]CDCM Forecast Data'!C84 -> 0.8114350236 | D84: ='[2]CDCM Forecast Data'!D84 -> 0.8114350236 | E84: ='Smoothed Input Details'!E28 -> 0.8005762642 | F84: 0.8005762642 | G84: 0.8005762642 | H84: 0.8005762642 | I84: 0.8005762642
A85: 72 | B85: NHH UMS category A | C85: ='[2]CDCM Forecast Data'!C85 -> 1 | D85: ='[2]CDCM Forecast Data'!D85 -> 1 | E85: ='Smoothed Input Details'!E29 -> 1 | F85: 1 | G85: 1 | H85: 1 | I85: 1
A86: 73 | B86: NHH UMS category B | C86: ='[2]CDCM Forecast Data'!C86 -> 0.983875969 | D86: ='[2]CDCM Forecast Data'!D86 -> 0.983875969 | E86: ='Smoothed Input Details'!E30 -> 0.983875969 | F86: 0.983875969 | G86: 0.983875969 | H86: 0.983875969 | I86: 0.983875969
A87: 74 | B87: NHH UMS category C | C87: ='[2]CDCM Forecast Data'!C87 -> 0.8807422494 | D87: ='[2]CDCM Forecast Data'!D87 -> 0.8807422494 | E87: ='Smoothed Input Details'!E31 -> 0.8805058428 | F87: 0.8805058428 | G87: 0.8805058428 | H87: 0.8805058428 | I87: 0.8805058428
A88: 75 | B88: NHH UMS category D | C88: ='[2]CDCM Forecast Data'!C88 -> 0 | D88: ='[2]CDCM Forecast Data'!D88 -> 0 | E88: ='Smoothed Input Details'!E32 -> 0 | F88: 0 | G88: 0 | H88: 0 | I88: 0
A89: 76 | B89: LV UMS (Pseudo HH Metered) | C89: ='[2]CDCM Forecast Data'!C89 -> 0.9761564673 | D89: ='[2]CDCM Forecast Data'!D89 -> 0.9761564673 | E89: ='Smoothed Input Details'!E33 -> 0.9713745501 | F89: 0.9713745501 | G89: 0.9713745501 | H89: 0.9713745501 | I89: 0.9713745501
A90: 77 | B90: 1041 Load profile data for demand users: load factor
A91: 78 | B91: Domestic Unrestricted | C91: ='[2]CDCM Forecast Data'!C91 -> 0.4153686244 | D91: ='[2]CDCM Forecast Data'!D91 -> 0.4153686244 | E91: ='Smoothed Input Details'!E42 -> 0.4179484873 | F91: =E91 -> 0.4179484873 | G91: 0.4179484873 | H91: 0.4179484873 | I91: 0.4179484873
A92: 79 | B92: Domestic Two Rate | C92: ='[2]CDCM Forecast Data'!C92 -> 0.2545353902 | D92: ='[2]CDCM Forecast Data'!D92 -> 0.2545353902 | E92: ='Smoothed Input Details'!E43 -> 0.2578726855 | F92: 0.2578726855 | G92: 0.2578726855 | H92: 0.2578726855 | I92: 0.2578726855
A93: 80 | B93: Domestic Off Peak (related MPAN) | C93: ='[2]CDCM Forecast Data'!C93 -> 0.1454311131 | D93: ='[2]CDCM Forecast Data'!D93 -> 0.1454311131 | E93: ='Smoothed Input Details'!E44 -> 0.1440818751 | F93: 0.1440818751 | G93: 0.1440818751 | H93: 0.1440818751 | I93: 0.1440818751
A94: 81 | B94: Small Non Domestic Unrestricted | C94: ='[2]CDCM Forecast Data'!C94 -> 0.3936048619 | D94: ='[2]CDCM Forecast Data'!D94 -> 0.3936048619 | E94: ='Smoothed Input Details'!E45 -> 0.3916832263 | F94: 0.3916832263 | G94: 0.3916832263 | H94: 0.3916832263 | I94: 0.3916832263
A95: 82 | B95: Small Non Domestic Two Rate | C95: ='[2]CDCM Forecast Data'!C95 -> 0.4473372106 | D95: ='[2]CDCM Forecast Data'!D95 -> 0.4473372106 | E95: ='Smoothed Input Details'!E46 -> 0.4286725136 | F95: 0.4286725136 | G95: 0.4286725136 | H95: 0.4286725136 | I95: 0.4286725136
A96: 83 | B96: Small Non Domestic Off Peak (related MPAN) | C96: ='[2]CDCM Forecast Data'!C96 -> 0.1529768781 | D96: ='[2]CDCM Forecast Data'!D96 -> 0.1529768781 | E96: ='Smoothed Input Details'!E47 -> 0.1529440454 | F96: 0.1529440454 | G96: 0.1529440454 | H96: 0.1529440454 | I96: 0.1529440454
A97: 84 | B97: LV Medium Non-Domestic | C97: ='[2]CDCM Forecast Data'!C97 -> 0.595227284 | D97: ='[2]CDCM Forecast Data'!D97 -> 0.595227284 | E97: ='Smoothed Input Details'!E48 -> 0.593601508 | F97: 0.593601508 | G97: 0.593601508 | H97: 0.593601508 | I97: 0.593601508
A98: 85 | B98: LV Sub Medium Non-Domestic | C98: ='[2]CDCM Forecast Data'!C98 -> 0.6026679344 | D98: ='[2]CDCM Forecast Data'!D98 -> 0.6026679344 | E98: ='Smoothed Input Details'!E49 -> 0.6000900558 | F98: 0.6000900558 | G98: 0.6000900558 | H98: 0.6000900558 | I98: 0.6000900558
A99: 86 | B99: HV Medium Non-Domestic | C99: ='[2]CDCM Forecast Data'!C99 -> 0.4854906448 | D99: ='[2]CDCM Forecast Data'!D99 -> 0.4854906448 | E99: ='Smoothed Input Details'!E50 -> 0.4549084208 | F99: 0.4549084208 | G99: 0.4549084208 | H99: 0.4549084208 | I99: 0.4549084208
A100: 87 | B100: LV Network Domestic | C100: ='[2]CDCM Forecast Data'!C100 -> 0.3873396363 | D100: ='[2]CDCM Forecast Data'!D100 -> 0.3873396363 | E100: ='Smoothed Input Details'!E51 -> 0.3899928896 | F100: 0.3899928896 | G100: 0.3899928896 | H100: 0.3899928896 | I100: 0.3899928896
A101: 88 | B101: LV Network Non-Domestic Non-CT | C101: ='[2]CDCM Forecast Data'!C101 -> 0.398207747 | D101: ='[2]CDCM Forecast Data'!D101 -> 0.398207747 | E101: ='Smoothed Input Details'!E52 -> 0.3930495306 | F101: 0.3930495306 | G101: 0.3930495306 | H101: 0.3930495306 | I101: 0.3930495306
A102: 89 | B102: LV HH Metered | C102: ='[2]CDCM Forecast Data'!C102 -> 0.5906997178 | D102: ='[2]CDCM Forecast Data'!D102 -> 0.5906997178 | E102: ='Smoothed Input Details'!E53 -> 0.5875803245 | F102: 0.5875803245 | G102: 0.5875803245 | H102: 0.5875803245 | I102: 0.5875803245
A103: 90 | B103: LV Sub HH Metered | C103: ='[2]CDCM Forecast Data'!C103 -> 0.6145101035 | D103: ='[2]CDCM Forecast Data'!D103 -> 0.6145101035 | E103: ='Smoothed Input Details'!E54 -> 0.6115171759 | F103: 0.6115171759 | G103: 0.6115171759 | H103: 0.6115171759 | I103: 0.6115171759
A104: 91 | B104: HV HH Metered | C104: ='[2]CDCM Forecast Data'!C104 -> 0.7221419462 | D104: ='[2]CDCM Forecast Data'!D104 -> 0.7221419462 | E104: ='Smoothed Input Details'!E55 -> 0.7228719463 | F104: 0.7228719463 | G104: 0.7228719463 | H104: 0.7228719463 | I104: 0.7228719463
A105: 92 | B105: NHH UMS category A | C105: ='[2]CDCM Forecast Data'!C105 -> 1 | D105: ='[2]CDCM Forecast Data'!D105 -> 1 | E105: ='Smoothed Input Details'!E56 -> 1 | F105: 1 | G105: 1 | H105: 1 | I105: 1
A106: 93 | B106: NHH UMS category B | C106: ='[2]CDCM Forecast Data'!C106 -> 0.4755366169 | D106: ='[2]CDCM Forecast Data'!D106 -> 0.4755366169 | E106: ='Smoothed Input Details'!E57 -> 0.4749547891 | F106: 0.4749547891 | G106: 0.4749547891 | H106: 0.4749547891 | I106: 0.4749547891
A107: 94 | B107: NHH UMS category C | C107: ='[2]CDCM Forecast Data'!C107 -> 0.2460682166 | D107: ='[2]CDCM Forecast Data'!D107 -> 0.2460682166 | E107: ='Smoothed Input Details'!E58 -> 0.2463161498 | F107: =E107 -> 0.2463161498 | G107: 0.2463161498 | H107: 0.2463161498 | I107: 0.2463161498
A108: 95 | B108: NHH UMS category D | C108: ='[2]CDCM Forecast Data'!C108 -> 0.5152430348 | D108: ='[2]CDCM Forecast Data'!D108 -> 0.5152430348 | E108: ='Smoothed Input Details'!E59 -> 0.5152659389 | F108: 0.5152659389 | G108: 0.5152659389 | H108: 0.5152659389 | I108: 0.5152659389
A109: 96 | B109: LV UMS (Pseudo HH Metered) | C109: ='[2]CDCM Forecast Data'!C109 -> 0.4604827766 | D109: ='[2]CDCM Forecast Data'!D109 -> 0.4604827766 | E109: ='Smoothed Input Details'!E60 -> 0.4554929434 | F109: 0.4554929434 | G109: 0.4554929434 | H109: 0.4554929434 | I109: 0.4554929434
A110: 97 | B110: 1053. Volume forecasts for the charging year
A111: 98 | B111: 1055 Transmission exit charges (£/year) | C111: ='[2]CDCM Forecast Data'!C111 -> 8658635.325 | D111: ='[2]CDCM Forecast Data'!D111 -> 8918394.385 | E111: ='[2]CDCM Forecast Data'!E111 -> 8442465.88 | F111: ='[2]CDCM Forecast Data'!F111 -> 9263214.232 | G111: ='[2]CDCM Forecast Data'!G111 -> 9561016.381 | H111: ='[2]CDCM Forecast Data'!H111 -> 9850981.632 | I111: ='[2]CDCM Forecast Data'!I111 -> 10140946.88
A112: 99 | B112: 1059 Other Expenditure (£/year)
A113: 100 | B113: Direct cost (£/year) | C113: ='[2]CDCM Forecast Data'!C113 -> 26646449.88 | D113: ='[2]CDCM Forecast Data'!D113 -> 27171630.88 | E113: ='[2]CDCM Forecast Data'!E113 -> 33743177.65 | F113: ='[2]CDCM Forecast Data'!F113 -> 34765698.19 | G113: ='[2]CDCM Forecast Data'!G113 -> 35846648.47 | H113: ='[2]CDCM Forecast Data'!H113 -> 36898383.88 | I113: ='[2]CDCM Forecast Data'!I113 -> 38037763.9
A114: 101 | B114: Indirect cost (£/year) | C114: ='[2]CDCM Forecast Data'!C114 -> 97449575.42 | D114: ='[2]CDCM Forecast Data'!D114 -> 95114172.4 | E114: ='[2]CDCM Forecast Data'!E114 -> 100910650.8 | F114: ='[2]CDCM Forecast Data'!F114 -> 103968549.3 | G114: ='[2]CDCM Forecast Data'!G114 -> 107201184.9 | H114: ='[2]CDCM Forecast Data'!H114 -> 110346451.9 | I114: ='[2]CDCM Forecast Data'!I114 -> 113753824.5
A115: 102 | B115: Indirect cost proportion | C115: ='[2]CDCM Forecast Data'!C115 -> 0.6 | D115: ='[2]CDCM Forecast Data'!D115 -> 0.6 | E115: ='[2]CDCM Forecast Data'!E115 -> 0.6 | F115: ='[2]CDCM Forecast Data'!F115 -> 0.6 | G115: ='[2]CDCM Forecast Data'!G115 -> 0.6 | H115: ='[2]CDCM Forecast Data'!H115 -> 0.6 | I115: ='[2]CDCM Forecast Data'!I115 -> 0.6
A116: 103 | B116: Network rates (£/year) | C116: ='[2]CDCM Forecast Data'!C116 -> 15752928 | D116: ='[2]CDCM Forecast Data'!D116 -> 18218261.23 | E116: ='[2]CDCM Forecast Data'!E116 -> 19601920 | F116: ='[2]CDCM Forecast Data'!F116 -> 20157440 | G116: ='[2]CDCM Forecast Data'!G116 -> 20752640 | H116: ='[2]CDCM Forecast Data'!H116 -> 21149440 | I116: ='[2]CDCM Forecast Data'!I116 -> 21802510.59
A117: 104 | B117: 1060 Customer contributions under current connection charging policy
A118: 105 | B118: LV network
A119: 106 | B119: Assets 132kV | C119: ='[2]CDCM Forecast Data'!C119 -> 0 | D119: ='[2]CDCM Forecast Data'!D119 -> 0 | E119: ='[2]CDCM Forecast Data'!E119 -> 0 | F119: ='[2]CDCM Forecast Data'!F119 -> 0 | G119: ='[2]CDCM Forecast Data'!G119 -> 0 | H119: ='[2]CDCM Forecast Data'!H119 -> 0 | I119: ='[2]CDCM Forecast Data'!I119 -> 0
A120: 107 | B120: Assets 132kV/EHV | C120: ='[2]CDCM Forecast Data'!C120 -> 0 | D120: ='[2]CDCM Forecast Data'!D120 -> 0 | E120: ='[2]CDCM Forecast Data'!E120 -> 0 | F120: ='[2]CDCM Forecast Data'!F120 -> 0 | G120: ='[2]CDCM Forecast Data'!G120 -> 0 | H120: ='[2]CDCM Forecast Data'!H120 -> 0 | I120: ='[2]CDCM Forecast Data'!I120 -> 0
A121: 108 | B121: Assets EHV | C121: ='[2]CDCM Forecast Data'!C121 -> 0 | D121: ='[2]CDCM Forecast Data'!D121 -> 0 | E121: ='[2]CDCM Forecast Data'!E121 -> 0 | F121: ='[2]CDCM Forecast Data'!F121 -> 0 | G121: ='[2]CDCM Forecast Data'!G121 -> 0 | H121: ='[2]CDCM Forecast Data'!H121 -> 0 | I121: ='[2]CDCM Forecast Data'!I121 -> 0
A122: 109 | B122: Assets EHV/HV | C122: ='[2]CDCM Forecast Data'!C122 -> 0.81 | D122: ='[2]CDCM Forecast Data'!D122 -> 0.81 | E122: ='[2]CDCM Forecast Data'!E122 -> 0.81 | F122: ='[2]CDCM Forecast Data'!F122 -> 0.81 | G122: ='[2]CDCM Forecast Data'!G122 -> 0.81 | H122: ='[2]CDCM Forecast Data'!H122 -> 0.81 | I122: ='[2]CDCM Forecast Data'!I122 -> 0.81
A123: 110 | B123: Assets 132kV/HV | C123: ='[2]CDCM Forecast Data'!C123 -> 0 | D123: ='[2]CDCM Forecast Data'!D123 -> 0 | E123: ='[2]CDCM Forecast Data'!E123 -> 0 | F123: ='[2]CDCM Forecast Data'!F123 -> 0 | G123: ='[2]CDCM Forecast Data'!G123 -> 0 | H123: ='[2]CDCM Forecast Data'!H123 -> 0 | I123: ='[2]CDCM Forecast Data'!I123 -> 0
A124: 111 | B124: Assets HV | C124: ='[2]CDCM Forecast Data'!C124 -> 0.81 | D124: ='[2]CDCM Forecast Data'!D124 -> 0.81 | E124: ='[2]CDCM Forecast Data'!E124 -> 0.81 | F124: ='[2]CDCM Forecast Data'!F124 -> 0.81 | G124: ='[2]CDCM Forecast Data'!G124 -> 0.81 | H124: ='[2]CDCM Forecast Data'!H124 -> 0.81 | I124: ='[2]CDCM Forecast Data'!I124 -> 0.81
A125: 112 | B125: Assets HV/LV | C125: ='[2]CDCM Forecast Data'!C125 -> 0.95 | D125: ='[2]CDCM Forecast Data'!D125 -> 0.95 | E125: ='[2]CDCM Forecast Data'!E125 -> 0.95 | F125: ='[2]CDCM Forecast Data'!F125 -> 0.95 | G125: ='[2]CDCM Forecast Data'!G125 -> 0.95 | H125: ='[2]CDCM Forecast Data'!H125 -> 0.95 | I125: ='[2]CDCM Forecast Data'!I125 -> 0.95
A126: 113 | B126: Assets LV circuits | C126: ='[2]CDCM Forecast Data'!C126 -> 0.95 | D126: ='[2]CDCM Forecast Data'!D126 -> 0.95 | E126: ='[2]CDCM Forecast Data'!E126 -> 0.95 | F126: ='[2]CDCM Forecast Data'!F126 -> 0.95 | G126: ='[2]CDCM Forecast Data'!G126 -> 0.95 | H126: ='[2]CDCM Forecast Data'!H126 -> 0.95 | I126: ='[2]CDCM Forecast Data'!I126 -> 0.95
A127: 114 | B127: LV substation
A128: 115 | B128: Assets 132kV | C128: ='[2]CDCM Forecast Data'!C128 -> 0 | D128: ='[2]CDCM Forecast Data'!D128 -> 0 | E128: ='[2]CDCM Forecast Data'!E128 -> 0 | F128: ='[2]CDCM Forecast Data'!F128 -> 0 | G128: ='[2]CDCM Forecast Data'!G128 -> 0 | H128: ='[2]CDCM Forecast Data'!H128 -> 0 | I128: ='[2]CDCM Forecast Data'!I128 -> 0
A129: 116 | B129: Assets 132kV/EHV | C129: ='[2]CDCM Forecast Data'!C129 -> 0 | D129: ='[2]CDCM Forecast Data'!D129 -> 0 | E129: ='[2]CDCM Forecast Data'!E129 -> 0 | F129: ='[2]CDCM Forecast Data'!F129 -> 0 | G129: ='[2]CDCM Forecast Data'!G129 -> 0 | H129: ='[2]CDCM Forecast Data'!H129 -> 0 | I129: ='[2]CDCM Forecast Data'!I129 -> 0
A130: 117 | B130: Assets EHV | C130: ='[2]CDCM Forecast Data'!C130 -> 0 | D130: ='[2]CDCM Forecast Data'!D130 -> 0 | E130: ='[2]CDCM Forecast Data'!E130 -> 0 | F130: ='[2]CDCM Forecast Data'!F130 -> 0 | G130: ='[2]CDCM Forecast Data'!G130 -> 0 | H130: ='[2]CDCM Forecast Data'!H130 -> 0 | I130: ='[2]CDCM Forecast Data'!I130 -> 0
A131: 118 | B131: Assets EHV/HV | C131: ='[2]CDCM Forecast Data'!C131 -> 0.81 | D131: ='[2]CDCM Forecast Data'!D131 -> 0.81 | E131: ='[2]CDCM Forecast Data'!E131 -> 0.81 | F131: ='[2]CDCM Forecast Data'!F131 -> 0.81 | G131: ='[2]CDCM Forecast Data'!G131 -> 0.81 | H131: ='[2]CDCM Forecast Data'!H131 -> 0.81 | I131: ='[2]CDCM Forecast Data'!I131 -> 0.81
A132: 119 | B132: Assets 132kV/HV | C132: ='[2]CDCM Forecast Data'!C132 -> 0 | D132: ='[2]CDCM Forecast Data'!D132 -> 0 | E132: ='[2]CDCM Forecast Data'!E132 -> 0 | F132: ='[2]CDCM Forecast Data'!F132 -> 0 | G132: ='[2]CDCM Forecast Data'!G132 -> 0 | H132: ='[2]CDCM Forecast Data'!H132 -> 0 | I132: ='[2]CDCM Forecast Data'!I132 -> 0
A133: 120 | B133: Assets HV | C133: ='[2]CDCM Forecast Data'!C133 -> 0.81 | D133: ='[2]CDCM Forecast Data'!D133 -> 0.81 | E133: ='[2]CDCM Forecast Data'!E133 -> 0.81 | F133: ='[2]CDCM Forecast Data'!F133 -> 0.81 | G133: ='[2]CDCM Forecast Data'!G133 -> 0.81 | H133: ='[2]CDCM Forecast Data'!H133 -> 0.81 | I133: ='[2]CDCM Forecast Data'!I133 -> 0.81
A134: 121 | B134: Assets HV/LV | C134: ='[2]CDCM Forecast Data'!C134 -> 0.95 | D134: ='[2]CDCM Forecast Data'!D134 -> 0.95 | E134: ='[2]CDCM Forecast Data'!E134 -> 0.95 | F134: ='[2]CDCM Forecast Data'!F134 -> 0.95 | G134: ='[2]CDCM Forecast Data'!G134 -> 0.95 | H134: ='[2]CDCM Forecast Data'!H134 -> 0.95 | I134: ='[2]CDCM Forecast Data'!I134 -> 0.95
A135: 122 | B135: HV network
A136: 123 | B136: Assets 132kV | C136: ='[2]CDCM Forecast Data'!C136 -> 0 | D136: ='[2]CDCM Forecast Data'!D136 -> 0 | E136: ='[2]CDCM Forecast Data'!E136 -> 0 | F136: ='[2]CDCM Forecast Data'!F136 -> 0 | G136: ='[2]CDCM Forecast Data'!G136 -> 0 | H136: ='[2]CDCM Forecast Data'!H136 -> 0 | I136: ='[2]CDCM Forecast Data'!I136 -> 0
A137: 124 | B137: Assets 132kV/EHV | C137: ='[2]CDCM Forecast Data'!C137 -> 0.67 | D137: ='[2]CDCM Forecast Data'!D137 -> 0.67 | E137: ='[2]CDCM Forecast Data'!E137 -> 0.67 | F137: ='[2]CDCM Forecast Data'!F137 -> 0.67 | G137: ='[2]CDCM Forecast Data'!G137 -> 0.67 | H137: ='[2]CDCM Forecast Data'!H137 -> 0.67 | I137: ='[2]CDCM Forecast Data'!I137 -> 0.67
A138: 125 | B138: Assets EHV | C138: ='[2]CDCM Forecast Data'!C138 -> 0.67 | D138: ='[2]CDCM Forecast Data'!D138 -> 0.67 | E138: ='[2]CDCM Forecast Data'!E138 -> 0.67 | F138: ='[2]CDCM Forecast Data'!F138 -> 0.67 | G138: ='[2]CDCM Forecast Data'!G138 -> 0.67 | H138: ='[2]CDCM Forecast Data'!H138 -> 0.67 | I138: ='[2]CDCM Forecast Data'!I138 -> 0.67
A139: 126 | B139: Assets EHV/HV | C139: ='[2]CDCM Forecast Data'!C139 -> 1 | D139: ='[2]CDCM Forecast Data'!D139 -> 1 | E139: ='[2]CDCM Forecast Data'!E139 -> 1 | F139: ='[2]CDCM Forecast Data'!F139 -> 1 | G139: ='[2]CDCM Forecast Data'!G139 -> 1 | H139: ='[2]CDCM Forecast Data'!H139 -> 1 | I139: ='[2]CDCM Forecast Data'!I139 -> 1
A140: 127 | B140: Assets 132kV/HV | C140: ='[2]CDCM Forecast Data'!C140 -> 0 | D140: ='[2]CDCM Forecast Data'!D140 -> 0 | E140: ='[2]CDCM Forecast Data'!E140 -> 0 | F140: ='[2]CDCM Forecast Data'!F140 -> 0 | G140: ='[2]CDCM Forecast Data'!G140 -> 0 | H140: ='[2]CDCM Forecast Data'!H140 -> 0 | I140: ='[2]CDCM Forecast Data'!I140 -> 0
A141: 128 | B141: Assets HV | C141: ='[2]CDCM Forecast Data'!C141 -> 1 | D141: ='[2]CDCM Forecast Data'!D141 -> 1 | E141: ='[2]CDCM Forecast Data'!E141 -> 1 | F141: ='[2]CDCM Forecast Data'!F141 -> 1 | G141: ='[2]CDCM Forecast Data'!G141 -> 1 | H141: ='[2]CDCM Forecast Data'!H141 -> 1 | I141: ='[2]CDCM Forecast Data'!I141 -> 1
A142: 129 | B142: HV substation
A143: 130 | B143: Assets 132kV | C143: ='[2]CDCM Forecast Data'!C143 -> 0 | D143: ='[2]CDCM Forecast Data'!D143 -> 0 | E143: ='[2]CDCM Forecast Data'!E143 -> 0 | F143: ='[2]CDCM Forecast Data'!F143 -> 0 | G143: ='[2]CDCM Forecast Data'!G143 -> 0 | H143: ='[2]CDCM Forecast Data'!H143 -> 0 | I143: ='[2]CDCM Forecast Data'!I143 -> 0
A144: 131 | B144: Assets 132kV/EHV | C144: ='[2]CDCM Forecast Data'!C144 -> 0.67 | D144: ='[2]CDCM Forecast Data'!D144 -> 0.67 | E144: ='[2]CDCM Forecast Data'!E144 -> 0.67 | F144: ='[2]CDCM Forecast Data'!F144 -> 0.67 | G144: ='[2]CDCM Forecast Data'!G144 -> 0.67 | H144: ='[2]CDCM Forecast Data'!H144 -> 0.67 | I144: ='[2]CDCM Forecast Data'!I144 -> 0.67
A145: 132 | B145: Assets EHV | C145: ='[2]CDCM Forecast Data'!C145 -> 0.67 | D145: ='[2]CDCM Forecast Data'!D145 -> 0.67 | E145: ='[2]CDCM Forecast Data'!E145 -> 0.67 | F145: ='[2]CDCM Forecast Data'!F145 -> 0.67 | G145: ='[2]CDCM Forecast Data'!G145 -> 0.67 | H145: ='[2]CDCM Forecast Data'!H145 -> 0.67 | I145: ='[2]CDCM Forecast Data'!I145 -> 0.67
A146: 133 | B146: Assets EHV/HV | C146: ='[2]CDCM Forecast Data'!C146 -> 1 | D146: ='[2]CDCM Forecast Data'!D146 -> 1 | E146: ='[2]CDCM Forecast Data'!E146 -> 1 | F146: ='[2]CDCM Forecast Data'!F146 -> 1 | G146: ='[2]CDCM Forecast Data'!G146 -> 1 | H146: ='[2]CDCM Forecast Data'!H146 -> 1 | I146: ='[2]CDCM Forecast Data'!I146 -> 1
A147: 134 | B147: 1061 Average split of rate 1 units by distribution time band
A148: 135 | B148: RED
A149: 136 | B149: Domestic Unrestricted | C149: ='[2]CDCM Forecast Data'!C149 -> 0.08862032897 | D149: ='[2]CDCM Forecast Data'!D149 -> 0.08862032897 | E149: ='Smoothed Input Details'!K70 -> 0.08874020031 | F149: =E149 -> 0.08874020031 | G149: 0.08874020031 | H149: 0.08874020031 | I149: 0.08874020031
A150: 137 | B150: Domestic Two Rate | C150: ='[2]CDCM Forecast Data'!C150 -> 0.1067679862 | D150: ='[2]CDCM Forecast Data'!D150 -> 0.1067679862 | E150: ='Smoothed Input Details'!K71 -> 0.1075158524 | F150: 0.1075158524 | G150: 0.1075158524 | H150: 0.1075158524 | I150: 0.1075158524
A151: 138 | B151: Domestic Off Peak (related MPAN) | C151: ='[2]CDCM Forecast Data'!C151 -> 0.001299241053 | D151: ='[2]CDCM Forecast Data'!D151 -> 0.001299241053 | E151: ='Smoothed Input Details'!K72 -> 0.001346745284 | F151: 0.001346745284 | G151: 0.001346745284 | H151: 0.001346745284 | I151: 0.001346745284
A152: 139 | B152: Small Non Domestic Unrestricted | C152: ='[2]CDCM Forecast Data'!C152 -> 0.06211254985 | D152: ='[2]CDCM Forecast Data'!D152 -> 0.06211254985 | E152: ='Smoothed Input Details'!K73 -> 0.06262004655 | F152: 0.06262004655 | G152: 0.06262004655 | H152: 0.06262004655 | I152: 0.06262004655
A153: 140 | B153: Small Non Domestic Two Rate | C153: ='[2]CDCM Forecast Data'!C153 -> 0.08002807725 | D153: ='[2]CDCM Forecast Data'!D153 -> 0.08002807725 | E153: ='Smoothed Input Details'!K74 -> 0.08115654121 | F153: 0.08115654121 | G153: 0.08115654121 | H153: 0.08115654121 | I153: 0.08115654121
A154: 141 | B154: Small Non Domestic Off Peak (related MPAN) | C154: ='[2]CDCM Forecast Data'!C154 -> 0.001974191376 | D154: ='[2]CDCM Forecast Data'!D154 -> 0.001974191376 | E154: ='Smoothed Input Details'!K75 -> 0.002110885594 | F154: 0.002110885594 | G154: 0.002110885594 | H154: 0.002110885594 | I154: 0.002110885594
A155: 142 | B155: LV Medium Non-Domestic | C155: ='[2]CDCM Forecast Data'!C155 -> 0.08249427729 | D155: ='[2]CDCM Forecast Data'!D155 -> 0.08249427729 | E155: ='Smoothed Input Details'!K76 -> 0.08297024793 | F155: 0.08297024793 | G155: 0.08297024793 | H155: 0.08297024793 | I155: 0.08297024793
A156: 143 | B156: LV Sub Medium Non-Domestic | C156: ='[2]CDCM Forecast Data'!C156 -> 0.08138349977 | D156: ='[2]CDCM Forecast Data'!D156 -> 0.08138349977 | E156: ='Smoothed Input Details'!K77 -> 0.08188860342 | F156: 0.08188860342 | G156: 0.08188860342 | H156: 0.08188860342 | I156: 0.08188860342
A157: 144 | B157: HV Medium Non-Domestic | C157: ='[2]CDCM Forecast Data'!C157 -> 0.0829178245 | D157: ='[2]CDCM Forecast Data'!D157 -> 0.0829178245 | E157: ='Smoothed Input Details'!K78 -> 0.08215022324 | F157: 0.08215022324 | G157: 0.08215022324 | H157: 0.08215022324 | I157: 0.08215022324
A158: 145 | B158: AMBER
A159: 146 | B159: Domestic Unrestricted | C159: ='[2]CDCM Forecast Data'!C159 -> 0.4620712742 | D159: ='[2]CDCM Forecast Data'!D159 -> 0.4620712742 | E159: ='Smoothed Input Details'!L70 -> 0.4623955963 | F159: =E159 -> 0.4623955963 | G159: 0.4623955963 | H159: 0.4623955963 | I159: 0.4623955963
A160: 147 | B160: Domestic Two Rate | C160: ='[2]CDCM Forecast Data'!C160 -> 0.5361322108 | D160: ='[2]CDCM Forecast Data'!D160 -> 0.5361322108 | E160: ='Smoothed Input Details'!L71 -> 0.5392899373 | F160: 0.5392899373 | G160: 0.5392899373 | H160: 0.5392899373 | I160: 0.5392899373
A161: 148 | B161: Domestic Off Peak (related MPAN) | C161: ='[2]CDCM Forecast Data'!C161 -> 0.1084605769 | D161: ='[2]CDCM Forecast Data'!D161 -> 0.1084605769 | E161: ='Smoothed Input Details'!L72 -> 0.1087054702 | F161: 0.1087054702 | G161: 0.1087054702 | H161: 0.1087054702 | I161: 0.1087054702
A162: 149 | B162: Small Non Domestic Unrestricted | C162: ='[2]CDCM Forecast Data'!C162 -> 0.5684268829 | D162: ='[2]CDCM Forecast Data'!D162 -> 0.5684268829 | E162: ='Smoothed Input Details'!L73 -> 0.5659629484 | F162: 0.5659629484 | G162: 0.5659629484 | H162: 0.5659629484 | I162: 0.5659629484
A163: 150 | B163: Small Non Domestic Two Rate | C163: ='[2]CDCM Forecast Data'!C163 -> 0.631685709 | D163: ='[2]CDCM Forecast Data'!D163 -> 0.631685709 | E163: ='Smoothed Input Details'!L74 -> 0.6306607774 | F163: 0.6306607774 | G163: 0.6306607774 | H163: 0.6306607774 | I163: 0.6306607774
A164: 151 | B164: Small Non Domestic Off Peak (related MPAN) | C164: ='[2]CDCM Forecast Data'!C164 -> 0.1156568508 | D164: ='[2]CDCM Forecast Data'!D164 -> 0.1156568508 | E164: ='Smoothed Input Details'!L75 -> 0.1180265489 | F164: 0.1180265489 | G164: 0.1180265489 | H164: 0.1180265489 | I164: 0.1180265489
A165: 152 | B165: LV Medium Non-Domestic | C165: ='[2]CDCM Forecast Data'!C165 -> 0.6198233539 | D165: ='[2]CDCM Forecast Data'!D165 -> 0.6198233539 | E165: ='Smoothed Input Details'!L76 -> 0.6203611008 | F165: 0.6203611008 | G165: 0.6203611008 | H165: 0.6203611008 | I165: 0.6203611008
A166: 153 | B166: LV Sub Medium Non-Domestic | C166: ='[2]CDCM Forecast Data'!C166 -> 0.6185661035 | D166: ='[2]CDCM Forecast Data'!D166 -> 0.6185661035 | E166: ='Smoothed Input Details'!L77 -> 0.6185584 | F166: 0.6185584 | G166: 0.6185584 | H166: 0.6185584 | I166: 0.6185584
A167: 154 | B167: HV Medium Non-Domestic | C167: ='[2]CDCM Forecast Data'!C167 -> 0.6332060946 | D167: ='[2]CDCM Forecast Data'!D167 -> 0.6332060946 | E167: ='Smoothed Input Details'!L78 -> 0.6395586657 | F167: 0.6395586657 | G167: 0.6395586657 | H167: 0.6395586657 | I167: 0.6395586657
A168: 155 | B168: GREEN
A169: 156 | B169: Domestic Unrestricted | C169: ='[2]CDCM Forecast Data'!C169 -> 0.4493083969 | D169: ='[2]CDCM Forecast Data'!D169 -> 0.4493083969 | E169: ='Smoothed Input Details'!M70 -> 0.4488642034 | F169: =E169 -> 0.4488642034 | G169: 0.4488642034 | H169: 0.4488642034 | I169: 0.4488642034
A170: 157 | B170: Domestic Two Rate | C170: ='[2]CDCM Forecast Data'!C170 -> 0.357099803 | D170: ='[2]CDCM Forecast Data'!D170 -> 0.357099803 | E170: ='Smoothed Input Details'!M71 -> 0.3531942103 | F170: 0.3531942103 | G170: 0.3531942103 | H170: 0.3531942103 | I170: 0.3531942103
A171: 158 | B171: Domestic Off Peak (related MPAN) | C171: ='[2]CDCM Forecast Data'!C171 -> 0.8902401821 | D171: ='[2]CDCM Forecast Data'!D171 -> 0.8902401821 | E171: ='Smoothed Input Details'!M72 -> 0.8899477845 | F171: 0.8899477845 | G171: 0.8899477845 | H171: 0.8899477845 | I171: 0.8899477845
A172: 159 | B172: Small Non Domestic Unrestricted | C172: ='[2]CDCM Forecast Data'!C172 -> 0.3694605673 | D172: ='[2]CDCM Forecast Data'!D172 -> 0.3694605673 | E172: ='Smoothed Input Details'!M73 -> 0.371417005 | F172: 0.371417005 | G172: 0.371417005 | H172: 0.371417005 | I172: 0.371417005
A173: 160 | B173: Small Non Domestic Two Rate | C173: ='[2]CDCM Forecast Data'!C173 -> 0.2882862138 | D173: ='[2]CDCM Forecast Data'!D173 -> 0.2882862138 | E173: ='Smoothed Input Details'!M74 -> 0.2881826814 | F173: 0.2881826814 | G173: 0.2881826814 | H173: 0.2881826814 | I173: 0.2881826814
A174: 161 | B174: Small Non Domestic Off Peak (related MPAN) | C174: ='[2]CDCM Forecast Data'!C174 -> 0.8823689578 | D174: ='[2]CDCM Forecast Data'!D174 -> 0.8823689578 | E174: ='Smoothed Input Details'!M75 -> 0.8798625655 | F174: 0.8798625655 | G174: 0.8798625655 | H174: 0.8798625655 | I174: 0.8798625655
A175: 162 | B175: LV Medium Non-Domestic | C175: ='[2]CDCM Forecast Data'!C175 -> 0.2976823688 | D175: ='[2]CDCM Forecast Data'!D175 -> 0.2976823688 | E175: ='Smoothed Input Details'!M76 -> 0.2966686513 | F175: 0.2966686513 | G175: 0.2966686513 | H175: 0.2966686513 | I175: 0.2966686513
A176: 163 | B176: LV Sub Medium Non-Domestic | C176: ='[2]CDCM Forecast Data'!C176 -> 0.3000503968 | D176: ='[2]CDCM Forecast Data'!D176 -> 0.3000503968 | E176: ='Smoothed Input Details'!M77 -> 0.2995529966 | F176: 0.2995529966 | G176: 0.2995529966 | H176: 0.2995529966 | I176: 0.2995529966
A177: 164 | B177: HV Medium Non-Domestic | C177: ='[2]CDCM Forecast Data'!C177 -> 0.2838760809 | D177: ='[2]CDCM Forecast Data'!D177 -> 0.2838760809 | E177: ='Smoothed Input Details'!M78 -> 0.2782911111 | F177: 0.2782911111 | G177: 0.2782911111 | H177: 0.2782911111 | I177: 0.2782911111
A178: 165 | B178: 1062 Average split of rate 2 units by distribution time band
A179: 166 | B179: RED
A180: 167 | B180: Domestic Two Rate | C180: ='[2]CDCM Forecast Data'!C180 -> 0 | D180: ='[2]CDCM Forecast Data'!D180 -> 0 | E180: ='Smoothed Input Details'!K88 -> 0 | F180: =E180 -> 0 | G180: 0 | H180: 0 | I180: 0
A181: 168 | B181: Small Non Domestic Two Rate | C181: ='[2]CDCM Forecast Data'!C181 -> 0 | D181: ='[2]CDCM Forecast Data'!D181 -> 0 | E181: ='Smoothed Input Details'!K89 -> 0 | F181: 0 | G181: 0 | H181: 0 | I181: 0
A182: 169 | B182: LV Medium Non-Domestic | C182: ='[2]CDCM Forecast Data'!C182 -> 0 | D182: ='[2]CDCM Forecast Data'!D182 -> 0 | E182: ='Smoothed Input Details'!K90 -> 0 | F182: 0 | G182: 0 | H182: 0 | I182: 0
A183: 170 | B183: LV Sub Medium Non-Domestic | C183: ='[2]CDCM Forecast Data'!C183 -> 0 | D183: ='[2]CDCM Forecast Data'!D183 -> 0 | E183: ='Smoothed Input Details'!K91 -> 0 | F183: 0 | G183: 0 | H183: 0 | I183: 0
A184: 171 | B184: HV Medium Non-Domestic | C184: ='[2]CDCM Forecast Data'!C184 -> 0 | D184: ='[2]CDCM Forecast Data'!D184 -> 0 | E184: ='Smoothed Input Details'!K92 -> 0 | F184: 0 | G184: 0 | H184: 0 | I184: 0
A185: 172 | B185: AMBER
A186: 173 | B186: Domestic Two Rate | C186: ='[2]CDCM Forecast Data'!C186 -> 0.0202504771 | D186: ='[2]CDCM Forecast Data'!D186 -> 0.0202504771 | E186: ='Smoothed Input Details'!L88 -> 0.02098092982 | F186: =E186 -> 0.02098092982 | G186: 0.02098092982 | H186: 0.02098092982 | I186: 0.02098092982
A187: 174 | B187: Small Non Domestic Two Rate | C187: ='[2]CDCM Forecast Data'!C187 -> 0.02466712092 | D187: ='[2]CDCM Forecast Data'!D187 -> 0.02466712092 | E187: ='Smoothed Input Details'!L89 -> 0.0264445948 | F187: 0.0264445948 | G187: 0.0264445948 | H187: 0.0264445948 | I187: 0.0264445948
A188: 175 | B188: LV Medium Non-Domestic | C188: ='[2]CDCM Forecast Data'!C188 -> 0 | D188: ='[2]CDCM Forecast Data'!D188 -> 0 | E188: ='Smoothed Input Details'!L90 -> 0 | F188: 0 | G188: 0 | H188: 0 | I188: 0
A189: 176 | B189: LV Sub Medium Non-Domestic | C189: ='[2]CDCM Forecast Data'!C189 -> 0 | D189: ='[2]CDCM Forecast Data'!D189 -> 0 | E189: ='Smoothed Input Details'!L91 -> 0 | F189: 0 | G189: 0 | H189: 0 | I189: 0
A190: 177 | B190: HV Medium Non-Domestic | C190: ='[2]CDCM Forecast Data'!C190 -> 0 | D190: ='[2]CDCM Forecast Data'!D190 -> 0 | E190: ='Smoothed Input Details'!L92 -> 0 | F190: 0 | G190: 0 | H190: 0 | I190: 0
A191: 178 | B191: GREEN
A192: 179 | B192: Domestic Two Rate | C192: ='[2]CDCM Forecast Data'!C192 -> 0.9797495229 | D192: ='[2]CDCM Forecast Data'!D192 -> 0.9797495229 | E192: ='Smoothed Input Details'!M88 -> 0.9790190702 | F192: =E192 -> 0.9790190702 | G192: 0.9790190702 | H192: 0.9790190702 | I192: 0.9790190702
A193: 180 | B193: Small Non Domestic Two Rate | C193: ='[2]CDCM Forecast Data'!C193 -> 0.9753328791 | D193: ='[2]CDCM Forecast Data'!D193 -> 0.9753328791 | E193: ='Smoothed Input Details'!M89 -> 0.9735554052 | F193: 0.9735554052 | G193: 0.9735554052 | H193: 0.9735554052 | I193: 0.9735554052
A194: 181 | B194: LV Medium Non-Domestic | C194: ='[2]CDCM Forecast Data'!C194 -> 1 | D194: ='[2]CDCM Forecast Data'!D194 -> 1 | E194: ='Smoothed Input Details'!M90 -> 1 | F194: 1 | G194: 1 | H194: 1 | I194: 1
A195: 182 | B195: LV Sub Medium Non-Domestic | C195: ='[2]CDCM Forecast Data'!C195 -> 1 | D195: ='[2]CDCM Forecast Data'!D195 -> 1 | E195: ='Smoothed Input Details'!M91 -> 1 | F195: 1 | G195: 1 | H195: 1 | I195: 1
A196: 183 | B196: HV Medium Non-Domestic | C196: ='[2]CDCM Forecast Data'!C196 -> 1 | D196: ='[2]CDCM Forecast Data'!D196 -> 1 | E196: ='Smoothed Input Details'!M92 -> 1 | F196: 1 | G196: 1 | H196: 1 | I196: 1
A197: 184 | B197: 1064. Average split of rate 1 units by special distribution time band
A198: 185 | B198: BLACK
A199: 186 | B199: NHH UMS category A | C199: ='[2]CDCM Forecast Data'!C199 -> 0.01750380518 | D199: ='[2]CDCM Forecast Data'!D199 -> 0.01750380518 | E199: ='Smoothed Input Details'!K102 -> 0.01733579526 | F199: =E199 -> 0.01733579526 | G199: 0.01733579526 | H199: 0.01733579526 | I199: 0.01733579526
A200: 187 | B200: NHH UMS category B | C200: ='[2]CDCM Forecast Data'!C200 -> 0.03321711273 | D200: ='[2]CDCM Forecast Data'!D200 -> 0.03321711273 | E200: ='Smoothed Input Details'!K103 -> 0.03284730272 | F200: 0.03284730272 | G200: 0.03284730272 | H200: 0.03284730272 | I200: 0.03284730272
A201: 188 | B201: NHH UMS category C | C201: ='[2]CDCM Forecast Data'!C201 -> 0.06032346443 | D201: ='[2]CDCM Forecast Data'!D201 -> 0.06032346443 | E201: ='Smoothed Input Details'!K104 -> 0.05927359579 | F201: 0.05927359579 | G201: 0.05927359579 | H201: 0.05927359579 | I201: 0.05927359579
A202: 189 | B202: NHH UMS category D | C202: ='[2]CDCM Forecast Data'!C202 -> 0.002463152623 | D202: ='[2]CDCM Forecast Data'!D202 -> 0.002463152623 | E202: ='Smoothed Input Details'!K105 -> 0.002449289722 | F202: 0.002449289722 | G202: 0.002449289722 | H202: 0.002449289722 | I202: 0.002449289722
A203: 190 | B203: YELLOW
A204: 191 | B204: NHH UMS category A | C204: ='[2]CDCM Forecast Data'!C204 -> 0.4348173516 | D204: ='[2]CDCM Forecast Data'!D204 -> 0.4348173516 | E204: ='Smoothed Input Details'!L102 -> 0.4355228685 | F204: =E204 -> 0.4355228685 | G204: 0.4355228685 | H204: 0.4355228685 | I204: 0.4355228685
A205: 192 | B205: NHH UMS category B | C205: ='[2]CDCM Forecast Data'!C205 -> 0.1515664702 | D205: ='[2]CDCM Forecast Data'!D205 -> 0.1515664702 | E205: ='Smoothed Input Details'!L103 -> 0.1517630106 | F205: 0.1517630106 | G205: 0.1517630106 | H205: 0.1517630106 | I205: 0.1517630106
... 66 more rows

Sheet Table 1
A1: Schedule 15 table 1
A2: ="Company Name: "&'CDCM Forecast Data'!E3 -> Company Name: WPD South West
A3: Date:
A5: Description | B5: Licence Term | C5: CRC | K5: Assumptions
A6: Regulatory Year | D6: t-2 | E6: t-1 | F6: t | G6: t+1 | H6: t+2 | I6: t+3 | J6: t+4
A7: Regulatory Year | D7: ='CDCM Forecast Data'!C11 -> 2016/17 | E7: ='CDCM Forecast Data'!D11 -> 2017/18 | F7: ='CDCM Forecast Data'!E11 -> 2018/19 | G7: ='CDCM Forecast Data'!F11 -> 2019/20 | H7: ='CDCM Forecast Data'!G11 -> 2020/21 | I7: ='CDCM Forecast Data'!H11 -> 2021/22 | J7: ='CDCM Forecast Data'!I11 -> 2022/23
A8: Base Demand Revenue Before Inflation (A1) | B8: PU | C8: CRC2A | D8: ='[2]Table 1'!D8 -> 291.9 | E8: ='[2]Table 1'!E8 -> 296.5 | F8: ='[2]Table 1'!F8 -> 299.5 | G8: ='[2]Table 1'!G8 -> 302.5 | H8: ='[2]Table 1'!H8 -> 305.5 | I8: ='[2]Table 1'!I8 -> 308.6 | J8: ='[2]Table 1'!J8 -> 311.7
A9: Annual Iteration adjustment before inflation (A2) | B9: MOD | C9: CRC2A | D9: ='[2]Table 1'!D9 -> -1.747438241 | E9: ='[2]Table 1'!E9 -> -3.989704153 | F9: ='[2]Table 1'!F9 -> -7.869074414 | G9: ='[2]Table 1'!G9 -> -9.384321213 | H9: ='[2]Table 1'!H9 -> -14.98414386 | I9: ='[2]Table 1'!I9 -> -18.27543879 | J9: ='[2]Table 1'!J9 -> -21.5356102
A10: RPI True-up before inflation (A3) | B10: TRU | C10: CRC2A | D10: ='[2]Table 1'!D10 -> 0 | E10: ='[2]Table 1'!E10 -> -6.326557025 | F10: ='[2]Table 1'!F10 -> -0.8904552231 | G10: ='[2]Table 1'!G10 -> 0 | H10: ='[2]Table 1'!H10 -> 0 | I10: ='[2]Table 1'!I10 -> 0 | J10: ='[2]Table 1'!J10 -> 0
A11: Price index adjustment (RPI index) (A4) | B11: RPIF | C11: CRC2A | D11: ='[2]Table 1'!D11 -> 1.087 | E11: ='[2]Table 1'!E11 -> 1.121 | F11: ='[2]Table 1'!F11 -> 1.155 | G11: ='[2]Table 1'!G11 -> 1.19 | H11: ='[2]Table 1'!H11 -> 1.227 | I11: ='[2]Table 1'!I11 -> 1.263 | J11: ='[2]Table 1'!J11 -> 1.302
A12: Base Demand Revenue (A): [A = (A1 + A2 + A3) * A4] | B12: BR | C12: CRC2A | D12: =(D8+D9+D10)*D11 -> 315.3958346 | E12: =(E8+E9+E10)*E11 -> 320.8119712 | F12: 335.8052433 | G12: 348.8076578 | H12: 356.4629555 | I12: 366.6799208 | J12: 377.7940355 | K12: A = (A1 + A2 + A3) * A4
A13: Pass-Through Licence Fees (B1) | B13: LF | C13: CRC2B | D13: ='[2]Table 1'!D13 -> 0 | E13: ='[2]Table 1'!E13 -> 0.1317271297 | F13: ='[2]Table 1'!F13 -> -0.05380998573 | G13: ='[2]Table 1'!G13 -> -0.05527774761 | H13: ='[2]Table 1'!H13 -> -0.0567577797 | I13: ='[2]Table 1'!I13 -> -0.05811699057 | J13: ='[2]Table 1'!J13 -> -0.05963058406
A14: Pass-Through Business Rates (B2) | B14: RB | C14: CRC2B | D14: ='[2]Table 1'!D14 -> 0 | E14: ='[2]Table 1'!E14 -> 0.277984733 | F14: ='[2]Table 1'!F14 -> 0.02564347328 | G14: ='[2]Table 1'!G14 -> 1.02608152 | H14: ='[2]Table 1'!H14 -> -2.659500961 | I14: ='[2]Table 1'!I14 -> -4.914388392 | J14: ='[2]Table 1'!J14 -> -5.077786964
A15: Pass-Through Transmission Connection Point Charges (B3) | B15: TB | C15: CRC2B | D15: ='[2]Table 1'!D15 -> 0 | E15: ='[2]Table 1'!E15 -> -1.119577514 | F15: ='[2]Table 1'!F15 -> -1.679289931 | G15: ='[2]Table 1'!G15 -> -1.777608799 | H15: ='[2]Table 1'!H15 -> -1.822920808 | I15: ='[2]Table 1'!I15 -> -1.900511326 | J15: ='[2]Table 1'!J15 -> -1.93902281
A16: Pass-through Smart Meter Communication Licence Costs (B4) | B16: SMC | C16: CRC2B | D16: ='[2]Table 1'!D16 -> 0 | E16: ='[2]Table 1'!E16 -> -0.09776751642 | F16: ='[2]Table 1'!F16 -> 0.2037119549 | G16: ='[2]Table 1'!G16 -> 0.0870405006 | H16: ='[2]Table 1'!H16 -> 0.08564223189 | I16: ='[2]Table 1'!I16 -> 0.09059213327 | J16: ='[2]Table 1'!J16 -> 0.1123356875
A17: Pass-through Smart Meter IT Costs (B5) | B17: SMIT | C17: CRC2B | D17: ='[2]Table 1'!D17 -> 0 | E17: ='[2]Table 1'!E17 -> -0.191250357 | F17: ='[2]Table 1'!F17 -> -0.3382163767 | G17: ='[2]Table 1'!G17 -> 0.07619745473 | H17: ='[2]Table 1'!H17 -> -0.2593577554 | I17: ='[2]Table 1'!I17 -> 0.359845818 | J17: ='[2]Table 1'!J17 -> -0.556208703
A18: Pass-through Ring Fence Costs | B18: RF | C18: CRC2B | D18: ='[2]Table 1'!D18 -> 0 | E18: ='[2]Table 1'!E18 -> 0.02451074479 | F18: ='[2]Table 1'!F18 -> 0.02520201913 | G18: ='[2]Table 1'!G18 -> 0.02588944847 | H18: ='[2]Table 1'!H18 -> 0.02658262459 | I18: ='[2]Table 1'!I18 -> 0.02721921383 | J18: ='[2]Table 1'!J18 -> 0.0279281085
A19: Pass-Through Others (B5) | B19: HB, SEC, UNC | C19: CRC2B | D19: ='[2]Table 1'!D19 -> 0 | E19: ='[2]Table 1'!E19 -> 0 | F19: ='[2]Table 1'!F19 -> 0 | G19: ='[2]Table 1'!G19 -> 0 | H19: ='[2]Table 1'!H19 -> 0 | I19: ='[2]Table 1'!I19 -> 0 | J19: ='[2]Table 1'!J19 -> 0
A20: Allowed Pass-Through Items (B): [B = B1 + B2 + B3 +B4 + B5 + B6 + B7] | B20: PT | C20: CRC2B | D20: =SUM(D13:D19) -> 0 | E20: =SUM(E13:E19) -> -0.9743727796 | F20: -1.816758846 | G20: -0.6176776225 | H20: -4.686312448 | I20: -6.395359543 | J20: -7.492385265 | K20: B = B1 + B2 + B3 +B4 + B5 + B6 + B7
A21: Broad Measure of Customer Service incentive (C1) | B21: BM | C21: CRC2C | D21: ='[2]Table 1'!D21 -> 2.167224783 | E21: ='[2]Table 1'!E21 -> 3.985298775 | F21: ='[2]Table 1'!F21 -> 4.073971673 | G21: ='[2]Table 1'!G21 -> 4.213382408 | H21: ='[2]Table 1'!H21 -> 4.341174559 | I21: ='[2]Table 1'!I21 -> 4.472725303 | J21: ='[2]Table 1'!J21 -> 4.611793233
A22: Quality of Service incentive (C2) | B22: IQ | C22: CRC2D | D22: ='[2]Table 1'!D22 -> 5.810622291 | E22: ='[2]Table 1'!E22 -> 5.824579822 | F22: ='[2]Table 1'!F22 -> 5.244074321 | G22: ='[2]Table 1'!G22 -> 5.154698589 | H22: ='[2]Table 1'!H22 -> 5.202800226 | I22: ='[2]Table 1'!I22 -> 5.821166257 | J22: ='[2]Table 1'!J22 -> 5.608144918
A23: Connections Engagement incentive (C3) | B23: ICE | C23: CRC2E | D23: ='[2]Table 1'!D23 -> 0 | E23: ='[2]Table 1'!E23 -> 0 | F23: ='[2]Table 1'!F23 -> 0 | G23: ='[2]Table 1'!G23 -> 0 | H23: ='[2]Table 1'!H23 -> 0 | I23: ='[2]Table 1'!I23 -> 0 | J23: ='[2]Table 1'!J23 -> 0
A24: Time to Connect incentive (C4) | B24: TTC | C24: CRC2F | D24: ='[2]Table 1'!D24 -> 0 | E24: ='[2]Table 1'!E24 -> 1.203989666 | F24: ='[2]Table 1'!F24 -> 1.230778436 | G24: ='[2]Table 1'!G24 -> 1.2728955 | H24: ='[2]Table 1'!H24 -> 1.3115025 | I24: ='[2]Table 1'!I24 -> 0 | J24: ='[2]Table 1'!J24 -> 0
A25: Losses Discretionary Reward incentive (C5) | B25: LDR | C25: CRC2G | D25: ='[2]Table 1'!D25 -> 0 | E25: ='[2]Table 1'!E25 -> 0.04484 | F25: ='[2]Table 1'!F25 -> 0 | G25: ='[2]Table 1'!G25 -> 0.0476 | H25: ='[2]Table 1'!H25 -> 0 | I25: ='[2]Table 1'!I25 -> 0.05052 | J25: ='[2]Table 1'!J25 -> 0
A26: Network Innovation Allowance (C6) | B26: NIA | C26: CRC2H | D26: ='[2]Table 1'!D26 -> 0.738722322 | E26: ='[2]Table 1'!E26 -> 0.9603390186 | F26: ='[2]Table 1'!F26 -> 1.423440724 | G26: ='[2]Table 1'!G26 -> 1.398253611 | H26: ='[2]Table 1'!H26 -> 1.566044044 | I26: ='[2]Table 1'!I26 -> 1.75396933 | J26: ='[2]Table 1'!J26 -> 1.753572397
A27: Low Carbon Network Fund - Tier 1 unrecoverable (C7) | B27: LCN1 | C27: CRC2J | D27: ='[2]Table 1'!D27 -> 0 | E27: ='[2]Table 1'!E27 -> 0 | F27: ='[2]Table 1'!F27 -> 0 | G27: ='[2]Table 1'!G27 -> 0 | H27: ='[2]Table 1'!H27 -> 0 | I27: ='[2]Table 1'!I27 -> 0 | J27: ='[2]Table 1'!J27 -> 0
A28: Low Carbon Network Fund - Tier 2 & Discretionary Funding (C7) | B28: LCN2 | C28: CRC2J | D28: ='[2]Table 1'!D28 -> 0.05799675 | E28: ='[2]Table 1'!E28 -> 0.2325685696 | F28: ='[2]Table 1'!F28 -> 0.2325685696 | G28: ='[2]Table 1'!G28 -> 0.2325685696 | H28: ='[2]Table 1'!H28 -> 0.2325685696 | I28: ='[2]Table 1'!I28 -> 0.2325685696 | J28: ='[2]Table 1'!J28 -> 0.2325685696
A29: Connection Guaranteed Standards Systems & Processes penalty (C8) | B29: AUM, CGSRA | C29: CRC2K-L | D29: ='[2]Table 1'!D29 -> 0 | E29: ='[2]Table 1'!E29 -> 0 | F29: ='[2]Table 1'!F29 -> 0 | G29: ='[2]Table 1'!G29 -> 0 | H29: ='[2]Table 1'!H29 -> 0 | I29: ='[2]Table 1'!I29 -> 0 | J29: ='[2]Table 1'!J29 -> 0
A30: Residual Losses and Growth Incentive - Losses (C9) | B30: PPL | C30: CRC2M | D30: ='[2]Table 1'!D30 -> -1.910085695 | E30: ='[2]Table 1'!E30 -> 0 | F30: ='[2]Table 1'!F30 -> 0 | G30: ='[2]Table 1'!G30 -> 0 | H30: ='[2]Table 1'!H30 -> 0 | I30: ='[2]Table 1'!I30 -> 0 | J30: ='[2]Table 1'!J30 -> 0
A31: Residual Losses and Growth Incentive - Growth (C9) | B31: GTA | C31: CRC2M | D31: ='[2]Table 1'!D31 -> 0 | E31: ='[2]Table 1'!E31 -> 0 | F31: ='[2]Table 1'!F31 -> 0 | G31: ='[2]Table 1'!G31 -> 0 | H31: ='[2]Table 1'!H31 -> 0 | I31: ='[2]Table 1'!I31 -> 0 | J31: ='[2]Table 1'!J31 -> 0
A32: Incentive Revenue and Other Adjustments (C): [C = C1 + C2 + C3 + C4 + C5 + C6 + C7 + C8 + C9] | D32: =SUM(D21:D31) -> 6.864480451 | E32: 12.25161585 | F32: 12.20483372 | G32: 12.31939868 | H32: 12.6540899 | I32: 12.33094946 | J32: 12.20607912 | K32: C = C1 + C2 + C3 + C4 + C5 + C6 + C7 + C8 + C9
A33: Correction Factor (D) | B33: -K | C33: CRC2A | D33: ='[2]Table 1'!D33 -> 21.21821027 | E33: ='[2]Table 1'!E33 -> 2.915757975 | F33: ='[2]Table 1'!F33 -> -4.629797269 | G33: ='[2]Table 1'!G33 -> -3.299857047 | H33: ='[2]Table 1'!H33 -> 0 | I33: ='[2]Table 1'!I33 -> 0 | J33: ='[2]Table 1'!J33 -> 0
A34: Total allowed Revenue (E): [E = A + B + C + D] | B34: AR | C34: CRC2A | D34: =D12+D20+D32+D33 -> 343.4785254 | E34: =E12+E20+E32+E33 -> 335.0049723 | F34: 341.5635209 | G34: 357.2095218 | H34: 364.4307329 | I34: 372.6155107 | J34: 382.5077294 | K34: E = A + B + C + D
A35: Other 1. Excluded services - Top-up, standby, and enhanced system security (F1) (see note 1) | B35: DRS4 | C35: CRC5C | D35: ='[2]Table 1'!D35 -> 0 | E35: ='[2]Table 1'!E35 -> 0 | F35: ='[2]Table 1'!F35 -> 0 | G35: ='[2]Table 1'!G35 -> 0 | H35: ='[2]Table 1'!H35 -> 0 | I35: ='[2]Table 1'!I35 -> 0 | J35: ='[2]Table 1'!J35 -> 0
A36: Other 2. Excluded services - Revenue protection services (F2) (see note 1) | B36: DRS5 | C36: CRC5C | D36: ='[2]Table 1'!D36 -> 0 | E36: ='[2]Table 1'!E36 -> 0 | F36: ='[2]Table 1'!F36 -> 0 | G36: ='[2]Table 1'!G36 -> 0 | H36: ='[2]Table 1'!H36 -> 0 | I36: ='[2]Table 1'!I36 -> 0 | J36: ='[2]Table 1'!J36 -> 0
A37: Other 3. Excluded services - Miscellaneous (F3) (see note 1) | B37: DRS9 | C37: CRC5C | D37: ='[2]Table 1'!D37 -> 0 | E37: ='[2]Table 1'!E37 -> 0 | F37: ='[2]Table 1'!F37 -> 0 | G37: ='[2]Table 1'!G37 -> 0 | H37: ='[2]Table 1'!H37 -> 0 | I37: ='[2]Table 1'!I37 -> 0 | J37: ='[2]Table 1'!J37 -> 0
A38: Other 4. - blank or if required please provide description (F4) | D38: ='[2]Table 1'!D38 -> 0 | E38: ='[2]Table 1'!E38 -> 0 | F38: ='[2]Table 1'!F38 -> 0 | G38: ='[2]Table 1'!G38 -> 0 | H38: ='[2]Table 1'!H38 -> 0 | I38: ='[2]Table 1'!I38 -> 0 | J38: ='[2]Table 1'!J38 -> 0
A39: Other 5. - blank or if required please provide description (F5) | D39: ='[2]Table 1'!D39 -> 0 | E39: ='[2]Table 1'!E39 -> 0 | F39: ='[2]Table 1'!F39 -> 0 | G39: ='[2]Table 1'!G39 -> 0 | H39: ='[2]Table 1'!H39 -> 0 | I39: ='[2]Table 1'!I39 -> 0 | J39: ='[2]Table 1'!J39 -> 0
A40: Total Other Revenue to be recovered by Use of System Charges (F): [F = F1 + F2 + F3 + F4 +F5] | D40: =SUM(D35:D39) -> 0 | E40: =SUM(E35:E39) -> 0 | F40: 0 | G40: 0 | H40: 0 | I40: 0 | J40: 0 | K40: F = F1 + F2 + F3 + F4 +F5
A41: Total Revenue for Use of System Charges (G): [G=E + F] | D41: =D34+D40 -> 343.4785254 | E41: =E34+E40 -> 335.0049723 | F41: 341.5635209 | G41: 357.2095218 | H41: 364.4307329 | I41: 372.6155107 | J41: 382.5077294 | K41: G = E + F
A42: 1. Revenue raised outside CDCM - EDCM and Certain Interconnector Revenue (H1) | D42: ='[2]Table 1'!D42 -> 6.117084944 | E42: ='[2]Table 1'!E42 -> 5.956939418 | F42: ='[2]Table 1'!F42 -> 5.690316627 | G42: =F42*G34/F34 -> 5.950972972 | H42: =G42*H34/G34 -> 6.071275568 | I42: 6.207630811 | J42: 6.372431362
A43: 2. Revenue raised outside CDCM - Voluntary under-recovery (H2) | D43: ='[2]Table 1'!D43 -> 0 | E43: ='[2]Table 1'!E43 -> 0 | F43: ='[2]Table 1'!F43 -> 0 | G43: ='[2]Table 1'!G43 -> 0 | H43: ='[2]Table 1'!H43 -> 0 | I43: ='[2]Table 1'!I43 -> 0 | J43: ='[2]Table 1'!J43 -> 0
A44: 3. Revenue raised outside CDCM - blank or if required please provide description (H3) | D44: ='[2]Table 1'!D44 -> 0 | E44: ='[2]Table 1'!E44 -> 0 | F44: ='[2]Table 1'!F44 -> 0 | G44: ='[2]Table 1'!G44 -> 0 | H44: ='[2]Table 1'!H44 -> 0 | I44: ='[2]Table 1'!I44 -> 0 | J44: ='[2]Table 1'!J44 -> 0
A45: 4. Revenue raised outside CDCM - blank or if required please provide description (H4) | D45: ='[2]Table 1'!D45 -> 7.532724985 | E45: ='[2]Table 1'!E45 -> 0 | F45: ='[2]Table 1'!F45 -> 0 | G45: ='[2]Table 1'!G45 -> 0 | H45: ='[2]Table 1'!H45 -> 0 | I45: ='[2]Table 1'!I45 -> 0 | J45: ='[2]Table 1'!J45 -> 0
A46: Total Revenue to be raised outside the CDCM (H): [H = H1 + H2 + H3 + H4] | D46: =D42+D43+D44+D45 -> 13.64980993 | E46: =E42+E43+E44+E45 -> 5.956939418 | F46: 5.690316627 | G46: 5.950972972 | H46: 6.071275568 | I46: 6.207630811 | J46: 6.372431362 | K46: H = H1 + H2 + H3 + H4
A47: Latest forecast of CDCM Revenue (I): [I = G - H] | D47: =D41-D46 -> 329.8287154 | E47: 329.0480328 | F47: 335.8732043 | G47: 351.2585488 | H47: 358.3594574 | I47: 366.4078799 | J47: 376.135298 | K47: I = G - H
A48: CDCM Revenue Used in Charging Model [Equal to I] | D48: =D47 -> 329.8287154 | E48: =E47 -> 329.0480328 | F48: 335.8732043 | G48: 351.2585488 | H48: 358.3594574 | I48: 366.4078799 | J48: 376.135298 | K48: Equal to I
A49: Final Collected Revenue Forecast (J) | D49: ='[2]Table 1'!D49 -> 347.9467767 | E49: ='[2]Table 1'!E49 -> 338.1922968 | F49: ='[2]Table 1'!F49 -> 341.5635209 | G49: ='[2]Table 1'!G49 -> 357.2095218 | H49: ='[2]Table 1'!H49 -> 364.4307329 | I49: ='[2]Table 1'!I49 -> 372.6155107 | J49: ='[2]Table 1'!J49 -> 382.5077294
A50: Forecast Over / (Under) Recovery [being (J - F - E + H2] | D50: =D49-D40-D34+D43 -> 4.468251365 | E50: 3.187324568 | F50: 5.684341886e-14 | G50: 0 | H50: 5.684341886e-14 | I50: 0 | J50: 5.684341886e-14 | K50: J - F - E + H2
A51: Forecast overall percentage change to Allowed Revenue (K) | E51: =E34/D34-1 -> -0.0246698191 | F51: =F34/E34-1 -> 0.01957746647 | G51: 0.04580700201 | H51: 0.02021561781 | I51: 0.02245907672 | J51: 0.02654805922
A52: Overall % change to Use of System Charges effective 1st April of Regulatory Year to balance (L) | E52: =E49/D49-1 -> -0.0280344022 | F52: 0.009968364372 | G52: 0.04580700201 | H52: 0.02021561781 | I52: 0.02245907672 | J52: 0.02654805922
A53: Note 1: Cost categories associated with excluded services should only be populated if the Company recovers the costs of providing these services from Use of System Charges

Sheet Smoothed Input Details
A1: DNO | B1: =+'CDCM Forecast Data'!E3 -> WPD South West
A2: Charges for (year Y) | B2: =+'CDCM Forecast Data'!E11 -> 2018/19
A4: Year charges are set (year Y - 2) | B4: =+'CDCM Forecast Data'!C11 -> 2016/17
A6: Year to which input data relates
A7: Year Y - 3 | B7: ='[2]Smoothed Input Details'!B7 -> 2015/16
A8: Year Y - 4 | B8: ='[2]Smoothed Input Details'!B8 -> 2014/15
A9: Year Y - 5 | B9: ='[2]Smoothed Input Details'!B9 -> 2013/14
A11: 1041 - load profile for demand users - coincidence factors
A12: Charges for year Y are set in Y-2 using historical data for the previous three years
B14: Y - 5 | C14: Y - 4 | D14: Y - 3 | E14: Information to be used calculating tariffs in year t
A15: Domestic Unrestricted | B15: ='[2]Smoothed Input Details'!B15 -> 0.8972756757 | C15: ='[2]Smoothed Input Details'!C15 -> 0.9208738555 | D15: ='[2]Smoothed Input Details'!D15 -> 0.9302105079 | E15: =AVERAGE(B15:D15) -> 0.916120013
A16: Domestic Two Rate | B16: ='[2]Smoothed Input Details'!B16 -> 0.3229617993 | C16: ='[2]Smoothed Input Details'!C16 -> 0.3357313738 | D16: ='[2]Smoothed Input Details'!D16 -> 0.3688387313 | E16: =AVERAGE(B16:D16) -> 0.3425106348
A17: Domestic Off Peak (related MPAN) | B17: ='[2]Smoothed Input Details'!B17 -> 0 | C17: ='[2]Smoothed Input Details'!C17 -> 0 | D17: ='[2]Smoothed Input Details'!D17 -> 0
A18: Small Non Domestic Unrestricted | B18: ='[2]Smoothed Input Details'!B18 -> 0.6624099834 | C18: ='[2]Smoothed Input Details'!C18 -> 0.6109335414 | D18: ='[2]Smoothed Input Details'!D18 -> 0.6340872209 | E18: =AVERAGE(B18:D18) -> 0.6358102486
A19: Small Non Domestic Two Rate | B19: ='[2]Smoothed Input Details'!B19 -> 0.6161036261 | C19: ='[2]Smoothed Input Details'!C19 -> 0.6019063129 | D19: ='[2]Smoothed Input Details'!D19 -> 0.5472064096 | E19: =AVERAGE(B19:D19) -> 0.5884054495
A20: Small Non Domestic Off Peak (related MPAN) | B20: ='[2]Smoothed Input Details'!B20 -> 0 | C20: ='[2]Smoothed Input Details'!C20 -> 0 | D20: ='[2]Smoothed Input Details'!D20 -> 0
A21: LV Medium Non-Domestic | B21: ='[2]Smoothed Input Details'!B21 -> 0.8576926793 | C21: ='[2]Smoothed Input Details'!C21 -> 0.8484600574 | D21: ='[2]Smoothed Input Details'!D21 -> 0.8695012248 | E21: =AVERAGE(B21:D21) -> 0.8585513205
A22: LV Sub Medium Non-Domestic | B22: ='[2]Smoothed Input Details'!B22 -> 0.8219354729 | C22: ='[2]Smoothed Input Details'!C22 -> 0.838004055 | D22: ='[2]Smoothed Input Details'!D22 -> 0.8547547238 | E22: 0.8382314172
A23: HV Medium Non-Domestic | B23: ='[2]Smoothed Input Details'!B23 -> 0.7829041186 | C23: ='[2]Smoothed Input Details'!C23 -> 0.6521480353 | D23: ='[2]Smoothed Input Details'!D23 -> 0.5546101865 | E23: 0.6632207801
A24: LV Network Domestic | B24: ='[2]Smoothed Input Details'!B24 -> 0.8070345412 | C24: ='[2]Smoothed Input Details'!C24 -> 0.8289312374 | D24: ='[2]Smoothed Input Details'!D24 -> 0.8420029474 | E24: =AVERAGE(B24:D24) -> 0.8259895753
A25: LV Network Non-Domestic Non-CT | B25: ='[2]Smoothed Input Details'!B25 -> 0.6531001794 | C25: ='[2]Smoothed Input Details'!C25 -> 0.6091186345 | D25: ='[2]Smoothed Input Details'!D25 -> 0.616620001 | E25: 0.6262796049
A26: LV HH Metered | B26: ='[2]Smoothed Input Details'!B26 -> 0.8172081953 | C26: ='[2]Smoothed Input Details'!C26 -> 0.8006203125 | D26: ='[2]Smoothed Input Details'!D26 -> 0.7920351771 | E26: 0.803287895
A27: LV Sub HH Metered | B27: ='[2]Smoothed Input Details'!B27 -> 0.7706309414 | C27: ='[2]Smoothed Input Details'!C27 -> 0.7716390054 | D27: ='[2]Smoothed Input Details'!D27 -> 0.7551882067 | E27: 0.7658193845
A28: HV HH Metered | B28: ='[2]Smoothed Input Details'!B28 -> 0.7912504243 | C28: ='[2]Smoothed Input Details'!C28 -> 0.8230904591 | D28: ='[2]Smoothed Input Details'!D28 -> 0.7873879093 | E28: 0.8005762642
A29: NHH UMS category A | B29: ='[2]Smoothed Input Details'!B29 -> 1 | C29: ='[2]Smoothed Input Details'!C29 -> 1 | D29: ='[2]Smoothed Input Details'!D29 -> 1 | E29: =AVERAGE(B29:D29) -> 1
A30: NHH UMS category B | B30: ='[2]Smoothed Input Details'!B30 -> 1 | C30: ='[2]Smoothed Input Details'!C30 -> 0.951627907 | D30: ='[2]Smoothed Input Details'!D30 -> 1 | E30: 0.983875969
A31: NHH UMS category C | B31: ='[2]Smoothed Input Details'!B31 -> 1 | C31: ='[2]Smoothed Input Details'!C31 -> 0.6422267481 | D31: ='[2]Smoothed Input Details'!D31 -> 0.9992907801 | E31: =AVERAGE(B31:D31) -> 0.8805058428
A32: NHH UMS category D | B32: ='[2]Smoothed Input Details'!B32 -> 0 | C32: ='[2]Smoothed Input Details'!C32 -> 0 | D32: ='[2]Smoothed Input Details'!D32 -> 0 | E32: 0
A33: LV UMS (Pseudo HH Metered) | B33: ='[2]Smoothed Input Details'!B33 -> 0.9826973387 | C33: ='[2]Smoothed Input Details'!C33 -> 0.9642686787 | D33: ='[2]Smoothed Input Details'!D33 -> 0.9671576329 | E33: 0.9713745501
A37: 1041 - load profile for demand users - load factors
A38: Charges for year Y are set in Y-2 using historical data for the previous three years
B41: Y - 5 | C41: Y - 4 | D41: Y - 3 | E41: Information to be used calculating tariffs in year t
A42: Domestic Unrestricted | B42: ='[2]Smoothed Input Details'!B42 -> 0.428175452 | C42: ='[2]Smoothed Input Details'!C42 -> 0.410787843 | D42: ='[2]Smoothed Input Details'!D42 -> 0.4148821669 | E42: =AVERAGE(B42:D42) -> 0.4179484873
A43: Domestic Two Rate | B43: ='[2]Smoothed Input Details'!B43 -> 0.2615848376 | C43: ='[2]Smoothed Input Details'!C43 -> 0.2492703123 | D43: ='[2]Smoothed Input Details'!D43 -> 0.2627629067 | E43: 0.2578726855
A44: Domestic Off Peak (related MPAN) | B44: ='[2]Smoothed Input Details'!B44 -> 0.1491814834 | C44: ='[2]Smoothed Input Details'!C44 -> 0.1378751086 | D44: ='[2]Smoothed Input Details'!D44 -> 0.1451890333 | E44: 0.1440818751
A45: Small Non Domestic Unrestricted | B45: ='[2]Smoothed Input Details'!B45 -> 0.3960769909 | C45: ='[2]Smoothed Input Details'!C45 -> 0.3887980998 | D45: ='[2]Smoothed Input Details'!D45 -> 0.3901745883 | E45: 0.3916832263
A46: Small Non Domestic Two Rate | B46: ='[2]Smoothed Input Details'!B46 -> 0.4556752515 | C46: ='[2]Smoothed Input Details'!C46 -> 0.4465746151 | D46: ='[2]Smoothed Input Details'!D46 -> 0.3837676741 | E46: 0.4286725136
A47: Small Non Domestic Off Peak (related MPAN) | B47: ='[2]Smoothed Input Details'!B47 -> 0.1527196221 | C47: ='[2]Smoothed Input Details'!C47 -> 0.1493744913 | D47: ='[2]Smoothed Input Details'!D47 -> 0.1567380229 | E47: 0.1529440454
A48: LV Medium Non-Domestic | B48: ='[2]Smoothed Input Details'!B48 -> 0.5909536406 | C48: ='[2]Smoothed Input Details'!C48 -> 0.5947713045 | D48: ='[2]Smoothed Input Details'!D48 -> 0.5950795788 | E48: 0.593601508
A49: LV Sub Medium Non-Domestic | B49: ='[2]Smoothed Input Details'!B49 -> 0.5926675879 | C49: ='[2]Smoothed Input Details'!C49 -> 0.6045606117 | D49: ='[2]Smoothed Input Details'!D49 -> 0.6030419676 | E49: 0.6000900558
A50: HV Medium Non-Domestic | B50: ='[2]Smoothed Input Details'!B50 -> 0.5067394777 | C50: ='[2]Smoothed Input Details'!C50 -> 0.4595669335 | D50: ='[2]Smoothed Input Details'!D50 -> 0.3984188511 | E50: 0.4549084208
A51: LV Network Domestic | B51: ='[2]Smoothed Input Details'!B51 -> 0.3991499406 | C51: ='[2]Smoothed Input Details'!C51 -> 0.3826190122 | D51: ='[2]Smoothed Input Details'!D51 -> 0.388209716 | E51: =AVERAGE(B51:D51) -> 0.3899928896
A52: LV Network Non-Domestic Non-CT | B52: ='[2]Smoothed Input Details'!B52 -> 0.4017628234 | C52: ='[2]Smoothed Input Details'!C52 -> 0.3942237058 | D52: ='[2]Smoothed Input Details'!D52 -> 0.3831620626 | E52: 0.3930495306
A53: LV HH Metered | B53: ='[2]Smoothed Input Details'!B53 -> 0.5887297487 | C53: ='[2]Smoothed Input Details'!C53 -> 0.5943711435 | D53: ='[2]Smoothed Input Details'!D53 -> 0.5796400814 | E53: 0.5875803245
A54: LV Sub HH Metered | B54: ='[2]Smoothed Input Details'!B54 -> 0.6053694158 | C54: ='[2]Smoothed Input Details'!C54 -> 0.6148051723 | D54: ='[2]Smoothed Input Details'!D54 -> 0.6143769396 | E54: 0.6115171759
A55: HV HH Metered | B55: ='[2]Smoothed Input Details'!B55 -> 0.7113127025 | C55: ='[2]Smoothed Input Details'!C55 -> 0.7304466798 | D55: ='[2]Smoothed Input Details'!D55 -> 0.7268564566 | E55: 0.7228719463
A56: NHH UMS category A | B56: ='[2]Smoothed Input Details'!B56 -> 1 | C56: ='[2]Smoothed Input Details'!C56 -> 1 | D56: ='[2]Smoothed Input Details'!D56 -> 1 | E56: 1
A57: NHH UMS category B | B57: ='[2]Smoothed Input Details'!B57 -> 0.4721581429 | C57: ='[2]Smoothed Input Details'!C57 -> 0.4822935648 | D57: ='[2]Smoothed Input Details'!D57 -> 0.4704126596 | E57: 0.4749547891
A58: NHH UMS category C | B58: ='[2]Smoothed Input Details'!B58 -> 0.2451982501 | C58: ='[2]Smoothed Input Details'!C58 -> 0.2478081494 | D58: ='[2]Smoothed Input Details'!D58 -> 0.2459420497 | E58: 0.2463161498
A59: NHH UMS category D | B59: ='[2]Smoothed Input Details'!B59 -> 0.5152430348 | C59: ='[2]Smoothed Input Details'!C59 -> 0.5152430348 | D59: ='[2]Smoothed Input Details'!D59 -> 0.5153117471 | E59: 0.5152659389
A60: LV UMS (Pseudo HH Metered) | B60: ='[2]Smoothed Input Details'!B60 -> 0.4594852599 | C60: ='[2]Smoothed Input Details'!C60 -> 0.4548428481 | D60: ='[2]Smoothed Input Details'!D60 -> 0.4521507224 | E60: 0.4554929434
A64: 1061 - Average split of rate 1 units by distribution time band
A65: Charges for year Y are set in Y-2 using historical data for the previous three years
B68: Y - 5 | E68: Y - 4 | H68: Y - 3 | K68: Information to be used calculating tariffs in year t
B69: Red | C69: Amber | D69: Green | E69: Red | F69: Amber | G69: Green | H69: Red | I69: Amber | J69: Green | K69: Red | L69: Amber | M69: Green
A70: Domestic Unrestricted | B70: ='[2]Smoothed Input Details'!B70 -> 0.08863365853 | C70: ='[2]Smoothed Input Details'!C70 -> 0.4625875793 | D70: ='[2]Smoothed Input Details'!D70 -> 0.4487787622 | E70: ='[2]Smoothed Input Details'!E70 -> 0.08865128497 | F70: ='[2]Smoothed Input Details'!F70 -> 0.4625663278 | G70: ='[2]Smoothed Input Details'!G70 -> 0.4487823872 | H70: ='[2]Smoothed Input Details'!H70 -> 0.08893565743 | I70: ='[2]Smoothed Input Details'!I70 -> 0.4620328817 | J70: ='[2]Smoothed Input Details'!J70 -> 0.4490314609 | K70: =AVERAGE(B70,E70,H70) -> 0.08874020031 | L70: 0.4623955963 | M70: 0.4488642034
A71: Domestic Two Rate | B71: ='[2]Smoothed Input Details'!B71 -> 0.1071993276 | C71: ='[2]Smoothed Input Details'!C71 -> 0.5351490143 | D71: ='[2]Smoothed Input Details'!D71 -> 0.357651658 | E71: ='[2]Smoothed Input Details'!E71 -> 0.1071165394 | F71: ='[2]Smoothed Input Details'!F71 -> 0.5402955758 | G71: ='[2]Smoothed Input Details'!G71 -> 0.3525878848 | H71: ='[2]Smoothed Input Details'!H71 -> 0.1082316902 | I71: ='[2]Smoothed Input Details'!I71 -> 0.5424252216 | J71: ='[2]Smoothed Input Details'!J71 -> 0.3493430882 | K71: =AVERAGE(B71,E71,H71) -> 0.1075158524 | L71: =AVERAGE(C71,F71,I71) -> 0.5392899373 | M71: =AVERAGE(D71,G71,J71) -> 0.3531942103
A72: Domestic Off Peak (related MPAN) | B72: ='[2]Smoothed Input Details'!B72 -> 0.001332792799 | C72: ='[2]Smoothed Input Details'!C72 -> 0.1094447023 | D72: ='[2]Smoothed Input Details'!D72 -> 0.8892225049 | E72: ='[2]Smoothed Input Details'!E72 -> 0.001318243698 | F72: ='[2]Smoothed Input Details'!F72 -> 0.1077452085 | G72: ='[2]Smoothed Input Details'!G72 -> 0.8909365478 | H72: ='[2]Smoothed Input Details'!H72 -> 0.001389199354 | I72: ='[2]Smoothed Input Details'!I72 -> 0.1089264998 | J72: ='[2]Smoothed Input Details'!J72 -> 0.8896843009 | K72: 0.001346745284 | L72: 0.1087054702 | M72: 0.8899477845
A73: Small Non Domestic Unrestricted | B73: ='[2]Smoothed Input Details'!B73 -> 0.0623179666 | C73: ='[2]Smoothed Input Details'!C73 -> 0.5709701149 | D73: ='[2]Smoothed Input Details'!D73 -> 0.3667119185 | E73: ='[2]Smoothed Input Details'!E73 -> 0.06250799166 | F73: ='[2]Smoothed Input Details'!F73 -> 0.5637538597 | G73: ='[2]Smoothed Input Details'!G73 -> 0.3737381486 | H73: ='[2]Smoothed Input Details'!H73 -> 0.06303418139 | I73: ='[2]Smoothed Input Details'!I73 -> 0.5631648706 | J73: ='[2]Smoothed Input Details'!J73 -> 0.3738009481 | K73: 0.06262004655 | L73: 0.5659629484 | M73: 0.371417005
A74: Small Non Domestic Two Rate | B74: ='[2]Smoothed Input Details'!B74 -> 0.07976519861 | C74: ='[2]Smoothed Input Details'!C74 -> 0.6323299679 | D74: ='[2]Smoothed Input Details'!D74 -> 0.2879048335 | E74: ='[2]Smoothed Input Details'!E74 -> 0.08084832656 | F74: ='[2]Smoothed Input Details'!F74 -> 0.6317501869 | G74: ='[2]Smoothed Input Details'!G74 -> 0.2874014866 | H74: ='[2]Smoothed Input Details'!H74 -> 0.08285609845 | I74: ='[2]Smoothed Input Details'!I74 -> 0.6279021775 | J74: ='[2]Smoothed Input Details'!J74 -> 0.289241724 | K74: 0.08115654121 | L74: 0.6306607774 | M74: 0.2881826814
A75: Small Non Domestic Off Peak (related MPAN) | B75: ='[2]Smoothed Input Details'!B75 -> 0.001965234146 | C75: ='[2]Smoothed Input Details'!C75 -> 0.1167461515 | D75: ='[2]Smoothed Input Details'!D75 -> 0.8812886144 | E75: ='[2]Smoothed Input Details'!E75 -> 0.002151015161 | F75: ='[2]Smoothed Input Details'!F75 -> 0.1171604897 | G75: ='[2]Smoothed Input Details'!G75 -> 0.8806884951 | H75: ='[2]Smoothed Input Details'!H75 -> 0.002216407474 | I75: ='[2]Smoothed Input Details'!I75 -> 0.1201730056 | J75: ='[2]Smoothed Input Details'!J75 -> 0.877610587 | K75: 0.002110885594 | L75: 0.1180265489 | M75: 0.8798625655
A76: LV Medium Non-Domestic | B76: ='[2]Smoothed Input Details'!B76 -> 0.08277642962 | C76: ='[2]Smoothed Input Details'!C76 -> 0.6200783242 | D76: ='[2]Smoothed Input Details'!D76 -> 0.2971452462 | E76: ='[2]Smoothed Input Details'!E76 -> 0.08282448855 | F76: ='[2]Smoothed Input Details'!F76 -> 0.6204212523 | G76: ='[2]Smoothed Input Details'!G76 -> 0.2967542591 | H76: ='[2]Smoothed Input Details'!H76 -> 0.08330982564 | I76: ='[2]Smoothed Input Details'!I76 -> 0.6205837259 | J76: ='[2]Smoothed Input Details'!J76 -> 0.2961064485 | K76: 0.08297024793 | L76: 0.6203611008 | M76: 0.2966686513
A77: LV Sub Medium Non-Domestic | B77: ='[2]Smoothed Input Details'!B77 -> 0.08134820108 | C77: ='[2]Smoothed Input Details'!C77 -> 0.6191741981 | D77: ='[2]Smoothed Input Details'!D77 -> 0.2994776008 | E77: ='[2]Smoothed Input Details'!E77 -> 0.08163547511 | F77: ='[2]Smoothed Input Details'!F77 -> 0.617635887 | G77: ='[2]Smoothed Input Details'!G77 -> 0.3007286379 | H77: ='[2]Smoothed Input Details'!H77 -> 0.08268213406 | I77: ='[2]Smoothed Input Details'!I77 -> 0.6188651147 | J77: ='[2]Smoothed Input Details'!J77 -> 0.2984527512 | K77: 0.08188860342 | L77: 0.6185584 | M77: 0.2995529966
A78: HV Medium Non-Domestic | B78: ='[2]Smoothed Input Details'!B78 -> 0.0835954849 | C78: ='[2]Smoothed Input Details'!C78 -> 0.6347030151 | D78: ='[2]Smoothed Input Details'!D78 -> 0.2817015 | E78: ='[2]Smoothed Input Details'!E78 -> 0.08182656195 | F78: ='[2]Smoothed Input Details'!F78 -> 0.6360159363 | G78: ='[2]Smoothed Input Details'!G78 -> 0.2821575017 | H78: ='[2]Smoothed Input Details'!H78 -> 0.08102862287 | I78: ='[2]Smoothed Input Details'!I78 -> 0.6479570455 | J78: ='[2]Smoothed Input Details'!J78 -> 0.2710143316 | K78: 0.08215022324 | L78: 0.6395586657 | M78: 0.2782911111
A82: 1062 - Average split of rate 2 units by distribution time band
A83: Charges for year Y are set in Y-2 using historical data for the previous three years
B86: Y - 5 | E86: Y - 4 | H86: Y - 3 | K86: Information to be used calculating tariffs in year t
B87: Red | C87: Amber | D87: Green | E87: Red | F87: Amber | G87: Green | H87: Red | I87: Amber | J87: Green | K87: Red | L87: Amber | M87: Green
A88: Domestic Two Rate | B88: ='[2]Smoothed Input Details'!B88 -> 0 | C88: ='[2]Smoothed Input Details'!C88 -> 0.02065001315 | D88: ='[2]Smoothed Input Details'!D88 -> 0.9793499869 | E88: ='[2]Smoothed Input Details'!E88 -> 0 | F88: ='[2]Smoothed Input Details'!F88 -> 0.02066819684 | G88: ='[2]Smoothed Input Details'!G88 -> 0.9793318032 | H88: ='[2]Smoothed Input Details'!H88 -> 0 | I88: ='[2]Smoothed Input Details'!I88 -> 0.02162457948 | J88: ='[2]Smoothed Input Details'!J88 -> 0.9783754205 | K88: =AVERAGE(B88,E88,H88) -> 0 | L88: 0.02098092982 | M88: 0.9790190702
A89: Small Non Domestic Two Rate | B89: ='[2]Smoothed Input Details'!B89 -> 0 | C89: ='[2]Smoothed Input Details'!C89 -> 0.02499632017 | D89: ='[2]Smoothed Input Details'!D89 -> 0.9750036798 | E89: ='[2]Smoothed Input Details'!E89 -> 0 | F89: ='[2]Smoothed Input Details'!F89 -> 0.02615517998 | G89: ='[2]Smoothed Input Details'!G89 -> 0.97384482 | H89: ='[2]Smoothed Input Details'!H89 -> 0 | I89: ='[2]Smoothed Input Details'!I89 -> 0.02818228426 | J89: ='[2]Smoothed Input Details'!J89 -> 0.9718177157 | K89: 0 | L89: 0.0264445948 | M89: 0.9735554052
A90: LV Medium Non-Domestic | B90: ='[2]Smoothed Input Details'!B90 -> 0 | C90: ='[2]Smoothed Input Details'!C90 -> 0 | D90: ='[2]Smoothed Input Details'!D90 -> 1 | E90: ='[2]Smoothed Input Details'!E90 -> 0 | F90: ='[2]Smoothed Input Details'!F90 -> 0 | G90: ='[2]Smoothed Input Details'!G90 -> 1 | H90: ='[2]Smoothed Input Details'!H90 -> 0 | I90: ='[2]Smoothed Input Details'!I90 -> 0 | J90: ='[2]Smoothed Input Details'!J90 -> 1 | K90: 0 | L90: 0 | M90: 1
A91: LV Sub Medium Non-Domestic | B91: ='[2]Smoothed Input Details'!B91 -> 0 | C91: ='[2]Smoothed Input Details'!C91 -> 0 | D91: ='[2]Smoothed Input Details'!D91 -> 1 | E91: ='[2]Smoothed Input Details'!E91 -> 0 | F91: ='[2]Smoothed Input Details'!F91 -> 0 | G91: ='[2]Smoothed Input Details'!G91 -> 1 | H91: ='[2]Smoothed Input Details'!H91 -> 0 | I91: ='[2]Smoothed Input Details'!I91 -> 0 | J91: ='[2]Smoothed Input Details'!J91 -> 1 | K91: 0 | L91: 0 | M91: 1
A92: HV Medium Non-Domestic | B92: ='[2]Smoothed Input Details'!B92 -> 0 | C92: ='[2]Smoothed Input Details'!C92 -> 0 | D92: ='[2]Smoothed Input Details'!D92 -> 1 | E92: ='[2]Smoothed Input Details'!E92 -> 0 | F92: ='[2]Smoothed Input Details'!F92 -> 0 | G92: ='[2]Smoothed Input Details'!G92 -> 1 | H92: ='[2]Smoothed Input Details'!H92 -> 0 | I92: ='[2]Smoothed Input Details'!I92 -> 0 | J92: ='[2]Smoothed Input Details'!J92 -> 1 | K92: 0 | L92: 0 | M92: 1
A96: 1064. Average split of rate 1 units by special distribution time band
A97: Charges for year Y are set in Y-2 using historical data for the previous three years
B100: Y - 5 | E100: Y - 4 | H100: Y - 3 | K100: Information to be used calculating tariffs in year t
B101: Black | C101: Yellow | D101: Green | E101: Black | F101: Yellow | G101: Green | H101: Black | I101: Yellow | J101: Green | K101: Red | L101: Amber | M101: Green
A102: NHH UMS category A | B102: ='[2]Smoothed Input Details'!B102 -> 0.01757990868 | C102: ='[2]Smoothed Input Details'!C102 -> 0.4351598174 | D102: ='[2]Smoothed Input Details'!D102 -> 0.547260274 | E102: ='[2]Smoothed Input Details'!E102 -> 0.01712328767 | F102: ='[2]Smoothed Input Details'!F102 -> 0.4356164384 | G102: ='[2]Smoothed Input Details'!G102 -> 0.547260274 | H102: ='[2]Smoothed Input Details'!H102 -> 0.01730418944 | I102: ='[2]Smoothed Input Details'!I102 -> 0.4357923497 | J102: ='[2]Smoothed Input Details'!J102 -> 0.5469034608 | K102: =AVERAGE(B102,E102,H102) -> 0.01733579526 | L102: =AVERAGE(C102,F102,I102) -> 0.4355228685 | M102: =AVERAGE(D102,G102,J102) -> 0.5471413363
A103: NHH UMS category B | B103: ='[2]Smoothed Input Details'!B103 -> 0.0335340487 | C103: ='[2]Smoothed Input Details'!C103 -> 0.1475096796 | D103: ='[2]Smoothed Input Details'!D103 -> 0.8189562717 | E103: ='[2]Smoothed Input Details'!E103 -> 0.0320294808 | F103: ='[2]Smoothed Input Details'!F103 -> 0.1606062571 | G103: ='[2]Smoothed Input Details'!G103 -> 0.8073642621 | H103: ='[2]Smoothed Input Details'!H103 -> 0.03297837866 | I103: ='[2]Smoothed Input Details'!I103 -> 0.1471730951 | J103: ='[2]Smoothed Input Details'!J103 -> 0.8198485263 | K103: 0.03284730272 | L103: 0.1517630106 | M103: 0.8153896867
A104: NHH UMS category C | B104: ='[2]Smoothed Input Details'!B104 -> 0.06091188926 | C104: ='[2]Smoothed Input Details'!C104 -> 0.2540291814 | D104: ='[2]Smoothed Input Details'!D104 -> 0.6850589294 | E104: ='[2]Smoothed Input Details'!E104 -> 0.05808582251 | F104: ='[2]Smoothed Input Details'!F104 -> 0.2400809986 | G104: ='[2]Smoothed Input Details'!G104 -> 0.7018331789 | H104: ='[2]Smoothed Input Details'!H104 -> 0.0588230756 | I104: ='[2]Smoothed Input Details'!I104 -> 0.250234357 | J104: ='[2]Smoothed Input Details'!J104 -> 0.6909425674 | K104: 0.05927359579 | L104: 0.2481148456 | M104: 0.6926115586
A105: NHH UMS category D | B105: ='[2]Smoothed Input Details'!B105 -> 0.002531353004 | C105: ='[2]Smoothed Input Details'!C105 -> 0.6992210842 | D105: ='[2]Smoothed Input Details'!D105 -> 0.2982475628 | E105: ='[2]Smoothed Input Details'!E105 -> 0.002378703143 | F105: ='[2]Smoothed Input Details'!F105 -> 0.6994109855 | G105: ='[2]Smoothed Input Details'!G105 -> 0.2982103114 | H105: ='[2]Smoothed Input Details'!H105 -> 0.00243781302 | I105: ='[2]Smoothed Input Details'!I105 -> 0.7000893804 | J105: ='[2]Smoothed Input Details'!J105 -> 0.2974728065 | K105: 0.002449289722 | L105: 0.6995738167 | M105: 0.2979768936
A109: 1069 - Peaking probabilities by network level
A110: Charges for year Y are set in Y-2 using historical data for the previous three years
B113: Y - 5 | F113: Y - 4 | J113: Y - 3 | N113: Information to be used calculating tariffs in year t
B114: Red | C114: Amber | D114: Green | E114: Black | F114: Red | G114: Amber | H114: Green | I114: Black | J114: Red | K114: Amber | L114: Green | M114: Black | N114: Red | O114: Amber | P114: Green | Q114: Black
A115: GSPs | B115: ='[2]Smoothed Input Details'!B115 -> 1 | C115: ='[2]Smoothed Input Details'!C115 -> 0 | D115: ='[2]Smoothed Input Details'!D115 -> 0 | E115: ='[2]Smoothed Input Details'!E115 -> 1 | F115: ='[2]Smoothed Input Details'!F115 -> 1 | G115: ='[2]Smoothed Input Details'!G115 -> 0 | H115: ='[2]Smoothed Input Details'!H115 -> 0 | I115: ='[2]Smoothed Input Details'!I115 -> 0.7646944948 | J115: ='[2]Smoothed Input Details'!J115 -> 1 | K115: ='[2]Smoothed Input Details'!K115 -> 0 | L115: ='[2]Smoothed Input Details'!L115 -> 0 | M115: ='[2]Smoothed Input Details'!M115 -> 1 | N115: =AVERAGE(B115,F115,J115) -> 1 | O115: =AVERAGE(C115,G115,K115) -> 0 | P115: =AVERAGE(D115,H115,L115) -> 0 | Q115: =AVERAGE(E115,I115,M115) -> 0.9215648316
A116: 132kV | B116: ='[2]Smoothed Input Details'!B116 -> 0.7919005955 | C116: ='[2]Smoothed Input Details'!C116 -> 0.1099343787 | D116: ='[2]Smoothed Input Details'!D116 -> 0.09816502574 | E116: ='[2]Smoothed Input Details'!E116 -> 0.7919005955 | F116: ='[2]Smoothed Input Details'!F116 -> 0.8590669123 | G116: ='[2]Smoothed Input Details'!G116 -> 0.09121379064 | H116: ='[2]Smoothed Input Details'!H116 -> 0.04971929707 | I116: ='[2]Smoothed Input Details'!I116 -> 0.7613373345 | J116: ='[2]Smoothed Input Details'!J116 -> 0.8816905595 | K116: ='[2]Smoothed Input Details'!K116 -> 0.06929494726 | L116: ='[2]Smoothed Input Details'!L116 -> 0.04901449322 | M116: ='[2]Smoothed Input Details'!M116 -> 0.8645733459 | N116: 0.8442193558 | O116: 0.09014770555 | P116: 0.06563293868 | Q116: 0.805937092
A117: 132kV/EHV | B117: ='[2]Smoothed Input Details'!B117 -> 0.7919005955 | C117: ='[2]Smoothed Input Details'!C117 -> 0.1099343787 | D117: ='[2]Smoothed Input Details'!D117 -> 0.09816502574 | E117: ='[2]Smoothed Input Details'!E117 -> 0.7919005955 | F117: ='[2]Smoothed Input Details'!F117 -> 0.8590669123 | G117: ='[2]Smoothed Input Details'!G117 -> 0.09121379064 | H117: ='[2]Smoothed Input Details'!H117 -> 0.04971929707 | I117: ='[2]Smoothed Input Details'!I117 -> 0.7613373345 | J117: ='[2]Smoothed Input Details'!J117 -> 0.8816905595 | K117: ='[2]Smoothed Input Details'!K117 -> 0.06929494726 | L117: ='[2]Smoothed Input Details'!L117 -> 0.04901449322 | M117: ='[2]Smoothed Input Details'!M117 -> 0.8645733459 | N117: 0.8442193558 | O117: 0.09014770555 | P117: 0.06563293868 | Q117: 0.805937092
A118: EHV | B118: ='[2]Smoothed Input Details'!B118 -> 0.522700535 | C118: ='[2]Smoothed Input Details'!C118 -> 0.3665754208 | D118: ='[2]Smoothed Input Details'!D118 -> 0.1107240442 | E118: ='[2]Smoothed Input Details'!E118 -> 0.4698042837 | F118: ='[2]Smoothed Input Details'!F118 -> 0.6335519144 | G118: ='[2]Smoothed Input Details'!G118 -> 0.2857063547 | H118: ='[2]Smoothed Input Details'!H118 -> 0.08074173093 | I118: ='[2]Smoothed Input Details'!I118 -> 0.5227699792 | J118: ='[2]Smoothed Input Details'!J118 -> 0.6517447427 | K118: ='[2]Smoothed Input Details'!K118 -> 0.2781721129 | L118: ='[2]Smoothed Input Details'!L118 -> 0.0700831444 | M118: ='[2]Smoothed Input Details'!M118 -> 0.6138721268 | N118: 0.6026657307 | O118: 0.3101512961 | P118: 0.08718297319 | Q118: 0.5354821299
A119: EHV/HV | B119: ='[2]Smoothed Input Details'!B119 -> 0.522700535 | C119: ='[2]Smoothed Input Details'!C119 -> 0.3665754208 | D119: ='[2]Smoothed Input Details'!D119 -> 0.1107240442 | E119: ='[2]Smoothed Input Details'!E119 -> 0.4698042837 | F119: ='[2]Smoothed Input Details'!F119 -> 0.6335519144 | G119: ='[2]Smoothed Input Details'!G119 -> 0.2857063547 | H119: ='[2]Smoothed Input Details'!H119 -> 0.08074173093 | I119: ='[2]Smoothed Input Details'!I119 -> 0.5227699792 | J119: ='[2]Smoothed Input Details'!J119 -> 0.6517447427 | K119: ='[2]Smoothed Input Details'!K119 -> 0.2781721129 | L119: ='[2]Smoothed Input Details'!L119 -> 0.0700831444 | M119: ='[2]Smoothed Input Details'!M119 -> 0.6138721268 | N119: 0.6026657307 | O119: 0.3101512961 | P119: 0.08718297319 | Q119: 0.5354821299
A120: 132kV/HV | B120: ='[2]Smoothed Input Details'!B120 -> 0.7919005955 | C120: ='[2]Smoothed Input Details'!C120 -> 0.1099343787 | D120: ='[2]Smoothed Input Details'!D120 -> 0.09816502574 | E120: ='[2]Smoothed Input Details'!E120 -> 0.7919005955 | F120: ='[2]Smoothed Input Details'!F120 -> 0.8590669123 | G120: ='[2]Smoothed Input Details'!G120 -> 0.09121379064 | H120: ='[2]Smoothed Input Details'!H120 -> 0.04971929707 | I120: ='[2]Smoothed Input Details'!I120 -> 0.7613373345 | J120: ='[2]Smoothed Input Details'!J120 -> 0.8816905595 | K120: ='[2]Smoothed Input Details'!K120 -> 0.06929494726 | L120: ='[2]Smoothed Input Details'!L120 -> 0.04901449322 | M120: ='[2]Smoothed Input Details'!M120 -> 0.8645733459 | N120: 0.8442193558 | O120: 0.09014770555 | P120: 0.06563293868 | Q120: 0.805937092
A121: HV | B121: ='[2]Smoothed Input Details'!B121 -> 0.522700535 | C121: ='[2]Smoothed Input Details'!C121 -> 0.3665754208 | D121: ='[2]Smoothed Input Details'!D121 -> 0.1107240442 | E121: ='[2]Smoothed Input Details'!E121 -> 0.4698042837 | F121: ='[2]Smoothed Input Details'!F121 -> 0.6335519144 | G121: ='[2]Smoothed Input Details'!G121 -> 0.2857063547 | H121: ='[2]Smoothed Input Details'!H121 -> 0.08074173093 | I121: ='[2]Smoothed Input Details'!I121 -> 0.5227699792 | J121: ='[2]Smoothed Input Details'!J121 -> 0.6517447427 | K121: ='[2]Smoothed Input Details'!K121 -> 0.2781721129 | L121: ='[2]Smoothed Input Details'!L121 -> 0.0700831444 | M121: ='[2]Smoothed Input Details'!M121 -> 0.6138721268 | N121: 0.6026657307 | O121: 0.3101512961 | P121: 0.08718297319 | Q121: 0.5354821299
A122: HV/LV | B122: ='[2]Smoothed Input Details'!B122 -> 0.522700535 | C122: ='[2]Smoothed Input Details'!C122 -> 0.3665754208 | D122: ='[2]Smoothed Input Details'!D122 -> 0.1107240442 | E122: ='[2]Smoothed Input Details'!E122 -> 0.4698042837 | F122: ='[2]Smoothed Input Details'!F122 -> 0.6335519144 | G122: ='[2]Smoothed Input Details'!G122 -> 0.2857063547 | H122: ='[2]Smoothed Input Details'!H122 -> 0.08074173093 | I122: ='[2]Smoothed Input Details'!I122 -> 0.5227699792 | J122: ='[2]Smoothed Input Details'!J122 -> 0.6517447427 | K122: ='[2]Smoothed Input Details'!K122 -> 0.2781721129 | L122: ='[2]Smoothed Input Details'!L122 -> 0.0700831444 | M122: ='[2]Smoothed Input Details'!M122 -> 0.6138721268 | N122: 0.6026657307 | O122: 0.3101512961 | P122: 0.08718297319 | Q122: 0.5354821299
A123: LV circuits | B123: ='[2]Smoothed Input Details'!B123 -> 0.522700535 | C123: ='[2]Smoothed Input Details'!C123 -> 0.3665754208 | D123: ='[2]Smoothed Input Details'!D123 -> 0.1107240442 | E123: ='[2]Smoothed Input Details'!E123 -> 0.4698042837 | F123: ='[2]Smoothed Input Details'!F123 -> 0.6335519144 | G123: ='[2]Smoothed Input Details'!G123 -> 0.2857063547 | H123: ='[2]Smoothed Input Details'!H123 -> 0.08074173093 | I123: ='[2]Smoothed Input Details'!I123 -> 0.5227699792 | J123: ='[2]Smoothed Input Details'!J123 -> 0.6517447427 | K123: ='[2]Smoothed Input Details'!K123 -> 0.2781721129 | L123: ='[2]Smoothed Input Details'!L123 -> 0.0700831444 | M123: ='[2]Smoothed Input Details'!M123 -> 0.6138721268 | N123: 0.6026657307 | O123: 0.3101512961 | P123: 0.08718297319 | Q123: 0.5354821299

Sheet Mat of App
B3: 1025. Matrix of applicability of LV service models to tariffs with fixed charges
C5: ='CDCM Forecast Data'!$E$11 -> 2018/19 | K5: ='CDCM Forecast Data'!$F$11 -> 2019/20 | S5: ='CDCM Forecast Data'!$G$11 -> 2020/21 | AA5: ='CDCM Forecast Data'!$H$11 -> 2021/22 | AI5: ='CDCM Forecast Data'!$I$11 -> 2022/23
C6: LV service model 1 | D6: LV service model 2 | E6: LV service model 3 | F6: LV service model 4 | G6: LV service model 5 | H6: LV service model 6 | I6: LV service model 7 | J6: LV service model 8 | K6: LV service model 1 | L6: LV service model 2 | M6: LV service model 3 | N6: LV service model 4 | O6: LV service model 5 | P6: LV service model 6 | Q6: LV service model 7 | R6: LV service model 8 | S6: LV service model 1 | T6: LV service model 2 | U6: LV service model 3 | V6: LV service model 4 | W6: LV service model 5 | X6: LV service model 6 | Y6: LV service model 7 | Z6: LV service model 8 | AA6: LV service model 1 | AB6: LV service model 2 | AC6: LV service model 3 | AD6: LV service model 4 | AE6: LV service model 5 | AF6: LV service model 6 | AG6: LV service model 7 | AH6: LV service model 8 | AI6: LV service model 1 | AJ6: LV service model 2 | AK6: LV service model 3 | AL6: LV service model 4 | AM6: LV service model 5 | AN6: LV service model 6 | AO6: LV service model 7 | AP6: LV service model 8
B7: Domestic Unrestricted | C7: ='[2]Mat of App'!C7 -> 0.05 | D7: ='[2]Mat of App'!D7 -> 0 | E7: ='[2]Mat of App'!E7 -> 0 | F7: ='[2]Mat of App'!F7 -> 0 | G7: ='[2]Mat of App'!G7 -> 0 | H7: ='[2]Mat of App'!H7 -> 0 | I7: ='[2]Mat of App'!I7 -> 0 | J7: ='[2]Mat of App'!J7 -> 0 | K7: =C7 -> 0.05 | L7: =D7 -> 0 | M7: =E7 -> 0 | N7: =F7 -> 0 | O7: =G7 -> 0 | P7: =H7 -> 0 | Q7: =I7 -> 0 | R7: =J7 -> 0 | S7: =K7 -> 0.05 | T7: =L7 -> 0 | U7: =M7 -> 0 | V7: =N7 -> 0 | W7: =O7 -> 0 | X7: =P7 -> 0 | Y7: =Q7 -> 0 | Z7: =R7 -> 0 | AA7: =S7 -> 0.05 | AB7: =T7 -> 0 | AC7: =U7 -> 0 | AD7: =V7 -> 0 | AE7: =W7 -> 0 | AF7: =X7 -> 0 | AG7: =Y7 -> 0 | AH7: =Z7 -> 0 | AI7: =AA7 -> 0.05 | AJ7: =AB7 -> 0 | AK7: =AC7 -> 0 | AL7: =AD7 -> 0 | AM7: =AE7 -> 0 | AN7: =AF7 -> 0 | AO7: =AG7 -> 0 | AP7: =AH7 -> 0
B8: Domestic Two Rate | C8: ='[2]Mat of App'!C8 -> 0.05 | D8: ='[2]Mat of App'!D8 -> 0 | E8: ='[2]Mat of App'!E8 -> 0 | F8: ='[2]Mat of App'!F8 -> 0 | G8: ='[2]Mat of App'!G8 -> 0 | H8: ='[2]Mat of App'!H8 -> 0 | I8: ='[2]Mat of App'!I8 -> 0 | J8: ='[2]Mat of App'!J8 -> 0 | K8: =C8 -> 0.05 | L8: =D8 -> 0 | M8: =E8 -> 0 | N8: =F8 -> 0 | O8: =G8 -> 0 | P8: =H8 -> 0 | Q8: =I8 -> 0 | R8: =J8 -> 0 | S8: =K8 -> 0.05 | T8: =L8 -> 0 | U8: =M8 -> 0 | V8: =N8 -> 0 | W8: =O8 -> 0 | X8: =P8 -> 0 | Y8: =Q8 -> 0 | Z8: =R8 -> 0 | AA8: =S8 -> 0.05 | AB8: =T8 -> 0 | AC8: =U8 -> 0 | AD8: =V8 -> 0 | AE8: =W8 -> 0 | AF8: =X8 -> 0 | AG8: =Y8 -> 0 | AH8: =Z8 -> 0 | AI8: =AA8 -> 0.05 | AJ8: =AB8 -> 0 | AK8: =AC8 -> 0 | AL8: =AD8 -> 0 | AM8: =AE8 -> 0 | AN8: =AF8 -> 0 | AO8: =AG8 -> 0 | AP8: =AH8 -> 0
B9: Small Non Domestic Unrestricted | C9: ='[2]Mat of App'!C9 -> 0 | D9: ='[2]Mat of App'!D9 -> 1 | E9: ='[2]Mat of App'!E9 -> 0 | F9: ='[2]Mat of App'!F9 -> 0 | G9: ='[2]Mat of App'!G9 -> 0 | H9: ='[2]Mat of App'!H9 -> 0 | I9: ='[2]Mat of App'!I9 -> 0 | J9: ='[2]Mat of App'!J9 -> 0 | K9: 0 | L9: 1 | M9: 0 | N9: 0 | O9: 0 | P9: 0 | Q9: 0 | R9: 0 | S9: 0 | T9: 1 | U9: 0 | V9: 0 | W9: 0 | X9: 0 | Y9: 0 | Z9: 0 | AA9: 0 | AB9: 1 | AC9: 0 | AD9: 0 | AE9: 0 | AF9: 0 | AG9: 0 | AH9: 0 | AI9: 0 | AJ9: 1 | AK9: 0 | AL9: 0 | AM9: 0 | AN9: 0 | AO9: 0 | AP9: 0
B10: Small Non Domestic Two Rate | C10: ='[2]Mat of App'!C10 -> 0 | D10: ='[2]Mat of App'!D10 -> 1 | E10: ='[2]Mat of App'!E10 -> 0 | F10: ='[2]Mat of App'!F10 -> 0 | G10: ='[2]Mat of App'!G10 -> 0 | H10: ='[2]Mat of App'!H10 -> 0 | I10: ='[2]Mat of App'!I10 -> 0 | J10: ='[2]Mat of App'!J10 -> 0 | K10: 0 | L10: 1 | M10: 0 | N10: 0 | O10: 0 | P10: 0 | Q10: 0 | R10: 0 | S10: 0 | T10: 1 | U10: 0 | V10: 0 | W10: 0 | X10: 0 | Y10: 0 | Z10: 0 | AA10: 0 | AB10: 1 | AC10: 0 | AD10: 0 | AE10: 0 | AF10: 0 | AG10: 0 | AH10: 0 | AI10: 0 | AJ10: 1 | AK10: 0 | AL10: 0 | AM10: 0 | AN10: 0 | AO10: 0 | AP10: 0
B11: LV Medium Non-Domestic | C11: ='[2]Mat of App'!C11 -> 0 | D11: ='[2]Mat of App'!D11 -> 0 | E11: ='[2]Mat of App'!E11 -> 1 | F11: ='[2]Mat of App'!F11 -> 0 | G11: ='[2]Mat of App'!G11 -> 0 | H11: ='[2]Mat of App'!H11 -> 0 | I11: ='[2]Mat of App'!I11 -> 0 | J11: ='[2]Mat of App'!J11 -> 0 | K11: 0 | L11: 0 | M11: 1 | N11: 0 | O11: 0 | P11: 0 | Q11: 0 | R11: 0 | S11: 0 | T11: 0 | U11: 1 | V11: 0 | W11: 0 | X11: 0 | Y11: 0 | Z11: 0 | AA11: 0 | AB11: 0 | AC11: 1 | AD11: 0 | AE11: 0 | AF11: 0 | AG11: 0 | AH11: 0 | AI11: 0 | AJ11: 0 | AK11: 1 | AL11: 0 | AM11: 0 | AN11: 0 | AO11: 0 | AP11: 0
B12: LV Sub Medium Non-Domestic | C12: ='[2]Mat of App'!C12 -> 0 | D12: ='[2]Mat of App'!D12 -> 0 | E12: ='[2]Mat of App'!E12 -> 0 | F12: ='[2]Mat of App'!F12 -> 1 | G12: ='[2]Mat of App'!G12 -> 0 | H12: ='[2]Mat of App'!H12 -> 0 | I12: ='[2]Mat of App'!I12 -> 0 | J12: ='[2]Mat of App'!J12 -> 0 | K12: 0 | L12: 0 | M12: 0 | N12: 1 | O12: 0 | P12: 0 | Q12: 0 | R12: 0 | S12: 0 | T12: 0 | U12: 0 | V12: 1 | W12: 0 | X12: 0 | Y12: 0 | Z12: 0 | AA12: 0 | AB12: 0 | AC12: 0 | AD12: 1 | AE12: 0 | AF12: 0 | AG12: 0 | AH12: 0 | AI12: 0 | AJ12: 0 | AK12: 0 | AL12: 1 | AM12: 0 | AN12: 0 | AO12: 0 | AP12: 0
B13: LV Network Domestic | C13: ='[2]Mat of App'!C13 -> 0.05 | D13: ='[2]Mat of App'!D13 -> 0 | E13: ='[2]Mat of App'!E13 -> 0 | F13: ='[2]Mat of App'!F13 -> 0 | G13: ='[2]Mat of App'!G13 -> 0 | H13: ='[2]Mat of App'!H13 -> 0 | I13: ='[2]Mat of App'!I13 -> 0 | J13: ='[2]Mat of App'!J13 -> 0 | K13: 0.05 | L13: 0 | M13: 0 | N13: 0 | O13: 0 | P13: 0 | Q13: 0 | R13: 0 | S13: 0.05 | T13: 0 | U13: 0 | V13: 0 | W13: 0 | X13: 0 | Y13: 0 | Z13: 0 | AA13: 0.05 | AB13: 0 | AC13: 0 | AD13: 0 | AE13: 0 | AF13: 0 | AG13: 0 | AH13: 0 | AI13: 0.05 | AJ13: 0 | AK13: 0 | AL13: 0 | AM13: 0 | AN13: 0 | AO13: 0 | AP13: 0
B14: LV Network Non-Domestic Non-CT | C14: ='[2]Mat of App'!C14 -> 0 | D14: ='[2]Mat of App'!D14 -> 1 | E14: ='[2]Mat of App'!E14 -> 0 | F14: ='[2]Mat of App'!F14 -> 0 | G14: ='[2]Mat of App'!G14 -> 0 | H14: ='[2]Mat of App'!H14 -> 0 | I14: ='[2]Mat of App'!I14 -> 0 | J14: ='[2]Mat of App'!J14 -> 0 | K14: 0 | L14: 1 | M14: 0 | N14: 0 | O14: 0 | P14: 0 | Q14: 0 | R14: 0 | S14: 0 | T14: 1 | U14: 0 | V14: 0 | W14: 0 | X14: 0 | Y14: 0 | Z14: 0 | AA14: 0 | AB14: 1 | AC14: 0 | AD14: 0 | AE14: 0 | AF14: 0 | AG14: 0 | AH14: 0 | AI14: 0 | AJ14: 1 | AK14: 0 | AL14: 0 | AM14: 0 | AN14: 0 | AO14: 0 | AP14: 0
B15: LV HH Metered | C15: ='[2]Mat of App'!C15 -> 0 | D15: ='[2]Mat of App'!D15 -> 0 | E15: ='[2]Mat of App'!E15 -> 0 | F15: ='[2]Mat of App'!F15 -> 0 | G15: ='[2]Mat of App'!G15 -> 1 | H15: ='[2]Mat of App'!H15 -> 0 | I15: ='[2]Mat of App'!I15 -> 0 | J15: ='[2]Mat of App'!J15 -> 0 | K15: 0 | L15: 0 | M15: 0 | N15: 0 | O15: 1 | P15: 0 | Q15: 0 | R15: 0 | S15: 0 | T15: 0 | U15: 0 | V15: 0 | W15: 1 | X15: 0 | Y15: 0 | Z15: 0 | AA15: 0 | AB15: 0 | AC15: 0 | AD15: 0 | AE15: 1 | AF15: 0 | AG15: 0 | AH15: 0 | AI15: 0 | AJ15: 0 | AK15: 0 | AL15: 0 | AM15: 1 | AN15: 0 | AO15: 0 | AP15: 0
B16: LV Sub HH Metered | C16: ='[2]Mat of App'!C16 -> 0 | D16: ='[2]Mat of App'!D16 -> 0 | E16: ='[2]Mat of App'!E16 -> 0 | F16: ='[2]Mat of App'!F16 -> 0 | G16: ='[2]Mat of App'!G16 -> 0 | H16: ='[2]Mat of App'!H16 -> 1 | I16: ='[2]Mat of App'!I16 -> 0 | J16: ='[2]Mat of App'!J16 -> 0 | K16: 0 | L16: 0 | M16: 0 | N16: 0 | O16: 0 | P16: 1 | Q16: 0 | R16: 0 | S16: 0 | T16: 0 | U16: 0 | V16: 0 | W16: 0 | X16: 1 | Y16: 0 | Z16: 0 | AA16: 0 | AB16: 0 | AC16: 0 | AD16: 0 | AE16: 0 | AF16: 1 | AG16: 0 | AH16: 0 | AI16: 0 | AJ16: 0 | AK16: 0 | AL16: 0 | AM16: 0 | AN16: 1 | AO16: 0 | AP16: 0
B17: LV Generation NHH or Aggregate HH | C17: ='[2]Mat of App'!C17 -> 0 | D17: ='[2]Mat of App'!D17 -> 0 | E17: ='[2]Mat of App'!E17 -> 0 | F17: ='[2]Mat of App'!F17 -> 0 | G17: ='[2]Mat of App'!G17 -> 0 | H17: ='[2]Mat of App'!H17 -> 0 | I17: ='[2]Mat of App'!I17 -> 1 | J17: ='[2]Mat of App'!J17 -> 0 | K17: 0 | L17: 0 | M17: 0 | N17: 0 | O17: 0 | P17: 0 | Q17: 1 | R17: 0 | S17: 0 | T17: 0 | U17: 0 | V17: 0 | W17: 0 | X17: 0 | Y17: 1 | Z17: 0 | AA17: 0 | AB17: 0 | AC17: 0 | AD17: 0 | AE17: 0 | AF17: 0 | AG17: 1 | AH17: 0 | AI17: 0 | AJ17: 0 | AK17: 0 | AL17: 0 | AM17: 0 | AN17: 0 | AO17: 1 | AP17: 0
B18: LV Sub Generation NHH | C18: ='[2]Mat of App'!C18 -> 0 | D18: ='[2]Mat of App'!D18 -> 0 | E18: ='[2]Mat of App'!E18 -> 0 | F18: ='[2]Mat of App'!F18 -> 0 | G18: ='[2]Mat of App'!G18 -> 0 | H18: ='[2]Mat of App'!H18 -> 0 | I18: ='[2]Mat of App'!I18 -> 1 | J18: ='[2]Mat of App'!J18 -> 0 | K18: 0 | L18: 0 | M18: 0 | N18: 0 | O18: 0 | P18: 0 | Q18: 1 | R18: 0 | S18: 0 | T18: 0 | U18: 0 | V18: 0 | W18: 0 | X18: 0 | Y18: 1 | Z18: 0 | AA18: 0 | AB18: 0 | AC18: 0 | AD18: 0 | AE18: 0 | AF18: 0 | AG18: 1 | AH18: 0 | AI18: 0 | AJ18: 0 | AK18: 0 | AL18: 0 | AM18: 0 | AN18: 0 | AO18: 1 | AP18: 0
B19: LV Generation Intermittent | C19: ='[2]Mat of App'!C19 -> 0 | D19: ='[2]Mat of App'!D19 -> 0 | E19: ='[2]Mat of App'!E19 -> 0 | F19: ='[2]Mat of App'!F19 -> 0 | G19: ='[2]Mat of App'!G19 -> 0 | H19: ='[2]Mat of App'!H19 -> 0 | I19: ='[2]Mat of App'!I19 -> 1 | J19: ='[2]Mat of App'!J19 -> 0 | K19: 0 | L19: 0 | M19: 0 | N19: 0 | O19: 0 | P19: 0 | Q19: 1 | R19: 0 | S19: 0 | T19: 0 | U19: 0 | V19: 0 | W19: 0 | X19: 0 | Y19: 1 | Z19: 0 | AA19: 0 | AB19: 0 | AC19: 0 | AD19: 0 | AE19: 0 | AF19: 0 | AG19: 1 | AH19: 0 | AI19: 0 | AJ19: 0 | AK19: 0 | AL19: 0 | AM19: 0 | AN19: 0 | AO19: 1 | AP19: 0
B20: LV Generation Intermittent no RP charge | C20: ='[2]Mat of App'!C20 -> 0 | D20: ='[2]Mat of App'!D20 -> 0 | E20: ='[2]Mat of App'!E20 -> 0 | F20: ='[2]Mat of App'!F20 -> 0 | G20: ='[2]Mat of App'!G20 -> 0 | H20: ='[2]Mat of App'!H20 -> 0 | I20: ='[2]Mat of App'!I20 -> 1 | J20: ='[2]Mat of App'!J20 -> 0 | K20: 0 | L20: 0 | M20: 0 | N20: 0 | O20: 0 | P20: 0 | Q20: 1 | R20: 0 | S20: 0 | T20: 0 | U20: 0 | V20: 0 | W20: 0 | X20: 0 | Y20: 1 | Z20: 0 | AA20: 0 | AB20: 0 | AC20: 0 | AD20: 0 | AE20: 0 | AF20: 0 | AG20: 1 | AH20: 0 | AI20: 0 | AJ20: 0 | AK20: 0 | AL20: 0 | AM20: 0 | AN20: 0 | AO20: 1 | AP20: 0
B21: LV Generation Non-Intermittent | C21: ='[2]Mat of App'!C21 -> 0 | D21: ='[2]Mat of App'!D21 -> 0 | E21: ='[2]Mat of App'!E21 -> 0 | F21: ='[2]Mat of App'!F21 -> 0 | G21: ='[2]Mat of App'!G21 -> 0 | H21: ='[2]Mat of App'!H21 -> 0 | I21: ='[2]Mat of App'!I21 -> 0 | J21: ='[2]Mat of App'!J21 -> 0 | K21: 0 | L21: 0 | M21: 0 | N21: 0 | O21: 0 | P21: 0 | Q21: 0 | R21: 0 | S21: 0 | T21: 0 | U21: 0 | V21: 0 | W21: 0 | X21: 0 | Y21: 0 | Z21: 0 | AA21: 0 | AB21: 0 | AC21: 0 | AD21: 0 | AE21: 0 | AF21: 0 | AG21: 0 | AH21: 0 | AI21: 0 | AJ21: 0 | AK21: 0 | AL21: 0 | AM21: 0 | AN21: 0 | AO21: 0 | AP21: 0
B22: LV Generation Non-Intermittent no RP charge | C22: ='[2]Mat of App'!C22 -> 0 | D22: ='[2]Mat of App'!D22 -> 0 | E22: ='[2]Mat of App'!E22 -> 0 | F22: ='[2]Mat of App'!F22 -> 0 | G22: ='[2]Mat of App'!G22 -> 0 | H22: ='[2]Mat of App'!H22 -> 0 | I22: ='[2]Mat of App'!I22 -> 0 | J22: ='[2]Mat of App'!J22 -> 0 | K22: 0 | L22: 0 | M22: 0 | N22: 0 | O22: 0 | P22: 0 | Q22: 0 | R22: 0 | S22: 0 | T22: 0 | U22: 0 | V22: 0 | W22: 0 | X22: 0 | Y22: 0 | Z22: 0 | AA22: 0 | AB22: 0 | AC22: 0 | AD22: 0 | AE22: 0 | AF22: 0 | AG22: 0 | AH22: 0 | AI22: 0 | AJ22: 0 | AK22: 0 | AL22: 0 | AM22: 0 | AN22: 0 | AO22: 0 | AP22: 0
B23: LV Sub Generation Intermittent | C23: ='[2]Mat of App'!C23 -> 0 | D23: ='[2]Mat of App'!D23 -> 0 | E23: ='[2]Mat of App'!E23 -> 0 | F23: ='[2]Mat of App'!F23 -> 0 | G23: ='[2]Mat of App'!G23 -> 0 | H23: ='[2]Mat of App'!H23 -> 0 | I23: ='[2]Mat of App'!I23 -> 0 | J23: ='[2]Mat of App'!J23 -> 0 | K23: 0 | L23: 0 | M23: 0 | N23: 0 | O23: 0 | P23: 0 | Q23: 0 | R23: 0 | S23: 0 | T23: 0 | U23: 0 | V23: 0 | W23: 0 | X23: 0 | Y23: 0 | Z23: 0 | AA23: 0 | AB23: 0 | AC23: 0 | AD23: 0 | AE23: 0 | AF23: 0 | AG23: 0 | AH23: 0 | AI23: 0 | AJ23: 0 | AK23: 0 | AL23: 0 | AM23: 0 | AN23: 0 | AO23: 0 | AP23: 0
B24: LV Sub Generation Intermittent no RP charge | C24: ='[2]Mat of App'!C24 -> 0 | D24: ='[2]Mat of App'!D24 -> 0 | E24: ='[2]Mat of App'!E24 -> 0 | F24: ='[2]Mat of App'!F24 -> 0 | G24: ='[2]Mat of App'!G24 -> 0 | H24: ='[2]Mat of App'!H24 -> 0 | I24: ='[2]Mat of App'!I24 -> 0 | J24: ='[2]Mat of App'!J24 -> 0 | K24: 0 | L24: 0 | M24: 0 | N24: 0 | O24: 0 | P24: 0 | Q24: 0 | R24: 0 | S24: 0 | T24: 0 | U24: 0 | V24: 0 | W24: 0 | X24: 0 | Y24: 0 | Z24: 0 | AA24: 0 | AB24: 0 | AC24: 0 | AD24: 0 | AE24: 0 | AF24: 0 | AG24: 0 | AH24: 0 | AI24: 0 | AJ24: 0 | AK24: 0 | AL24: 0 | AM24: 0 | AN24: 0 | AO24: 0 | AP24: 0
B25: LV Sub Generation Non-Intermittent | C25: ='[2]Mat of App'!C25 -> 0 | D25: ='[2]Mat of App'!D25 -> 0 | E25: ='[2]Mat of App'!E25 -> 0 | F25: ='[2]Mat of App'!F25 -> 0 | G25: ='[2]Mat of App'!G25 -> 0 | H25: ='[2]Mat of App'!H25 -> 0 | I25: ='[2]Mat of App'!I25 -> 0 | J25: ='[2]Mat of App'!J25 -> 0 | K25: 0 | L25: 0 | M25: 0 | N25: 0 | O25: 0 | P25: 0 | Q25: 0 | R25: 0 | S25: 0 | T25: 0 | U25: 0 | V25: 0 | W25: 0 | X25: 0 | Y25: 0 | Z25: 0 | AA25: 0 | AB25: 0 | AC25: 0 | AD25: 0 | AE25: 0 | AF25: 0 | AG25: 0 | AH25: 0 | AI25: 0 | AJ25: 0 | AK25: 0 | AL25: 0 | AM25: 0 | AN25: 0 | AO25: 0 | AP25: 0
B26: LV Sub Generation Non-Intermittent no RP charge | C26: ='[2]Mat of App'!C26 -> 0 | D26: ='[2]Mat of App'!D26 -> 0 | E26: ='[2]Mat of App'!E26 -> 0 | F26: ='[2]Mat of App'!F26 -> 0 | G26: ='[2]Mat of App'!G26 -> 0 | H26: ='[2]Mat of App'!H26 -> 0 | I26: ='[2]Mat of App'!I26 -> 0 | J26: ='[2]Mat of App'!J26 -> 0 | K26: 0 | L26: 0 | M26: 0 | N26: 0 | O26: 0 | P26: 0 | Q26: 0 | R26: 0 | S26: 0 | T26: 0 | U26: 0 | V26: 0 | W26: 0 | X26: 0 | Y26: 0 | Z26: 0 | AA26: 0 | AB26: 0 | AC26: 0 | AD26: 0 | AE26: 0 | AF26: 0 | AG26: 0 | AH26: 0 | AI26: 0 | AJ26: 0 | AK26: 0 | AL26: 0 | AM26: 0 | AN26: 0 | AO26: 0 | AP26: 0
B28: 1026. Matrix of applicability of LV service models to unmetered tariffs
B30: Source: service models
B31: Proportion of service model involved in connecting load of 1 MWh/year | C31: ='CDCM Forecast Data'!$E$11 -> 2018/19 | K31: ='CDCM Forecast Data'!$F$11 -> 2019/20 | S31: ='CDCM Forecast Data'!$G$11 -> 2020/21 | AA31: ='CDCM Forecast Data'!$H$11 -> 2021/22 | AI31: ='CDCM Forecast Data'!$I$11 -> 2022/23
C32: LV service model 1 | D32: LV service model 2 | E32: LV service model 3 | F32: LV service model 4 | G32: LV service model 5 | H32: LV service model 6 | I32: LV service model 7 | J32: LV service model 8 | K32: LV service model 1 | L32: LV service model 2 | M32: LV service model 3 | N32: LV service model 4 | O32: LV service model 5 | P32: LV service model 6 | Q32: LV service model 7 | R32: LV service model 8 | S32: LV service model 1 | T32: LV service model 2 | U32: LV service model 3 | V32: LV service model 4 | W32: LV service model 5 | X32: LV service model 6 | Y32: LV service model 7 | Z32: LV service model 8 | AA32: LV service model 1 | AB32: LV service model 2 | AC32: LV service model 3 | AD32: LV service model 4 | AE32: LV service model 5 | AF32: LV service model 6 | AG32: LV service model 7 | AH32: LV service model 8 | AI32: LV service model 1 | AJ32: LV service model 2 | AK32: LV service model 3 | AL32: LV service model 4 | AM32: LV service model 5 | AN32: LV service model 6 | AO32: LV service model 7 | AP32: LV service model 8
B33: All LV unmetered tariffs | C33: ='[2]Mat of App'!C33 -> 0 | D33: ='[2]Mat of App'!D33 -> 0 | E33: ='[2]Mat of App'!E33 -> 0 | F33: ='[2]Mat of App'!F33 -> 0 | G33: ='[2]Mat of App'!G33 -> 0 | H33: ='[2]Mat of App'!H33 -> 0 | I33: ='[2]Mat of App'!I33 -> 0 | J33: ='[2]Mat of App'!J33 -> 0.488 | K33: =C33 -> 0 | L33: 0 | M33: 0 | N33: 0 | O33: 0 | P33: 0 | Q33: 0 | R33: 0.488 | S33: =K33 -> 0 | T33: =L33 -> 0 | U33: =M33 -> 0 | V33: =N33 -> 0 | W33: =O33 -> 0 | X33: =P33 -> 0 | Y33: =Q33 -> 0 | Z33: =R33 -> 0.488 | AA33: =S33 -> 0 | AB33: =T33 -> 0 | AC33: =U33 -> 0 | AD33: =V33 -> 0 | AE33: =W33 -> 0 | AF33: =X33 -> 0 | AG33: =Y33 -> 0 | AH33: =Z33 -> 0.488 | AI33: =AA33 -> 0 | AJ33: =AB33 -> 0 | AK33: =AC33 -> 0 | AL33: =AD33 -> 0 | AM33: =AE33 -> 0 | AN33: =AF33 -> 0 | AO33: =AG33 -> 0 | AP33: =AH33 -> 0.488
B35: 1028. Matrix of applicability of HV service models to tariffs with fixed charges
C36: ='CDCM Forecast Data'!$E$11 -> 2018/19 | H36: =+'CDCM Forecast Data'!F11 -> 2019/20 | M36: =+'CDCM Forecast Data'!G11 -> 2020/21 | R36: =+'CDCM Forecast Data'!H11 -> 2021/22 | W36: =+'CDCM Forecast Data'!I11 -> 2022/23
C37: HV service model 1 | D37: HV service model 2 | E37: HV service model 3 | F37: HV service model 4 | G37: HV service model 5 | H37: HV service model 1 | I37: HV service model 2 | J37: HV service model 3 | K37: HV service model 4 | L37: HV service model 5 | M37: HV service model 1 | N37: HV service model 2 | O37: HV service model 3 | P37: HV service model 4 | Q37: HV service model 5 | R37: HV service model 1 | S37: HV service model 2 | T37: HV service model 3 | U37: HV service model 4 | V37: HV service model 5 | W37: HV service model 1 | X37: HV service model 2 | Y37: HV service model 3 | Z37: HV service model 4 | AA37: HV service model 5
B38: HV Medium Non-Domestic | C38: ='[2]Mat of App'!C38 -> 1 | D38: ='[2]Mat of App'!D38 -> 0 | E38: ='[2]Mat of App'!E38 -> 0 | F38: ='[2]Mat of App'!F38 -> 0 | G38: ='[2]Mat of App'!G38 -> 0 | H38: =C38 -> 1 | I38: =D38 -> 0 | J38: =E38 -> 0 | K38: =F38 -> 0 | L38: =G38 -> 0 | M38: =H38 -> 1 | N38: =I38 -> 0 | O38: =J38 -> 0 | P38: =K38 -> 0 | Q38: =L38 -> 0 | R38: =M38 -> 1 | S38: =N38 -> 0 | T38: =O38 -> 0 | U38: =P38 -> 0 | V38: =Q38 -> 0 | W38: =R38 -> 1 | X38: =S38 -> 0 | Y38: =T38 -> 0 | Z38: =U38 -> 0 | AA38: =V38 -> 0
B39: HV HH Metered | C39: ='[2]Mat of App'!C39 -> 1 | D39: ='[2]Mat of App'!D39 -> 0 | E39: ='[2]Mat of App'!E39 -> 0 | F39: ='[2]Mat of App'!F39 -> 0 | G39: ='[2]Mat of App'!G39 -> 0 | H39: =C39 -> 1 | I39: =D39 -> 0 | J39: =E39 -> 0 | K39: =F39 -> 0 | L39: =G39 -> 0 | M39: =H39 -> 1 | N39: =I39 -> 0 | O39: =J39 -> 0 | P39: =K39 -> 0 | Q39: =L39 -> 0 | R39: =M39 -> 1 | S39: =N39 -> 0 | T39: =O39 -> 0 | U39: =P39 -> 0 | V39: =Q39 -> 0 | W39: =R39 -> 1 | X39: =S39 -> 0 | Y39: =T39 -> 0 | Z39: =U39 -> 0 | AA39: =V39 -> 0
B40: HV Generation Intermittent | C40: ='[2]Mat of App'!C40 -> 0 | D40: ='[2]Mat of App'!D40 -> 1 | E40: ='[2]Mat of App'!E40 -> 0 | F40: ='[2]Mat of App'!F40 -> 0 | G40: ='[2]Mat of App'!G40 -> 0 | H40: 0 | I40: 1 | J40: 0 | K40: 0 | L40: 0 | M40: 0 | N40: 1 | O40: 0 | P40: 0 | Q40: 0 | R40: 0 | S40: 1 | T40: 0 | U40: 0 | V40: 0 | W40: 0 | X40: 1 | Y40: 0 | Z40: 0 | AA40: 0
B41: HV Generation Intermittent no RP charge | C41: ='[2]Mat of App'!C41 -> 0 | D41: ='[2]Mat of App'!D41 -> 1 | E41: ='[2]Mat of App'!E41 -> 0 | F41: ='[2]Mat of App'!F41 -> 0 | G41: ='[2]Mat of App'!G41 -> 0 | H41: 0 | I41: 1 | J41: 0 | K41: 0 | L41: 0 | M41: 0 | N41: 1 | O41: 0 | P41: 0 | Q41: 0 | R41: 0 | S41: 1 | T41: 0 | U41: 0 | V41: 0 | W41: 0 | X41: 1 | Y41: 0 | Z41: 0 | AA41: 0
B42: HV Generation Non-Intermittent | C42: ='[2]Mat of App'!C42 -> 0 | D42: ='[2]Mat of App'!D42 -> 1 | E42: ='[2]Mat of App'!E42 -> 0 | F42: ='[2]Mat of App'!F42 -> 0 | G42: ='[2]Mat of App'!G42 -> 0 | H42: 0 | I42: 1 | J42: 0 | K42: 0 | L42: 0 | M42: 0 | N42: 1 | O42: 0 | P42: 0 | Q42: 0 | R42: 0 | S42: 1 | T42: 0 | U42: 0 | V42: 0 | W42: 0 | X42: 1 | Y42: 0 | Z42: 0 | AA42: 0
B43: HV Generation Non-Intermittent no RP charge | C43: ='[2]Mat of App'!C43 -> 0 | D43: ='[2]Mat of App'!D43 -> 1 | E43: ='[2]Mat of App'!E43 -> 0 | F43: ='[2]Mat of App'!F43 -> 0 | G43: ='[2]Mat of App'!G43 -> 0 | H43: 0 | I43: 1 | J43: 0 | K43: 0 | L43: 0 | M43: 0 | N43: 1 | O43: 0 | P43: 0 | Q43: 0 | R43: 0 | S43: 1 | T43: 0 | U43: 0 | V43: 0 | W43: 0 | X43: 1 | Y43: 0 | Z43: 0 | AA43: 0

Sheet CDCM Volume Forecasts
G3: Growth Rates (%)
G4: VOLUME - RED BAND | L4: VOLUME - AMBER BAND | P4: VOLUME - GREEN BAND | T4: CUSTOMER NUMBERS | X4: IMPORT CAPACITY | AB4: EXCEEDED CAPACITY | AF4: REACTIVE POWER
G5: Y | H5: Y + 1 | I5: Y + 2 | J5: Y + 3 | K5: Y + 4 | L5: Y + 1 | M5: Y + 2 | N5: Y + 3 | O5: Y + 4 | P5: Y + 1 | Q5: Y + 2 | R5: Y + 3 | S5: Y + 4 | T5: Y + 1 | U5: Y + 2 | V5: Y + 3 | W5: Y + 4 | X5: Y + 1 | Y5: Y + 2 | Z5: Y + 3 | AA5: Y + 4 | AB5: Y + 1 | AC5: Y + 2 | AD5: Y + 3 | AE5: Y + 4 | AF5: Y + 1 | AG5: Y + 2 | AH5: Y + 3 | AI5: Y + 4
E6: Customer Category | F6: Description | G6: =+'CDCM Forecast Data'!E11 -> 2018/19 | H6: =+'CDCM Forecast Data'!F11 -> 2019/20 | I6: =+'CDCM Forecast Data'!G11 -> 2020/21 | J6: =+'CDCM Forecast Data'!H11 -> 2021/22 | K6: =+'CDCM Forecast Data'!I11 -> 2022/23 | L6: =+H6 -> 2019/20 | M6: 2020/21 | N6: 2021/22 | O6: 2022/23 | P6: 2019/20 | Q6: 2020/21 | R6: 2021/22 | S6: 2022/23 | T6: 2019/20 | U6: 2020/21 | V6: 2021/22 | W6: 2022/23 | X6: 2019/20 | Y6: 2020/21 | Z6: 2021/22 | AA6: 2022/23 | AB6: =+T6 -> 2019/20 | AC6: 2020/21 | AD6: 2021/22 | AE6: 2022/23 | AF6: 2019/20 | AG6: 2020/21 | AH6: 2021/22 | AI6: 2022/23 | AJ6: Assumptions
E7: 1 | F7: Aggregated demand
E8: 2 | F8: Site-specific demand
E9: 3 | F9: Not used
E10: 4 | F10: Generation
E11: 5 | F11: Not used
E12: 6 | F12: Not used
E13: 7 | F13: Not used
E14: 8 | F14: Not used
E15: 9 | F15: Not used
E16: 10 | F16: Not used
E18: Summary Data | F18: Year | G18: =G6 -> 2018/19 | H18: =H6 -> 2019/20 | I18: =I6 -> 2020/21 | J18: =J6 -> 2021/22 | K18: =K6 -> 2022/23
F19: Total Volume | G19: =SUM(D29:F136) -> 13277802.43 | H19: =SUM(K29:M136) -> 13277802.43 | I19: =SUM(R29:T136) -> 13277802.43 | J19: =SUM(Y29:AA136) -> 13277802.43 | K19: =SUM(AF29:AH136) -> 13277802.43
F20: No. of MPANs | G20: =SUM(G29:G136) -> 1655500.882 | H20: =SUM(N29:N136) -> 1655500.882 | I20: =SUM(U29:U136) -> 1655500.882 | J20: =SUM(AB29:AB136) -> 1655500.882 | K20: =SUM(AI29:AI136) -> 1655500.882
F21: Total Import Capacity | G21: =SUM(H29:H136) -> 1932756.24 | H21: =SUM(O29:O136) -> 1932756.24 | I21: =SUM(V29:V136) -> 1932756.24 | J21: =SUM(AC29:AC136) -> 1932756.24 | K21: =SUM(AJ29:AJ136) -> 1932756.24
F22: Total exceeded capacity | G22: =SUM(I29:I136) -> 31597.24064 | H22: =SUM(P29:P136) -> 31597.24064 | I22: =SUM(W29:W136) -> 31597.24064 | J22: =SUM(AD29:AD136) -> 31597.24064 | K22: =SUM(AK29:AK136) -> 31597.24064
F23: Total Reactive | G23: =SUM(J29:J136) -> 325033.4222 | H23: =SUM(Q29:Q136) -> 325033.4222 | I23: =SUM(X29:X136) -> 325033.4222 | J23: =SUM(AE29:AE136) -> 325033.4222 | K23: =SUM(AL29:AL136) -> 325033.4222
C26: 1053. Volume forecasts for the charging year: | D26: =G6& " - ("&G5&")" -> 2018/19 - (Y) | K26: =H6& " - ("&H5&")" -> 2019/20 - (Y + 1) | R26: =I6& " - ("&I5&")" -> 2020/21 - (Y + 2) | Y26: =J6& " - ("&J5&")" -> 2021/22 - (Y + 3) | AF26: =K6& " - ("&K5&")" -> 2022/23 - (Y + 4)
B27: Customer Category | C27: Tariff | D27: Rate 1 units (MWh) | E27: Rate 2 units (MWh) | F27: Rate 3 units (MWh) | G27: MPANs | H27: Import capacity (kVA) | I27: Exceeded capacity (kVA) | J27: Reactive power units (MVArh) | K27: Rate 1 units (MWh) | L27: Rate 2 units (MWh) | M27: Rate 3 units (MWh) | N27: MPANs | O27: Import capacity (kVA) | P27: Exceeded capacity (kVA) | Q27: Reactive power units (MVArh) | R27: Rate 1 units (MWh) | S27: Rate 2 units (MWh) | T27: Rate 3 units (MWh) | U27: MPANs | V27: Import capacity (kVA) | W27: Exceeded capacity (kVA) | X27: Reactive power units (MVArh) | Y27: Rate 1 units (MWh) | Z27: Rate 2 units (MWh) | AA27: Rate 3 units (MWh) | AB27: MPANs | AC27: Import capacity (kVA) | AD27: Exceeded capacity (kVA) | AE27: Reactive power units (MVArh) | AF27: Rate 1 units (MWh) | AG27: Rate 2 units (MWh) | AH27: Rate 3 units (MWh) | AI27: MPANs | AJ27: Import capacity (kVA) | AK27: Exceeded capacity (kVA) | AL27: Reactive power units (MVArh)
A28: 1 | C28: > Domestic Unrestricted
A29: =A28+1 -> 2 | B29: 1 | C29: Domestic Unrestricted | D29: ='[2]CDCM Volume Forecasts'!D29 -> 4308328.18 | E29: ='[2]CDCM Volume Forecasts'!E29 -> 0 | F29: ='[2]CDCM Volume Forecasts'!F29 -> 0 | G29: ='[2]CDCM Volume Forecasts'!G29 -> 1249039.053 | H29: ='[2]CDCM Volume Forecasts'!H29 -> 0 | I29: ='[2]CDCM Volume Forecasts'!I29 -> 0 | J29: ='[2]CDCM Volume Forecasts'!J29 -> 0 | K29: =IF(D29,((VLOOKUP($B29,$E$7:$AI$16,4)+1)*D29),) -> 4308328.18 | L29: =IF(E29,((VLOOKUP($B29,$E$7:$AI$16,8)+1)*E29),) -> 0 | M29: =IF(F29,((VLOOKUP($B29,$E$7:$AI$16,12)+1)*F29),) -> 0 | N29: =IF(G29,((VLOOKUP($B29,$E$7:$AI$16,16)+1)*G29),) -> 1249039.053 | O29: =IF(H29,((VLOOKUP($B29,$E$7:$AI$16,20)+1)*H29),) -> 0 | R29: =IF(D29,((VLOOKUP($B29,$E$7:$AI$16,5)+1)*K29),) -> 4308328.18 | S29: =IF(E29,((VLOOKUP($B29,$E$7:$AI$16,5+4)+1)*L29),) -> 0 | T29: =IF(F29,((VLOOKUP($B29,$E$7:$AI$16,5+8)+1)*M29),) -> 0 | U29: =IF(G29,((VLOOKUP($B29,$E$7:$AI$16,5+12)+1)*N29),) -> 1249039.053 | V29: =IF(H29,((VLOOKUP($B29,$E$7:$AI$16,5+16)+1)*O29),) -> 0 | Y29: =IF(D29,((VLOOKUP($B29,$E$7:$AI$16,6)+1)*R29),) -> 4308328.18 | Z29: =IF(E29,((VLOOKUP($B29,$E$7:$AI$16,6+4)+1)*S29),) -> 0 | AA29: =IF(F29,((VLOOKUP($B29,$E$7:$AI$16,6+8)+1)*T29),) -> 0 | AB29: =IF(G29,((VLOOKUP($B29,$E$7:$AI$16,6+12)+1)*U29),) -> 1249039.053 | AC29: =IF(H29,((VLOOKUP($B29,$E$7:$AI$16,6+16)+1)*V29),) -> 0 | AF29: =IF(D29,((VLOOKUP($B29,$E$7:$AI$16,7)+1)*Y29),) -> 4308328.18 | AG29: =IF(E29,((VLOOKUP($B29,$E$7:$AI$16,7+4)+1)*Z29),) -> 0 | AH29: =IF(F29,((VLOOKUP($B29,$E$7:$AI$16,7+8)+1)*AA29),) -> 0 | AI29: =IF(G29,((VLOOKUP($B29,$E$7:$AI$16,7+12)+1)*AB29),) -> 1249039.053 | AJ29: =IF(H29,((VLOOKUP($B29,$E$7:$AI$16,7+16)+1)*AC29),) -> 0
A30: =A29+1 -> 3 | B30: 1 | C30: LDNO LV: Domestic Unrestricted | D30: ='[2]CDCM Volume Forecasts'!D30 -> 17317.24498 | E30: ='[2]CDCM Volume Forecasts'!E30 -> 0 | F30: ='[2]CDCM Volume Forecasts'!F30 -> 0 | G30: ='[2]CDCM Volume Forecasts'!G30 -> 6432.470402 | H30: ='[2]CDCM Volume Forecasts'!H30 -> 0 | I30: ='[2]CDCM Volume Forecasts'!I30 -> 0 | J30: ='[2]CDCM Volume Forecasts'!J30 -> 0 | K30: =IF(D30,((VLOOKUP($B30,$E$7:$AI$16,4)+1)*D30),) -> 17317.24498 | L30: =IF(E30,((VLOOKUP($B30,$E$7:$AI$16,8)+1)*E30),) -> 0 | M30: =IF(F30,((VLOOKUP($B30,$E$7:$AI$16,12)+1)*F30),) -> 0 | N30: =IF(G30,((VLOOKUP($B30,$E$7:$AI$16,16)+1)*G30),) -> 6432.470402 | O30: =IF(H30,((VLOOKUP($B30,$E$7:$AI$16,20)+1)*H30),) -> 0 | R30: =IF(D30,((VLOOKUP($B30,$E$7:$AI$16,5)+1)*K30),) -> 17317.24498 | S30: =IF(E30,((VLOOKUP($B30,$E$7:$AI$16,5+4)+1)*L30),) -> 0 | T30: =IF(F30,((VLOOKUP($B30,$E$7:$AI$16,5+8)+1)*M30),) -> 0 | U30: =IF(G30,((VLOOKUP($B30,$E$7:$AI$16,5+12)+1)*N30),) -> 6432.470402 | V30: =IF(H30,((VLOOKUP($B30,$E$7:$AI$16,5+16)+1)*O30),) -> 0 | Y30: =IF(D30,((VLOOKUP($B30,$E$7:$AI$16,6)+1)*R30),) -> 17317.24498 | Z30: =IF(E30,((VLOOKUP($B30,$E$7:$AI$16,6+4)+1)*S30),) -> 0 | AA30: =IF(F30,((VLOOKUP($B30,$E$7:$AI$16,6+8)+1)*T30),) -> 0 | AB30: =IF(G30,((VLOOKUP($B30,$E$7:$AI$16,6+12)+1)*U30),) -> 6432.470402 | AC30: =IF(H30,((VLOOKUP($B30,$E$7:$AI$16,6+16)+1)*V30),) -> 0 | AF30: =IF(D30,((VLOOKUP($B30,$E$7:$AI$16,7)+1)*Y30),) -> 17317.24498 | AG30: =IF(E30,((VLOOKUP($B30,$E$7:$AI$16,7+4)+1)*Z30),) -> 0 | AH30: =IF(F30,((VLOOKUP($B30,$E$7:$AI$16,7+8)+1)*AA30),) -> 0 | AI30: =IF(G30,((VLOOKUP($B30,$E$7:$AI$16,7+12)+1)*AB30),) -> 6432.470402 | AJ30: =IF(H30,((VLOOKUP($B30,$E$7:$AI$16,7+16)+1)*AC30),) -> 0
A31: 4 | B31: 1 | C31: LDNO HV: Domestic Unrestricted | D31: ='[2]CDCM Volume Forecasts'!D31 -> 30359.98623 | E31: ='[2]CDCM Volume Forecasts'!E31 -> 0 | F31: ='[2]CDCM Volume Forecasts'!F31 -> 0 | G31: ='[2]CDCM Volume Forecasts'!G31 -> 11844.01251 | H31: ='[2]CDCM Volume Forecasts'!H31 -> 0 | I31: ='[2]CDCM Volume Forecasts'!I31 -> 0 | J31: ='[2]CDCM Volume Forecasts'!J31 -> 0 | K31: 30359.98623 | L31: 0 | M31: 0 | N31: 11844.01251 | O31: 0 | R31: 30359.98623 | S31: 0 | T31: 0 | U31: 11844.01251 | V31: 0 | Y31: 30359.98623 | Z31: 0 | AA31: 0 | AB31: 11844.01251 | AC31: 0 | AF31: 30359.98623 | AG31: 0 | AH31: 0 | AI31: 11844.01251 | AJ31: 0
A32: 5 | C32: > Domestic Two Rate | D32: ='[2]CDCM Volume Forecasts'!D32 -> 0 | E32: ='[2]CDCM Volume Forecasts'!E32 -> 0 | F32: ='[2]CDCM Volume Forecasts'!F32 -> 0 | G32: ='[2]CDCM Volume Forecasts'!G32 -> 0 | H32: ='[2]CDCM Volume Forecasts'!H32 -> 0 | I32: ='[2]CDCM Volume Forecasts'!I32 -> 0 | J32: ='[2]CDCM Volume Forecasts'!J32 -> 0 | K32: 0 | L32: 0 | M32: 0 | N32: 0 | O32: 0 | R32: 0 | S32: 0 | T32: 0 | U32: 0 | V32: 0 | Y32: 0 | Z32: 0 | AA32: 0 | AB32: 0 | AC32: 0 | AF32: 0 | AG32: 0 | AH32: 0 | AI32: 0 | AJ32: 0
A33: 6 | B33: 1 | C33: Domestic Two Rate | D33: ='[2]CDCM Volume Forecasts'!D33 -> 607941.0703 | E33: ='[2]CDCM Volume Forecasts'!E33 -> 664320.7424 | F33: ='[2]CDCM Volume Forecasts'!F33 -> 0 | G33: ='[2]CDCM Volume Forecasts'!G33 -> 209037.5145 | H33: ='[2]CDCM Volume Forecasts'!H33 -> 0 | I33: ='[2]CDCM Volume Forecasts'!I33 -> 0 | J33: ='[2]CDCM Volume Forecasts'!J33 -> 0 | K33: 607941.0703 | L33: 664320.7424 | M33: 0 | N33: 209037.5145 | O33: 0 | R33: 607941.0703 | S33: 664320.7424 | T33: 0 | U33: 209037.5145 | V33: 0 | Y33: 607941.0703 | Z33: 664320.7424 | AA33: 0 | AB33: 209037.5145 | AC33: 0 | AF33: 607941.0703 | AG33: 664320.7424 | AH33: 0 | AI33: 209037.5145 | AJ33: 0
A34: 7 | B34: 1 | C34: LDNO LV: Domestic Two Rate | D34: ='[2]CDCM Volume Forecasts'!D34 -> 996.3345458 | E34: ='[2]CDCM Volume Forecasts'!E34 -> 464.3154495 | F34: ='[2]CDCM Volume Forecasts'!F34 -> 0 | G34: ='[2]CDCM Volume Forecasts'!G34 -> 424.578489 | H34: ='[2]CDCM Volume Forecasts'!H34 -> 0 | I34: ='[2]CDCM Volume Forecasts'!I34 -> 0 | J34: ='[2]CDCM Volume Forecasts'!J34 -> 0 | K34: 996.3345458 | L34: 464.3154495 | M34: 0 | N34: 424.578489 | O34: 0 | R34: 996.3345458 | S34: 464.3154495 | T34: 0 | U34: 424.578489 | V34: 0 | Y34: 996.3345458 | Z34: 464.3154495 | AA34: 0 | AB34: 424.578489 | AC34: 0 | AF34: 996.3345458 | AG34: 464.3154495 | AH34: 0 | AI34: 424.578489 | AJ34: 0
A35: 8 | B35: 1 | C35: LDNO HV: Domestic Two Rate | D35: ='[2]CDCM Volume Forecasts'!D35 -> 958.1884868 | E35: ='[2]CDCM Volume Forecasts'!E35 -> 407.9568851 | F35: ='[2]CDCM Volume Forecasts'!F35 -> 0 | G35: ='[2]CDCM Volume Forecasts'!G35 -> 368.3969014 | H35: ='[2]CDCM Volume Forecasts'!H35 -> 0 | I35: ='[2]CDCM Volume Forecasts'!I35 -> 0 | J35: ='[2]CDCM Volume Forecasts'!J35 -> 0 | K35: 958.1884868 | L35: 407.9568851 | M35: 0 | N35: 368.3969014 | O35: 0 | R35: 958.1884868 | S35: 407.9568851 | T35: 0 | U35: 368.3969014 | V35: 0 | Y35: 958.1884868 | Z35: 407.9568851 | AA35: 0 | AB35: 368.3969014 | AC35: 0 | AF35: 958.1884868 | AG35: 407.9568851 | AH35: 0 | AI35: 368.3969014 | AJ35: 0
A36: 9 | C36: > Domestic Off Peak (related MPAN) | D36: ='[2]CDCM Volume Forecasts'!D36 -> 0 | E36: ='[2]CDCM Volume Forecasts'!E36 -> 0 | F36: ='[2]CDCM Volume Forecasts'!F36 -> 0 | G36: ='[2]CDCM Volume Forecasts'!G36 -> 0 | H36: ='[2]CDCM Volume Forecasts'!H36 -> 0 | I36: ='[2]CDCM Volume Forecasts'!I36 -> 0 | J36: ='[2]CDCM Volume Forecasts'!J36 -> 0 | K36: 0 | L36: 0 | M36: 0 | N36: 0 | O36: 0 | R36: 0 | S36: 0 | T36: 0 | U36: 0 | V36: 0 | Y36: 0 | Z36: 0 | AA36: 0 | AB36: 0 | AC36: 0 | AF36: 0 | AG36: 0 | AH36: 0 | AI36: 0 | AJ36: 0
A37: 10 | B37: 1 | C37: Domestic Off Peak (related MPAN) | D37: ='[2]CDCM Volume Forecasts'!D37 -> 45959.70836 | E37: ='[2]CDCM Volume Forecasts'!E37 -> 0 | F37: ='[2]CDCM Volume Forecasts'!F37 -> 0 | G37: ='[2]CDCM Volume Forecasts'!G37 -> 15622 | H37: ='[2]CDCM Volume Forecasts'!H37 -> 0 | I37: ='[2]CDCM Volume Forecasts'!I37 -> 0 | J37: ='[2]CDCM Volume Forecasts'!J37 -> 0 | K37: 45959.70836 | L37: 0 | M37: 0 | N37: 15622 | O37: 0 | R37: 45959.70836 | S37: 0 | T37: 0 | U37: 15622 | V37: 0 | Y37: 45959.70836 | Z37: 0 | AA37: 0 | AB37: 15622 | AC37: 0 | AF37: 45959.70836 | AG37: 0 | AH37: 0 | AI37: 15622 | AJ37: 0
A38: 11 | B38: 1 | C38: LDNO LV: Domestic Off Peak (related MPAN) | D38: ='[2]CDCM Volume Forecasts'!D38 -> 0 | E38: ='[2]CDCM Volume Forecasts'!E38 -> 0 | F38: ='[2]CDCM Volume Forecasts'!F38 -> 0 | G38: ='[2]CDCM Volume Forecasts'!G38 -> 0 | H38: ='[2]CDCM Volume Forecasts'!H38 -> 0 | I38: ='[2]CDCM Volume Forecasts'!I38 -> 0 | J38: ='[2]CDCM Volume Forecasts'!J38 -> 0 | K38: 0 | L38: 0 | M38: 0 | N38: 0 | O38: 0 | R38: 0 | S38: 0 | T38: 0 | U38: 0 | V38: 0 | Y38: 0 | Z38: 0 | AA38: 0 | AB38: 0 | AC38: 0 | AF38: 0 | AG38: 0 | AH38: 0 | AI38: 0 | AJ38: 0
A39: 12 | B39: 1 | C39: LDNO HV: Domestic Off Peak (related MPAN) | D39: ='[2]CDCM Volume Forecasts'!D39 -> 0 | E39: ='[2]CDCM Volume Forecasts'!E39 -> 0 | F39: ='[2]CDCM Volume Forecasts'!F39 -> 0 | G39: ='[2]CDCM Volume Forecasts'!G39 -> 0 | H39: ='[2]CDCM Volume Forecasts'!H39 -> 0 | I39: ='[2]CDCM Volume Forecasts'!I39 -> 0 | J39: ='[2]CDCM Volume Forecasts'!J39 -> 0 | K39: 0 | L39: 0 | M39: 0 | N39: 0 | O39: 0 | R39: 0 | S39: 0 | T39: 0 | U39: 0 | V39: 0 | Y39: 0 | Z39: 0 | AA39: 0 | AB39: 0 | AC39: 0 | AF39: 0 | AG39: 0 | AH39: 0 | AI39: 0 | AJ39: 0
A40: 13 | C40: > Small Non Domestic Unrestricted | D40: ='[2]CDCM Volume Forecasts'!D40 -> 0 | E40: ='[2]CDCM Volume Forecasts'!E40 -> 0 | F40: ='[2]CDCM Volume Forecasts'!F40 -> 0 | G40: ='[2]CDCM Volume Forecasts'!G40 -> 0 | H40: ='[2]CDCM Volume Forecasts'!H40 -> 0 | I40: ='[2]CDCM Volume Forecasts'!I40 -> 0 | J40: ='[2]CDCM Volume Forecasts'!J40 -> 0 | K40: 0 | L40: 0 | M40: 0 | N40: 0 | O40: 0 | R40: 0 | S40: 0 | T40: 0 | U40: 0 | V40: 0 | Y40: 0 | Z40: 0 | AA40: 0 | AB40: 0 | AC40: 0 | AF40: 0 | AG40: 0 | AH40: 0 | AI40: 0 | AJ40: 0
A41: 14 | B41: 1 | C41: Small Non Domestic Unrestricted | D41: ='[2]CDCM Volume Forecasts'!D41 -> 1179331.529 | E41: ='[2]CDCM Volume Forecasts'!E41 -> 0 | F41: ='[2]CDCM Volume Forecasts'!F41 -> 0 | G41: ='[2]CDCM Volume Forecasts'!G41 -> 110093.2397 | H41: ='[2]CDCM Volume Forecasts'!H41 -> 0 | I41: ='[2]CDCM Volume Forecasts'!I41 -> 0 | J41: ='[2]CDCM Volume Forecasts'!J41 -> 0 | K41: 1179331.529 | L41: 0 | M41: 0 | N41: 110093.2397 | O41: 0 | R41: 1179331.529 | S41: 0 | T41: 0 | U41: 110093.2397 | V41: 0 | Y41: 1179331.529 | Z41: 0 | AA41: 0 | AB41: 110093.2397 | AC41: 0 | AF41: 1179331.529 | AG41: 0 | AH41: 0 | AI41: 110093.2397 | AJ41: 0
A42: 15 | B42: 1 | C42: LDNO LV: Small Non Domestic Unrestricted | D42: ='[2]CDCM Volume Forecasts'!D42 -> 788.4367595 | E42: ='[2]CDCM Volume Forecasts'!E42 -> 0 | F42: ='[2]CDCM Volume Forecasts'!F42 -> 0 | G42: ='[2]CDCM Volume Forecasts'!G42 -> 127.8314014 | H42: ='[2]CDCM Volume Forecasts'!H42 -> 0 | I42: ='[2]CDCM Volume Forecasts'!I42 -> 0 | J42: ='[2]CDCM Volume Forecasts'!J42 -> 0 | K42: 788.4367595 | L42: 0 | M42: 0 | N42: 127.8314014 | O42: 0 | R42: 788.4367595 | S42: 0 | T42: 0 | U42: 127.8314014 | V42: 0 | Y42: 788.4367595 | Z42: 0 | AA42: 0 | AB42: 127.8314014 | AC42: 0 | AF42: 788.4367595 | AG42: 0 | AH42: 0 | AI42: 127.8314014 | AJ42: 0
A43: 16 | B43: 1 | C43: LDNO HV: Small Non Domestic Unrestricted | D43: ='[2]CDCM Volume Forecasts'!D43 -> 7392.773379 | E43: ='[2]CDCM Volume Forecasts'!E43 -> 0 | F43: ='[2]CDCM Volume Forecasts'!F43 -> 0 | G43: ='[2]CDCM Volume Forecasts'!G43 -> 462.2006219 | H43: ='[2]CDCM Volume Forecasts'!H43 -> 0 | I43: ='[2]CDCM Volume Forecasts'!I43 -> 0 | J43: ='[2]CDCM Volume Forecasts'!J43 -> 0 | K43: 7392.773379 | L43: 0 | M43: 0 | N43: 462.2006219 | O43: 0 | R43: 7392.773379 | S43: 0 | T43: 0 | U43: 462.2006219 | V43: 0 | Y43: 7392.773379 | Z43: 0 | AA43: 0 | AB43: 462.2006219 | AC43: 0 | AF43: 7392.773379 | AG43: 0 | AH43: 0 | AI43: 462.2006219 | AJ43: 0
A44: 17 | C44: > Small Non Domestic Two Rate | D44: ='[2]CDCM Volume Forecasts'!D44 -> 0 | E44: ='[2]CDCM Volume Forecasts'!E44 -> 0 | F44: ='[2]CDCM Volume Forecasts'!F44 -> 0 | G44: ='[2]CDCM Volume Forecasts'!G44 -> 0 | H44: ='[2]CDCM Volume Forecasts'!H44 -> 0 | I44: ='[2]CDCM Volume Forecasts'!I44 -> 0 | J44: ='[2]CDCM Volume Forecasts'!J44 -> 0 | K44: 0 | L44: 0 | M44: 0 | N44: 0 | O44: 0 | R44: 0 | S44: 0 | T44: 0 | U44: 0 | V44: 0 | Y44: 0 | Z44: 0 | AA44: 0 | AB44: 0 | AC44: 0 | AF44: 0 | AG44: 0 | AH44: 0 | AI44: 0 | AJ44: 0
A45: 18 | B45: 1 | C45: Small Non Domestic Two Rate | D45: ='[2]CDCM Volume Forecasts'!D45 -> 394405.6541 | E45: ='[2]CDCM Volume Forecasts'!E45 -> 183263.231 | F45: ='[2]CDCM Volume Forecasts'!F45 -> 0 | G45: ='[2]CDCM Volume Forecasts'!G45 -> 29443.26826 | H45: ='[2]CDCM Volume Forecasts'!H45 -> 0 | I45: ='[2]CDCM Volume Forecasts'!I45 -> 0 | J45: ='[2]CDCM Volume Forecasts'!J45 -> 0 | K45: 394405.6541 | L45: 183263.231 | M45: 0 | N45: 29443.26826 | O45: 0 | R45: 394405.6541 | S45: 183263.231 | T45: 0 | U45: 29443.26826 | V45: 0 | Y45: 394405.6541 | Z45: 183263.231 | AA45: 0 | AB45: 29443.26826 | AC45: 0 | AF45: 394405.6541 | AG45: 183263.231 | AH45: 0 | AI45: 29443.26826 | AJ45: 0
A46: 19 | B46: 1 | C46: LDNO LV: Small Non Domestic Two Rate | D46: ='[2]CDCM Volume Forecasts'!D46 -> 41.25050511 | E46: ='[2]CDCM Volume Forecasts'!E46 -> 17.31810041 | F46: ='[2]CDCM Volume Forecasts'!F46 -> 0 | G46: ='[2]CDCM Volume Forecasts'!G46 -> 2.757156164 | H46: ='[2]CDCM Volume Forecasts'!H46 -> 0 | I46: ='[2]CDCM Volume Forecasts'!I46 -> 0 | J46: ='[2]CDCM Volume Forecasts'!J46 -> 0 | K46: 41.25050511 | L46: 17.31810041 | M46: 0 | N46: 2.757156164 | O46: 0 | R46: 41.25050511 | S46: 17.31810041 | T46: 0 | U46: 2.757156164 | V46: 0 | Y46: 41.25050511 | Z46: 17.31810041 | AA46: 0 | AB46: 2.757156164 | AC46: 0 | AF46: 41.25050511 | AG46: 17.31810041 | AH46: 0 | AI46: 2.757156164 | AJ46: 0
A47: 20 | B47: 1 | C47: LDNO HV: Small Non Domestic Two Rate | D47: ='[2]CDCM Volume Forecasts'!D47 -> 926.2488831 | E47: ='[2]CDCM Volume Forecasts'!E47 -> 260.3289682 | F47: ='[2]CDCM Volume Forecasts'!F47 -> 0 | G47: ='[2]CDCM Volume Forecasts'!G47 -> 23.55483699 | H47: ='[2]CDCM Volume Forecasts'!H47 -> 0 | I47: ='[2]CDCM Volume Forecasts'!I47 -> 0 | J47: ='[2]CDCM Volume Forecasts'!J47 -> 0 | K47: 926.2488831 | L47: 260.3289682 | M47: 0 | N47: 23.55483699 | O47: 0 | R47: 926.2488831 | S47: 260.3289682 | T47: 0 | U47: 23.55483699 | V47: 0 | Y47: 926.2488831 | Z47: 260.3289682 | AA47: 0 | AB47: 23.55483699 | AC47: 0 | AF47: 926.2488831 | AG47: 260.3289682 | AH47: 0 | AI47: 23.55483699 | AJ47: 0
A48: 21 | C48: > Small Non Domestic Off Peak (related MPAN) | D48: ='[2]CDCM Volume Forecasts'!D48 -> 0 | E48: ='[2]CDCM Volume Forecasts'!E48 -> 0 | F48: ='[2]CDCM Volume Forecasts'!F48 -> 0 | G48: ='[2]CDCM Volume Forecasts'!G48 -> 0 | H48: ='[2]CDCM Volume Forecasts'!H48 -> 0 | I48: ='[2]CDCM Volume Forecasts'!I48 -> 0 | J48: ='[2]CDCM Volume Forecasts'!J48 -> 0 | K48: 0 | L48: 0 | M48: 0 | N48: 0 | O48: 0 | R48: 0 | S48: 0 | T48: 0 | U48: 0 | V48: 0 | Y48: 0 | Z48: 0 | AA48: 0 | AB48: 0 | AC48: 0 | AF48: 0 | AG48: 0 | AH48: 0 | AI48: 0 | AJ48: 0
A49: 22 | B49: 1 | C49: Small Non Domestic Off Peak (related MPAN) | D49: ='[2]CDCM Volume Forecasts'!D49 -> 17319.81948 | E49: ='[2]CDCM Volume Forecasts'!E49 -> 0 | F49: ='[2]CDCM Volume Forecasts'!F49 -> 0 | G49: ='[2]CDCM Volume Forecasts'!G49 -> 3339 | H49: ='[2]CDCM Volume Forecasts'!H49 -> 0 | I49: ='[2]CDCM Volume Forecasts'!I49 -> 0 | J49: ='[2]CDCM Volume Forecasts'!J49 -> 0 | K49: 17319.81948 | L49: 0 | M49: 0 | N49: 3339 | O49: 0 | R49: 17319.81948 | S49: 0 | T49: 0 | U49: 3339 | V49: 0 | Y49: 17319.81948 | Z49: 0 | AA49: 0 | AB49: 3339 | AC49: 0 | AF49: 17319.81948 | AG49: 0 | AH49: 0 | AI49: 3339 | AJ49: 0
A50: 23 | B50: 1 | C50: LDNO LV: Small Non Domestic Off Peak (related MPAN) | D50: ='[2]CDCM Volume Forecasts'!D50 -> 0 | E50: ='[2]CDCM Volume Forecasts'!E50 -> 0 | F50: ='[2]CDCM Volume Forecasts'!F50 -> 0 | G50: ='[2]CDCM Volume Forecasts'!G50 -> 0 | H50: ='[2]CDCM Volume Forecasts'!H50 -> 0 | I50: ='[2]CDCM Volume Forecasts'!I50 -> 0 | J50: ='[2]CDCM Volume Forecasts'!J50 -> 0 | K50: 0 | L50: 0 | M50: 0 | N50: 0 | O50: 0 | R50: 0 | S50: 0 | T50: 0 | U50: 0 | V50: 0 | Y50: 0 | Z50: 0 | AA50: 0 | AB50: 0 | AC50: 0 | AF50: 0 | AG50: 0 | AH50: 0 | AI50: 0 | AJ50: 0
A51: 24 | B51: 1 | C51: LDNO HV: Small Non Domestic Off Peak (related MPAN) | D51: ='[2]CDCM Volume Forecasts'!D51 -> 0 | E51: ='[2]CDCM Volume Forecasts'!E51 -> 0 | F51: ='[2]CDCM Volume Forecasts'!F51 -> 0 | G51: ='[2]CDCM Volume Forecasts'!G51 -> 0 | H51: ='[2]CDCM Volume Forecasts'!H51 -> 0 | I51: ='[2]CDCM Volume Forecasts'!I51 -> 0 | J51: ='[2]CDCM Volume Forecasts'!J51 -> 0 | K51: 0 | L51: 0 | M51: 0 | N51: 0 | O51: 0 | R51: 0 | S51: 0 | T51: 0 | U51: 0 | V51: 0 | Y51: 0 | Z51: 0 | AA51: 0 | AB51: 0 | AC51: 0 | AF51: 0 | AG51: 0 | AH51: 0 | AI51: 0 | AJ51: 0
A52: 25 | C52: > LV Medium Non-Domestic | D52: ='[2]CDCM Volume Forecasts'!D52 -> 0 | E52: ='[2]CDCM Volume Forecasts'!E52 -> 0 | F52: ='[2]CDCM Volume Forecasts'!F52 -> 0 | G52: ='[2]CDCM Volume Forecasts'!G52 -> 0 | H52: ='[2]CDCM Volume Forecasts'!H52 -> 0 | I52: ='[2]CDCM Volume Forecasts'!I52 -> 0 | J52: ='[2]CDCM Volume Forecasts'!J52 -> 0 | K52: 0 | L52: 0 | M52: 0 | N52: 0 | O52: 0 | R52: 0 | S52: 0 | T52: 0 | U52: 0 | V52: 0 | Y52: 0 | Z52: 0 | AA52: 0 | AB52: 0 | AC52: 0 | AF52: 0 | AG52: 0 | AH52: 0 | AI52: 0 | AJ52: 0
A53: 26 | B53: 1 | C53: LV Medium Non-Domestic | D53: ='[2]CDCM Volume Forecasts'!D53 -> 0.0008013320402 | E53: ='[2]CDCM Volume Forecasts'!E53 -> 0.0001986679598 | F53: ='[2]CDCM Volume Forecasts'!F53 -> 0 | G53: ='[2]CDCM Volume Forecasts'!G53 -> 1.137530625e-05 | H53: ='[2]CDCM Volume Forecasts'!H53 -> 0 | I53: ='[2]CDCM Volume Forecasts'!I53 -> 0 | J53: ='[2]CDCM Volume Forecasts'!J53 -> 0 | K53: 0.0008013320402 | L53: 0.0001986679598 | M53: 0 | N53: 1.137530625e-05 | O53: 0 | R53: 0.0008013320402 | S53: 0.0001986679598 | T53: 0 | U53: 1.137530625e-05 | V53: 0 | Y53: 0.0008013320402 | Z53: 0.0001986679598 | AA53: 0 | AB53: 1.137530625e-05 | AC53: 0 | AF53: 0.0008013320402 | AG53: 0.0001986679598 | AH53: 0 | AI53: 1.137530625e-05 | AJ53: 0
A54: 27 | B54: 1 | C54: LDNO LV: LV Medium Non-Domestic | D54: ='[2]CDCM Volume Forecasts'!D54 -> 0 | E54: ='[2]CDCM Volume Forecasts'!E54 -> 0 | F54: ='[2]CDCM Volume Forecasts'!F54 -> 0 | G54: ='[2]CDCM Volume Forecasts'!G54 -> 0 | H54: ='[2]CDCM Volume Forecasts'!H54 -> 0 | I54: ='[2]CDCM Volume Forecasts'!I54 -> 0 | J54: ='[2]CDCM Volume Forecasts'!J54 -> 0 | K54: 0 | L54: 0 | M54: 0 | N54: 0 | O54: 0 | R54: 0 | S54: 0 | T54: 0 | U54: 0 | V54: 0 | Y54: 0 | Z54: 0 | AA54: 0 | AB54: 0 | AC54: 0 | AF54: 0 | AG54: 0 | AH54: 0 | AI54: 0 | AJ54: 0
A55: 28 | B55: 1 | C55: LDNO HV: LV Medium Non-Domestic | D55: ='[2]CDCM Volume Forecasts'!D55 -> 0 | E55: ='[2]CDCM Volume Forecasts'!E55 -> 0 | F55: ='[2]CDCM Volume Forecasts'!F55 -> 0 | G55: ='[2]CDCM Volume Forecasts'!G55 -> 0 | H55: ='[2]CDCM Volume Forecasts'!H55 -> 0 | I55: ='[2]CDCM Volume Forecasts'!I55 -> 0 | J55: ='[2]CDCM Volume Forecasts'!J55 -> 0 | K55: 0 | L55: 0 | M55: 0 | N55: 0 | O55: 0 | R55: 0 | S55: 0 | T55: 0 | U55: 0 | V55: 0 | Y55: 0 | Z55: 0 | AA55: 0 | AB55: 0 | AC55: 0 | AF55: 0 | AG55: 0 | AH55: 0 | AI55: 0 | AJ55: 0
A56: 29 | C56: > LV Sub Medium Non-Domestic | D56: ='[2]CDCM Volume Forecasts'!D56 -> 0 | E56: ='[2]CDCM Volume Forecasts'!E56 -> 0 | F56: ='[2]CDCM Volume Forecasts'!F56 -> 0 | G56: ='[2]CDCM Volume Forecasts'!G56 -> 0 | H56: ='[2]CDCM Volume Forecasts'!H56 -> 0 | I56: ='[2]CDCM Volume Forecasts'!I56 -> 0 | J56: ='[2]CDCM Volume Forecasts'!J56 -> 0 | K56: 0 | L56: 0 | M56: 0 | N56: 0 | O56: 0 | R56: 0 | S56: 0 | T56: 0 | U56: 0 | V56: 0 | Y56: 0 | Z56: 0 | AA56: 0 | AB56: 0 | AC56: 0 | AF56: 0 | AG56: 0 | AH56: 0 | AI56: 0 | AJ56: 0
A57: 30 | B57: 1 | C57: LV Sub Medium Non-Domestic | D57: ='[2]CDCM Volume Forecasts'!D57 -> 0.0007818763248 | E57: ='[2]CDCM Volume Forecasts'!E57 -> 0.0002181236752 | F57: ='[2]CDCM Volume Forecasts'!F57 -> 0 | G57: ='[2]CDCM Volume Forecasts'!G57 -> 8.365149073e-06 | H57: ='[2]CDCM Volume Forecasts'!H57 -> 0 | I57: ='[2]CDCM Volume Forecasts'!I57 -> 0 | J57: ='[2]CDCM Volume Forecasts'!J57 -> 0 | K57: 0.0007818763248 | L57: 0.0002181236752 | M57: 0 | N57: 8.365149073e-06 | O57: 0 | R57: 0.0007818763248 | S57: 0.0002181236752 | T57: 0 | U57: 8.365149073e-06 | V57: 0 | Y57: 0.0007818763248 | Z57: 0.0002181236752 | AA57: 0 | AB57: 8.365149073e-06 | AC57: 0 | AF57: 0.0007818763248 | AG57: 0.0002181236752 | AH57: 0 | AI57: 8.365149073e-06 | AJ57: 0
A58: 31 | C58: > HV Medium Non-Domestic | D58: ='[2]CDCM Volume Forecasts'!D58 -> 0 | E58: ='[2]CDCM Volume Forecasts'!E58 -> 0 | F58: ='[2]CDCM Volume Forecasts'!F58 -> 0 | G58: ='[2]CDCM Volume Forecasts'!G58 -> 0 | H58: ='[2]CDCM Volume Forecasts'!H58 -> 0 | I58: ='[2]CDCM Volume Forecasts'!I58 -> 0 | J58: ='[2]CDCM Volume Forecasts'!J58 -> 0 | K58: 0 | L58: 0 | M58: 0 | N58: 0 | O58: 0 | R58: 0 | S58: 0 | T58: 0 | U58: 0 | V58: 0 | Y58: 0 | Z58: 0 | AA58: 0 | AB58: 0 | AC58: 0 | AF58: 0 | AG58: 0 | AH58: 0 | AI58: 0 | AJ58: 0
A59: 32 | B59: 1 | C59: HV Medium Non-Domestic | D59: ='[2]CDCM Volume Forecasts'!D59 -> 0.0007790295336 | E59: ='[2]CDCM Volume Forecasts'!E59 -> 0.0002209704664 | F59: ='[2]CDCM Volume Forecasts'!F59 -> 0 | G59: ='[2]CDCM Volume Forecasts'!G59 -> 8.891114942e-06 | H59: ='[2]CDCM Volume Forecasts'!H59 -> 0 | I59: ='[2]CDCM Volume Forecasts'!I59 -> 0 | J59: ='[2]CDCM Volume Forecasts'!J59 -> 0 | K59: 0.0007790295336 | L59: 0.0002209704664 | M59: 0 | N59: 8.891114942e-06 | O59: 0 | R59: 0.0007790295336 | S59: 0.0002209704664 | T59: 0 | U59: 8.891114942e-06 | V59: 0 | Y59: 0.0007790295336 | Z59: 0.0002209704664 | AA59: 0 | AB59: 8.891114942e-06 | AC59: 0 | AF59: 0.0007790295336 | AG59: 0.0002209704664 | AH59: 0 | AI59: 8.891114942e-06 | AJ59: 0
A60: 33 | C60: > LV Network Domestic | D60: ='[2]CDCM Volume Forecasts'!D60 -> 0 | E60: ='[2]CDCM Volume Forecasts'!E60 -> 0 | F60: ='[2]CDCM Volume Forecasts'!F60 -> 0 | G60: ='[2]CDCM Volume Forecasts'!G60 -> 0 | H60: ='[2]CDCM Volume Forecasts'!H60 -> 0 | I60: ='[2]CDCM Volume Forecasts'!I60 -> 0 | J60: ='[2]CDCM Volume Forecasts'!J60 -> 0 | K60: 0 | L60: 0 | M60: 0 | N60: 0 | O60: 0 | R60: 0 | S60: 0 | T60: 0 | U60: 0 | V60: 0 | Y60: 0 | Z60: 0 | AA60: 0 | AB60: 0 | AC60: 0 | AF60: 0 | AG60: 0 | AH60: 0 | AI60: 0 | AJ60: 0
A61: 34 | B61: 1 | C61: LV Network Domestic | D61: ='[2]CDCM Volume Forecasts'!D61 -> 0.02203840235 | E61: ='[2]CDCM Volume Forecasts'!E61 -> 0.05600318601 | F61: ='[2]CDCM Volume Forecasts'!F61 -> 0.05289216565 | G61: ='[2]CDCM Volume Forecasts'!G61 -> 0.08493150685 | H61: ='[2]CDCM Volume Forecasts'!H61 -> 0 | I61: ='[2]CDCM Volume Forecasts'!I61 -> 0 | J61: ='[2]CDCM Volume Forecasts'!J61 -> 0 | K61: 0.02203840235 | L61: 0.05600318601 | M61: 0.05289216565 | N61: 0.08493150685 | O61: 0 | R61: 0.02203840235 | S61: 0.05600318601 | T61: 0.05289216565 | U61: 0.08493150685 | V61: 0 | Y61: 0.02203840235 | Z61: 0.05600318601 | AA61: 0.05289216565 | AB61: 0.08493150685 | AC61: 0 | AF61: 0.02203840235 | AG61: 0.05600318601 | AH61: 0.05289216565 | AI61: 0.08493150685 | AJ61: 0
A62: 35 | B62: 1 | C62: LDNO LV: LV Network Domestic | D62: ='[2]CDCM Volume Forecasts'!D62 -> 0 | E62: ='[2]CDCM Volume Forecasts'!E62 -> 0 | F62: ='[2]CDCM Volume Forecasts'!F62 -> 0 | G62: ='[2]CDCM Volume Forecasts'!G62 -> 0 | H62: ='[2]CDCM Volume Forecasts'!H62 -> 0 | I62: ='[2]CDCM Volume Forecasts'!I62 -> 0 | J62: ='[2]CDCM Volume Forecasts'!J62 -> 0 | K62: 0 | L62: 0 | M62: 0 | N62: 0 | O62: 0 | R62: 0 | S62: 0 | T62: 0 | U62: 0 | V62: 0 | Y62: 0 | Z62: 0 | AA62: 0 | AB62: 0 | AC62: 0 | AF62: 0 | AG62: 0 | AH62: 0 | AI62: 0 | AJ62: 0
A63: 36 | B63: 1 | C63: LDNO HV: LV Network Domestic | D63: ='[2]CDCM Volume Forecasts'!D63 -> 0 | E63: ='[2]CDCM Volume Forecasts'!E63 -> 0 | F63: ='[2]CDCM Volume Forecasts'!F63 -> 0 | G63: ='[2]CDCM Volume Forecasts'!G63 -> 0 | H63: ='[2]CDCM Volume Forecasts'!H63 -> 0 | I63: ='[2]CDCM Volume Forecasts'!I63 -> 0 | J63: ='[2]CDCM Volume Forecasts'!J63 -> 0 | K63: 0 | L63: 0 | M63: 0 | N63: 0 | O63: 0 | R63: 0 | S63: 0 | T63: 0 | U63: 0 | V63: 0 | Y63: 0 | Z63: 0 | AA63: 0 | AB63: 0 | AC63: 0 | AF63: 0 | AG63: 0 | AH63: 0 | AI63: 0 | AJ63: 0
A64: 37 | C64: > LV Network Non-Domestic Non-CT | D64: ='[2]CDCM Volume Forecasts'!D64 -> 0 | E64: ='[2]CDCM Volume Forecasts'!E64 -> 0 | F64: ='[2]CDCM Volume Forecasts'!F64 -> 0 | G64: ='[2]CDCM Volume Forecasts'!G64 -> 0 | H64: ='[2]CDCM Volume Forecasts'!H64 -> 0 | I64: ='[2]CDCM Volume Forecasts'!I64 -> 0 | J64: ='[2]CDCM Volume Forecasts'!J64 -> 0 | K64: 0 | L64: 0 | M64: 0 | N64: 0 | O64: 0 | R64: 0 | S64: 0 | T64: 0 | U64: 0 | V64: 0 | Y64: 0 | Z64: 0 | AA64: 0 | AB64: 0 | AC64: 0 | AF64: 0 | AG64: 0 | AH64: 0 | AI64: 0 | AJ64: 0
A65: 38 | B65: 1 | C65: LV Network Non-Domestic Non-CT | D65: ='[2]CDCM Volume Forecasts'!D65 -> 26809.77633 | E65: ='[2]CDCM Volume Forecasts'!E65 -> 198363.7567 | F65: ='[2]CDCM Volume Forecasts'!F65 -> 187790.9274 | G65: ='[2]CDCM Volume Forecasts'!G65 -> 6133.360412 | H65: ='[2]CDCM Volume Forecasts'!H65 -> 0 | I65: ='[2]CDCM Volume Forecasts'!I65 -> 0 | J65: ='[2]CDCM Volume Forecasts'!J65 -> 0 | K65: 26809.77633 | L65: 198363.7567 | M65: 187790.9274 | N65: 6133.360412 | O65: 0 | R65: 26809.77633 | S65: 198363.7567 | T65: 187790.9274 | U65: 6133.360412 | V65: 0 | Y65: 26809.77633 | Z65: 198363.7567 | AA65: 187790.9274 | AB65: 6133.360412 | AC65: 0 | AF65: 26809.77633 | AG65: 198363.7567 | AH65: 187790.9274 | AI65: 6133.360412 | AJ65: 0
A66: 39 | B66: 1 | C66: LDNO LV: LV Network Non-Domestic Non-CT | D66: ='[2]CDCM Volume Forecasts'!D66 -> 3.315741009 | E66: ='[2]CDCM Volume Forecasts'!E66 -> 24.61047773 | F66: ='[2]CDCM Volume Forecasts'!F66 -> 26.22781745 | G66: ='[2]CDCM Volume Forecasts'!G66 -> 1.130099192 | H66: ='[2]CDCM Volume Forecasts'!H66 -> 0 | I66: ='[2]CDCM Volume Forecasts'!I66 -> 0 | J66: ='[2]CDCM Volume Forecasts'!J66 -> 0 | K66: 3.315741009 | L66: 24.61047773 | M66: 26.22781745 | N66: 1.130099192 | O66: 0 | R66: 3.315741009 | S66: 24.61047773 | T66: 26.22781745 | U66: 1.130099192 | V66: 0 | Y66: 3.315741009 | Z66: 24.61047773 | AA66: 26.22781745 | AB66: 1.130099192 | AC66: 0 | AF66: 3.315741009 | AG66: 24.61047773 | AH66: 26.22781745 | AI66: 1.130099192 | AJ66: 0
A67: 40 | B67: 1 | C67: LDNO HV: LV Network Non-Domestic Non-CT | D67: ='[2]CDCM Volume Forecasts'!D67 -> 208.8552271 | E67: ='[2]CDCM Volume Forecasts'!E67 -> 1439.968803 | F67: ='[2]CDCM Volume Forecasts'!F67 -> 1182.412841 | G67: ='[2]CDCM Volume Forecasts'!G67 -> 39.90660546 | H67: ='[2]CDCM Volume Forecasts'!H67 -> 0 | I67: ='[2]CDCM Volume Forecasts'!I67 -> 0 | J67: ='[2]CDCM Volume Forecasts'!J67 -> 0 | K67: 208.8552271 | L67: 1439.968803 | M67: 1182.412841 | N67: 39.90660546 | O67: 0 | R67: 208.8552271 | S67: 1439.968803 | T67: 1182.412841 | U67: 39.90660546 | V67: 0 | Y67: 208.8552271 | Z67: 1439.968803 | AA67: 1182.412841 | AB67: 39.90660546 | AC67: 0 | AF67: 208.8552271 | AG67: 1439.968803 | AH67: 1182.412841 | AI67: 39.90660546 | AJ67: 0
A68: 41 | C68: > LV HH Metered | D68: ='[2]CDCM Volume Forecasts'!D68 -> 0 | E68: ='[2]CDCM Volume Forecasts'!E68 -> 0 | F68: ='[2]CDCM Volume Forecasts'!F68 -> 0 | G68: ='[2]CDCM Volume Forecasts'!G68 -> 0 | H68: ='[2]CDCM Volume Forecasts'!H68 -> 0 | I68: ='[2]CDCM Volume Forecasts'!I68 -> 0 | J68: ='[2]CDCM Volume Forecasts'!J68 -> 0 | K68: 0 | L68: 0 | M68: 0 | N68: 0 | O68: 0 | R68: 0 | S68: 0 | T68: 0 | U68: 0 | V68: 0 | Y68: 0 | Z68: 0 | AA68: 0 | AB68: 0 | AC68: 0 | AF68: 0 | AG68: 0 | AH68: 0 | AI68: 0 | AJ68: 0
A69: 42 | B69: 2 | C69: LV HH Metered | D69: ='[2]CDCM Volume Forecasts'!D69 -> 86224.93817 | E69: ='[2]CDCM Volume Forecasts'!E69 -> 626406.1163 | F69: ='[2]CDCM Volume Forecasts'!F69 -> 551384.4993 | G69: ='[2]CDCM Volume Forecasts'!G69 -> 6675.492152 | H69: ='[2]CDCM Volume Forecasts'!H69 -> 679119.4609 | I69: ='[2]CDCM Volume Forecasts'!I69 -> 12059.50975 | J69: ='[2]CDCM Volume Forecasts'!J69 -> 78582.10889 | K69: 86224.93817 | L69: 626406.1163 | M69: 551384.4993 | N69: 6675.492152 | O69: 679119.4609 | P69: =IF(I69,((VLOOKUP($B69,$E$7:$AI$16,24)+1)*I69),) -> 12059.50975 | Q69: =IF(J69,((VLOOKUP($B69,$E$7:$AI$16,28)+1)*J69),) -> 78582.10889 | R69: 86224.93817 | S69: 626406.1163 | T69: 551384.4993 | U69: 6675.492152 | V69: 679119.4609 | W69: =IF(I69,((VLOOKUP($B69,$E$7:$AI$16,5+20)+1)*P69),) -> 12059.50975 | X69: =IF(J69,((VLOOKUP($B69,$E$7:$AI$16,5+24)+1)*Q69),) -> 78582.10889 | Y69: 86224.93817 | Z69: 626406.1163 | AA69: 551384.4993 | AB69: 6675.492152 | AC69: 679119.4609 | AD69: =IF(I69,((VLOOKUP($B69,$E$7:$AI$16,6+20)+1)*W69),) -> 12059.50975 | AE69: =IF(J69,((VLOOKUP($B69,$E$7:$AI$16,6+24)+1)*X69),) -> 78582.10889 | AF69: 86224.93817 | AG69: 626406.1163 | AH69: 551384.4993 | AI69: 6675.492152 | AJ69: 679119.4609 | AK69: =IF(I69,((VLOOKUP($B69,$E$7:$AI$16,7+20)+1)*AD69),) -> 12059.50975 | AL69: =IF(J69,((VLOOKUP($B69,$E$7:$AI$16,7+24)+1)*AE69),) -> 78582.10889
A70: 43 | B70: 2 | C70: LDNO LV: LV HH Metered | D70: ='[2]CDCM Volume Forecasts'!D70 -> 26.67019633 | E70: ='[2]CDCM Volume Forecasts'!E70 -> 184.9098752 | F70: ='[2]CDCM Volume Forecasts'!F70 -> 189.0490903 | G70: ='[2]CDCM Volume Forecasts'!G70 -> 3.648709712 | H70: ='[2]CDCM Volume Forecasts'!H70 -> 385.2056466 | I70: ='[2]CDCM Volume Forecasts'!I70 -> 0 | J70: ='[2]CDCM Volume Forecasts'!J70 -> 38.89349926 | K70: 26.67019633 | L70: 184.9098752 | M70: 189.0490903 | N70: 3.648709712 | O70: 385.2056466 | P70: =IF(I70,((VLOOKUP($B70,$E$7:$AI$16,24)+1)*I70),) -> 0 | Q70: =IF(J70,((VLOOKUP($B70,$E$7:$AI$16,28)+1)*J70),) -> 38.89349926 | R70: 26.67019633 | S70: 184.9098752 | T70: 189.0490903 | U70: 3.648709712 | V70: 385.2056466 | W70: =IF(I70,((VLOOKUP($B70,$E$7:$AI$16,5+20)+1)*P70),) -> 0 | X70: =IF(J70,((VLOOKUP($B70,$E$7:$AI$16,5+24)+1)*Q70),) -> 38.89349926 | Y70: 26.67019633 | Z70: 184.9098752 | AA70: 189.0490903 | AB70: 3.648709712 | AC70: 385.2056466 | AD70: =IF(I70,((VLOOKUP($B70,$E$7:$AI$16,6+20)+1)*W70),) -> 0 | AE70: =IF(J70,((VLOOKUP($B70,$E$7:$AI$16,6+24)+1)*X70),) -> 38.89349926 | AF70: 26.67019633 | AG70: 184.9098752 | AH70: 189.0490903 | AI70: 3.648709712 | AJ70: 385.2056466 | AK70: =IF(I70,((VLOOKUP($B70,$E$7:$AI$16,7+20)+1)*AD70),) -> 0 | AL70: =IF(J70,((VLOOKUP($B70,$E$7:$AI$16,7+24)+1)*AE70),) -> 38.89349926
A71: 44 | B71: 2 | C71: LDNO HV: LV HH Metered | D71: ='[2]CDCM Volume Forecasts'!D71 -> 3033.516661 | E71: ='[2]CDCM Volume Forecasts'!E71 -> 19778.44449 | F71: ='[2]CDCM Volume Forecasts'!F71 -> 17104.93849 | G71: ='[2]CDCM Volume Forecasts'!G71 -> 102.5294473 | H71: ='[2]CDCM Volume Forecasts'!H71 -> 21251.92895 | I71: ='[2]CDCM Volume Forecasts'!I71 -> 85.51865959 | J71: ='[2]CDCM Volume Forecasts'!J71 -> 1726.237568 | K71: 3033.516661 | L71: 19778.44449 | M71: 17104.93849 | N71: 102.5294473 | O71: 21251.92895 | P71: 85.51865959 | Q71: 1726.237568 | R71: 3033.516661 | S71: 19778.44449 | T71: 17104.93849 | U71: 102.5294473 | V71: 21251.92895 | W71: 85.51865959 | X71: 1726.237568 | Y71: 3033.516661 | Z71: 19778.44449 | AA71: 17104.93849 | AB71: 102.5294473 | AC71: 21251.92895 | AD71: 85.51865959 | AE71: 1726.237568 | AF71: 3033.516661 | AG71: 19778.44449 | AH71: 17104.93849 | AI71: 102.5294473 | AJ71: 21251.92895 | AK71: 85.51865959 | AL71: 1726.237568
A72: 45 | C72: > LV Sub HH Metered | D72: ='[2]CDCM Volume Forecasts'!D72 -> 0 | E72: ='[2]CDCM Volume Forecasts'!E72 -> 0 | F72: ='[2]CDCM Volume Forecasts'!F72 -> 0 | G72: ='[2]CDCM Volume Forecasts'!G72 -> 0 | H72: ='[2]CDCM Volume Forecasts'!H72 -> 0 | I72: ='[2]CDCM Volume Forecasts'!I72 -> 0 | J72: ='[2]CDCM Volume Forecasts'!J72 -> 0 | K72: 0 | L72: 0 | M72: 0 | N72: 0 | O72: 0 | R72: 0 | S72: 0 | T72: 0 | U72: 0 | V72: 0 | Y72: 0 | Z72: 0 | AA72: 0 | AB72: 0 | AC72: 0 | AF72: 0 | AG72: 0 | AH72: 0 | AI72: 0 | AJ72: 0
A73: 46 | B73: 2 | C73: LV Sub HH Metered | D73: ='[2]CDCM Volume Forecasts'!D73 -> 49864.36837 | E73: ='[2]CDCM Volume Forecasts'!E73 -> 369689.8151 | F73: ='[2]CDCM Volume Forecasts'!F73 -> 340515.4834 | G73: ='[2]CDCM Volume Forecasts'!G73 -> 1936.985404 | H73: ='[2]CDCM Volume Forecasts'!H73 -> 364556.942 | I73: ='[2]CDCM Volume Forecasts'!I73 -> 5286.810989 | J73: ='[2]CDCM Volume Forecasts'!J73 -> 65191.5981 | K73: 49864.36837 | L73: 369689.8151 | M73: 340515.4834 | N73: 1936.985404 | O73: 364556.942 | P73: =IF(I73,((VLOOKUP($B73,$E$7:$AI$16,24)+1)*I73),) -> 5286.810989 | Q73: =IF(J73,((VLOOKUP($B73,$E$7:$AI$16,28)+1)*J73),) -> 65191.5981 | R73: 49864.36837 | S73: 369689.8151 | T73: 340515.4834 | U73: 1936.985404 | V73: 364556.942 | W73: =IF(I73,((VLOOKUP($B73,$E$7:$AI$16,5+20)+1)*P73),) -> 5286.810989 | X73: =IF(J73,((VLOOKUP($B73,$E$7:$AI$16,5+24)+1)*Q73),) -> 65191.5981 | Y73: 49864.36837 | Z73: 369689.8151 | AA73: 340515.4834 | AB73: 1936.985404 | AC73: 364556.942 | AD73: =IF(I73,((VLOOKUP($B73,$E$7:$AI$16,6+20)+1)*W73),) -> 5286.810989 | AE73: =IF(J73,((VLOOKUP($B73,$E$7:$AI$16,6+24)+1)*X73),) -> 65191.5981 | AF73: 49864.36837 | AG73: 369689.8151 | AH73: 340515.4834 | AI73: 1936.985404 | AJ73: 364556.942 | AK73: =IF(I73,((VLOOKUP($B73,$E$7:$AI$16,7+20)+1)*AD73),) -> 5286.810989 | AL73: =IF(J73,((VLOOKUP($B73,$E$7:$AI$16,7+24)+1)*AE73),) -> 65191.5981
A74: 47 | B74: 2 | C74: LDNO HV: LV Sub HH Metered | D74: ='[2]CDCM Volume Forecasts'!D74 -> 7.353792898 | E74: ='[2]CDCM Volume Forecasts'!E74 -> 37.82020849 | F74: ='[2]CDCM Volume Forecasts'!F74 -> 52.29466674 | G74: ='[2]CDCM Volume Forecasts'!G74 -> 1.175899315 | H74: ='[2]CDCM Volume Forecasts'!H74 -> 626.7543349 | I74: ='[2]CDCM Volume Forecasts'!I74 -> 0 | J74: ='[2]CDCM Volume Forecasts'!J74 -> 1.4026005 | K74: 7.353792898 | L74: 37.82020849 | M74: 52.29466674 | N74: 1.175899315 | O74: 626.7543349 | P74: 0 | Q74: 1.4026005 | R74: 7.353792898 | S74: 37.82020849 | T74: 52.29466674 | U74: 1.175899315 | V74: 626.7543349 | W74: 0 | X74: 1.4026005 | Y74: 7.353792898 | Z74: 37.82020849 | AA74: 52.29466674 | AB74: 1.175899315 | AC74: 626.7543349 | AD74: 0 | AE74: 1.4026005 | AF74: 7.353792898 | AG74: 37.82020849 | AH74: 52.29466674 | AI74: 1.175899315 | AJ74: 626.7543349 | AK74: =IF(I74,((VLOOKUP($B74,$E$7:$AI$16,7+20)+1)*AD74),) -> 0 | AL74: =IF(J74,((VLOOKUP($B74,$E$7:$AI$16,7+24)+1)*AE74),) -> 1.4026005
A75: 48 | C75: > HV HH Metered | D75: ='[2]CDCM Volume Forecasts'!D75 -> 0 | E75: ='[2]CDCM Volume Forecasts'!E75 -> 0 | F75: ='[2]CDCM Volume Forecasts'!F75 -> 0 | G75: ='[2]CDCM Volume Forecasts'!G75 -> 0 | H75: ='[2]CDCM Volume Forecasts'!H75 -> 0 | I75: ='[2]CDCM Volume Forecasts'!I75 -> 0 | J75: ='[2]CDCM Volume Forecasts'!J75 -> 0 | K75: 0 | L75: 0 | M75: 0 | N75: 0 | O75: 0 | R75: 0 | S75: 0 | T75: 0 | U75: 0 | V75: 0 | Y75: 0 | Z75: 0 | AA75: 0 | AB75: 0 | AC75: 0 | AF75: 0 | AG75: 0 | AH75: 0 | AI75: 0 | AJ75: 0
A76: 49 | B76: 2 | C76: HV HH Metered | D76: ='[2]CDCM Volume Forecasts'!D76 -> 153504.2364 | E76: ='[2]CDCM Volume Forecasts'!E76 -> 1093420.33 | F76: ='[2]CDCM Volume Forecasts'!F76 -> 1183755.414 | G76: ='[2]CDCM Volume Forecasts'!G76 -> 1060.270603 | H76: ='[2]CDCM Volume Forecasts'!H76 -> 854296.8159 | I76: ='[2]CDCM Volume Forecasts'!I76 -> 14165.40125 | J76: ='[2]CDCM Volume Forecasts'!J76 -> 163805.2025 | K76: 153504.2364 | L76: 1093420.33 | M76: 1183755.414 | N76: 1060.270603 | O76: 854296.8159 | P76: =IF(I76,((VLOOKUP($B76,$E$7:$AI$16,24)+1)*I76),) -> 14165.40125 | Q76: =IF(J76,((VLOOKUP($B76,$E$7:$AI$16,28)+1)*J76),) -> 163805.2025 | R76: 153504.2364 | S76: 1093420.33 | T76: 1183755.414 | U76: 1060.270603 | V76: 854296.8159 | W76: =IF(I76,((VLOOKUP($B76,$E$7:$AI$16,5+20)+1)*P76),) -> 14165.40125 | X76: =IF(J76,((VLOOKUP($B76,$E$7:$AI$16,5+24)+1)*Q76),) -> 163805.2025 | Y76: 153504.2364 | Z76: 1093420.33 | AA76: 1183755.414 | AB76: 1060.270603 | AC76: 854296.8159 | AD76: =IF(I76,((VLOOKUP($B76,$E$7:$AI$16,6+20)+1)*W76),) -> 14165.40125 | AE76: =IF(J76,((VLOOKUP($B76,$E$7:$AI$16,6+24)+1)*X76),) -> 163805.2025 | AF76: 153504.2364 | AG76: 1093420.33 | AH76: 1183755.414 | AI76: 1060.270603 | AJ76: 854296.8159 | AK76: =IF(I76,((VLOOKUP($B76,$E$7:$AI$16,7+20)+1)*AD76),) -> 14165.40125 | AL76: =IF(J76,((VLOOKUP($B76,$E$7:$AI$16,7+24)+1)*AE76),) -> 163805.2025
A77: 50 | B77: 2 | C77: LDNO HV: HV HH Metered | D77: ='[2]CDCM Volume Forecasts'!D77 -> 835.5652015 | E77: ='[2]CDCM Volume Forecasts'!E77 -> 5354.555457 | F77: ='[2]CDCM Volume Forecasts'!F77 -> 7404.628738 | G77: ='[2]CDCM Volume Forecasts'!G77 -> 7.714177397 | H77: ='[2]CDCM Volume Forecasts'!H77 -> 12519.13216 | I77: ='[2]CDCM Volume Forecasts'!I77 -> 0 | J77: ='[2]CDCM Volume Forecasts'!J77 -> 256.5251014 | K77: 835.5652015 | L77: 5354.555457 | M77: 7404.628738 | N77: 7.714177397 | O77: 12519.13216 | P77: 0 | Q77: 256.5251014 | R77: 835.5652015 | S77: 5354.555457 | T77: 7404.628738 | U77: 7.714177397 | V77: 12519.13216 | W77: 0 | X77: 256.5251014 | Y77: 835.5652015 | Z77: 5354.555457 | AA77: 7404.628738 | AB77: 7.714177397 | AC77: 12519.13216 | AD77: 0 | AE77: 256.5251014 | AF77: 835.5652015 | AG77: 5354.555457 | AH77: 7404.628738 | AI77: 7.714177397 | AJ77: 12519.13216 | AK77: =IF(I77,((VLOOKUP($B77,$E$7:$AI$16,7+20)+1)*AD77),) -> 0 | AL77: =IF(J77,((VLOOKUP($B77,$E$7:$AI$16,7+24)+1)*AE77),) -> 256.5251014
A78: 51 | C78: > NHH UMS category A | D78: ='[2]CDCM Volume Forecasts'!D78 -> 0 | E78: ='[2]CDCM Volume Forecasts'!E78 -> 0 | F78: ='[2]CDCM Volume Forecasts'!F78 -> 0 | G78: ='[2]CDCM Volume Forecasts'!G78 -> 0 | H78: ='[2]CDCM Volume Forecasts'!H78 -> 0 | I78: ='[2]CDCM Volume Forecasts'!I78 -> 0 | J78: ='[2]CDCM Volume Forecasts'!J78 -> 0 | K78: 0 | L78: 0 | M78: 0 | N78: 0 | O78: 0 | R78: 0 | S78: 0 | T78: 0 | U78: 0 | V78: 0 | Y78: 0 | Z78: 0 | AA78: 0 | AB78: 0 | AC78: 0 | AF78: 0 | AG78: 0 | AH78: 0 | AI78: 0 | AJ78: 0
A79: 52 | B79: 1 | C79: NHH UMS category A | D79: ='[2]CDCM Volume Forecasts'!D79 -> 10121.81187 | E79: ='[2]CDCM Volume Forecasts'!E79 -> 0 | F79: ='[2]CDCM Volume Forecasts'!F79 -> 0 | G79: ='[2]CDCM Volume Forecasts'!G79 -> 741 | H79: ='[2]CDCM Volume Forecasts'!H79 -> 0 | I79: ='[2]CDCM Volume Forecasts'!I79 -> 0 | J79: ='[2]CDCM Volume Forecasts'!J79 -> 0 | K79: 10121.81187 | L79: 0 | M79: 0 | N79: 741 | O79: 0 | R79: 10121.81187 | S79: 0 | T79: 0 | U79: 741 | V79: 0 | Y79: 10121.81187 | Z79: 0 | AA79: 0 | AB79: 741 | AC79: 0 | AF79: 10121.81187 | AG79: 0 | AH79: 0 | AI79: 741 | AJ79: 0
A80: 53 | B80: 1 | C80: LDNO LV: NHH UMS category A | D80: ='[2]CDCM Volume Forecasts'!D80 -> 136.7981202 | E80: ='[2]CDCM Volume Forecasts'!E80 -> 0 | F80: ='[2]CDCM Volume Forecasts'!F80 -> 0 | G80: ='[2]CDCM Volume Forecasts'!G80 -> 0 | H80: ='[2]CDCM Volume Forecasts'!H80 -> 0 | I80: ='[2]CDCM Volume Forecasts'!I80 -> 0 | J80: ='[2]CDCM Volume Forecasts'!J80 -> 0 | K80: 136.7981202 | L80: 0 | M80: 0 | N80: 0 | O80: 0 | R80: 136.7981202 | S80: 0 | T80: 0 | U80: 0 | V80: 0 | Y80: 136.7981202 | Z80: 0 | AA80: 0 | AB80: 0 | AC80: 0 | AF80: 136.7981202 | AG80: 0 | AH80: 0 | AI80: 0 | AJ80: 0
A81: 54 | B81: 1 | C81: LDNO HV: NHH UMS category A | D81: ='[2]CDCM Volume Forecasts'!D81 -> 23.736825 | E81: ='[2]CDCM Volume Forecasts'!E81 -> 0 | F81: ='[2]CDCM Volume Forecasts'!F81 -> 0 | G81: ='[2]CDCM Volume Forecasts'!G81 -> 0 | H81: ='[2]CDCM Volume Forecasts'!H81 -> 0 | I81: ='[2]CDCM Volume Forecasts'!I81 -> 0 | J81: ='[2]CDCM Volume Forecasts'!J81 -> 0 | K81: 23.736825 | L81: 0 | M81: 0 | N81: 0 | O81: 0 | R81: 23.736825 | S81: 0 | T81: 0 | U81: 0 | V81: 0 | Y81: 23.736825 | Z81: 0 | AA81: 0 | AB81: 0 | AC81: 0 | AF81: 23.736825 | AG81: 0 | AH81: 0 | AI81: 0 | AJ81: 0
A82: 55 | C82: > NHH UMS category B | D82: ='[2]CDCM Volume Forecasts'!D82 -> 0 | E82: ='[2]CDCM Volume Forecasts'!E82 -> 0 | F82: ='[2]CDCM Volume Forecasts'!F82 -> 0 | G82: ='[2]CDCM Volume Forecasts'!G82 -> 0 | H82: ='[2]CDCM Volume Forecasts'!H82 -> 0 | I82: ='[2]CDCM Volume Forecasts'!I82 -> 0 | J82: ='[2]CDCM Volume Forecasts'!J82 -> 0 | K82: 0 | L82: 0 | M82: 0 | N82: 0 | O82: 0 | R82: 0 | S82: 0 | T82: 0 | U82: 0 | V82: 0 | Y82: 0 | Z82: 0 | AA82: 0 | AB82: 0 | AC82: 0 | AF82: 0 | AG82: 0 | AH82: 0 | AI82: 0 | AJ82: 0
A83: 56 | B83: 1 | C83: NHH UMS category B | D83: ='[2]CDCM Volume Forecasts'!D83 -> 7712.971613 | E83: ='[2]CDCM Volume Forecasts'!E83 -> 0 | F83: ='[2]CDCM Volume Forecasts'!F83 -> 0 | G83: ='[2]CDCM Volume Forecasts'!G83 -> 689 | H83: ='[2]CDCM Volume Forecasts'!H83 -> 0 | I83: ='[2]CDCM Volume Forecasts'!I83 -> 0 | J83: ='[2]CDCM Volume Forecasts'!J83 -> 0 | K83: 7712.971613 | L83: 0 | M83: 0 | N83: 689 | O83: 0 | R83: 7712.971613 | S83: 0 | T83: 0 | U83: 689 | V83: 0 | Y83: 7712.971613 | Z83: 0 | AA83: 0 | AB83: 689 | AC83: 0 | AF83: 7712.971613 | AG83: 0 | AH83: 0 | AI83: 689 | AJ83: 0
A84: 57 | B84: 1 | C84: LDNO LV: NHH UMS category B | D84: ='[2]CDCM Volume Forecasts'!D84 -> 75.66701951 | E84: ='[2]CDCM Volume Forecasts'!E84 -> 0 | F84: ='[2]CDCM Volume Forecasts'!F84 -> 0 | G84: ='[2]CDCM Volume Forecasts'!G84 -> 0 | H84: ='[2]CDCM Volume Forecasts'!H84 -> 0 | I84: ='[2]CDCM Volume Forecasts'!I84 -> 0 | J84: ='[2]CDCM Volume Forecasts'!J84 -> 0 | K84: 75.66701951 | L84: 0 | M84: 0 | N84: 0 | O84: 0 | R84: 75.66701951 | S84: 0 | T84: 0 | U84: 0 | V84: 0 | Y84: 75.66701951 | Z84: 0 | AA84: 0 | AB84: 0 | AC84: 0 | AF84: 75.66701951 | AG84: 0 | AH84: 0 | AI84: 0 | AJ84: 0
A85: 58 | B85: 1 | C85: LDNO HV: NHH UMS category B | D85: ='[2]CDCM Volume Forecasts'!D85 -> 301.337486 | E85: ='[2]CDCM Volume Forecasts'!E85 -> 0 | F85: ='[2]CDCM Volume Forecasts'!F85 -> 0 | G85: ='[2]CDCM Volume Forecasts'!G85 -> 0 | H85: ='[2]CDCM Volume Forecasts'!H85 -> 0 | I85: ='[2]CDCM Volume Forecasts'!I85 -> 0 | J85: ='[2]CDCM Volume Forecasts'!J85 -> 0 | K85: 301.337486 | L85: 0 | M85: 0 | N85: 0 | O85: 0 | R85: 301.337486 | S85: 0 | T85: 0 | U85: 0 | V85: 0 | Y85: 301.337486 | Z85: 0 | AA85: 0 | AB85: 0 | AC85: 0 | AF85: 301.337486 | AG85: 0 | AH85: 0 | AI85: 0 | AJ85: 0
A86: 59 | C86: > NHH UMS category C | D86: ='[2]CDCM Volume Forecasts'!D86 -> 0 | E86: ='[2]CDCM Volume Forecasts'!E86 -> 0 | F86: ='[2]CDCM Volume Forecasts'!F86 -> 0 | G86: ='[2]CDCM Volume Forecasts'!G86 -> 0 | H86: ='[2]CDCM Volume Forecasts'!H86 -> 0 | I86: ='[2]CDCM Volume Forecasts'!I86 -> 0 | J86: ='[2]CDCM Volume Forecasts'!J86 -> 0 | K86: 0 | L86: 0 | M86: 0 | N86: 0 | O86: 0 | R86: 0 | S86: 0 | T86: 0 | U86: 0 | V86: 0 | Y86: 0 | Z86: 0 | AA86: 0 | AB86: 0 | AC86: 0 | AF86: 0 | AG86: 0 | AH86: 0 | AI86: 0 | AJ86: 0
A87: 60 | B87: 1 | C87: NHH UMS category C | D87: ='[2]CDCM Volume Forecasts'!D87 -> 989.1872896 | E87: ='[2]CDCM Volume Forecasts'!E87 -> 0 | F87: ='[2]CDCM Volume Forecasts'!F87 -> 0 | G87: ='[2]CDCM Volume Forecasts'!G87 -> 179 | H87: ='[2]CDCM Volume Forecasts'!H87 -> 0 | I87: ='[2]CDCM Volume Forecasts'!I87 -> 0 | J87: ='[2]CDCM Volume Forecasts'!J87 -> 0 | K87: 989.1872896 | L87: 0 | M87: 0 | N87: 179 | O87: 0 | R87: 989.1872896 | S87: 0 | T87: 0 | U87: 179 | V87: 0 | Y87: 989.1872896 | Z87: 0 | AA87: 0 | AB87: 179 | AC87: 0 | AF87: 989.1872896 | AG87: 0 | AH87: 0 | AI87: 179 | AJ87: 0
A88: 61 | B88: 1 | C88: LDNO LV: NHH UMS category C | D88: ='[2]CDCM Volume Forecasts'!D88 -> 5.135349957 | E88: ='[2]CDCM Volume Forecasts'!E88 -> 0 | F88: ='[2]CDCM Volume Forecasts'!F88 -> 0 | G88: ='[2]CDCM Volume Forecasts'!G88 -> 0 | H88: ='[2]CDCM Volume Forecasts'!H88 -> 0 | I88: ='[2]CDCM Volume Forecasts'!I88 -> 0 | J88: ='[2]CDCM Volume Forecasts'!J88 -> 0 | K88: 5.135349957 | L88: 0 | M88: 0 | N88: 0 | O88: 0 | R88: 5.135349957 | S88: 0 | T88: 0 | U88: 0 | V88: 0 | Y88: 5.135349957 | Z88: 0 | AA88: 0 | AB88: 0 | AC88: 0 | AF88: 5.135349957 | AG88: 0 | AH88: 0 | AI88: 0 | AJ88: 0
A89: 62 | B89: 1 | C89: LDNO HV: NHH UMS category C | D89: ='[2]CDCM Volume Forecasts'!D89 -> 2.988394681 | E89: ='[2]CDCM Volume Forecasts'!E89 -> 0 | F89: ='[2]CDCM Volume Forecasts'!F89 -> 0 | G89: ='[2]CDCM Volume Forecasts'!G89 -> 0 | H89: ='[2]CDCM Volume Forecasts'!H89 -> 0 | I89: ='[2]CDCM Volume Forecasts'!I89 -> 0 | J89: ='[2]CDCM Volume Forecasts'!J89 -> 0 | K89: 2.988394681 | L89: 0 | M89: 0 | N89: 0 | O89: 0 | R89: 2.988394681 | S89: 0 | T89: 0 | U89: 0 | V89: 0 | Y89: 2.988394681 | Z89: 0 | AA89: 0 | AB89: 0 | AC89: 0 | AF89: 2.988394681 | AG89: 0 | AH89: 0 | AI89: 0 | AJ89: 0
A90: 63 | C90: > NHH UMS category D | D90: ='[2]CDCM Volume Forecasts'!D90 -> 0 | E90: ='[2]CDCM Volume Forecasts'!E90 -> 0 | F90: ='[2]CDCM Volume Forecasts'!F90 -> 0 | G90: ='[2]CDCM Volume Forecasts'!G90 -> 0 | H90: ='[2]CDCM Volume Forecasts'!H90 -> 0 | I90: ='[2]CDCM Volume Forecasts'!I90 -> 0 | J90: ='[2]CDCM Volume Forecasts'!J90 -> 0 | K90: 0 | L90: 0 | M90: 0 | N90: 0 | O90: 0 | R90: 0 | S90: 0 | T90: 0 | U90: 0 | V90: 0 | Y90: 0 | Z90: 0 | AA90: 0 | AB90: 0 | AC90: 0 | AF90: 0 | AG90: 0 | AH90: 0 | AI90: 0 | AJ90: 0
A91: 64 | B91: 1 | C91: NHH UMS category D | D91: ='[2]CDCM Volume Forecasts'!D91 -> 0 | E91: ='[2]CDCM Volume Forecasts'!E91 -> 0 | F91: ='[2]CDCM Volume Forecasts'!F91 -> 0 | G91: ='[2]CDCM Volume Forecasts'!G91 -> 1 | H91: ='[2]CDCM Volume Forecasts'!H91 -> 0 | I91: ='[2]CDCM Volume Forecasts'!I91 -> 0 | J91: ='[2]CDCM Volume Forecasts'!J91 -> 0 | K91: 0 | L91: 0 | M91: 0 | N91: 1 | O91: 0 | R91: 0 | S91: 0 | T91: 0 | U91: 1 | V91: 0 | Y91: 0 | Z91: 0 | AA91: 0 | AB91: 1 | AC91: 0 | AF91: 0 | AG91: 0 | AH91: 0 | AI91: 1 | AJ91: 0
A92: 65 | B92: 1 | C92: LDNO LV: NHH UMS category D | D92: ='[2]CDCM Volume Forecasts'!D92 -> 0 | E92: ='[2]CDCM Volume Forecasts'!E92 -> 0 | F92: ='[2]CDCM Volume Forecasts'!F92 -> 0 | G92: ='[2]CDCM Volume Forecasts'!G92 -> 0 | H92: ='[2]CDCM Volume Forecasts'!H92 -> 0 | I92: ='[2]CDCM Volume Forecasts'!I92 -> 0 | J92: ='[2]CDCM Volume Forecasts'!J92 -> 0 | K92: 0 | L92: 0 | M92: 0 | N92: 0 | O92: 0 | R92: 0 | S92: 0 | T92: 0 | U92: 0 | V92: 0 | Y92: 0 | Z92: 0 | AA92: 0 | AB92: 0 | AC92: 0 | AF92: 0 | AG92: 0 | AH92: 0 | AI92: 0 | AJ92: 0
A93: 66 | B93: 1 | C93: LDNO HV: NHH UMS category D | D93: ='[2]CDCM Volume Forecasts'!D93 -> 0 | E93: ='[2]CDCM Volume Forecasts'!E93 -> 0 | F93: ='[2]CDCM Volume Forecasts'!F93 -> 0 | G93: ='[2]CDCM Volume Forecasts'!G93 -> 0 | H93: ='[2]CDCM Volume Forecasts'!H93 -> 0 | I93: ='[2]CDCM Volume Forecasts'!I93 -> 0 | J93: ='[2]CDCM Volume Forecasts'!J93 -> 0 | K93: 0 | L93: 0 | M93: 0 | N93: 0 | O93: 0 | R93: 0 | S93: 0 | T93: 0 | U93: 0 | V93: 0 | Y93: 0 | Z93: 0 | AA93: 0 | AB93: 0 | AC93: 0 | AF93: 0 | AG93: 0 | AH93: 0 | AI93: 0 | AJ93: 0
A94: =A93+1 -> 67 | C94: > LV UMS (Pseudo HH Metered) | D94: ='[2]CDCM Volume Forecasts'!D94 -> 0 | E94: ='[2]CDCM Volume Forecasts'!E94 -> 0 | F94: ='[2]CDCM Volume Forecasts'!F94 -> 0 | G94: ='[2]CDCM Volume Forecasts'!G94 -> 0 | H94: ='[2]CDCM Volume Forecasts'!H94 -> 0 | I94: ='[2]CDCM Volume Forecasts'!I94 -> 0 | J94: ='[2]CDCM Volume Forecasts'!J94 -> 0 | K94: =IF(D94,((VLOOKUP($B94,$E$7:$AI$16,4)+1)*D94),) -> 0 | L94: =IF(E94,((VLOOKUP($B94,$E$7:$AI$16,8)+1)*E94),) -> 0 | M94: =IF(F94,((VLOOKUP($B94,$E$7:$AI$16,12)+1)*F94),) -> 0 | N94: =IF(G94,((VLOOKUP($B94,$E$7:$AI$16,16)+1)*G94),) -> 0 | O94: =IF(H94,((VLOOKUP($B94,$E$7:$AI$16,20)+1)*H94),) -> 0 | R94: =IF(D94,((VLOOKUP($B94,$E$7:$AI$16,5)+1)*K94),) -> 0 | S94: =IF(E94,((VLOOKUP($B94,$E$7:$AI$16,5+4)+1)*L94),) -> 0 | T94: =IF(F94,((VLOOKUP($B94,$E$7:$AI$16,5+8)+1)*M94),) -> 0 | U94: =IF(G94,((VLOOKUP($B94,$E$7:$AI$16,5+12)+1)*N94),) -> 0 | V94: =IF(H94,((VLOOKUP($B94,$E$7:$AI$16,5+16)+1)*O94),) -> 0 | Y94: =IF(D94,((VLOOKUP($B94,$E$7:$AI$16,6)+1)*R94),) -> 0 | Z94: =IF(E94,((VLOOKUP($B94,$E$7:$AI$16,6+4)+1)*S94),) -> 0 | AA94: =IF(F94,((VLOOKUP($B94,$E$7:$AI$16,6+8)+1)*T94),) -> 0 | AB94: =IF(G94,((VLOOKUP($B94,$E$7:$AI$16,6+12)+1)*U94),) -> 0 | AC94: =IF(H94,((VLOOKUP($B94,$E$7:$AI$16,6+16)+1)*V94),) -> 0 | AF94: =IF(D94,((VLOOKUP($B94,$E$7:$AI$16,7)+1)*Y94),) -> 0 | AG94: =IF(E94,((VLOOKUP($B94,$E$7:$AI$16,7+4)+1)*Z94),) -> 0 | AH94: =IF(F94,((VLOOKUP($B94,$E$7:$AI$16,7+8)+1)*AA94),) -> 0 | AI94: =IF(G94,((VLOOKUP($B94,$E$7:$AI$16,7+12)+1)*AB94),) -> 0 | AJ94: =IF(H94,((VLOOKUP($B94,$E$7:$AI$16,7+16)+1)*AC94),) -> 0
A95: 68 | B95: 2 | C95: LV UMS (Pseudo HH Metered) | D95: ='[2]CDCM Volume Forecasts'!D95 -> 4105.98595 | E95: ='[2]CDCM Volume Forecasts'!E95 -> 29544.03496 | F95: ='[2]CDCM Volume Forecasts'!F95 -> 79785.80463 | G95: ='[2]CDCM Volume Forecasts'!G95 -> 27.44416291 | H95: ='[2]CDCM Volume Forecasts'!H95 -> 0 | I95: ='[2]CDCM Volume Forecasts'!I95 -> 0 | J95: ='[2]CDCM Volume Forecasts'!J95 -> 0 | K95: 4105.98595 | L95: 29544.03496 | M95: 79785.80463 | N95: 27.44416291 | O95: 0 | R95: 4105.98595 | S95: 29544.03496 | T95: 79785.80463 | U95: 27.44416291 | V95: 0 | Y95: 4105.98595 | Z95: 29544.03496 | AA95: 79785.80463 | AB95: 27.44416291 | AC95: 0 | AF95: 4105.98595 | AG95: 29544.03496 | AH95: 79785.80463 | AI95: 27.44416291 | AJ95: 0
A96: 69 | B96: 2 | C96: LDNO LV: LV UMS (Pseudo HH Metered) | D96: ='[2]CDCM Volume Forecasts'!D96 -> 0 | E96: ='[2]CDCM Volume Forecasts'!E96 -> 0 | F96: ='[2]CDCM Volume Forecasts'!F96 -> 0 | G96: ='[2]CDCM Volume Forecasts'!G96 -> 0 | H96: ='[2]CDCM Volume Forecasts'!H96 -> 0 | I96: ='[2]CDCM Volume Forecasts'!I96 -> 0 | J96: ='[2]CDCM Volume Forecasts'!J96 -> 0 | K96: 0 | L96: 0 | M96: 0 | N96: 0 | O96: 0 | R96: 0 | S96: 0 | T96: 0 | U96: 0 | V96: 0 | Y96: 0 | Z96: 0 | AA96: 0 | AB96: 0 | AC96: 0 | AF96: 0 | AG96: 0 | AH96: 0 | AI96: 0 | AJ96: 0
A97: 70 | B97: 2 | C97: LDNO HV: LV UMS (Pseudo HH Metered) | D97: ='[2]CDCM Volume Forecasts'!D97 -> 1.582648648 | E97: ='[2]CDCM Volume Forecasts'!E97 -> 5.703542262 | F97: ='[2]CDCM Volume Forecasts'!F97 -> 35.25548461 | G97: ='[2]CDCM Volume Forecasts'!G97 -> 1.175899315 | H97: ='[2]CDCM Volume Forecasts'!H97 -> 0 | I97: ='[2]CDCM Volume Forecasts'!I97 -> 0 | J97: ='[2]CDCM Volume Forecasts'!J97 -> 0 | K97: 1.582648648 | L97: 5.703542262 | M97: 35.25548461 | N97: 1.175899315 | O97: 0 | R97: 1.582648648 | S97: 5.703542262 | T97: 35.25548461 | U97: 1.175899315 | V97: 0 | Y97: 1.582648648 | Z97: 5.703542262 | AA97: 35.25548461 | AB97: 1.175899315 | AC97: 0 | AF97: 1.582648648 | AG97: 5.703542262 | AH97: 35.25548461 | AI97: 1.175899315 | AJ97: 0
A98: 71 | C98: > LV Generation NHH or Aggregate HH | D98: ='[2]CDCM Volume Forecasts'!D98 -> 0 | E98: ='[2]CDCM Volume Forecasts'!E98 -> 0 | F98: ='[2]CDCM Volume Forecasts'!F98 -> 0 | G98: ='[2]CDCM Volume Forecasts'!G98 -> 0 | H98: ='[2]CDCM Volume Forecasts'!H98 -> 0 | I98: ='[2]CDCM Volume Forecasts'!I98 -> 0 | J98: ='[2]CDCM Volume Forecasts'!J98 -> 0 | K98: 0 | L98: 0 | M98: 0 | N98: 0 | O98: 0 | R98: 0 | S98: 0 | T98: 0 | U98: 0 | V98: 0 | Y98: 0 | Z98: 0 | AA98: 0 | AB98: 0 | AC98: 0 | AF98: 0 | AG98: 0 | AH98: 0 | AI98: 0 | AJ98: 0
A99: 72 | B99: 4 | C99: LV Generation NHH or Aggregate HH | D99: ='[2]CDCM Volume Forecasts'!D99 -> 3214.757827 | E99: ='[2]CDCM Volume Forecasts'!E99 -> 0 | F99: ='[2]CDCM Volume Forecasts'!F99 -> 0 | G99: ='[2]CDCM Volume Forecasts'!G99 -> 286 | H99: ='[2]CDCM Volume Forecasts'!H99 -> 0 | I99: ='[2]CDCM Volume Forecasts'!I99 -> 0 | J99: ='[2]CDCM Volume Forecasts'!J99 -> 0 | K99: 3214.757827 | L99: 0 | M99: 0 | N99: 286 | O99: 0 | R99: 3214.757827 | S99: 0 | T99: 0 | U99: 286 | V99: 0 | Y99: 3214.757827 | Z99: 0 | AA99: 0 | AB99: 286 | AC99: 0 | AF99: 3214.757827 | AG99: 0 | AH99: 0 | AI99: 286 | AJ99: 0
A100: 73 | B100: 4 | C100: LDNO LV: LV Generation NHH or Aggregate HH | D100: ='[2]CDCM Volume Forecasts'!D100 -> 132.8959217 | E100: ='[2]CDCM Volume Forecasts'!E100 -> 0 | F100: ='[2]CDCM Volume Forecasts'!F100 -> 0 | G100: ='[2]CDCM Volume Forecasts'!G100 -> 0 | H100: ='[2]CDCM Volume Forecasts'!H100 -> 0 | I100: ='[2]CDCM Volume Forecasts'!I100 -> 0 | J100: ='[2]CDCM Volume Forecasts'!J100 -> 0 | K100: 132.8959217 | L100: 0 | M100: 0 | N100: 0 | O100: 0 | R100: 132.8959217 | S100: 0 | T100: 0 | U100: 0 | V100: 0 | Y100: 132.8959217 | Z100: 0 | AA100: 0 | AB100: 0 | AC100: 0 | AF100: 132.8959217 | AG100: 0 | AH100: 0 | AI100: 0 | AJ100: 0
A101: 74 | B101: 4 | C101: LDNO HV: LV Generation NHH or Aggregate HH | D101: ='[2]CDCM Volume Forecasts'!D101 -> 0 | E101: ='[2]CDCM Volume Forecasts'!E101 -> 0 | F101: ='[2]CDCM Volume Forecasts'!F101 -> 0 | G101: ='[2]CDCM Volume Forecasts'!G101 -> 0 | H101: ='[2]CDCM Volume Forecasts'!H101 -> 0 | I101: ='[2]CDCM Volume Forecasts'!I101 -> 0 | J101: ='[2]CDCM Volume Forecasts'!J101 -> 0 | K101: 0 | L101: 0 | M101: 0 | N101: 0 | O101: 0 | R101: 0 | S101: 0 | T101: 0 | U101: 0 | V101: 0 | Y101: 0 | Z101: 0 | AA101: 0 | AB101: 0 | AC101: 0 | AF101: 0 | AG101: 0 | AH101: 0 | AI101: 0 | AJ101: 0
A102: 75 | C102: > LV Sub Generation NHH | D102: ='[2]CDCM Volume Forecasts'!D102 -> 0 | E102: ='[2]CDCM Volume Forecasts'!E102 -> 0 | F102: ='[2]CDCM Volume Forecasts'!F102 -> 0 | G102: ='[2]CDCM Volume Forecasts'!G102 -> 0 | H102: ='[2]CDCM Volume Forecasts'!H102 -> 0 | I102: ='[2]CDCM Volume Forecasts'!I102 -> 0 | J102: ='[2]CDCM Volume Forecasts'!J102 -> 0 | K102: 0 | L102: 0 | M102: 0 | N102: 0 | O102: 0 | R102: 0 | S102: 0 | T102: 0 | U102: 0 | V102: 0 | Y102: 0 | Z102: 0 | AA102: 0 | AB102: 0 | AC102: 0 | AF102: 0 | AG102: 0 | AH102: 0 | AI102: 0 | AJ102: 0
A103: 76 | B103: 4 | C103: LV Sub Generation NHH | D103: ='[2]CDCM Volume Forecasts'!D103 -> 92.07485688 | E103: ='[2]CDCM Volume Forecasts'!E103 -> 0 | F103: ='[2]CDCM Volume Forecasts'!F103 -> 0 | G103: ='[2]CDCM Volume Forecasts'!G103 -> 1 | H103: ='[2]CDCM Volume Forecasts'!H103 -> 0 | I103: ='[2]CDCM Volume Forecasts'!I103 -> 0 | J103: ='[2]CDCM Volume Forecasts'!J103 -> 0 | K103: 92.07485688 | L103: 0 | M103: 0 | N103: 1 | O103: 0 | R103: 92.07485688 | S103: 0 | T103: 0 | U103: 1 | V103: 0 | Y103: 92.07485688 | Z103: 0 | AA103: 0 | AB103: 1 | AC103: 0 | AF103: 92.07485688 | AG103: 0 | AH103: 0 | AI103: 1 | AJ103: 0
A104: 77 | B104: 4 | C104: LDNO HV: LV Sub Generation NHH | D104: ='[2]CDCM Volume Forecasts'!D104 -> 0 | E104: ='[2]CDCM Volume Forecasts'!E104 -> 0 | F104: ='[2]CDCM Volume Forecasts'!F104 -> 0 | G104: ='[2]CDCM Volume Forecasts'!G104 -> 0 | H104: ='[2]CDCM Volume Forecasts'!H104 -> 0 | I104: ='[2]CDCM Volume Forecasts'!I104 -> 0 | J104: ='[2]CDCM Volume Forecasts'!J104 -> 0 | K104: 0 | L104: 0 | M104: 0 | N104: 0 | O104: 0 | R104: 0 | S104: 0 | T104: 0 | U104: 0 | V104: 0 | Y104: 0 | Z104: 0 | AA104: 0 | AB104: 0 | AC104: 0 | AF104: 0 | AG104: 0 | AH104: 0 | AI104: 0 | AJ104: 0
A105: 78 | C105: > LV Generation Intermittent | D105: ='[2]CDCM Volume Forecasts'!D105 -> 0 | E105: ='[2]CDCM Volume Forecasts'!E105 -> 0 | F105: ='[2]CDCM Volume Forecasts'!F105 -> 0 | G105: ='[2]CDCM Volume Forecasts'!G105 -> 0 | H105: ='[2]CDCM Volume Forecasts'!H105 -> 0 | I105: ='[2]CDCM Volume Forecasts'!I105 -> 0 | J105: ='[2]CDCM Volume Forecasts'!J105 -> 0 | K105: 0 | L105: 0 | M105: 0 | N105: 0 | O105: 0 | R105: 0 | S105: 0 | T105: 0 | U105: 0 | V105: 0 | Y105: 0 | Z105: 0 | AA105: 0 | AB105: 0 | AC105: 0 | AF105: 0 | AG105: 0 | AH105: 0 | AI105: 0 | AJ105: 0
A106: 79 | B106: 4 | C106: LV Generation Intermittent | D106: ='[2]CDCM Volume Forecasts'!D106 -> 78529.09504 | E106: ='[2]CDCM Volume Forecasts'!E106 -> 0 | F106: ='[2]CDCM Volume Forecasts'!F106 -> 0 | G106: ='[2]CDCM Volume Forecasts'!G106 -> 887.0263253 | H106: ='[2]CDCM Volume Forecasts'!H106 -> 0 | I106: ='[2]CDCM Volume Forecasts'!I106 -> 0 | J106: ='[2]CDCM Volume Forecasts'!J106 -> 6221.859222 | K106: 78529.09504 | L106: 0 | M106: 0 | N106: 887.0263253 | O106: 0 | Q106: =IF(J106,((VLOOKUP($B106,$E$7:$AI$16,28)+1)*J106),) -> 6221.859222 | R106: 78529.09504 | S106: 0 | T106: 0 | U106: 887.0263253 | V106: 0 | X106: =IF(J106,((VLOOKUP($B106,$E$7:$AI$16,5+24)+1)*Q106),) -> 6221.859222 | Y106: 78529.09504 | Z106: 0 | AA106: 0 | AB106: 887.0263253 | AC106: 0 | AE106: =IF(J106,((VLOOKUP($B106,$E$7:$AI$16,6+24)+1)*X106),) -> 6221.859222 | AF106: 78529.09504 | AG106: 0 | AH106: 0 | AI106: 887.0263253 | AJ106: 0 | AL106: =IF(J106,((VLOOKUP($B106,$E$7:$AI$16,7+24)+1)*AE106),) -> 6221.859222
A107: 80 | B107: 4 | C107: LDNO LV: LV Generation Intermittent | D107: ='[2]CDCM Volume Forecasts'!D107 -> 0 | E107: ='[2]CDCM Volume Forecasts'!E107 -> 0 | F107: ='[2]CDCM Volume Forecasts'!F107 -> 0 | G107: ='[2]CDCM Volume Forecasts'!G107 -> 0 | H107: ='[2]CDCM Volume Forecasts'!H107 -> 0 | I107: ='[2]CDCM Volume Forecasts'!I107 -> 0 | J107: ='[2]CDCM Volume Forecasts'!J107 -> 0 | K107: 0 | L107: 0 | M107: 0 | N107: 0 | O107: 0 | Q107: 0 | R107: 0 | S107: 0 | T107: 0 | U107: 0 | V107: 0 | X107: 0 | Y107: 0 | Z107: 0 | AA107: 0 | AB107: 0 | AC107: 0 | AE107: 0 | AF107: 0 | AG107: 0 | AH107: 0 | AI107: 0 | AJ107: 0 | AL107: 0
A108: 81 | B108: 4 | C108: LDNO HV: LV Generation Intermittent | D108: ='[2]CDCM Volume Forecasts'!D108 -> 1158.498151 | E108: ='[2]CDCM Volume Forecasts'!E108 -> 0 | F108: ='[2]CDCM Volume Forecasts'!F108 -> 0 | G108: ='[2]CDCM Volume Forecasts'!G108 -> 3.263473973 | H108: ='[2]CDCM Volume Forecasts'!H108 -> 0 | I108: ='[2]CDCM Volume Forecasts'!I108 -> 0 | J108: ='[2]CDCM Volume Forecasts'!J108 -> 14.61924824 | K108: 1158.498151 | L108: 0 | M108: 0 | N108: 3.263473973 | O108: 0 | Q108: 14.61924824 | R108: 1158.498151 | S108: 0 | T108: 0 | U108: 3.263473973 | V108: 0 | X108: 14.61924824 | Y108: 1158.498151 | Z108: 0 | AA108: 0 | AB108: 3.263473973 | AC108: 0 | AE108: 14.61924824 | AF108: 1158.498151 | AG108: 0 | AH108: 0 | AI108: 3.263473973 | AJ108: 0 | AL108: 14.61924824
A109: 82 | C109: > LV Generation Intermittent no RP charge | D109: ='[2]CDCM Volume Forecasts'!D109 -> 0 | E109: ='[2]CDCM Volume Forecasts'!E109 -> 0 | F109: ='[2]CDCM Volume Forecasts'!F109 -> 0 | G109: ='[2]CDCM Volume Forecasts'!G109 -> 0 | H109: ='[2]CDCM Volume Forecasts'!H109 -> 0 | I109: ='[2]CDCM Volume Forecasts'!I109 -> 0 | J109: ='[2]CDCM Volume Forecasts'!J109 -> 0 | K109: 0 | L109: 0 | M109: 0 | N109: 0 | O109: 0 | R109: 0 | S109: 0 | T109: 0 | U109: 0 | V109: 0 | Y109: 0 | Z109: 0 | AA109: 0 | AB109: 0 | AC109: 0 | AF109: 0 | AG109: 0 | AH109: 0 | AI109: 0 | AJ109: 0
A110: 83 | B110: 4 | C110: LV Generation Intermittent no RP charge | D110: ='[2]CDCM Volume Forecasts'!D110 -> 0 | E110: ='[2]CDCM Volume Forecasts'!E110 -> 0 | F110: ='[2]CDCM Volume Forecasts'!F110 -> 0 | G110: ='[2]CDCM Volume Forecasts'!G110 -> 0 | H110: ='[2]CDCM Volume Forecasts'!H110 -> 0 | I110: ='[2]CDCM Volume Forecasts'!I110 -> 0 | J110: ='[2]CDCM Volume Forecasts'!J110 -> 0 | K110: 0 | L110: 0 | M110: 0 | N110: 0 | O110: 0 | R110: 0 | S110: 0 | T110: 0 | U110: 0 | V110: 0 | Y110: 0 | Z110: 0 | AA110: 0 | AB110: 0 | AC110: 0 | AF110: 0 | AG110: 0 | AH110: 0 | AI110: 0 | AJ110: 0
A111: 84 | C111: > LV Generation Non-Intermittent | D111: ='[2]CDCM Volume Forecasts'!D111 -> 0 | E111: ='[2]CDCM Volume Forecasts'!E111 -> 0 | F111: ='[2]CDCM Volume Forecasts'!F111 -> 0 | G111: ='[2]CDCM Volume Forecasts'!G111 -> 0 | H111: ='[2]CDCM Volume Forecasts'!H111 -> 0 | I111: ='[2]CDCM Volume Forecasts'!I111 -> 0 | J111: ='[2]CDCM Volume Forecasts'!J111 -> 0 | K111: 0 | L111: 0 | M111: 0 | N111: 0 | O111: 0 | R111: 0 | S111: 0 | T111: 0 | U111: 0 | V111: 0 | Y111: 0 | Z111: 0 | AA111: 0 | AB111: 0 | AC111: 0 | AF111: 0 | AG111: 0 | AH111: 0 | AI111: 0 | AJ111: 0
A112: 85 | B112: 4 | C112: LV Generation Non-Intermittent | D112: ='[2]CDCM Volume Forecasts'!D112 -> 150.2243503 | E112: ='[2]CDCM Volume Forecasts'!E112 -> 933.0171861 | F112: ='[2]CDCM Volume Forecasts'!F112 -> 1215.977855 | G112: ='[2]CDCM Volume Forecasts'!G112 -> 16.42891438 | H112: ='[2]CDCM Volume Forecasts'!H112 -> 0 | I112: ='[2]CDCM Volume Forecasts'!I112 -> 0 | J112: ='[2]CDCM Volume Forecasts'!J112 -> 631.5636813 | K112: 150.2243503 | L112: 933.0171861 | M112: 1215.977855 | N112: 16.42891438 | O112: 0 | Q112: =IF(J112,((VLOOKUP($B112,$E$7:$AI$16,28)+1)*J112),) -> 631.5636813 | R112: 150.2243503 | S112: 933.0171861 | T112: 1215.977855 | U112: 16.42891438 | V112: 0 | X112: =IF(J112,((VLOOKUP($B112,$E$7:$AI$16,5+24)+1)*Q112),) -> 631.5636813 | Y112: 150.2243503 | Z112: 933.0171861 | AA112: 1215.977855 | AB112: 16.42891438 | AC112: 0 | AE112: =IF(J112,((VLOOKUP($B112,$E$7:$AI$16,6+24)+1)*X112),) -> 631.5636813 | AF112: 150.2243503 | AG112: 933.0171861 | AH112: 1215.977855 | AI112: 16.42891438 | AJ112: 0 | AL112: =IF(J112,((VLOOKUP($B112,$E$7:$AI$16,7+24)+1)*AE112),) -> 631.5636813
A113: 86 | B113: 4 | C113: LDNO LV: LV Generation Non-Intermittent | D113: ='[2]CDCM Volume Forecasts'!D113 -> 0 | E113: ='[2]CDCM Volume Forecasts'!E113 -> 0 | F113: ='[2]CDCM Volume Forecasts'!F113 -> 0 | G113: ='[2]CDCM Volume Forecasts'!G113 -> 0 | H113: ='[2]CDCM Volume Forecasts'!H113 -> 0 | I113: ='[2]CDCM Volume Forecasts'!I113 -> 0 | J113: ='[2]CDCM Volume Forecasts'!J113 -> 0 | K113: 0 | L113: 0 | M113: 0 | N113: 0 | O113: 0 | Q113: 0 | R113: 0 | S113: 0 | T113: 0 | U113: 0 | V113: 0 | X113: 0 | Y113: 0 | Z113: 0 | AA113: 0 | AB113: 0 | AC113: 0 | AE113: 0 | AF113: 0 | AG113: 0 | AH113: 0 | AI113: 0 | AJ113: 0 | AL113: 0
A114: 87 | B114: 4 | C114: LDNO HV: LV Generation Non-Intermittent | D114: ='[2]CDCM Volume Forecasts'!D114 -> 0 | E114: ='[2]CDCM Volume Forecasts'!E114 -> 0 | F114: ='[2]CDCM Volume Forecasts'!F114 -> 0 | G114: ='[2]CDCM Volume Forecasts'!G114 -> 0 | H114: ='[2]CDCM Volume Forecasts'!H114 -> 0 | I114: ='[2]CDCM Volume Forecasts'!I114 -> 0 | J114: ='[2]CDCM Volume Forecasts'!J114 -> 0 | K114: 0 | L114: 0 | M114: 0 | N114: 0 | O114: 0 | Q114: 0 | R114: 0 | S114: 0 | T114: 0 | U114: 0 | V114: 0 | X114: 0 | Y114: 0 | Z114: 0 | AA114: 0 | AB114: 0 | AC114: 0 | AE114: 0 | AF114: 0 | AG114: 0 | AH114: 0 | AI114: 0 | AJ114: 0 | AL114: =IF(J114,((VLOOKUP($B114,$E$7:$AI$16,7+24)+1)*AE114),) -> 0
A115: 88 | C115: > LV Generation Non-Intermittent no RP charge | D115: ='[2]CDCM Volume Forecasts'!D115 -> 0 | E115: ='[2]CDCM Volume Forecasts'!E115 -> 0 | F115: ='[2]CDCM Volume Forecasts'!F115 -> 0 | G115: ='[2]CDCM Volume Forecasts'!G115 -> 0 | H115: ='[2]CDCM Volume Forecasts'!H115 -> 0 | I115: ='[2]CDCM Volume Forecasts'!I115 -> 0 | J115: ='[2]CDCM Volume Forecasts'!J115 -> 0 | K115: 0 | L115: 0 | M115: 0 | N115: 0 | O115: 0 | R115: 0 | S115: 0 | T115: 0 | U115: 0 | V115: 0 | Y115: 0 | Z115: 0 | AA115: 0 | AB115: 0 | AC115: 0 | AF115: 0 | AG115: 0 | AH115: 0 | AI115: 0 | AJ115: 0
A116: 89 | B116: 4 | C116: LV Generation Non-Intermittent no RP charge | D116: ='[2]CDCM Volume Forecasts'!D116 -> 0 | E116: ='[2]CDCM Volume Forecasts'!E116 -> 0 | F116: ='[2]CDCM Volume Forecasts'!F116 -> 0 | G116: ='[2]CDCM Volume Forecasts'!G116 -> 0 | H116: ='[2]CDCM Volume Forecasts'!H116 -> 0 | I116: ='[2]CDCM Volume Forecasts'!I116 -> 0 | J116: ='[2]CDCM Volume Forecasts'!J116 -> 0 | K116: 0 | L116: 0 | M116: 0 | N116: 0 | O116: 0 | R116: 0 | S116: 0 | T116: 0 | U116: 0 | V116: 0 | Y116: 0 | Z116: 0 | AA116: 0 | AB116: 0 | AC116: 0 | AF116: 0 | AG116: 0 | AH116: 0 | AI116: 0 | AJ116: 0
A117: 90 | C117: > LV Sub Generation Intermittent | D117: ='[2]CDCM Volume Forecasts'!D117 -> 0 | E117: ='[2]CDCM Volume Forecasts'!E117 -> 0 | F117: ='[2]CDCM Volume Forecasts'!F117 -> 0 | G117: ='[2]CDCM Volume Forecasts'!G117 -> 0 | H117: ='[2]CDCM Volume Forecasts'!H117 -> 0 | I117: ='[2]CDCM Volume Forecasts'!I117 -> 0 | J117: ='[2]CDCM Volume Forecasts'!J117 -> 0 | K117: 0 | L117: 0 | M117: 0 | N117: 0 | O117: 0 | R117: 0 | S117: 0 | T117: 0 | U117: 0 | V117: 0 | Y117: 0 | Z117: 0 | AA117: 0 | AB117: 0 | AC117: 0 | AF117: 0 | AG117: 0 | AH117: 0 | AI117: 0 | AJ117: 0
A118: 91 | B118: 4 | C118: LV Sub Generation Intermittent | D118: ='[2]CDCM Volume Forecasts'!D118 -> 13040.7426 | E118: ='[2]CDCM Volume Forecasts'!E118 -> 0 | F118: ='[2]CDCM Volume Forecasts'!F118 -> 0 | G118: ='[2]CDCM Volume Forecasts'!G118 -> 121.638113 | H118: ='[2]CDCM Volume Forecasts'!H118 -> 0 | I118: ='[2]CDCM Volume Forecasts'!I118 -> 0 | J118: ='[2]CDCM Volume Forecasts'!J118 -> 1632.622219 | K118: 13040.7426 | L118: 0 | M118: 0 | N118: 121.638113 | O118: 0 | Q118: =IF(J118,((VLOOKUP($B118,$E$7:$AI$16,28)+1)*J118),) -> 1632.622219 | R118: 13040.7426 | S118: 0 | T118: 0 | U118: 121.638113 | V118: 0 | X118: =IF(J118,((VLOOKUP($B118,$E$7:$AI$16,5+24)+1)*Q118),) -> 1632.622219 | Y118: 13040.7426 | Z118: 0 | AA118: 0 | AB118: 121.638113 | AC118: 0 | AE118: =IF(J118,((VLOOKUP($B118,$E$7:$AI$16,6+24)+1)*X118),) -> 1632.622219 | AF118: 13040.7426 | AG118: 0 | AH118: 0 | AI118: 121.638113 | AJ118: 0 | AL118: =IF(J118,((VLOOKUP($B118,$E$7:$AI$16,7+24)+1)*AE118),) -> 1632.622219
A119: 92 | B119: 4 | C119: LDNO HV: LV Sub Generation Intermittent | D119: ='[2]CDCM Volume Forecasts'!D119 -> 0 | E119: ='[2]CDCM Volume Forecasts'!E119 -> 0 | F119: ='[2]CDCM Volume Forecasts'!F119 -> 0 | G119: ='[2]CDCM Volume Forecasts'!G119 -> 0 | H119: ='[2]CDCM Volume Forecasts'!H119 -> 0 | I119: ='[2]CDCM Volume Forecasts'!I119 -> 0 | J119: ='[2]CDCM Volume Forecasts'!J119 -> 0 | K119: 0 | L119: 0 | M119: 0 | N119: 0 | O119: 0 | Q119: 0 | R119: 0 | S119: 0 | T119: 0 | U119: 0 | V119: 0 | X119: 0 | Y119: 0 | Z119: 0 | AA119: 0 | AB119: 0 | AC119: 0 | AE119: 0 | AF119: 0 | AG119: 0 | AH119: 0 | AI119: 0 | AJ119: 0 | AL119: 0
A120: 93 | C120: > LV Sub Generation Intermittent no RP charge | D120: ='[2]CDCM Volume Forecasts'!D120 -> 0 | E120: ='[2]CDCM Volume Forecasts'!E120 -> 0 | F120: ='[2]CDCM Volume Forecasts'!F120 -> 0 | G120: ='[2]CDCM Volume Forecasts'!G120 -> 0 | H120: ='[2]CDCM Volume Forecasts'!H120 -> 0 | I120: ='[2]CDCM Volume Forecasts'!I120 -> 0 | J120: ='[2]CDCM Volume Forecasts'!J120 -> 0 | K120: 0 | L120: 0 | M120: 0 | N120: 0 | O120: 0 | R120: 0 | S120: 0 | T120: 0 | U120: 0 | V120: 0 | Y120: 0 | Z120: 0 | AA120: 0 | AB120: 0 | AC120: 0 | AF120: 0 | AG120: 0 | AH120: 0 | AI120: 0 | AJ120: 0
A121: 94 | B121: 4 | C121: LV Sub Generation Intermittent no RP charge | D121: ='[2]CDCM Volume Forecasts'!D121 -> 0 | E121: ='[2]CDCM Volume Forecasts'!E121 -> 0 | F121: ='[2]CDCM Volume Forecasts'!F121 -> 0 | G121: ='[2]CDCM Volume Forecasts'!G121 -> 0 | H121: ='[2]CDCM Volume Forecasts'!H121 -> 0 | I121: ='[2]CDCM Volume Forecasts'!I121 -> 0 | J121: ='[2]CDCM Volume Forecasts'!J121 -> 0 | K121: 0 | L121: 0 | M121: 0 | N121: 0 | O121: 0 | R121: 0 | S121: 0 | T121: 0 | U121: 0 | V121: 0 | Y121: 0 | Z121: 0 | AA121: 0 | AB121: 0 | AC121: 0 | AF121: 0 | AG121: 0 | AH121: 0 | AI121: 0 | AJ121: 0
A122: 95 | C122: > LV Sub Generation Non-Intermittent | D122: ='[2]CDCM Volume Forecasts'!D122 -> 0 | E122: ='[2]CDCM Volume Forecasts'!E122 -> 0 | F122: ='[2]CDCM Volume Forecasts'!F122 -> 0 | G122: ='[2]CDCM Volume Forecasts'!G122 -> 0 | H122: ='[2]CDCM Volume Forecasts'!H122 -> 0 | I122: ='[2]CDCM Volume Forecasts'!I122 -> 0 | J122: ='[2]CDCM Volume Forecasts'!J122 -> 0 | K122: 0 | L122: 0 | M122: 0 | N122: 0 | O122: 0 | R122: 0 | S122: 0 | T122: 0 | U122: 0 | V122: 0 | Y122: 0 | Z122: 0 | AA122: 0 | AB122: 0 | AC122: 0 | AF122: 0 | AG122: 0 | AH122: 0 | AI122: 0 | AJ122: 0
A123: 96 | B123: 4 | C123: LV Sub Generation Non-Intermittent | D123: ='[2]CDCM Volume Forecasts'!D123 -> 262.7783407 | E123: ='[2]CDCM Volume Forecasts'!E123 -> 1416.430283 | F123: ='[2]CDCM Volume Forecasts'!F123 -> 2413.773213 | G123: ='[2]CDCM Volume Forecasts'!G123 -> 12.47895 | H123: ='[2]CDCM Volume Forecasts'!H123 -> 0 | I123: ='[2]CDCM Volume Forecasts'!I123 -> 0 | J123: ='[2]CDCM Volume Forecasts'!J123 -> 606.8858033 | K123: 262.7783407 | L123: 1416.430283 | M123: 2413.773213 | N123: 12.47895 | O123: 0 | Q123: =IF(J123,((VLOOKUP($B123,$E$7:$AI$16,28)+1)*J123),) -> 606.8858033 | R123: 262.7783407 | S123: 1416.430283 | T123: 2413.773213 | U123: 12.47895 | V123: 0 | X123: =IF(J123,((VLOOKUP($B123,$E$7:$AI$16,5+24)+1)*Q123),) -> 606.8858033 | Y123: 262.7783407 | Z123: 1416.430283 | AA123: 2413.773213 | AB123: 12.47895 | AC123: 0 | AE123: =IF(J123,((VLOOKUP($B123,$E$7:$AI$16,6+24)+1)*X123),) -> 606.8858033 | AF123: 262.7783407 | AG123: 1416.430283 | AH123: 2413.773213 | AI123: 12.47895 | AJ123: 0 | AL123: =IF(J123,((VLOOKUP($B123,$E$7:$AI$16,7+24)+1)*AE123),) -> 606.8858033
A124: 97 | B124: 4 | C124: LDNO HV: LV Sub Generation Non-Intermittent | D124: ='[2]CDCM Volume Forecasts'!D124 -> 0 | E124: ='[2]CDCM Volume Forecasts'!E124 -> 0 | F124: ='[2]CDCM Volume Forecasts'!F124 -> 0 | G124: ='[2]CDCM Volume Forecasts'!G124 -> 0 | H124: ='[2]CDCM Volume Forecasts'!H124 -> 0 | I124: ='[2]CDCM Volume Forecasts'!I124 -> 0 | J124: ='[2]CDCM Volume Forecasts'!J124 -> 0 | K124: 0 | L124: 0 | M124: 0 | N124: 0 | O124: 0 | Q124: 0 | R124: 0 | S124: 0 | T124: 0 | U124: 0 | V124: 0 | X124: 0 | Y124: 0 | Z124: 0 | AA124: 0 | AB124: 0 | AC124: 0 | AE124: 0 | AF124: 0 | AG124: 0 | AH124: 0 | AI124: 0 | AJ124: 0 | AL124: 0
A125: 98 | C125: > LV Sub Generation Non-Intermittent no RP charge | D125: ='[2]CDCM Volume Forecasts'!D125 -> 0 | E125: ='[2]CDCM Volume Forecasts'!E125 -> 0 | F125: ='[2]CDCM Volume Forecasts'!F125 -> 0 | G125: ='[2]CDCM Volume Forecasts'!G125 -> 0 | H125: ='[2]CDCM Volume Forecasts'!H125 -> 0 | I125: ='[2]CDCM Volume Forecasts'!I125 -> 0 | J125: ='[2]CDCM Volume Forecasts'!J125 -> 0 | K125: 0 | L125: 0 | M125: 0 | N125: 0 | O125: 0 | R125: 0 | S125: 0 | T125: 0 | U125: 0 | V125: 0 | Y125: 0 | Z125: 0 | AA125: 0 | AB125: 0 | AC125: 0 | AF125: 0 | AG125: 0 | AH125: 0 | AI125: 0 | AJ125: 0
A126: 99 | B126: 4 | C126: LV Sub Generation Non-Intermittent no RP charge | D126: ='[2]CDCM Volume Forecasts'!D126 -> 0 | E126: ='[2]CDCM Volume Forecasts'!E126 -> 0 | F126: ='[2]CDCM Volume Forecasts'!F126 -> 0 | G126: ='[2]CDCM Volume Forecasts'!G126 -> 0 | H126: ='[2]CDCM Volume Forecasts'!H126 -> 0 | I126: ='[2]CDCM Volume Forecasts'!I126 -> 0 | J126: ='[2]CDCM Volume Forecasts'!J126 -> 0 | K126: 0 | L126: 0 | M126: 0 | N126: 0 | O126: 0 | R126: 0 | S126: 0 | T126: 0 | U126: 0 | V126: 0 | Y126: 0 | Z126: 0 | AA126: 0 | AB126: 0 | AC126: 0 | AF126: 0 | AG126: 0 | AH126: 0 | AI126: 0 | AJ126: 0
A127: 100 | C127: > HV Generation Intermittent | D127: ='[2]CDCM Volume Forecasts'!D127 -> 0 | E127: ='[2]CDCM Volume Forecasts'!E127 -> 0 | F127: ='[2]CDCM Volume Forecasts'!F127 -> 0 | G127: ='[2]CDCM Volume Forecasts'!G127 -> 0 | H127: ='[2]CDCM Volume Forecasts'!H127 -> 0 | I127: ='[2]CDCM Volume Forecasts'!I127 -> 0 | J127: ='[2]CDCM Volume Forecasts'!J127 -> 0 | K127: 0 | L127: 0 | M127: 0 | N127: 0 | O127: 0 | R127: 0 | S127: 0 | T127: 0 | U127: 0 | V127: 0 | Y127: 0 | Z127: 0 | AA127: 0 | AB127: 0 | AC127: 0 | AF127: 0 | AG127: 0 | AH127: 0 | AI127: 0 | AJ127: 0
A128: 101 | B128: 4 | C128: HV Generation Intermittent | D128: ='[2]CDCM Volume Forecasts'!D128 -> 408798.588 | E128: ='[2]CDCM Volume Forecasts'!E128 -> 0 | F128: ='[2]CDCM Volume Forecasts'!F128 -> 0 | G128: ='[2]CDCM Volume Forecasts'!G128 -> 237.9971753 | H128: ='[2]CDCM Volume Forecasts'!H128 -> 0 | I128: ='[2]CDCM Volume Forecasts'!I128 -> 0 | J128: ='[2]CDCM Volume Forecasts'!J128 -> 3870.45376 | K128: 408798.588 | L128: 0 | M128: 0 | N128: 237.9971753 | O128: 0 | Q128: =IF(J128,((VLOOKUP($B128,$E$7:$AI$16,28)+1)*J128),) -> 3870.45376 | R128: 408798.588 | S128: 0 | T128: 0 | U128: 237.9971753 | V128: 0 | X128: =IF(J128,((VLOOKUP($B128,$E$7:$AI$16,5+24)+1)*Q128),) -> 3870.45376 | Y128: 408798.588 | Z128: 0 | AA128: 0 | AB128: 237.9971753 | AC128: 0 | AE128: =IF(J128,((VLOOKUP($B128,$E$7:$AI$16,6+24)+1)*X128),) -> 3870.45376 | AF128: 408798.588 | AG128: 0 | AH128: 0 | AI128: 237.9971753 | AJ128: 0 | AL128: =IF(J128,((VLOOKUP($B128,$E$7:$AI$16,7+24)+1)*AE128),) -> 3870.45376
A129: 102 | B129: 4 | C129: LDNO HV: HV Generation Intermittent | D129: ='[2]CDCM Volume Forecasts'!D129 -> 28.96531895 | E129: ='[2]CDCM Volume Forecasts'!E129 -> 0 | F129: ='[2]CDCM Volume Forecasts'!F129 -> 0 | G129: ='[2]CDCM Volume Forecasts'!G129 -> 1.971024658 | H129: ='[2]CDCM Volume Forecasts'!H129 -> 0 | I129: ='[2]CDCM Volume Forecasts'!I129 -> 0 | J129: ='[2]CDCM Volume Forecasts'!J129 -> 0 | K129: 28.96531895 | L129: 0 | M129: 0 | N129: 1.971024658 | O129: 0 | Q129: 0 | R129: 28.96531895 | S129: 0 | T129: 0 | U129: 1.971024658 | V129: 0 | X129: 0 | Y129: 28.96531895 | Z129: 0 | AA129: 0 | AB129: 1.971024658 | AC129: 0 | AE129: 0 | AF129: 28.96531895 | AG129: 0 | AH129: 0 | AI129: 1.971024658 | AJ129: 0 | AL129: 0
A130: 103 | C130: > HV Generation Intermittent no RP charge | D130: ='[2]CDCM Volume Forecasts'!D130 -> 0 | E130: ='[2]CDCM Volume Forecasts'!E130 -> 0 | F130: ='[2]CDCM Volume Forecasts'!F130 -> 0 | G130: ='[2]CDCM Volume Forecasts'!G130 -> 0 | H130: ='[2]CDCM Volume Forecasts'!H130 -> 0 | I130: ='[2]CDCM Volume Forecasts'!I130 -> 0 | J130: ='[2]CDCM Volume Forecasts'!J130 -> 0 | K130: 0 | L130: 0 | M130: 0 | N130: 0 | O130: 0 | R130: 0 | S130: 0 | T130: 0 | U130: 0 | V130: 0 | Y130: 0 | Z130: 0 | AA130: 0 | AB130: 0 | AC130: 0 | AF130: 0 | AG130: 0 | AH130: 0 | AI130: 0 | AJ130: 0
A131: 104 | B131: 4 | C131: HV Generation Intermittent no RP charge | D131: ='[2]CDCM Volume Forecasts'!D131 -> 0 | E131: ='[2]CDCM Volume Forecasts'!E131 -> 0 | F131: ='[2]CDCM Volume Forecasts'!F131 -> 0 | G131: ='[2]CDCM Volume Forecasts'!G131 -> 0 | H131: ='[2]CDCM Volume Forecasts'!H131 -> 0 | I131: ='[2]CDCM Volume Forecasts'!I131 -> 0 | J131: ='[2]CDCM Volume Forecasts'!J131 -> 0 | K131: 0 | L131: 0 | M131: 0 | N131: 0 | O131: 0 | R131: 0 | S131: 0 | T131: 0 | U131: 0 | V131: 0 | Y131: 0 | Z131: 0 | AA131: 0 | AB131: 0 | AC131: 0 | AF131: 0 | AG131: 0 | AH131: 0 | AI131: 0 | AJ131: 0
A132: 105 | C132: > HV Generation Non-Intermittent | D132: ='[2]CDCM Volume Forecasts'!D132 -> 0 | E132: ='[2]CDCM Volume Forecasts'!E132 -> 0 | F132: ='[2]CDCM Volume Forecasts'!F132 -> 0 | G132: ='[2]CDCM Volume Forecasts'!G132 -> 0 | H132: ='[2]CDCM Volume Forecasts'!H132 -> 0 | I132: ='[2]CDCM Volume Forecasts'!I132 -> 0 | J132: ='[2]CDCM Volume Forecasts'!J132 -> 0 | K132: 0 | L132: 0 | M132: 0 | N132: 0 | O132: 0 | R132: 0 | S132: 0 | T132: 0 | U132: 0 | V132: 0 | Y132: 0 | Z132: 0 | AA132: 0 | AB132: 0 | AC132: 0 | AF132: 0 | AG132: 0 | AH132: 0 | AI132: 0 | AJ132: 0
A133: 106 | B133: 4 | C133: HV Generation Non-Intermittent | D133: ='[2]CDCM Volume Forecasts'!D133 -> 18175.24295 | E133: ='[2]CDCM Volume Forecasts'!E133 -> 96563.40696 | F133: ='[2]CDCM Volume Forecasts'!F133 -> 133398.7956 | G133: ='[2]CDCM Volume Forecasts'!G133 -> 70.94326438 | H133: ='[2]CDCM Volume Forecasts'!H133 -> 0 | I133: ='[2]CDCM Volume Forecasts'!I133 -> 0 | J133: ='[2]CDCM Volume Forecasts'!J133 -> 2452.500356 | K133: 18175.24295 | L133: 96563.40696 | M133: 133398.7956 | N133: 70.94326438 | O133: 0 | Q133: =IF(J133,((VLOOKUP($B133,$E$7:$AI$16,28)+1)*J133),) -> 2452.500356 | R133: 18175.24295 | S133: 96563.40696 | T133: 133398.7956 | U133: 70.94326438 | V133: 0 | X133: =IF(J133,((VLOOKUP($B133,$E$7:$AI$16,5+24)+1)*Q133),) -> 2452.500356 | Y133: 18175.24295 | Z133: 96563.40696 | AA133: 133398.7956 | AB133: 70.94326438 | AC133: 0 | AE133: =IF(J133,((VLOOKUP($B133,$E$7:$AI$16,6+24)+1)*X133),) -> 2452.500356 | AF133: 18175.24295 | AG133: 96563.40696 | AH133: 133398.7956 | AI133: 70.94326438 | AJ133: 0 | AL133: =IF(J133,((VLOOKUP($B133,$E$7:$AI$16,7+24)+1)*AE133),) -> 2452.500356
A134: 107 | B134: 4 | C134: LDNO HV: HV Generation Non-Intermittent | D134: ='[2]CDCM Volume Forecasts'!D134 -> 0.06966492239 | E134: ='[2]CDCM Volume Forecasts'!E134 -> 0.8885610131 | F134: ='[2]CDCM Volume Forecasts'!F134 -> 2.95692374 | G134: ='[2]CDCM Volume Forecasts'!G134 -> 1.338213699 | H134: ='[2]CDCM Volume Forecasts'!H134 -> 0 | I134: ='[2]CDCM Volume Forecasts'!I134 -> 0 | J134: ='[2]CDCM Volume Forecasts'!J134 -> 0.9497207172 | K134: 0.06966492239 | L134: 0.8885610131 | M134: 2.95692374 | N134: 1.338213699 | O134: 0 | Q134: 0.9497207172 | R134: 0.06966492239 | S134: 0.8885610131 | T134: 2.95692374 | U134: 1.338213699 | V134: 0 | X134: 0.9497207172 | Y134: 0.06966492239 | Z134: 0.8885610131 | AA134: 2.95692374 | AB134: 1.338213699 | AC134: 0 | AE134: 0.9497207172 | AF134: 0.06966492239 | AG134: 0.8885610131 | AH134: 2.95692374 | AI134: 1.338213699 | AJ134: 0 | AL134: 0.9497207172
A135: 108 | C135: > HV Generation Non-Intermittent no RP charge | D135: ='[2]CDCM Volume Forecasts'!D135 -> 0 | E135: ='[2]CDCM Volume Forecasts'!E135 -> 0 | F135: ='[2]CDCM Volume Forecasts'!F135 -> 0 | G135: ='[2]CDCM Volume Forecasts'!G135 -> 0 | H135: ='[2]CDCM Volume Forecasts'!H135 -> 0 | I135: ='[2]CDCM Volume Forecasts'!I135 -> 0 | J135: ='[2]CDCM Volume Forecasts'!J135 -> 0 | K135: 0 | L135: 0 | M135: 0 | N135: 0 | O135: 0 | R135: 0 | S135: 0 | T135: 0 | U135: 0 | V135: 0 | Y135: 0 | Z135: 0 | AA135: 0 | AB135: 0 | AC135: 0 | AF135: 0 | AG135: 0 | AH135: 0 | AI135: 0 | AJ135: 0
A136: 109 | B136: 4 | C136: HV Generation Non-Intermittent no RP charge | D136: ='[2]CDCM Volume Forecasts'!D136 -> 0 | E136: ='[2]CDCM Volume Forecasts'!E136 -> 0 | F136: ='[2]CDCM Volume Forecasts'!F136 -> 0 | G136: ='[2]CDCM Volume Forecasts'!G136 -> 0 | H136: ='[2]CDCM Volume Forecasts'!H136 -> 0 | I136: ='[2]CDCM Volume Forecasts'!I136 -> 0 | J136: ='[2]CDCM Volume Forecasts'!J136 -> 0 | K136: 0 | L136: 0 | M136: 0 | N136: 0 | O136: 0 | R136: 0 | S136: 0 | T136: 0 | U136: 0 | V136: 0 | Y136: 0 | Z136: 0 | AA136: 0 | AB136: 0 | AC136: 0 | AF136: 0 | AG136: 0 | AH136: 0 | AI136: 0 | AJ136: 0

Sheet CDCM Timebands
B2: CDCM Timebands
C4: 2018/19
C5: WD (incl. bank holidays) | D5: WE | E5: 2019/20 | F5: 2020/21 | G5: 2021/22 | H5: 2022/23
B6: Red | C6: ='[2]CDCM Timebands'!C6 -> 17:00 to 19:00 | E6: ='[2]CDCM Timebands'!E6 -> No Change | F6: ='[2]CDCM Timebands'!F6 -> No Change | G6: ='[2]CDCM Timebands'!G6 -> No Change | H6: ='[2]CDCM Timebands'!H6 -> No Change
E7: ='[2]CDCM Timebands'!E7 -> 0 | F7: ='[2]CDCM Timebands'!F7 -> 0 | G7: ='[2]CDCM Timebands'!G7 -> 0 | H7: ='[2]CDCM Timebands'!H7 -> 0
B8: Amber | C8: ='[2]CDCM Timebands'!C8 -> 07:30 to 17:00 | D8: ='[2]CDCM Timebands'!D8 -> 16:30 to 19:30 | E8: ='[2]CDCM Timebands'!E8 -> 0 | F8: ='[2]CDCM Timebands'!F8 -> 0 | G8: ='[2]CDCM Timebands'!G8 -> 0 | H8: ='[2]CDCM Timebands'!H8 -> 0
C9: ='[2]CDCM Timebands'!C9 -> 19:00 to 21:30 | E9: ='[2]CDCM Timebands'!E9 -> 0 | F9: ='[2]CDCM Timebands'!F9 -> 0 | G9: ='[2]CDCM Timebands'!G9 -> 0 | H9: ='[2]CDCM Timebands'!H9 -> 0
E10: ='[2]CDCM Timebands'!E10 -> 0 | F10: ='[2]CDCM Timebands'!F10 -> 0 | G10: ='[2]CDCM Timebands'!G10 -> 0 | H10: ='[2]CDCM Timebands'!H10 -> 0
B11: Green | C11: ='[2]CDCM Timebands'!C11 -> 00:00 to 07:30 | D11: ='[2]CDCM Timebands'!D11 -> 00:00 to 16:30 | E11: ='[2]CDCM Timebands'!E11 -> 0 | F11: ='[2]CDCM Timebands'!F11 -> 0 | G11: ='[2]CDCM Timebands'!G11 -> 0 | H11: ='[2]CDCM Timebands'!H11 -> 0
C12: ='[2]CDCM Timebands'!C12 -> 21:30 to 24:00 | D12: ='[2]CDCM Timebands'!D12 -> 19:30 to 24:00 | E12: ='[2]CDCM Timebands'!E12 -> 0 | F12: ='[2]CDCM Timebands'!F12 -> 0 | G12: ='[2]CDCM Timebands'!G12 -> 0 | H12: ='[2]CDCM Timebands'!H12 -> 0
C14: 2018/19
C15: WD (incl. bank holidays) Nov to Feb | D15: WD (incl. bank holidays) Mar to Oct | E15: WE | F15: 2019/20 | G15: 2020/21 | H15: 2021/22 | I15: 2022/23
B16: Black | C16: ='[2]CDCM Timebands'!C16 -> 17:00 to 19:00 | F16: ='[2]CDCM Timebands'!F16 -> No Change | G16: ='[2]CDCM Timebands'!G16 -> No Change | H16: ='[2]CDCM Timebands'!H16 -> No Change | I16: ='[2]CDCM Timebands'!I16 -> No Change
F17: ='[2]CDCM Timebands'!F17 -> 0 | G17: ='[2]CDCM Timebands'!G17 -> 0 | H17: ='[2]CDCM Timebands'!H17 -> 0 | I17: ='[2]CDCM Timebands'!I17 -> 0
B18: Yellow | C18: ='[2]CDCM Timebands'!C18 -> 07:30 to 17:00 | D18: ='[2]CDCM Timebands'!D18 -> 07:30 to 21:30 | E18: ='[2]CDCM Timebands'!E18 -> 16:30 to 19:30 | F18: ='[2]CDCM Timebands'!F18 -> 0 | G18: ='[2]CDCM Timebands'!G18 -> 0 | H18: ='[2]CDCM Timebands'!H18 -> 0 | I18: ='[2]CDCM Timebands'!I18 -> 0
C19: ='[2]CDCM Timebands'!C19 -> 19:00 to 21:30 | F19: ='[2]CDCM Timebands'!F19 -> 0 | G19: ='[2]CDCM Timebands'!G19 -> 0 | H19: ='[2]CDCM Timebands'!H19 -> 0 | I19: ='[2]CDCM Timebands'!I19 -> 0
F20: ='[2]CDCM Timebands'!F20 -> 0 | G20: ='[2]CDCM Timebands'!G20 -> 0 | H20: ='[2]CDCM Timebands'!H20 -> 0 | I20: ='[2]CDCM Timebands'!I20 -> 0
B21: Green | C21: ='[2]CDCM Timebands'!C21 -> 00:00 to 07:30 | D21: ='[2]CDCM Timebands'!D21 -> 00:00 to 07:30 | E21: ='[2]CDCM Timebands'!E21 -> 00:00 to 16:30 | F21: ='[2]CDCM Timebands'!F21 -> 0 | G21: ='[2]CDCM Timebands'!G21 -> 0 | H21: ='[2]CDCM Timebands'!H21 -> 0 | I21: ='[2]CDCM Timebands'!I21 -> 0
C22: ='[2]CDCM Timebands'!C22 -> 21:30 to 24:00 | D22: ='[2]CDCM Timebands'!D22 -> 21:30 to 24:00 | E22: ='[2]CDCM Timebands'!E22 -> 19:30 to 24:00 | F22: ='[2]CDCM Timebands'!F22 -> 0 | G22: ='[2]CDCM Timebands'!G22 -> 0 | H22: ='[2]CDCM Timebands'!H22 -> 0 | I22: ='[2]CDCM Timebands'!I22 -> 0

Sheet (Y)
A1: Input data (Y)
A4: 1000. Company, charging year, data version
B6: Company | C6: Year | D6: Version
A7: Company, charging year, data version | B7: =VLOOKUP(Vlookup!B7,'CDCM Forecast Data'!$A$14:$I$271,5,FALSE) -> 0 | C7: =VLOOKUP(Vlookup!C7,'CDCM Forecast Data'!$A$14:$I$271,5,FALSE) -> 0 | D7: =VLOOKUP(Vlookup!D7,'CDCM Forecast Data'!$A$14:$I$271,5,FALSE) -> 0
A9: 1010. Financial and general assumptions
A11: Sources: financial assumptions; calendar; network model.
A12: These financial assumptions determine the annuity rate applied to convert the asset values of the network model into an annual charge.
B13: Rate of return | C13: Annualisation period (years) | D13: Annuity proportion for customer-contributed assets | E13: Power factor | F13: Days in the charging period
A14: Financial and general assumptions | B14: =VLOOKUP(Vlookup!B14,'CDCM Forecast Data'!$A$14:$I$271,5,FALSE) -> 0.0421 | C14: =VLOOKUP(Vlookup!C14,'CDCM Forecast Data'!$A$14:$I$271,5,FALSE) -> 40 | E14: =VLOOKUP(Vlookup!E14,'CDCM Forecast Data'!$A$14:$I$271,5,FALSE) -> 0.95 | F14: =VLOOKUP(Vlookup!F14,'CDCM Forecast Data'!$A$14:$I$271,5,FALSE) -> 365
A16: 1017. Diversity allowance between top and bottom of network level
A18: Source: operational data analysis and/or network model.
A19: The diversity figure against GSP is the diversity between GSP Group (the whole system) and individual GSPs.
A20: The diversity figure against 132kV is the diversity between GSPs (the top of the 132kV network) and 132kV/EHV bulk supply points (the bottom of the 132kV network).
A21: The diversity figure against EHV is the diversity between 132kV/EHV bulk supply points (the top of the EHV network) and EHV/HV primary substations (the bottom of the EHV network).
A22: The diversity figure against HV is the diversity between EHV/HV primary substations (the top of the HV network) and HV/LV substations (the bottom of the HV network).
B23: Diversity allowance between top and bottom of network level
A24: GSPs | B24: =VLOOKUP(Vlookup!B24,'CDCM Forecast Data'!$A$14:$I$271,5,FALSE) -> 0.022
A25: 132kV | B25: =VLOOKUP(Vlookup!B25,'CDCM Forecast Data'!$A$14:$I$271,5,FALSE) -> 0.031
A26: 132kV/EHV
A27: EHV | B27: =VLOOKUP(Vlookup!B27,'CDCM Forecast Data'!$A$14:$I$271,5,FALSE) -> 0.075
A28: EHV/HV
A29: HV | B29: =VLOOKUP(Vlookup!B29,'CDCM Forecast Data'!$A$14:$I$271,5,FALSE) -> 0.37
A30: HV/LV
A31: LV circuits
A33: 1018. Proportion of relevant load going through 132kV/HV direct transformation
B35: 132kV/HV
A36: EHV/HV | B36: =VLOOKUP(Vlookup!B36,'CDCM Forecast Data'!$A$14:$I$271,5,FALSE) -> 0
A38: 1019. Network model GSP peak demand (MW)
B40: Network model GSP peak demand (MW)
A41: Network model GSP peak demand (MW) | B41: =VLOOKUP(Vlookup!B41,'CDCM Forecast Data'!$A$14:$I$271,5,FALSE) -> 500
A43: 1020. Gross asset cost by network level (£)
B45: Gross assets £
A46: 132kV | B46: =VLOOKUP(Vlookup!B46,'CDCM Forecast Data'!$A$14:$I$271,5,FALSE) -> 118377610.4
A47: 132kV/EHV | B47: =VLOOKUP(Vlookup!B47,'CDCM Forecast Data'!$A$14:$I$271,5,FALSE) -> 16766915.87
A48: EHV | B48: =VLOOKUP(Vlookup!B48,'CDCM Forecast Data'!$A$14:$I$271,5,FALSE) -> 42328028.39
A49: EHV/HV | B49: =VLOOKUP(Vlookup!B49,'CDCM Forecast Data'!$A$14:$I$271,5,FALSE) -> 42541624.1
A50: 132kV/HV | B50: =VLOOKUP(Vlookup!B50,'CDCM Forecast Data'!$A$14:$I$271,5,FALSE) -> 0
A51: HV | B51: =VLOOKUP(Vlookup!B51,'CDCM Forecast Data'!$A$14:$I$271,5,FALSE) -> 151508051.3
A52: HV/LV | B52: =VLOOKUP(Vlookup!B52,'CDCM Forecast Data'!$A$14:$I$271,5,FALSE) -> 64564069.57
A53: LV circuits | B53: =VLOOKUP(Vlookup!B53,'CDCM Forecast Data'!$A$14:$I$271,5,FALSE) -> 138666573.7
A55: 1022. LV service model asset cost (£)
B57: LV service model 1 | C57: LV service model 2 | D57: LV service model 3 | E57: LV service model 4 | F57: LV service model 5 | G57: LV service model 6 | H57: LV service model 7 | I57: LV service model 8
A58: LV service model asset cost (£) | B58: =VLOOKUP(Vlookup!B58,'CDCM Forecast Data'!$A$14:$I$271,5,FALSE) -> 5423.972352 | C58: =VLOOKUP(Vlookup!C58,'CDCM Forecast Data'!$A$14:$I$271,5,FALSE) -> 610.1426613 | D58: =VLOOKUP(Vlookup!D58,'CDCM Forecast Data'!$A$14:$I$271,5,FALSE) -> 742.8443432 | E58: =VLOOKUP(Vlookup!E58,'CDCM Forecast Data'!$A$14:$I$271,5,FALSE) -> 550.9081976 | F58: =VLOOKUP(Vlookup!F58,'CDCM Forecast Data'!$A$14:$I$271,5,FALSE) -> 1252.336934 | G58: =VLOOKUP(Vlookup!G58,'CDCM Forecast Data'!$A$14:$I$271,5,FALSE) -> 964.5662989 | H58: =VLOOKUP(Vlookup!H58,'CDCM Forecast Data'!$A$14:$I$271,5,FALSE) -> 0 | I58: =VLOOKUP(Vlookup!I58,'CDCM Forecast Data'!$A$14:$I$271,5,FALSE) -> 504.4738018
A60: 1023. HV service model asset cost (£)
B62: HV service model 1 | C62: HV service model 2 | D62: HV service model 3 | E62: HV service model 4 | F62: HV service model 5
A63: HV service model asset cost (£) | B63: =VLOOKUP(Vlookup!B63,'CDCM Forecast Data'!$A$14:$I$271,5,FALSE) -> 9569.616935 | C63: =VLOOKUP(Vlookup!C63,'CDCM Forecast Data'!$A$14:$I$271,5,FALSE) -> 4613.835597 | D63: =VLOOKUP(Vlookup!D63,'CDCM Forecast Data'!$A$14:$I$271,5,FALSE) -> 0 | E63: =VLOOKUP(Vlookup!E63,'CDCM Forecast Data'!$A$14:$I$271,5,FALSE) -> 0 | F63: =VLOOKUP(Vlookup!F63,'CDCM Forecast Data'!$A$14:$I$271,5,FALSE) -> 0
A65: 1025. Matrix of applicability of LV service models to tariffs with fixed charges
B66: 2 | C66: =B66+1 -> 3 | D66: 4 | E66: 5 | F66: 6 | G66: 7 | H66: 8 | I66: 9
B67: LV service model 1 | C67: LV service model 2 | D67: LV service model 3 | E67: LV service model 4 | F67: LV service model 5 | G67: LV service model 6 | H67: LV service model 7 | I67: LV service model 8
A68: Domestic Unrestricted | B68: =VLOOKUP($A68,'Mat of App'!$B$7:$AP$43,B$66,FALSE) -> 0.05 | C68: =VLOOKUP($A68,'Mat of App'!$B$7:$AP$43,C$66,FALSE) -> 0 | D68: =VLOOKUP($A68,'Mat of App'!$B$7:$AP$43,D$66,FALSE) -> 0 | E68: =VLOOKUP($A68,'Mat of App'!$B$7:$AP$43,E$66,FALSE) -> 0 | F68: =VLOOKUP($A68,'Mat of App'!$B$7:$AP$43,F$66,FALSE) -> 0 | G68: =VLOOKUP($A68,'Mat of App'!$B$7:$AP$43,G$66,FALSE) -> 0 | H68: =VLOOKUP($A68,'Mat of App'!$B$7:$AP$43,H$66,FALSE) -> 0 | I68: =VLOOKUP($A68,'Mat of App'!$B$7:$AP$43,I$66,FALSE) -> 0
A69: Domestic Two Rate | B69: =VLOOKUP($A69,'Mat of App'!$B$7:$AP$43,B$66,FALSE) -> 0.05 | C69: =VLOOKUP($A69,'Mat of App'!$B$7:$AP$43,C$66,FALSE) -> 0 | D69: =VLOOKUP($A69,'Mat of App'!$B$7:$AP$43,D$66,FALSE) -> 0 | E69: =VLOOKUP($A69,'Mat of App'!$B$7:$AP$43,E$66,FALSE) -> 0 | F69: =VLOOKUP($A69,'Mat of App'!$B$7:$AP$43,F$66,FALSE) -> 0 | G69: =VLOOKUP($A69,'Mat of App'!$B$7:$AP$43,G$66,FALSE) -> 0 | H69: =VLOOKUP($A69,'Mat of App'!$B$7:$AP$43,H$66,FALSE) -> 0 | I69: =VLOOKUP($A69,'Mat of App'!$B$7:$AP$43,I$66,FALSE) -> 0
A70: Small Non Domestic Unrestricted | B70: =VLOOKUP($A70,'Mat of App'!$B$7:$AP$43,B$66,FALSE) -> 0 | C70: =VLOOKUP($A70,'Mat of App'!$B$7:$AP$43,C$66,FALSE) -> 1 | D70: =VLOOKUP($A70,'Mat of App'!$B$7:$AP$43,D$66,FALSE) -> 0 | E70: =VLOOKUP($A70,'Mat of App'!$B$7:$AP$43,E$66,FALSE) -> 0 | F70: =VLOOKUP($A70,'Mat of App'!$B$7:$AP$43,F$66,FALSE) -> 0 | G70: =VLOOKUP($A70,'Mat of App'!$B$7:$AP$43,G$66,FALSE) -> 0 | H70: =VLOOKUP($A70,'Mat of App'!$B$7:$AP$43,H$66,FALSE) -> 0 | I70: =VLOOKUP($A70,'Mat of App'!$B$7:$AP$43,I$66,FALSE) -> 0
A71: Small Non Domestic Two Rate | B71: =VLOOKUP($A71,'Mat of App'!$B$7:$AP$43,B$66,FALSE) -> 0 | C71: =VLOOKUP($A71,'Mat of App'!$B$7:$AP$43,C$66,FALSE) -> 1 | D71: =VLOOKUP($A71,'Mat of App'!$B$7:$AP$43,D$66,FALSE) -> 0 | E71: =VLOOKUP($A71,'Mat of App'!$B$7:$AP$43,E$66,FALSE) -> 0 | F71: =VLOOKUP($A71,'Mat of App'!$B$7:$AP$43,F$66,FALSE) -> 0 | G71: =VLOOKUP($A71,'Mat of App'!$B$7:$AP$43,G$66,FALSE) -> 0 | H71: =VLOOKUP($A71,'Mat of App'!$B$7:$AP$43,H$66,FALSE) -> 0 | I71: =VLOOKUP($A71,'Mat of App'!$B$7:$AP$43,I$66,FALSE) -> 0
A72: LV Medium Non-Domestic | B72: =VLOOKUP($A72,'Mat of App'!$B$7:$AP$43,B$66,FALSE) -> 0 | C72: =VLOOKUP($A72,'Mat of App'!$B$7:$AP$43,C$66,FALSE) -> 0 | D72: =VLOOKUP($A72,'Mat of App'!$B$7:$AP$43,D$66,FALSE) -> 1 | E72: =VLOOKUP($A72,'Mat of App'!$B$7:$AP$43,E$66,FALSE) -> 0 | F72: =VLOOKUP($A72,'Mat of App'!$B$7:$AP$43,F$66,FALSE) -> 0 | G72: =VLOOKUP($A72,'Mat of App'!$B$7:$AP$43,G$66,FALSE) -> 0 | H72: =VLOOKUP($A72,'Mat of App'!$B$7:$AP$43,H$66,FALSE) -> 0 | I72: =VLOOKUP($A72,'Mat of App'!$B$7:$AP$43,I$66,FALSE) -> 0
A73: LV Sub Medium Non-Domestic | B73: =VLOOKUP($A73,'Mat of App'!$B$7:$AP$43,B$66,FALSE) -> 0 | C73: =VLOOKUP($A73,'Mat of App'!$B$7:$AP$43,C$66,FALSE) -> 0 | D73: =VLOOKUP($A73,'Mat of App'!$B$7:$AP$43,D$66,FALSE) -> 0 | E73: =VLOOKUP($A73,'Mat of App'!$B$7:$AP$43,E$66,FALSE) -> 1 | F73: =VLOOKUP($A73,'Mat of App'!$B$7:$AP$43,F$66,FALSE) -> 0 | G73: =VLOOKUP($A73,'Mat of App'!$B$7:$AP$43,G$66,FALSE) -> 0 | H73: =VLOOKUP($A73,'Mat of App'!$B$7:$AP$43,H$66,FALSE) -> 0 | I73: =VLOOKUP($A73,'Mat of App'!$B$7:$AP$43,I$66,FALSE) -> 0
A74: LV Network Domestic | B74: =VLOOKUP($A74,'Mat of App'!$B$7:$AP$43,B$66,FALSE) -> 0.05 | C74: =VLOOKUP($A74,'Mat of App'!$B$7:$AP$43,C$66,FALSE) -> 0 | D74: =VLOOKUP($A74,'Mat of App'!$B$7:$AP$43,D$66,FALSE) -> 0 | E74: =VLOOKUP($A74,'Mat of App'!$B$7:$AP$43,E$66,FALSE) -> 0 | F74: =VLOOKUP($A74,'Mat of App'!$B$7:$AP$43,F$66,FALSE) -> 0 | G74: =VLOOKUP($A74,'Mat of App'!$B$7:$AP$43,G$66,FALSE) -> 0 | H74: =VLOOKUP($A74,'Mat of App'!$B$7:$AP$43,H$66,FALSE) -> 0 | I74: =VLOOKUP($A74,'Mat of App'!$B$7:$AP$43,I$66,FALSE) -> 0
A75: LV Network Non-Domestic Non-CT | B75: =VLOOKUP($A75,'Mat of App'!$B$7:$AP$43,B$66,FALSE) -> 0 | C75: =VLOOKUP($A75,'Mat of App'!$B$7:$AP$43,C$66,FALSE) -> 1 | D75: =VLOOKUP($A75,'Mat of App'!$B$7:$AP$43,D$66,FALSE) -> 0 | E75: =VLOOKUP($A75,'Mat of App'!$B$7:$AP$43,E$66,FALSE) -> 0 | F75: =VLOOKUP($A75,'Mat of App'!$B$7:$AP$43,F$66,FALSE) -> 0 | G75: =VLOOKUP($A75,'Mat of App'!$B$7:$AP$43,G$66,FALSE) -> 0 | H75: =VLOOKUP($A75,'Mat of App'!$B$7:$AP$43,H$66,FALSE) -> 0 | I75: =VLOOKUP($A75,'Mat of App'!$B$7:$AP$43,I$66,FALSE) -> 0
A76: LV HH Metered | B76: =VLOOKUP($A76,'Mat of App'!$B$7:$AP$43,B$66,FALSE) -> 0 | C76: =VLOOKUP($A76,'Mat of App'!$B$7:$AP$43,C$66,FALSE) -> 0 | D76: =VLOOKUP($A76,'Mat of App'!$B$7:$AP$43,D$66,FALSE) -> 0 | E76: =VLOOKUP($A76,'Mat of App'!$B$7:$AP$43,E$66,FALSE) -> 0 | F76: =VLOOKUP($A76,'Mat of App'!$B$7:$AP$43,F$66,FALSE) -> 1 | G76: =VLOOKUP($A76,'Mat of App'!$B$7:$AP$43,G$66,FALSE) -> 0 | H76: =VLOOKUP($A76,'Mat of App'!$B$7:$AP$43,H$66,FALSE) -> 0 | I76: =VLOOKUP($A76,'Mat of App'!$B$7:$AP$43,I$66,FALSE) -> 0
A77: LV Sub HH Metered | B77: =VLOOKUP($A77,'Mat of App'!$B$7:$AP$43,B$66,FALSE) -> 0 | C77: =VLOOKUP($A77,'Mat of App'!$B$7:$AP$43,C$66,FALSE) -> 0 | D77: =VLOOKUP($A77,'Mat of App'!$B$7:$AP$43,D$66,FALSE) -> 0 | E77: =VLOOKUP($A77,'Mat of App'!$B$7:$AP$43,E$66,FALSE) -> 0 | F77: =VLOOKUP($A77,'Mat of App'!$B$7:$AP$43,F$66,FALSE) -> 0 | G77: =VLOOKUP($A77,'Mat of App'!$B$7:$AP$43,G$66,FALSE) -> 1 | H77: =VLOOKUP($A77,'Mat of App'!$B$7:$AP$43,H$66,FALSE) -> 0 | I77: =VLOOKUP($A77,'Mat of App'!$B$7:$AP$43,I$66,FALSE) -> 0
A78: LV Generation NHH or Aggregate HH | B78: =VLOOKUP($A78,'Mat of App'!$B$7:$AP$43,B$66,FALSE) -> 0 | C78: =VLOOKUP($A78,'Mat of App'!$B$7:$AP$43,C$66,FALSE) -> 0 | D78: =VLOOKUP($A78,'Mat of App'!$B$7:$AP$43,D$66,FALSE) -> 0 | E78: =VLOOKUP($A78,'Mat of App'!$B$7:$AP$43,E$66,FALSE) -> 0 | F78: =VLOOKUP($A78,'Mat of App'!$B$7:$AP$43,F$66,FALSE) -> 0 | G78: =VLOOKUP($A78,'Mat of App'!$B$7:$AP$43,G$66,FALSE) -> 0 | H78: =VLOOKUP($A78,'Mat of App'!$B$7:$AP$43,H$66,FALSE) -> 1 | I78: =VLOOKUP($A78,'Mat of App'!$B$7:$AP$43,I$66,FALSE) -> 0
A79: LV Sub Generation NHH | B79: =VLOOKUP($A79,'Mat of App'!$B$7:$AP$43,B$66,FALSE) -> 0 | C79: =VLOOKUP($A79,'Mat of App'!$B$7:$AP$43,C$66,FALSE) -> 0 | D79: =VLOOKUP($A79,'Mat of App'!$B$7:$AP$43,D$66,FALSE) -> 0 | E79: =VLOOKUP($A79,'Mat of App'!$B$7:$AP$43,E$66,FALSE) -> 0 | F79: =VLOOKUP($A79,'Mat of App'!$B$7:$AP$43,F$66,FALSE) -> 0 | G79: =VLOOKUP($A79,'Mat of App'!$B$7:$AP$43,G$66,FALSE) -> 0 | H79: =VLOOKUP($A79,'Mat of App'!$B$7:$AP$43,H$66,FALSE) -> 1 | I79: =VLOOKUP($A79,'Mat of App'!$B$7:$AP$43,I$66,FALSE) -> 0
A80: LV Generation Intermittent | B80: =VLOOKUP($A80,'Mat of App'!$B$7:$AP$43,B$66,FALSE) -> 0 | C80: =VLOOKUP($A80,'Mat of App'!$B$7:$AP$43,C$66,FALSE) -> 0 | D80: =VLOOKUP($A80,'Mat of App'!$B$7:$AP$43,D$66,FALSE) -> 0 | E80: =VLOOKUP($A80,'Mat of App'!$B$7:$AP$43,E$66,FALSE) -> 0 | F80: =VLOOKUP($A80,'Mat of App'!$B$7:$AP$43,F$66,FALSE) -> 0 | G80: =VLOOKUP($A80,'Mat of App'!$B$7:$AP$43,G$66,FALSE) -> 0 | H80: =VLOOKUP($A80,'Mat of App'!$B$7:$AP$43,H$66,FALSE) -> 1 | I80: =VLOOKUP($A80,'Mat of App'!$B$7:$AP$43,I$66,FALSE) -> 0
A81: LV Generation Intermittent no RP charge | B81: =VLOOKUP($A81,'Mat of App'!$B$7:$AP$43,B$66,FALSE) -> 0 | C81: =VLOOKUP($A81,'Mat of App'!$B$7:$AP$43,C$66,FALSE) -> 0 | D81: =VLOOKUP($A81,'Mat of App'!$B$7:$AP$43,D$66,FALSE) -> 0 | E81: =VLOOKUP($A81,'Mat of App'!$B$7:$AP$43,E$66,FALSE) -> 0 | F81: =VLOOKUP($A81,'Mat of App'!$B$7:$AP$43,F$66,FALSE) -> 0 | G81: =VLOOKUP($A81,'Mat of App'!$B$7:$AP$43,G$66,FALSE) -> 0 | H81: =VLOOKUP($A81,'Mat of App'!$B$7:$AP$43,H$66,FALSE) -> 1 | I81: =VLOOKUP($A81,'Mat of App'!$B$7:$AP$43,I$66,FALSE) -> 0
A82: LV Generation Non-Intermittent | B82: =VLOOKUP($A82,'Mat of App'!$B$7:$AP$43,B$66,FALSE) -> 0 | C82: =VLOOKUP($A82,'Mat of App'!$B$7:$AP$43,C$66,FALSE) -> 0 | D82: =VLOOKUP($A82,'Mat of App'!$B$7:$AP$43,D$66,FALSE) -> 0 | E82: =VLOOKUP($A82,'Mat of App'!$B$7:$AP$43,E$66,FALSE) -> 0 | F82: =VLOOKUP($A82,'Mat of App'!$B$7:$AP$43,F$66,FALSE) -> 0 | G82: =VLOOKUP($A82,'Mat of App'!$B$7:$AP$43,G$66,FALSE) -> 0 | H82: =VLOOKUP($A82,'Mat of App'!$B$7:$AP$43,H$66,FALSE) -> 0 | I82: =VLOOKUP($A82,'Mat of App'!$B$7:$AP$43,I$66,FALSE) -> 0
A83: LV Generation Non-Intermittent no RP charge | B83: =VLOOKUP($A83,'Mat of App'!$B$7:$AP$43,B$66,FALSE) -> 0 | C83: =VLOOKUP($A83,'Mat of App'!$B$7:$AP$43,C$66,FALSE) -> 0 | D83: =VLOOKUP($A83,'Mat of App'!$B$7:$AP$43,D$66,FALSE) -> 0 | E83: =VLOOKUP($A83,'Mat of App'!$B$7:$AP$43,E$66,FALSE) -> 0 | F83: =VLOOKUP($A83,'Mat of App'!$B$7:$AP$43,F$66,FALSE) -> 0 | G83: =VLOOKUP($A83,'Mat of App'!$B$7:$AP$43,G$66,FALSE) -> 0 | H83: =VLOOKUP($A83,'Mat of App'!$B$7:$AP$43,H$66,FALSE) -> 0 | I83: =VLOOKUP($A83,'Mat of App'!$B$7:$AP$43,I$66,FALSE) -> 0
A84: LV Sub Generation Intermittent | B84: =VLOOKUP($A84,'Mat of App'!$B$7:$AP$43,B$66,FALSE) -> 0 | C84: =VLOOKUP($A84,'Mat of App'!$B$7:$AP$43,C$66,FALSE) -> 0 | D84: =VLOOKUP($A84,'Mat of App'!$B$7:$AP$43,D$66,FALSE) -> 0 | E84: =VLOOKUP($A84,'Mat of App'!$B$7:$AP$43,E$66,FALSE) -> 0 | F84: =VLOOKUP($A84,'Mat of App'!$B$7:$AP$43,F$66,FALSE) -> 0 | G84: =VLOOKUP($A84,'Mat of App'!$B$7:$AP$43,G$66,FALSE) -> 0 | H84: =VLOOKUP($A84,'Mat of App'!$B$7:$AP$43,H$66,FALSE) -> 0 | I84: =VLOOKUP($A84,'Mat of App'!$B$7:$AP$43,I$66,FALSE) -> 0
A85: LV Sub Generation Intermittent no RP charge | B85: =VLOOKUP($A85,'Mat of App'!$B$7:$AP$43,B$66,FALSE) -> 0 | C85: =VLOOKUP($A85,'Mat of App'!$B$7:$AP$43,C$66,FALSE) -> 0 | D85: =VLOOKUP($A85,'Mat of App'!$B$7:$AP$43,D$66,FALSE) -> 0 | E85: =VLOOKUP($A85,'Mat of App'!$B$7:$AP$43,E$66,FALSE) -> 0 | F85: =VLOOKUP($A85,'Mat of App'!$B$7:$AP$43,F$66,FALSE) -> 0 | G85: =VLOOKUP($A85,'Mat of App'!$B$7:$AP$43,G$66,FALSE) -> 0 | H85: =VLOOKUP($A85,'Mat of App'!$B$7:$AP$43,H$66,FALSE) -> 0 | I85: =VLOOKUP($A85,'Mat of App'!$B$7:$AP$43,I$66,FALSE) -> 0
A86: LV Sub Generation Non-Intermittent | B86: =VLOOKUP($A86,'Mat of App'!$B$7:$AP$43,B$66,FALSE) -> 0 | C86: =VLOOKUP($A86,'Mat of App'!$B$7:$AP$43,C$66,FALSE) -> 0 | D86: =VLOOKUP($A86,'Mat of App'!$B$7:$AP$43,D$66,FALSE) -> 0 | E86: =VLOOKUP($A86,'Mat of App'!$B$7:$AP$43,E$66,FALSE) -> 0 | F86: =VLOOKUP($A86,'Mat of App'!$B$7:$AP$43,F$66,FALSE) -> 0 | G86: =VLOOKUP($A86,'Mat of App'!$B$7:$AP$43,G$66,FALSE) -> 0 | H86: =VLOOKUP($A86,'Mat of App'!$B$7:$AP$43,H$66,FALSE) -> 0 | I86: =VLOOKUP($A86,'Mat of App'!$B$7:$AP$43,I$66,FALSE) -> 0
A87: LV Sub Generation Non-Intermittent no RP charge | B87: =VLOOKUP($A87,'Mat of App'!$B$7:$AP$43,B$66,FALSE) -> 0 | C87: =VLOOKUP($A87,'Mat of App'!$B$7:$AP$43,C$66,FALSE) -> 0 | D87: =VLOOKUP($A87,'Mat of App'!$B$7:$AP$43,D$66,FALSE) -> 0 | E87: =VLOOKUP($A87,'Mat of App'!$B$7:$AP$43,E$66,FALSE) -> 0 | F87: =VLOOKUP($A87,'Mat of App'!$B$7:$AP$43,F$66,FALSE) -> 0 | G87: =VLOOKUP($A87,'Mat of App'!$B$7:$AP$43,G$66,FALSE) -> 0 | H87: =VLOOKUP($A87,'Mat of App'!$B$7:$AP$43,H$66,FALSE) -> 0 | I87: =VLOOKUP($A87,'Mat of App'!$B$7:$AP$43,I$66,FALSE) -> 0
A89: 1026. Matrix of applicability of LV service models to unmetered tariffs
A91: Source: service models
A92: Proportion of service model involved in connecting load of 1 MWh/year
B93: LV service model 1 | C93: LV service model 2 | D93: LV service model 3 | E93: LV service model 4 | F93: LV service model 5 | G93: LV service model 6 | H93: LV service model 7 | I93: LV service model 8
A94: All LV unmetered tariffs | B94: =VLOOKUP($A94,'Mat of App'!$B$7:$AP$43,B$66,FALSE) -> 0 | C94: =VLOOKUP($A94,'Mat of App'!$B$7:$AP$43,C$66,FALSE) -> 0 | D94: =VLOOKUP($A94,'Mat of App'!$B$7:$AP$43,D$66,FALSE) -> 0 | E94: =VLOOKUP($A94,'Mat of App'!$B$7:$AP$43,E$66,FALSE) -> 0 | F94: =VLOOKUP($A94,'Mat of App'!$B$7:$AP$43,F$66,FALSE) -> 0 | G94: =VLOOKUP($A94,'Mat of App'!$B$7:$AP$43,G$66,FALSE) -> 0 | H94: =VLOOKUP($A94,'Mat of App'!$B$7:$AP$43,H$66,FALSE) -> 0 | I94: =VLOOKUP($A94,'Mat of App'!$B$7:$AP$43,I$66,FALSE) -> 0.488
A96: 1028. Matrix of applicability of HV service models to tariffs with fixed charges
B97: 2 | C97: =B97+1 -> 3 | D97: =C97+1 -> 4 | E97: =D97+1 -> 5 | F97: =E97+1 -> 6
B98: HV service model 1 | C98: HV service model 2 | D98: HV service model 3 | E98: HV service model 4 | F98: HV service model 5
A99: HV Medium Non-Domestic | B99: =VLOOKUP($A99,'Mat of App'!$B$7:$AP$43,B$97,FALSE) -> 1 | C99: =VLOOKUP($A99,'Mat of App'!$B$7:$AP$43,C$97,FALSE) -> 0 | D99: =VLOOKUP($A99,'Mat of App'!$B$7:$AP$43,D$97,FALSE) -> 0 | E99: =VLOOKUP($A99,'Mat of App'!$B$7:$AP$43,E$97,FALSE) -> 0 | F99: =VLOOKUP($A99,'Mat of App'!$B$7:$AP$43,F$97,FALSE) -> 0
A100: HV HH Metered | B100: =VLOOKUP($A100,'Mat of App'!$B$7:$AP$43,B$97,FALSE) -> 1 | C100: =VLOOKUP($A100,'Mat of App'!$B$7:$AP$43,C$97,FALSE) -> 0 | D100: =VLOOKUP($A100,'Mat of App'!$B$7:$AP$43,D$97,FALSE) -> 0 | E100: =VLOOKUP($A100,'Mat of App'!$B$7:$AP$43,E$97,FALSE) -> 0 | F100: =VLOOKUP($A100,'Mat of App'!$B$7:$AP$43,F$97,FALSE) -> 0
A101: HV Generation Intermittent | B101: =VLOOKUP($A101,'Mat of App'!$B$7:$AP$43,B$97,FALSE) -> 0 | C101: =VLOOKUP($A101,'Mat of App'!$B$7:$AP$43,C$97,FALSE) -> 1 | D101: =VLOOKUP($A101,'Mat of App'!$B$7:$AP$43,D$97,FALSE) -> 0 | E101: =VLOOKUP($A101,'Mat of App'!$B$7:$AP$43,E$97,FALSE) -> 0 | F101: =VLOOKUP($A101,'Mat of App'!$B$7:$AP$43,F$97,FALSE) -> 0
A102: HV Generation Intermittent no RP charge | B102: =VLOOKUP($A102,'Mat of App'!$B$7:$AP$43,B$97,FALSE) -> 0 | C102: =VLOOKUP($A102,'Mat of App'!$B$7:$AP$43,C$97,FALSE) -> 1 | D102: =VLOOKUP($A102,'Mat of App'!$B$7:$AP$43,D$97,FALSE) -> 0 | E102: =VLOOKUP($A102,'Mat of App'!$B$7:$AP$43,E$97,FALSE) -> 0 | F102: =VLOOKUP($A102,'Mat of App'!$B$7:$AP$43,F$97,FALSE) -> 0
A103: HV Generation Non-Intermittent | B103: =VLOOKUP($A103,'Mat of App'!$B$7:$AP$43,B$97,FALSE) -> 0 | C103: =VLOOKUP($A103,'Mat of App'!$B$7:$AP$43,C$97,FALSE) -> 1 | D103: =VLOOKUP($A103,'Mat of App'!$B$7:$AP$43,D$97,FALSE) -> 0 | E103: =VLOOKUP($A103,'Mat of App'!$B$7:$AP$43,E$97,FALSE) -> 0 | F103: =VLOOKUP($A103,'Mat of App'!$B$7:$AP$43,F$97,FALSE) -> 0
A104: HV Generation Non-Intermittent no RP charge | B104: =VLOOKUP($A104,'Mat of App'!$B$7:$AP$43,B$97,FALSE) -> 0 | C104: =VLOOKUP($A104,'Mat of App'!$B$7:$AP$43,C$97,FALSE) -> 1 | D104: =VLOOKUP($A104,'Mat of App'!$B$7:$AP$43,D$97,FALSE) -> 0 | E104: =VLOOKUP($A104,'Mat of App'!$B$7:$AP$43,E$97,FALSE) -> 0 | F104: =VLOOKUP($A104,'Mat of App'!$B$7:$AP$43,F$97,FALSE) -> 0
A106: 1032. Loss adjustment factors to transmission
A108: Source: losses model or loss adjustment factors at time of system peak.
B109: 132kV | C109: 132kV/EHV | D109: EHV | E109: EHV/HV | F109: HV | G109: HV/LV | H109: LV circuits
A110: Loss adjustment factor | B110: =VLOOKUP(Vlookup!B69,'CDCM Forecast Data'!$A$14:$I$271,5,FALSE) -> 1.002 | C110: =VLOOKUP(Vlookup!C69,'CDCM Forecast Data'!$A$14:$I$271,5,FALSE) -> 1.006 | D110: =VLOOKUP(Vlookup!D69,'CDCM Forecast Data'!$A$14:$I$271,5,FALSE) -> 1.012 | E110: =VLOOKUP(Vlookup!E69,'CDCM Forecast Data'!$A$14:$I$271,5,FALSE) -> 1.021 | F110: =VLOOKUP(Vlookup!F69,'CDCM Forecast Data'!$A$14:$I$271,5,FALSE) -> 1.038 | G110: =VLOOKUP(Vlookup!G69,'CDCM Forecast Data'!$A$14:$I$271,5,FALSE) -> 1.049 | H110: =VLOOKUP(Vlookup!H69,'CDCM Forecast Data'!$A$14:$I$271,5,FALSE) -> 1.062
A112: 1037. Embedded network (LDNO) discounts
A114: Source: separate price control disaggregation model.
B115: No discount | C115: LDNO LV: LV user | D115: LDNO HV: LV user | E115: LDNO HV: LV sub user | F115: LDNO HV: HV user
A116: LDNO discount | C116: =VLOOKUP(Vlookup!C75,'CDCM Forecast Data'!$A$14:$I$271,5,FALSE) -> 0.3726799999 | D116: =VLOOKUP(Vlookup!D75,'CDCM Forecast Data'!$A$14:$I$271,5,FALSE) -> 0.6188090826 | E116: =VLOOKUP(Vlookup!E75,'CDCM Forecast Data'!$A$14:$I$271,5,FALSE) -> 0.3749541673 | F116: =VLOOKUP(Vlookup!F75,'CDCM Forecast Data'!$A$14:$I$271,5,FALSE) -> 0.2586328942
A118: 1041. Load profile data for demand users
A120: Source: load data analysis.
B121: Coincidence factor | C121: Load factor
A122: Domestic Unrestricted | B122: =VLOOKUP(Vlookup!B81,'CDCM Forecast Data'!$A$14:$I$271,5,FALSE) -> 0.916120013 | C122: =VLOOKUP(Vlookup!C81,'CDCM Forecast Data'!$A$14:$I$271,5,FALSE) -> 0.4179484873
A123: Domestic Two Rate | B123: =VLOOKUP(Vlookup!B82,'CDCM Forecast Data'!$A$14:$I$271,5,FALSE) -> 0.3425106348 | C123: =VLOOKUP(Vlookup!C82,'CDCM Forecast Data'!$A$14:$I$271,5,FALSE) -> 0.2578726855
A124: Domestic Off Peak (related MPAN) | C124: =VLOOKUP(Vlookup!C83,'CDCM Forecast Data'!$A$14:$I$271,5,FALSE) -> 0.1440818751
A125: Small Non Domestic Unrestricted | B125: =VLOOKUP(Vlookup!B84,'CDCM Forecast Data'!$A$14:$I$271,5,FALSE) -> 0.6358102486 | C125: =VLOOKUP(Vlookup!C84,'CDCM Forecast Data'!$A$14:$I$271,5,FALSE) -> 0.3916832263
A126: Small Non Domestic Two Rate | B126: =VLOOKUP(Vlookup!B85,'CDCM Forecast Data'!$A$14:$I$271,5,FALSE) -> 0.5884054495 | C126: =VLOOKUP(Vlookup!C85,'CDCM Forecast Data'!$A$14:$I$271,5,FALSE) -> 0.4286725136
A127: Small Non Domestic Off Peak (related MPAN) | C127: =VLOOKUP(Vlookup!C86,'CDCM Forecast Data'!$A$14:$I$271,5,FALSE) -> 0.1529440454
A128: LV Medium Non-Domestic | B128: =VLOOKUP(Vlookup!B87,'CDCM Forecast Data'!$A$14:$I$271,5,FALSE) -> 0.8585513205 | C128: =VLOOKUP(Vlookup!C87,'CDCM Forecast Data'!$A$14:$I$271,5,FALSE) -> 0.593601508
A129: LV Sub Medium Non-Domestic | B129: =VLOOKUP(Vlookup!B88,'CDCM Forecast Data'!$A$14:$I$271,5,FALSE) -> 0.8382314172 | C129: =VLOOKUP(Vlookup!C88,'CDCM Forecast Data'!$A$14:$I$271,5,FALSE) -> 0.6000900558
A130: HV Medium Non-Domestic | B130: =VLOOKUP(Vlookup!B89,'CDCM Forecast Data'!$A$14:$I$271,5,FALSE) -> 0.6632207801 | C130: =VLOOKUP(Vlookup!C89,'CDCM Forecast Data'!$A$14:$I$271,5,FALSE) -> 0.4549084208
A131: LV Network Domestic | B131: =VLOOKUP(Vlookup!B90,'CDCM Forecast Data'!$A$14:$I$271,5,FALSE) -> 0.8259895753 | C131: =VLOOKUP(Vlookup!C90,'CDCM Forecast Data'!$A$14:$I$271,5,FALSE) -> 0.3899928896
A132: LV Network Non-Domestic Non-CT | B132: =VLOOKUP(Vlookup!B91,'CDCM Forecast Data'!$A$14:$I$271,5,FALSE) -> 0.6262796049 | C132: =VLOOKUP(Vlookup!C91,'CDCM Forecast Data'!$A$14:$I$271,5,FALSE) -> 0.3930495306
A133: LV HH Metered | B133: =VLOOKUP(Vlookup!B92,'CDCM Forecast Data'!$A$14:$I$271,5,FALSE) -> 0.803287895 | C133: =VLOOKUP(Vlookup!C92,'CDCM Forecast Data'!$A$14:$I$271,5,FALSE) -> 0.5875803245
A134: LV Sub HH Metered | B134: =VLOOKUP(Vlookup!B93,'CDCM Forecast Data'!$A$14:$I$271,5,FALSE) -> 0.7658193845 | C134: =VLOOKUP(Vlookup!C93,'CDCM Forecast Data'!$A$14:$I$271,5,FALSE) -> 0.6115171759
A135: HV HH Metered | B135: =VLOOKUP(Vlookup!B94,'CDCM Forecast Data'!$A$14:$I$271,5,FALSE) -> 0.8005762642 | C135: =VLOOKUP(Vlookup!C94,'CDCM Forecast Data'!$A$14:$I$271,5,FALSE) -> 0.7228719463
A136: NHH UMS category A | B136: =VLOOKUP(Vlookup!B95,'CDCM Forecast Data'!$A$14:$I$271,5,FALSE) -> 1 | C136: =VLOOKUP(Vlookup!C95,'CDCM Forecast Data'!$A$14:$I$271,5,FALSE) -> 1
A137: NHH UMS category B | B137: =VLOOKUP(Vlookup!B96,'CDCM Forecast Data'!$A$14:$I$271,5,FALSE) -> 0.983875969 | C137: =VLOOKUP(Vlookup!C96,'CDCM Forecast Data'!$A$14:$I$271,5,FALSE) -> 0.4749547891
A138: NHH UMS category C | B138: =VLOOKUP(Vlookup!B97,'CDCM Forecast Data'!$A$14:$I$271,5,FALSE) -> 0.8805058428 | C138: =VLOOKUP(Vlookup!C97,'CDCM Forecast Data'!$A$14:$I$271,5,FALSE) -> 0.2463161498
A139: NHH UMS category D | B139: =VLOOKUP(Vlookup!B98,'CDCM Forecast Data'!$A$14:$I$271,5,FALSE) -> 0 | C139: =VLOOKUP(Vlookup!C98,'CDCM Forecast Data'!$A$14:$I$271,5,FALSE) -> 0.5152659389
A140: LV UMS (Pseudo HH Metered) | B140: =VLOOKUP(Vlookup!B99,'CDCM Forecast Data'!$A$14:$I$271,5,FALSE) -> 0.9713745501 | C140: =VLOOKUP(Vlookup!C99,'CDCM Forecast Data'!$A$14:$I$271,5,FALSE) -> 0.4554929434
A142: 1053. Volume forecasts for the charging year
B143: 4 | C143: 5 | D143: 6 | E143: 7 | F143: 8 | G143: 9 | H143: 10
A144: Source: forecast.
A145: Please include MPAN counts for tariffs with no fixed charge (e.g. off-peak tariffs),
A146: but exclude MPANs on tariffs with a fixed charge that are not subject to a fixed charge due to a site grouping arrangement.
B147: Rate 1 units (MWh) | C147: Rate 2 units (MWh) | D147: Rate 3 units (MWh) | E147: MPANs | F147: Import capacity (kVA) | G147: Exceeded capacity (kVA) | H147: Reactive power units (MVArh)
A148: > Domestic Unrestricted | B148: =VLOOKUP(Vlookup!$B107,'CDCM Volume Forecasts'!$A$28:$AL$136,B$143,FALSE) -> 0 | C148: =VLOOKUP(Vlookup!$B107,'CDCM Volume Forecasts'!$A$28:$AL$136,C$143,FALSE) -> 0 | D148: =VLOOKUP(Vlookup!$B107,'CDCM Volume Forecasts'!$A$28:$AL$136,D$143,FALSE) -> 0 | E148: =VLOOKUP(Vlookup!$B107,'CDCM Volume Forecasts'!$A$28:$AL$136,E$143,FALSE) -> 0 | F148: =VLOOKUP(Vlookup!$B107,'CDCM Volume Forecasts'!$A$28:$AL$136,F$143,FALSE) -> 0 | H148: =VLOOKUP(Vlookup!$B107,'CDCM Volume Forecasts'!$A$28:$AL$136,G$143,FALSE) -> 0
A149: Domestic Unrestricted | B149: =VLOOKUP(Vlookup!$B108,'CDCM Volume Forecasts'!$A$28:$AL$136,B$143,FALSE) -> 4308328.18 | E149: =VLOOKUP(Vlookup!$B108,'CDCM Volume Forecasts'!$A$28:$AL$136,E$143,FALSE) -> 1249039.053
A150: LDNO LV: Domestic Unrestricted | B150: =VLOOKUP(Vlookup!$B109,'CDCM Volume Forecasts'!$A$28:$AL$136,B$143,FALSE) -> 17317.24498 | E150: =VLOOKUP(Vlookup!$B109,'CDCM Volume Forecasts'!$A$28:$AL$136,E$143,FALSE) -> 6432.470402
A151: LDNO HV: Domestic Unrestricted | B151: =VLOOKUP(Vlookup!$B110,'CDCM Volume Forecasts'!$A$28:$AL$136,B$143,FALSE) -> 30359.98623 | E151: =VLOOKUP(Vlookup!$B110,'CDCM Volume Forecasts'!$A$28:$AL$136,E$143,FALSE) -> 11844.01251
A152: > Domestic Two Rate
A153: Domestic Two Rate | B153: =VLOOKUP(Vlookup!$B112,'CDCM Volume Forecasts'!$A$28:$AL$136,B$143,FALSE) -> 607941.0703 | C153: =VLOOKUP(Vlookup!$B112,'CDCM Volume Forecasts'!$A$28:$AL$136,C$143,FALSE) -> 664320.7424 | E153: =VLOOKUP(Vlookup!$B112,'CDCM Volume Forecasts'!$A$28:$AL$136,E$143,FALSE) -> 209037.5145
A154: LDNO LV: Domestic Two Rate | B154: =VLOOKUP(Vlookup!$B113,'CDCM Volume Forecasts'!$A$28:$AL$136,B$143,FALSE) -> 996.3345458 | C154: =VLOOKUP(Vlookup!$B113,'CDCM Volume Forecasts'!$A$28:$AL$136,C$143,FALSE) -> 464.3154495 | E154: =VLOOKUP(Vlookup!$B113,'CDCM Volume Forecasts'!$A$28:$AL$136,E$143,FALSE) -> 424.578489
A155: LDNO HV: Domestic Two Rate | B155: =VLOOKUP(Vlookup!$B114,'CDCM Volume Forecasts'!$A$28:$AL$136,B$143,FALSE) -> 958.1884868 | C155: =VLOOKUP(Vlookup!$B114,'CDCM Volume Forecasts'!$A$28:$AL$136,C$143,FALSE) -> 407.9568851 | E155: =VLOOKUP(Vlookup!$B114,'CDCM Volume Forecasts'!$A$28:$AL$136,E$143,FALSE) -> 368.3969014
A156: > Domestic Off Peak (related MPAN)
A157: Domestic Off Peak (related MPAN) | B157: =VLOOKUP(Vlookup!$B116,'CDCM Volume Forecasts'!$A$28:$AL$136,B$143,FALSE) -> 45959.70836 | E157: =VLOOKUP(Vlookup!$B116,'CDCM Volume Forecasts'!$A$28:$AL$136,E$143,FALSE) -> 15622
A158: LDNO LV: Domestic Off Peak (related MPAN) | B158: =VLOOKUP(Vlookup!$B117,'CDCM Volume Forecasts'!$A$28:$AL$136,B$143,FALSE) -> 0 | E158: =VLOOKUP(Vlookup!$B117,'CDCM Volume Forecasts'!$A$28:$AL$136,E$143,FALSE) -> 0
A159: LDNO HV: Domestic Off Peak (related MPAN) | B159: =VLOOKUP(Vlookup!$B118,'CDCM Volume Forecasts'!$A$28:$AL$136,B$143,FALSE) -> 0 | E159: =VLOOKUP(Vlookup!$B118,'CDCM Volume Forecasts'!$A$28:$AL$136,E$143,FALSE) -> 0
A160: > Small Non Domestic Unrestricted
A161: Small Non Domestic Unrestricted | B161: =VLOOKUP(Vlookup!$B120,'CDCM Volume Forecasts'!$A$28:$AL$136,B$143,FALSE) -> 1179331.529 | E161: =VLOOKUP(Vlookup!$B120,'CDCM Volume Forecasts'!$A$28:$AL$136,E$143,FALSE) -> 110093.2397
A162: LDNO LV: Small Non Domestic Unrestricted | B162: =VLOOKUP(Vlookup!$B121,'CDCM Volume Forecasts'!$A$28:$AL$136,B$143,FALSE) -> 788.4367595 | E162: =VLOOKUP(Vlookup!$B121,'CDCM Volume Forecasts'!$A$28:$AL$136,E$143,FALSE) -> 127.8314014
A163: LDNO HV: Small Non Domestic Unrestricted | B163: =VLOOKUP(Vlookup!$B122,'CDCM Volume Forecasts'!$A$28:$AL$136,B$143,FALSE) -> 7392.773379 | E163: =VLOOKUP(Vlookup!$B122,'CDCM Volume Forecasts'!$A$28:$AL$136,E$143,FALSE) -> 462.2006219
A164: > Small Non Domestic Two Rate
A165: Small Non Domestic Two Rate | B165: =VLOOKUP(Vlookup!$B124,'CDCM Volume Forecasts'!$A$28:$AL$136,B$143,FALSE) -> 394405.6541 | C165: =VLOOKUP(Vlookup!$B124,'CDCM Volume Forecasts'!$A$28:$AL$136,C$143,FALSE) -> 183263.231 | E165: =VLOOKUP(Vlookup!$B124,'CDCM Volume Forecasts'!$A$28:$AL$136,E$143,FALSE) -> 29443.26826
A166: LDNO LV: Small Non Domestic Two Rate | B166: =VLOOKUP(Vlookup!$B125,'CDCM Volume Forecasts'!$A$28:$AL$136,B$143,FALSE) -> 41.25050511 | C166: =VLOOKUP(Vlookup!$B125,'CDCM Volume Forecasts'!$A$28:$AL$136,C$143,FALSE) -> 17.31810041 | E166: =VLOOKUP(Vlookup!$B125,'CDCM Volume Forecasts'!$A$28:$AL$136,E$143,FALSE) -> 2.757156164
A167: LDNO HV: Small Non Domestic Two Rate | B167: =VLOOKUP(Vlookup!$B126,'CDCM Volume Forecasts'!$A$28:$AL$136,B$143,FALSE) -> 926.2488831 | C167: =VLOOKUP(Vlookup!$B126,'CDCM Volume Forecasts'!$A$28:$AL$136,C$143,FALSE) -> 260.3289682 | E167: =VLOOKUP(Vlookup!$B126,'CDCM Volume Forecasts'!$A$28:$AL$136,E$143,FALSE) -> 23.55483699
A168: > Small Non Domestic Off Peak (related MPAN)
A169: Small Non Domestic Off Peak (related MPAN) | B169: =VLOOKUP(Vlookup!$B128,'CDCM Volume Forecasts'!$A$28:$AL$136,B$143,FALSE) -> 17319.81948 | E169: =VLOOKUP(Vlookup!$B128,'CDCM Volume Forecasts'!$A$28:$AL$136,E$143,FALSE) -> 3339
A170: LDNO LV: Small Non Domestic Off Peak (related MPAN) | B170: =VLOOKUP(Vlookup!$B129,'CDCM Volume Forecasts'!$A$28:$AL$136,B$143,FALSE) -> 0 | E170: =VLOOKUP(Vlookup!$B129,'CDCM Volume Forecasts'!$A$28:$AL$136,E$143,FALSE) -> 0
A171: LDNO HV: Small Non Domestic Off Peak (related MPAN) | B171: =VLOOKUP(Vlookup!$B130,'CDCM Volume Forecasts'!$A$28:$AL$136,B$143,FALSE) -> 0 | E171: =VLOOKUP(Vlookup!$B130,'CDCM Volume Forecasts'!$A$28:$AL$136,E$143,FALSE) -> 0
A172: > LV Medium Non-Domestic
A173: LV Medium Non-Domestic | B173: =VLOOKUP(Vlookup!$B132,'CDCM Volume Forecasts'!$A$28:$AL$136,B$143,FALSE) -> 0.0008013320402 | C173: =VLOOKUP(Vlookup!$B132,'CDCM Volume Forecasts'!$A$28:$AL$136,C$143,FALSE) -> 0.0001986679598 | E173: =VLOOKUP(Vlookup!$B132,'CDCM Volume Forecasts'!$A$28:$AL$136,E$143,FALSE) -> 1.137530625e-05
A174: LDNO LV: LV Medium Non-Domestic | B174: =VLOOKUP(Vlookup!$B133,'CDCM Volume Forecasts'!$A$28:$AL$136,B$143,FALSE) -> 0 | C174: =VLOOKUP(Vlookup!$B133,'CDCM Volume Forecasts'!$A$28:$AL$136,C$143,FALSE) -> 0 | E174: =VLOOKUP(Vlookup!$B133,'CDCM Volume Forecasts'!$A$28:$AL$136,E$143,FALSE) -> 0
A175: LDNO HV: LV Medium Non-Domestic | B175: =VLOOKUP(Vlookup!$B134,'CDCM Volume Forecasts'!$A$28:$AL$136,B$143,FALSE) -> 0 | C175: =VLOOKUP(Vlookup!$B134,'CDCM Volume Forecasts'!$A$28:$AL$136,C$143,FALSE) -> 0 | E175: =VLOOKUP(Vlookup!$B134,'CDCM Volume Forecasts'!$A$28:$AL$136,E$143,FALSE) -> 0
A176: > LV Sub Medium Non-Domestic
A177: LV Sub Medium Non-Domestic | B177: =VLOOKUP(Vlookup!$B136,'CDCM Volume Forecasts'!$A$28:$AL$136,B$143,FALSE) -> 0.0007818763248 | C177: =VLOOKUP(Vlookup!$B136,'CDCM Volume Forecasts'!$A$28:$AL$136,C$143,FALSE) -> 0.0002181236752 | E177: =VLOOKUP(Vlookup!$B136,'CDCM Volume Forecasts'!$A$28:$AL$136,E$143,FALSE) -> 8.365149073e-06
A178: > HV Medium Non-Domestic
A179: HV Medium Non-Domestic | B179: =VLOOKUP(Vlookup!$B138,'CDCM Volume Forecasts'!$A$28:$AL$136,B$143,FALSE) -> 0.0007790295336 | C179: =VLOOKUP(Vlookup!$B138,'CDCM Volume Forecasts'!$A$28:$AL$136,C$143,FALSE) -> 0.0002209704664 | E179: =VLOOKUP(Vlookup!$B138,'CDCM Volume Forecasts'!$A$28:$AL$136,E$143,FALSE) -> 8.891114942e-06
A180: > LV Network Domestic
A181: LV Network Domestic | B181: =VLOOKUP(Vlookup!$B140,'CDCM Volume Forecasts'!$A$28:$AL$136,B$143,FALSE) -> 0.02203840235 | C181: =VLOOKUP(Vlookup!$B140,'CDCM Volume Forecasts'!$A$28:$AL$136,C$143,FALSE) -> 0.05600318601 | D181: =VLOOKUP(Vlookup!$B140,'CDCM Volume Forecasts'!$A$28:$AL$136,D$143,FALSE) -> 0.05289216565 | E181: =VLOOKUP(Vlookup!$B140,'CDCM Volume Forecasts'!$A$28:$AL$136,E$143,FALSE) -> 0.08493150685
A182: LDNO LV: LV Network Domestic | B182: =VLOOKUP(Vlookup!$B141,'CDCM Volume Forecasts'!$A$28:$AL$136,B$143,FALSE) -> 0 | C182: =VLOOKUP(Vlookup!$B141,'CDCM Volume Forecasts'!$A$28:$AL$136,C$143,FALSE) -> 0 | D182: =VLOOKUP(Vlookup!$B141,'CDCM Volume Forecasts'!$A$28:$AL$136,D$143,FALSE) -> 0 | E182: =VLOOKUP(Vlookup!$B141,'CDCM Volume Forecasts'!$A$28:$AL$136,E$143,FALSE) -> 0
A183: LDNO HV: LV Network Domestic | B183: =VLOOKUP(Vlookup!$B142,'CDCM Volume Forecasts'!$A$28:$AL$136,B$143,FALSE) -> 0 | C183: =VLOOKUP(Vlookup!$B142,'CDCM Volume Forecasts'!$A$28:$AL$136,C$143,FALSE) -> 0 | D183: =VLOOKUP(Vlookup!$B142,'CDCM Volume Forecasts'!$A$28:$AL$136,D$143,FALSE) -> 0 | E183: =VLOOKUP(Vlookup!$B142,'CDCM Volume Forecasts'!$A$28:$AL$136,E$143,FALSE) -> 0
A184: > LV Network Non-Domestic Non-CT
A185: LV Network Non-Domestic Non-CT | B185: =VLOOKUP(Vlookup!$B144,'CDCM Volume Forecasts'!$A$28:$AL$136,B$143,FALSE) -> 26809.77633 | C185: =VLOOKUP(Vlookup!$B144,'CDCM Volume Forecasts'!$A$28:$AL$136,C$143,FALSE) -> 198363.7567 | D185: =VLOOKUP(Vlookup!$B144,'CDCM Volume Forecasts'!$A$28:$AL$136,D$143,FALSE) -> 187790.9274 | E185: =VLOOKUP(Vlookup!$B144,'CDCM Volume Forecasts'!$A$28:$AL$136,E$143,FALSE) -> 6133.360412
A186: LDNO LV: LV Network Non-Domestic Non-CT | B186: =VLOOKUP(Vlookup!$B145,'CDCM Volume Forecasts'!$A$28:$AL$136,B$143,FALSE) -> 3.315741009 | C186: =VLOOKUP(Vlookup!$B145,'CDCM Volume Forecasts'!$A$28:$AL$136,C$143,FALSE) -> 24.61047773 | D186: =VLOOKUP(Vlookup!$B145,'CDCM Volume Forecasts'!$A$28:$AL$136,D$143,FALSE) -> 26.22781745 | E186: =VLOOKUP(Vlookup!$B145,'CDCM Volume Forecasts'!$A$28:$AL$136,E$143,FALSE) -> 1.130099192
A187: LDNO HV: LV Network Non-Domestic Non-CT | B187: =VLOOKUP(Vlookup!$B146,'CDCM Volume Forecasts'!$A$28:$AL$136,B$143,FALSE) -> 208.8552271 | C187: =VLOOKUP(Vlookup!$B146,'CDCM Volume Forecasts'!$A$28:$AL$136,C$143,FALSE) -> 1439.968803 | D187: =VLOOKUP(Vlookup!$B146,'CDCM Volume Forecasts'!$A$28:$AL$136,D$143,FALSE) -> 1182.412841 | E187: =VLOOKUP(Vlookup!$B146,'CDCM Volume Forecasts'!$A$28:$AL$136,E$143,FALSE) -> 39.90660546
A188: > LV HH Metered
A189: LV HH Metered | B189: =VLOOKUP(Vlookup!$B148,'CDCM Volume Forecasts'!$A$28:$AL$136,B$143,FALSE) -> 86224.93817 | C189: =VLOOKUP(Vlookup!$B148,'CDCM Volume Forecasts'!$A$28:$AL$136,C$143,FALSE) -> 626406.1163 | D189: =VLOOKUP(Vlookup!$B148,'CDCM Volume Forecasts'!$A$28:$AL$136,D$143,FALSE) -> 551384.4993 | E189: =VLOOKUP(Vlookup!$B148,'CDCM Volume Forecasts'!$A$28:$AL$136,E$143,FALSE) -> 6675.492152 | F189: =VLOOKUP(Vlookup!$B148,'CDCM Volume Forecasts'!$A$28:$AL$136,F$143,FALSE) -> 679119.4609 | G189: =VLOOKUP(Vlookup!$B148,'CDCM Volume Forecasts'!$A$28:$AL$136,G$143,FALSE) -> 12059.50975 | H189: =VLOOKUP(Vlookup!$B148,'CDCM Volume Forecasts'!$A$28:$AL$136,H$143,FALSE) -> 78582.10889
A190: LDNO LV: LV HH Metered | B190: =VLOOKUP(Vlookup!$B149,'CDCM Volume Forecasts'!$A$28:$AL$136,B$143,FALSE) -> 26.67019633 | C190: =VLOOKUP(Vlookup!$B149,'CDCM Volume Forecasts'!$A$28:$AL$136,C$143,FALSE) -> 184.9098752 | D190: =VLOOKUP(Vlookup!$B149,'CDCM Volume Forecasts'!$A$28:$AL$136,D$143,FALSE) -> 189.0490903 | E190: =VLOOKUP(Vlookup!$B149,'CDCM Volume Forecasts'!$A$28:$AL$136,E$143,FALSE) -> 3.648709712 | F190: =VLOOKUP(Vlookup!$B149,'CDCM Volume Forecasts'!$A$28:$AL$136,F$143,FALSE) -> 385.2056466 | G190: =VLOOKUP(Vlookup!$B149,'CDCM Volume Forecasts'!$A$28:$AL$136,G$143,FALSE) -> 0 | H190: =VLOOKUP(Vlookup!$B149,'CDCM Volume Forecasts'!$A$28:$AL$136,H$143,FALSE) -> 38.89349926
A191: LDNO HV: LV HH Metered | B191: =VLOOKUP(Vlookup!$B150,'CDCM Volume Forecasts'!$A$28:$AL$136,B$143,FALSE) -> 3033.516661 | C191: =VLOOKUP(Vlookup!$B150,'CDCM Volume Forecasts'!$A$28:$AL$136,C$143,FALSE) -> 19778.44449 | D191: =VLOOKUP(Vlookup!$B150,'CDCM Volume Forecasts'!$A$28:$AL$136,D$143,FALSE) -> 17104.93849 | E191: =VLOOKUP(Vlookup!$B150,'CDCM Volume Forecasts'!$A$28:$AL$136,E$143,FALSE) -> 102.5294473 | F191: =VLOOKUP(Vlookup!$B150,'CDCM Volume Forecasts'!$A$28:$AL$136,F$143,FALSE) -> 21251.92895 | G191: =VLOOKUP(Vlookup!$B150,'CDCM Volume Forecasts'!$A$28:$AL$136,G$143,FALSE) -> 85.51865959 | H191: =VLOOKUP(Vlookup!$B150,'CDCM Volume Forecasts'!$A$28:$AL$136,H$143,FALSE) -> 1726.237568
A192: > LV Sub HH Metered
A193: LV Sub HH Metered | B193: =VLOOKUP(Vlookup!$B152,'CDCM Volume Forecasts'!$A$28:$AL$136,B$143,FALSE) -> 49864.36837 | C193: =VLOOKUP(Vlookup!$B152,'CDCM Volume Forecasts'!$A$28:$AL$136,C$143,FALSE) -> 369689.8151 | D193: =VLOOKUP(Vlookup!$B152,'CDCM Volume Forecasts'!$A$28:$AL$136,D$143,FALSE) -> 340515.4834 | E193: =VLOOKUP(Vlookup!$B152,'CDCM Volume Forecasts'!$A$28:$AL$136,E$143,FALSE) -> 1936.985404 | F193: =VLOOKUP(Vlookup!$B152,'CDCM Volume Forecasts'!$A$28:$AL$136,F$143,FALSE) -> 364556.942 | G193: =VLOOKUP(Vlookup!$B152,'CDCM Volume Forecasts'!$A$28:$AL$136,G$143,FALSE) -> 5286.810989 | H193: =VLOOKUP(Vlookup!$B152,'CDCM Volume Forecasts'!$A$28:$AL$136,H$143,FALSE) -> 65191.5981
A194: LDNO HV: LV Sub HH Metered | B194: =VLOOKUP(Vlookup!$B153,'CDCM Volume Forecasts'!$A$28:$AL$136,B$143,FALSE) -> 7.353792898 | C194: =VLOOKUP(Vlookup!$B153,'CDCM Volume Forecasts'!$A$28:$AL$136,C$143,FALSE) -> 37.82020849 | D194: =VLOOKUP(Vlookup!$B153,'CDCM Volume Forecasts'!$A$28:$AL$136,D$143,FALSE) -> 52.29466674 | E194: =VLOOKUP(Vlookup!$B153,'CDCM Volume Forecasts'!$A$28:$AL$136,E$143,FALSE) -> 1.175899315 | F194: =VLOOKUP(Vlookup!$B153,'CDCM Volume Forecasts'!$A$28:$AL$136,F$143,FALSE) -> 626.7543349 | G194: =VLOOKUP(Vlookup!$B153,'CDCM Volume Forecasts'!$A$28:$AL$136,G$143,FALSE) -> 0 | H194: =VLOOKUP(Vlookup!$B153,'CDCM Volume Forecasts'!$A$28:$AL$136,H$143,FALSE) -> 1.4026005
A195: > HV HH Metered
A196: HV HH Metered | B196: =VLOOKUP(Vlookup!$B155,'CDCM Volume Forecasts'!$A$28:$AL$136,B$143,FALSE) -> 153504.2364 | C196: =VLOOKUP(Vlookup!$B155,'CDCM Volume Forecasts'!$A$28:$AL$136,C$143,FALSE) -> 1093420.33 | D196: =VLOOKUP(Vlookup!$B155,'CDCM Volume Forecasts'!$A$28:$AL$136,D$143,FALSE) -> 1183755.414 | E196: =VLOOKUP(Vlookup!$B155,'CDCM Volume Forecasts'!$A$28:$AL$136,E$143,FALSE) -> 1060.270603 | F196: =VLOOKUP(Vlookup!$B155,'CDCM Volume Forecasts'!$A$28:$AL$136,F$143,FALSE) -> 854296.8159 | G196: =VLOOKUP(Vlookup!$B155,'CDCM Volume Forecasts'!$A$28:$AL$136,G$143,FALSE) -> 14165.40125 | H196: =VLOOKUP(Vlookup!$B155,'CDCM Volume Forecasts'!$A$28:$AL$136,H$143,FALSE) -> 163805.2025
A197: LDNO HV: HV HH Metered | B197: =VLOOKUP(Vlookup!$B156,'CDCM Volume Forecasts'!$A$28:$AL$136,B$143,FALSE) -> 835.5652015 | C197: =VLOOKUP(Vlookup!$B156,'CDCM Volume Forecasts'!$A$28:$AL$136,C$143,FALSE) -> 5354.555457 | D197: =VLOOKUP(Vlookup!$B156,'CDCM Volume Forecasts'!$A$28:$AL$136,D$143,FALSE) -> 7404.628738 | E197: =VLOOKUP(Vlookup!$B156,'CDCM Volume Forecasts'!$A$28:$AL$136,E$143,FALSE) -> 7.714177397 | F197: =VLOOKUP(Vlookup!$B156,'CDCM Volume Forecasts'!$A$28:$AL$136,F$143,FALSE) -> 12519.13216 | G197: =VLOOKUP(Vlookup!$B156,'CDCM Volume Forecasts'!$A$28:$AL$136,G$143,FALSE) -> 0 | H197: =VLOOKUP(Vlookup!$B156,'CDCM Volume Forecasts'!$A$28:$AL$136,H$143,FALSE) -> 256.5251014
A198: > NHH UMS category A
A199: NHH UMS category A | B199: =VLOOKUP(Vlookup!$B158,'CDCM Volume Forecasts'!$A$28:$AL$136,B$143,FALSE) -> 10121.81187 | E199: =VLOOKUP(Vlookup!$B158,'CDCM Volume Forecasts'!$A$28:$AL$136,E$143,FALSE) -> 741
A200: LDNO LV: NHH UMS category A | B200: =VLOOKUP(Vlookup!$B159,'CDCM Volume Forecasts'!$A$28:$AL$136,B$143,FALSE) -> 136.7981202 | E200: =VLOOKUP(Vlookup!$B159,'CDCM Volume Forecasts'!$A$28:$AL$136,E$143,FALSE) -> 0
A201: LDNO HV: NHH UMS category A | B201: =VLOOKUP(Vlookup!$B160,'CDCM Volume Forecasts'!$A$28:$AL$136,B$143,FALSE) -> 23.736825 | E201: =VLOOKUP(Vlookup!$B160,'CDCM Volume Forecasts'!$A$28:$AL$136,E$143,FALSE) -> 0
A202: > NHH UMS category B
A203: NHH UMS category B | B203: =VLOOKUP(Vlookup!$B162,'CDCM Volume Forecasts'!$A$28:$AL$136,B$143,FALSE) -> 7712.971613 | E203: =VLOOKUP(Vlookup!$B162,'CDCM Volume Forecasts'!$A$28:$AL$136,E$143,FALSE) -> 689
A204: LDNO LV: NHH UMS category B | B204: =VLOOKUP(Vlookup!$B163,'CDCM Volume Forecasts'!$A$28:$AL$136,B$143,FALSE) -> 75.66701951 | E204: =VLOOKUP(Vlookup!$B163,'CDCM Volume Forecasts'!$A$28:$AL$136,E$143,FALSE) -> 0
A205: LDNO HV: NHH UMS category B | B205: =VLOOKUP(Vlookup!$B164,'CDCM Volume Forecasts'!$A$28:$AL$136,B$143,FALSE) -> 301.337486 | E205: =VLOOKUP(Vlookup!$B164,'CDCM Volume Forecasts'!$A$28:$AL$136,E$143,FALSE) -> 0
A206: > NHH UMS category C
A207: NHH UMS category C | B207: =VLOOKUP(Vlookup!$B166,'CDCM Volume Forecasts'!$A$28:$AL$136,B$143,FALSE) -> 989.1872896 | E207: =VLOOKUP(Vlookup!$B166,'CDCM Volume Forecasts'!$A$28:$AL$136,E$143,FALSE) -> 179
A208: LDNO LV: NHH UMS category C | B208: =VLOOKUP(Vlookup!$B167,'CDCM Volume Forecasts'!$A$28:$AL$136,B$143,FALSE) -> 5.135349957 | E208: =VLOOKUP(Vlookup!$B167,'CDCM Volume Forecasts'!$A$28:$AL$136,E$143,FALSE) -> 0
A209: LDNO HV: NHH UMS category C | B209: =VLOOKUP(Vlookup!$B168,'CDCM Volume Forecasts'!$A$28:$AL$136,B$143,FALSE) -> 2.988394681 | E209: =VLOOKUP(Vlookup!$B168,'CDCM Volume Forecasts'!$A$28:$AL$136,E$143,FALSE) -> 0
A210: > NHH UMS category D
A211: NHH UMS category D | B211: =VLOOKUP(Vlookup!$B170,'CDCM Volume Forecasts'!$A$28:$AL$136,B$143,FALSE) -> 0 | E211: =VLOOKUP(Vlookup!$B170,'CDCM Volume Forecasts'!$A$28:$AL$136,E$143,FALSE) -> 1
A212: LDNO LV: NHH UMS category D | B212: =VLOOKUP(Vlookup!$B171,'CDCM Volume Forecasts'!$A$28:$AL$136,B$143,FALSE) -> 0 | E212: =VLOOKUP(Vlookup!$B171,'CDCM Volume Forecasts'!$A$28:$AL$136,E$143,FALSE) -> 0
A213: LDNO HV: NHH UMS category D | B213: =VLOOKUP(Vlookup!$B172,'CDCM Volume Forecasts'!$A$28:$AL$136,B$143,FALSE) -> 0 | E213: =VLOOKUP(Vlookup!$B172,'CDCM Volume Forecasts'!$A$28:$AL$136,E$143,FALSE) -> 0
A214: > LV UMS (Pseudo HH Metered)
A215: LV UMS (Pseudo HH Metered) | B215: =VLOOKUP(Vlookup!$B174,'CDCM Volume Forecasts'!$A$28:$AL$136,B$143,FALSE) -> 4105.98595 | C215: =VLOOKUP(Vlookup!$B174,'CDCM Volume Forecasts'!$A$28:$AL$136,C$143,FALSE) -> 29544.03496 | D215: =VLOOKUP(Vlookup!$B174,'CDCM Volume Forecasts'!$A$28:$AL$136,D$143,FALSE) -> 79785.80463 | E215: =VLOOKUP(Vlookup!$B174,'CDCM Volume Forecasts'!$A$28:$AL$136,E$143,FALSE) -> 27.44416291
A216: LDNO LV: LV UMS (Pseudo HH Metered) | B216: =VLOOKUP(Vlookup!$B175,'CDCM Volume Forecasts'!$A$28:$AL$136,B$143,FALSE) -> 0 | C216: =VLOOKUP(Vlookup!$B175,'CDCM Volume Forecasts'!$A$28:$AL$136,C$143,FALSE) -> 0 | D216: =VLOOKUP(Vlookup!$B175,'CDCM Volume Forecasts'!$A$28:$AL$136,D$143,FALSE) -> 0 | E216: =VLOOKUP(Vlookup!$B175,'CDCM Volume Forecasts'!$A$28:$AL$136,E$143,FALSE) -> 0
A217: LDNO HV: LV UMS (Pseudo HH Metered) | B217: =VLOOKUP(Vlookup!$B176,'CDCM Volume Forecasts'!$A$28:$AL$136,B$143,FALSE) -> 1.582648648 | C217: =VLOOKUP(Vlookup!$B176,'CDCM Volume Forecasts'!$A$28:$AL$136,C$143,FALSE) -> 5.703542262 | D217: =VLOOKUP(Vlookup!$B176,'CDCM Volume Forecasts'!$A$28:$AL$136,D$143,FALSE) -> 35.25548461 | E217: =VLOOKUP(Vlookup!$B176,'CDCM Volume Forecasts'!$A$28:$AL$136,E$143,FALSE) -> 1.175899315
A218: > LV Generation NHH or Aggregate HH
A219: LV Generation NHH or Aggregate HH | B219: =VLOOKUP(Vlookup!$B178,'CDCM Volume Forecasts'!$A$28:$AL$136,B$143,FALSE) -> 3214.757827 | E219: =VLOOKUP(Vlookup!$B178,'CDCM Volume Forecasts'!$A$28:$AL$136,E$143,FALSE) -> 286
A220: LDNO LV: LV Generation NHH or Aggregate HH | B220: =VLOOKUP(Vlookup!$B179,'CDCM Volume Forecasts'!$A$28:$AL$136,B$143,FALSE) -> 132.8959217 | E220: =VLOOKUP(Vlookup!$B179,'CDCM Volume Forecasts'!$A$28:$AL$136,E$143,FALSE) -> 0
A221: LDNO HV: LV Generation NHH or Aggregate HH | B221: =VLOOKUP(Vlookup!$B180,'CDCM Volume Forecasts'!$A$28:$AL$136,B$143,FALSE) -> 0 | E221: =VLOOKUP(Vlookup!$B180,'CDCM Volume Forecasts'!$A$28:$AL$136,E$143,FALSE) -> 0
A222: > LV Sub Generation NHH
A223: LV Sub Generation NHH | B223: =VLOOKUP(Vlookup!$B182,'CDCM Volume Forecasts'!$A$28:$AL$136,B$143,FALSE) -> 92.07485688 | E223: =VLOOKUP(Vlookup!$B182,'CDCM Volume Forecasts'!$A$28:$AL$136,E$143,FALSE) -> 1
A224: LDNO HV: LV Sub Generation NHH | B224: =VLOOKUP(Vlookup!$B183,'CDCM Volume Forecasts'!$A$28:$AL$136,B$143,FALSE) -> 0 | E224: =VLOOKUP(Vlookup!$B183,'CDCM Volume Forecasts'!$A$28:$AL$136,E$143,FALSE) -> 0
A225: > LV Generation Intermittent
A226: LV Generation Intermittent | B226: =VLOOKUP(Vlookup!$B185,'CDCM Volume Forecasts'!$A$28:$AL$136,B$143,FALSE) -> 78529.09504 | E226: =VLOOKUP(Vlookup!$B185,'CDCM Volume Forecasts'!$A$28:$AL$136,E$143,FALSE) -> 887.0263253 | H226: =VLOOKUP(Vlookup!$B185,'CDCM Volume Forecasts'!$A$28:$AL$136,H$143,FALSE) -> 6221.859222
A227: LDNO LV: LV Generation Intermittent | B227: =VLOOKUP(Vlookup!$B186,'CDCM Volume Forecasts'!$A$28:$AL$136,B$143,FALSE) -> 0 | E227: =VLOOKUP(Vlookup!$B186,'CDCM Volume Forecasts'!$A$28:$AL$136,E$143,FALSE) -> 0 | H227: =VLOOKUP(Vlookup!$B186,'CDCM Volume Forecasts'!$A$28:$AL$136,H$143,FALSE) -> 0
A228: LDNO HV: LV Generation Intermittent | B228: =VLOOKUP(Vlookup!$B187,'CDCM Volume Forecasts'!$A$28:$AL$136,B$143,FALSE) -> 1158.498151 | E228: =VLOOKUP(Vlookup!$B187,'CDCM Volume Forecasts'!$A$28:$AL$136,E$143,FALSE) -> 3.263473973 | H228: =VLOOKUP(Vlookup!$B187,'CDCM Volume Forecasts'!$A$28:$AL$136,H$143,FALSE) -> 14.61924824
... 99 more rows

Sheet (Y+1)
A1: Input data (Y+1)
A4: 1000. Company, charging year, data version
B6: Company | C6: Year | D6: Version
A7: Company, charging year, data version | B7: =VLOOKUP(Vlookup!B7,'CDCM Forecast Data'!$A$14:$I$271,6,FALSE) -> 0 | C7: =VLOOKUP(Vlookup!C7,'CDCM Forecast Data'!$A$14:$I$271,6,FALSE) -> 0 | D7: =VLOOKUP(Vlookup!D7,'CDCM Forecast Data'!$A$14:$I$271,6,FALSE) -> 0
A9: 1010. Financial and general assumptions
A11: Sources: financial assumptions; calendar; network model.
A12: These financial assumptions determine the annuity rate applied to convert the asset values of the network model into an annual charge.
B13: Rate of return | C13: Annualisation period (years) | D13: Annuity proportion for customer-contributed assets | E13: Power factor | F13: Days in the charging period
A14: Financial and general assumptions | B14: =VLOOKUP(Vlookup!B14,'CDCM Forecast Data'!$A$14:$I$271,6,FALSE) -> 0.0421 | C14: =VLOOKUP(Vlookup!C14,'CDCM Forecast Data'!$A$14:$I$271,6,FALSE) -> 40 | E14: =VLOOKUP(Vlookup!E14,'CDCM Forecast Data'!$A$14:$I$271,6,FALSE) -> 0.95 | F14: =VLOOKUP(Vlookup!F14,'CDCM Forecast Data'!$A$14:$I$271,6,FALSE) -> 365
A16: 1017. Diversity allowance between top and bottom of network level
A18: Source: operational data analysis and/or network model.
A19: The diversity figure against GSP is the diversity between GSP Group (the whole system) and individual GSPs.
A20: The diversity figure against 132kV is the diversity between GSPs (the top of the 132kV network) and 132kV/EHV bulk supply points (the bottom of the 132kV network).
A21: The diversity figure against EHV is the diversity between 132kV/EHV bulk supply points (the top of the EHV network) and EHV/HV primary substations (the bottom of the EHV network).
A22: The diversity figure against HV is the diversity between EHV/HV primary substations (the top of the HV network) and HV/LV substations (the bottom of the HV network).
B23: Diversity allowance between top and bottom of network level
A24: GSPs | B24: =VLOOKUP(Vlookup!B24,'CDCM Forecast Data'!$A$14:$I$271,6,FALSE) -> 0.022
A25: 132kV | B25: =VLOOKUP(Vlookup!B25,'CDCM Forecast Data'!$A$14:$I$271,6,FALSE) -> 0.031
A26: 132kV/EHV
A27: EHV | B27: =VLOOKUP(Vlookup!B27,'CDCM Forecast Data'!$A$14:$I$271,6,FALSE) -> 0.075
A28: EHV/HV
A29: HV | B29: =VLOOKUP(Vlookup!B29,'CDCM Forecast Data'!$A$14:$I$271,6,FALSE) -> 0.37
A30: HV/LV
A31: LV circuits
A33: 1018. Proportion of relevant load going through 132kV/HV direct transformation
B35: 132kV/HV
A36: EHV/HV | B36: =VLOOKUP(Vlookup!B36,'CDCM Forecast Data'!$A$14:$I$271,6,FALSE) -> 0
A38: 1019. Network model GSP peak demand (MW)
B40: Network model GSP peak demand (MW)
A41: Network model GSP peak demand (MW) | B41: =VLOOKUP(Vlookup!B41,'CDCM Forecast Data'!$A$14:$I$271,6,FALSE) -> 500
A43: 1020. Gross asset cost by network level (£)
B45: Gross assets £
A46: 132kV | B46: =VLOOKUP(Vlookup!B46,'CDCM Forecast Data'!$A$14:$I$271,6,FALSE) -> 121964810.8
A47: 132kV/EHV | B47: =VLOOKUP(Vlookup!B47,'CDCM Forecast Data'!$A$14:$I$271,6,FALSE) -> 17275004.23
A48: EHV | B48: =VLOOKUP(Vlookup!B48,'CDCM Forecast Data'!$A$14:$I$271,6,FALSE) -> 43610695.92
A49: EHV/HV | B49: =VLOOKUP(Vlookup!B49,'CDCM Forecast Data'!$A$14:$I$271,6,FALSE) -> 43830764.23
A50: 132kV/HV | B50: =VLOOKUP(Vlookup!B50,'CDCM Forecast Data'!$A$14:$I$271,6,FALSE) -> 0
A51: HV | B51: =VLOOKUP(Vlookup!B51,'CDCM Forecast Data'!$A$14:$I$271,6,FALSE) -> 156099204.3
A52: HV/LV | B52: =VLOOKUP(Vlookup!B52,'CDCM Forecast Data'!$A$14:$I$271,6,FALSE) -> 66520556.53
A53: LV circuits | B53: =VLOOKUP(Vlookup!B53,'CDCM Forecast Data'!$A$14:$I$271,6,FALSE) -> 142868591
A55: 1022. LV service model asset cost (£)
B57: LV service model 1 | C57: LV service model 2 | D57: LV service model 3 | E57: LV service model 4 | F57: LV service model 5 | G57: LV service model 6 | H57: LV service model 7 | I57: LV service model 8
A58: LV service model asset cost (£) | B58: =VLOOKUP(Vlookup!B58,'CDCM Forecast Data'!$A$14:$I$271,6,FALSE) -> 5588.33515 | C58: =VLOOKUP(Vlookup!C58,'CDCM Forecast Data'!$A$14:$I$271,6,FALSE) -> 628.6318329 | D58: =VLOOKUP(Vlookup!D58,'CDCM Forecast Data'!$A$14:$I$271,6,FALSE) -> 765.3547778 | E58: =VLOOKUP(Vlookup!E58,'CDCM Forecast Data'!$A$14:$I$271,6,FALSE) -> 567.6023854 | F58: =VLOOKUP(Vlookup!F58,'CDCM Forecast Data'!$A$14:$I$271,6,FALSE) -> 1290.286538 | G58: =VLOOKUP(Vlookup!G58,'CDCM Forecast Data'!$A$14:$I$271,6,FALSE) -> 993.7955807 | H58: =VLOOKUP(Vlookup!H58,'CDCM Forecast Data'!$A$14:$I$271,6,FALSE) -> 0 | I58: =VLOOKUP(Vlookup!I58,'CDCM Forecast Data'!$A$14:$I$271,6,FALSE) -> 519.7608867
A60: 1023. HV service model asset cost (£)
B62: HV service model 1 | C62: HV service model 2 | D62: HV service model 3 | E62: HV service model 4 | F62: HV service model 5
A63: HV service model asset cost (£) | B63: =VLOOKUP(Vlookup!B63,'CDCM Forecast Data'!$A$14:$I$271,6,FALSE) -> 9859.605327 | C63: =VLOOKUP(Vlookup!C63,'CDCM Forecast Data'!$A$14:$I$271,6,FALSE) -> 4753.648797 | D63: =VLOOKUP(Vlookup!D63,'CDCM Forecast Data'!$A$14:$I$271,6,FALSE) -> 0 | E63: =VLOOKUP(Vlookup!E63,'CDCM Forecast Data'!$A$14:$I$271,6,FALSE) -> 0 | F63: =VLOOKUP(Vlookup!F63,'CDCM Forecast Data'!$A$14:$I$271,6,FALSE) -> 0
A65: 1025. Matrix of applicability of LV service models to tariffs with fixed charges
B66: 10 | C66: =B66+1 -> 11 | D66: 12 | E66: 13 | F66: 14 | G66: 15 | H66: 16 | I66: 17
B67: LV service model 1 | C67: LV service model 2 | D67: LV service model 3 | E67: LV service model 4 | F67: LV service model 5 | G67: LV service model 6 | H67: LV service model 7 | I67: LV service model 8
A68: Domestic Unrestricted | B68: =VLOOKUP($A68,'Mat of App'!$B$7:$AP$43,B$66,FALSE) -> 0.05 | C68: =VLOOKUP($A68,'Mat of App'!$B$7:$AP$43,C$66,FALSE) -> 0 | D68: =VLOOKUP($A68,'Mat of App'!$B$7:$AP$43,D$66,FALSE) -> 0 | E68: =VLOOKUP($A68,'Mat of App'!$B$7:$AP$43,E$66,FALSE) -> 0 | F68: =VLOOKUP($A68,'Mat of App'!$B$7:$AP$43,F$66,FALSE) -> 0 | G68: =VLOOKUP($A68,'Mat of App'!$B$7:$AP$43,G$66,FALSE) -> 0 | H68: =VLOOKUP($A68,'Mat of App'!$B$7:$AP$43,H$66,FALSE) -> 0 | I68: =VLOOKUP($A68,'Mat of App'!$B$7:$AP$43,I$66,FALSE) -> 0
A69: Domestic Two Rate | B69: =VLOOKUP($A69,'Mat of App'!$B$7:$AP$43,B$66,FALSE) -> 0.05 | C69: =VLOOKUP($A69,'Mat of App'!$B$7:$AP$43,C$66,FALSE) -> 0 | D69: =VLOOKUP($A69,'Mat of App'!$B$7:$AP$43,D$66,FALSE) -> 0 | E69: =VLOOKUP($A69,'Mat of App'!$B$7:$AP$43,E$66,FALSE) -> 0 | F69: =VLOOKUP($A69,'Mat of App'!$B$7:$AP$43,F$66,FALSE) -> 0 | G69: =VLOOKUP($A69,'Mat of App'!$B$7:$AP$43,G$66,FALSE) -> 0 | H69: =VLOOKUP($A69,'Mat of App'!$B$7:$AP$43,H$66,FALSE) -> 0 | I69: =VLOOKUP($A69,'Mat of App'!$B$7:$AP$43,I$66,FALSE) -> 0
A70: Small Non Domestic Unrestricted | B70: =VLOOKUP($A70,'Mat of App'!$B$7:$AP$43,B$66,FALSE) -> 0 | C70: =VLOOKUP($A70,'Mat of App'!$B$7:$AP$43,C$66,FALSE) -> 1 | D70: =VLOOKUP($A70,'Mat of App'!$B$7:$AP$43,D$66,FALSE) -> 0 | E70: =VLOOKUP($A70,'Mat of App'!$B$7:$AP$43,E$66,FALSE) -> 0 | F70: =VLOOKUP($A70,'Mat of App'!$B$7:$AP$43,F$66,FALSE) -> 0 | G70: =VLOOKUP($A70,'Mat of App'!$B$7:$AP$43,G$66,FALSE) -> 0 | H70: =VLOOKUP($A70,'Mat of App'!$B$7:$AP$43,H$66,FALSE) -> 0 | I70: =VLOOKUP($A70,'Mat of App'!$B$7:$AP$43,I$66,FALSE) -> 0
A71: Small Non Domestic Two Rate | B71: =VLOOKUP($A71,'Mat of App'!$B$7:$AP$43,B$66,FALSE) -> 0 | C71: =VLOOKUP($A71,'Mat of App'!$B$7:$AP$43,C$66,FALSE) -> 1 | D71: =VLOOKUP($A71,'Mat of App'!$B$7:$AP$43,D$66,FALSE) -> 0 | E71: =VLOOKUP($A71,'Mat of App'!$B$7:$AP$43,E$66,FALSE) -> 0 | F71: =VLOOKUP($A71,'Mat of App'!$B$7:$AP$43,F$66,FALSE) -> 0 | G71: =VLOOKUP($A71,'Mat of App'!$B$7:$AP$43,G$66,FALSE) -> 0 | H71: =VLOOKUP($A71,'Mat of App'!$B$7:$AP$43,H$66,FALSE) -> 0 | I71: =VLOOKUP($A71,'Mat of App'!$B$7:$AP$43,I$66,FALSE) -> 0
A72: LV Medium Non-Domestic | B72: =VLOOKUP($A72,'Mat of App'!$B$7:$AP$43,B$66,FALSE) -> 0 | C72: =VLOOKUP($A72,'Mat of App'!$B$7:$AP$43,C$66,FALSE) -> 0 | D72: =VLOOKUP($A72,'Mat of App'!$B$7:$AP$43,D$66,FALSE) -> 1 | E72: =VLOOKUP($A72,'Mat of App'!$B$7:$AP$43,E$66,FALSE) -> 0 | F72: =VLOOKUP($A72,'Mat of App'!$B$7:$AP$43,F$66,FALSE) -> 0 | G72: =VLOOKUP($A72,'Mat of App'!$B$7:$AP$43,G$66,FALSE) -> 0 | H72: =VLOOKUP($A72,'Mat of App'!$B$7:$AP$43,H$66,FALSE) -> 0 | I72: =VLOOKUP($A72,'Mat of App'!$B$7:$AP$43,I$66,FALSE) -> 0
A73: LV Sub Medium Non-Domestic | B73: =VLOOKUP($A73,'Mat of App'!$B$7:$AP$43,B$66,FALSE) -> 0 | C73: =VLOOKUP($A73,'Mat of App'!$B$7:$AP$43,C$66,FALSE) -> 0 | D73: =VLOOKUP($A73,'Mat of App'!$B$7:$AP$43,D$66,FALSE) -> 0 | E73: =VLOOKUP($A73,'Mat of App'!$B$7:$AP$43,E$66,FALSE) -> 1 | F73: =VLOOKUP($A73,'Mat of App'!$B$7:$AP$43,F$66,FALSE) -> 0 | G73: =VLOOKUP($A73,'Mat of App'!$B$7:$AP$43,G$66,FALSE) -> 0 | H73: =VLOOKUP($A73,'Mat of App'!$B$7:$AP$43,H$66,FALSE) -> 0 | I73: =VLOOKUP($A73,'Mat of App'!$B$7:$AP$43,I$66,FALSE) -> 0
A74: LV Network Domestic | B74: =VLOOKUP($A74,'Mat of App'!$B$7:$AP$43,B$66,FALSE) -> 0.05 | C74: =VLOOKUP($A74,'Mat of App'!$B$7:$AP$43,C$66,FALSE) -> 0 | D74: =VLOOKUP($A74,'Mat of App'!$B$7:$AP$43,D$66,FALSE) -> 0 | E74: =VLOOKUP($A74,'Mat of App'!$B$7:$AP$43,E$66,FALSE) -> 0 | F74: =VLOOKUP($A74,'Mat of App'!$B$7:$AP$43,F$66,FALSE) -> 0 | G74: =VLOOKUP($A74,'Mat of App'!$B$7:$AP$43,G$66,FALSE) -> 0 | H74: =VLOOKUP($A74,'Mat of App'!$B$7:$AP$43,H$66,FALSE) -> 0 | I74: =VLOOKUP($A74,'Mat of App'!$B$7:$AP$43,I$66,FALSE) -> 0
A75: LV Network Non-Domestic Non-CT | B75: =VLOOKUP($A75,'Mat of App'!$B$7:$AP$43,B$66,FALSE) -> 0 | C75: =VLOOKUP($A75,'Mat of App'!$B$7:$AP$43,C$66,FALSE) -> 1 | D75: =VLOOKUP($A75,'Mat of App'!$B$7:$AP$43,D$66,FALSE) -> 0 | E75: =VLOOKUP($A75,'Mat of App'!$B$7:$AP$43,E$66,FALSE) -> 0 | F75: =VLOOKUP($A75,'Mat of App'!$B$7:$AP$43,F$66,FALSE) -> 0 | G75: =VLOOKUP($A75,'Mat of App'!$B$7:$AP$43,G$66,FALSE) -> 0 | H75: =VLOOKUP($A75,'Mat of App'!$B$7:$AP$43,H$66,FALSE) -> 0 | I75: =VLOOKUP($A75,'Mat of App'!$B$7:$AP$43,I$66,FALSE) -> 0
A76: LV HH Metered | B76: =VLOOKUP($A76,'Mat of App'!$B$7:$AP$43,B$66,FALSE) -> 0 | C76: =VLOOKUP($A76,'Mat of App'!$B$7:$AP$43,C$66,FALSE) -> 0 | D76: =VLOOKUP($A76,'Mat of App'!$B$7:$AP$43,D$66,FALSE) -> 0 | E76: =VLOOKUP($A76,'Mat of App'!$B$7:$AP$43,E$66,FALSE) -> 0 | F76: =VLOOKUP($A76,'Mat of App'!$B$7:$AP$43,F$66,FALSE) -> 1 | G76: =VLOOKUP($A76,'Mat of App'!$B$7:$AP$43,G$66,FALSE) -> 0 | H76: =VLOOKUP($A76,'Mat of App'!$B$7:$AP$43,H$66,FALSE) -> 0 | I76: =VLOOKUP($A76,'Mat of App'!$B$7:$AP$43,I$66,FALSE) -> 0
A77: LV Sub HH Metered | B77: =VLOOKUP($A77,'Mat of App'!$B$7:$AP$43,B$66,FALSE) -> 0 | C77: =VLOOKUP($A77,'Mat of App'!$B$7:$AP$43,C$66,FALSE) -> 0 | D77: =VLOOKUP($A77,'Mat of App'!$B$7:$AP$43,D$66,FALSE) -> 0 | E77: =VLOOKUP($A77,'Mat of App'!$B$7:$AP$43,E$66,FALSE) -> 0 | F77: =VLOOKUP($A77,'Mat of App'!$B$7:$AP$43,F$66,FALSE) -> 0 | G77: =VLOOKUP($A77,'Mat of App'!$B$7:$AP$43,G$66,FALSE) -> 1 | H77: =VLOOKUP($A77,'Mat of App'!$B$7:$AP$43,H$66,FALSE) -> 0 | I77: =VLOOKUP($A77,'Mat of App'!$B$7:$AP$43,I$66,FALSE) -> 0
A78: LV Generation NHH or Aggregate HH | B78: =VLOOKUP($A78,'Mat of App'!$B$7:$AP$43,B$66,FALSE) -> 0 | C78: =VLOOKUP($A78,'Mat of App'!$B$7:$AP$43,C$66,FALSE) -> 0 | D78: =VLOOKUP($A78,'Mat of App'!$B$7:$AP$43,D$66,FALSE) -> 0 | E78: =VLOOKUP($A78,'Mat of App'!$B$7:$AP$43,E$66,FALSE) -> 0 | F78: =VLOOKUP($A78,'Mat of App'!$B$7:$AP$43,F$66,FALSE) -> 0 | G78: =VLOOKUP($A78,'Mat of App'!$B$7:$AP$43,G$66,FALSE) -> 0 | H78: =VLOOKUP($A78,'Mat of App'!$B$7:$AP$43,H$66,FALSE) -> 1 | I78: =VLOOKUP($A78,'Mat of App'!$B$7:$AP$43,I$66,FALSE) -> 0
A79: LV Sub Generation NHH | B79: =VLOOKUP($A79,'Mat of App'!$B$7:$AP$43,B$66,FALSE) -> 0 | C79: =VLOOKUP($A79,'Mat of App'!$B$7:$AP$43,C$66,FALSE) -> 0 | D79: =VLOOKUP($A79,'Mat of App'!$B$7:$AP$43,D$66,FALSE) -> 0 | E79: =VLOOKUP($A79,'Mat of App'!$B$7:$AP$43,E$66,FALSE) -> 0 | F79: =VLOOKUP($A79,'Mat of App'!$B$7:$AP$43,F$66,FALSE) -> 0 | G79: =VLOOKUP($A79,'Mat of App'!$B$7:$AP$43,G$66,FALSE) -> 0 | H79: =VLOOKUP($A79,'Mat of App'!$B$7:$AP$43,H$66,FALSE) -> 1 | I79: =VLOOKUP($A79,'Mat of App'!$B$7:$AP$43,I$66,FALSE) -> 0
A80: LV Generation Intermittent | B80: =VLOOKUP($A80,'Mat of App'!$B$7:$AP$43,B$66,FALSE) -> 0 | C80: =VLOOKUP($A80,'Mat of App'!$B$7:$AP$43,C$66,FALSE) -> 0 | D80: =VLOOKUP($A80,'Mat of App'!$B$7:$AP$43,D$66,FALSE) -> 0 | E80: =VLOOKUP($A80,'Mat of App'!$B$7:$AP$43,E$66,FALSE) -> 0 | F80: =VLOOKUP($A80,'Mat of App'!$B$7:$AP$43,F$66,FALSE) -> 0 | G80: =VLOOKUP($A80,'Mat of App'!$B$7:$AP$43,G$66,FALSE) -> 0 | H80: =VLOOKUP($A80,'Mat of App'!$B$7:$AP$43,H$66,FALSE) -> 1 | I80: =VLOOKUP($A80,'Mat of App'!$B$7:$AP$43,I$66,FALSE) -> 0
A81: LV Generation Intermittent no RP charge | B81: =VLOOKUP($A81,'Mat of App'!$B$7:$AP$43,B$66,FALSE) -> 0 | C81: =VLOOKUP($A81,'Mat of App'!$B$7:$AP$43,C$66,FALSE) -> 0 | D81: =VLOOKUP($A81,'Mat of App'!$B$7:$AP$43,D$66,FALSE) -> 0 | E81: =VLOOKUP($A81,'Mat of App'!$B$7:$AP$43,E$66,FALSE) -> 0 | F81: =VLOOKUP($A81,'Mat of App'!$B$7:$AP$43,F$66,FALSE) -> 0 | G81: =VLOOKUP($A81,'Mat of App'!$B$7:$AP$43,G$66,FALSE) -> 0 | H81: =VLOOKUP($A81,'Mat of App'!$B$7:$AP$43,H$66,FALSE) -> 1 | I81: =VLOOKUP($A81,'Mat of App'!$B$7:$AP$43,I$66,FALSE) -> 0
A82: LV Generation Non-Intermittent | B82: =VLOOKUP($A82,'Mat of App'!$B$7:$AP$43,B$66,FALSE) -> 0 | C82: =VLOOKUP($A82,'Mat of App'!$B$7:$AP$43,C$66,FALSE) -> 0 | D82: =VLOOKUP($A82,'Mat of App'!$B$7:$AP$43,D$66,FALSE) -> 0 | E82: =VLOOKUP($A82,'Mat of App'!$B$7:$AP$43,E$66,FALSE) -> 0 | F82: =VLOOKUP($A82,'Mat of App'!$B$7:$AP$43,F$66,FALSE) -> 0 | G82: =VLOOKUP($A82,'Mat of App'!$B$7:$AP$43,G$66,FALSE) -> 0 | H82: =VLOOKUP($A82,'Mat of App'!$B$7:$AP$43,H$66,FALSE) -> 0 | I82: =VLOOKUP($A82,'Mat of App'!$B$7:$AP$43,I$66,FALSE) -> 0
A83: LV Generation Non-Intermittent no RP charge | B83: =VLOOKUP($A83,'Mat of App'!$B$7:$AP$43,B$66,FALSE) -> 0 | C83: =VLOOKUP($A83,'Mat of App'!$B$7:$AP$43,C$66,FALSE) -> 0 | D83: =VLOOKUP($A83,'Mat of App'!$B$7:$AP$43,D$66,FALSE) -> 0 | E83: =VLOOKUP($A83,'Mat of App'!$B$7:$AP$43,E$66,FALSE) -> 0 | F83: =VLOOKUP($A83,'Mat of App'!$B$7:$AP$43,F$66,FALSE) -> 0 | G83: =VLOOKUP($A83,'Mat of App'!$B$7:$AP$43,G$66,FALSE) -> 0 | H83: =VLOOKUP($A83,'Mat of App'!$B$7:$AP$43,H$66,FALSE) -> 0 | I83: =VLOOKUP($A83,'Mat of App'!$B$7:$AP$43,I$66,FALSE) -> 0
A84: LV Sub Generation Intermittent | B84: =VLOOKUP($A84,'Mat of App'!$B$7:$AP$43,B$66,FALSE) -> 0 | C84: =VLOOKUP($A84,'Mat of App'!$B$7:$AP$43,C$66,FALSE) -> 0 | D84: =VLOOKUP($A84,'Mat of App'!$B$7:$AP$43,D$66,FALSE) -> 0 | E84: =VLOOKUP($A84,'Mat of App'!$B$7:$AP$43,E$66,FALSE) -> 0 | F84: =VLOOKUP($A84,'Mat of App'!$B$7:$AP$43,F$66,FALSE) -> 0 | G84: =VLOOKUP($A84,'Mat of App'!$B$7:$AP$43,G$66,FALSE) -> 0 | H84: =VLOOKUP($A84,'Mat of App'!$B$7:$AP$43,H$66,FALSE) -> 0 | I84: =VLOOKUP($A84,'Mat of App'!$B$7:$AP$43,I$66,FALSE) -> 0
A85: LV Sub Generation Intermittent no RP charge | B85: =VLOOKUP($A85,'Mat of App'!$B$7:$AP$43,B$66,FALSE) -> 0 | C85: =VLOOKUP($A85,'Mat of App'!$B$7:$AP$43,C$66,FALSE) -> 0 | D85: =VLOOKUP($A85,'Mat of App'!$B$7:$AP$43,D$66,FALSE) -> 0 | E85: =VLOOKUP($A85,'Mat of App'!$B$7:$AP$43,E$66,FALSE) -> 0 | F85: =VLOOKUP($A85,'Mat of App'!$B$7:$AP$43,F$66,FALSE) -> 0 | G85: =VLOOKUP($A85,'Mat of App'!$B$7:$AP$43,G$66,FALSE) -> 0 | H85: =VLOOKUP($A85,'Mat of App'!$B$7:$AP$43,H$66,FALSE) -> 0 | I85: =VLOOKUP($A85,'Mat of App'!$B$7:$AP$43,I$66,FALSE) -> 0
A86: LV Sub Generation Non-Intermittent | B86: =VLOOKUP($A86,'Mat of App'!$B$7:$AP$43,B$66,FALSE) -> 0 | C86: =VLOOKUP($A86,'Mat of App'!$B$7:$AP$43,C$66,FALSE) -> 0 | D86: =VLOOKUP($A86,'Mat of App'!$B$7:$AP$43,D$66,FALSE) -> 0 | E86: =VLOOKUP($A86,'Mat of App'!$B$7:$AP$43,E$66,FALSE) -> 0 | F86: =VLOOKUP($A86,'Mat of App'!$B$7:$AP$43,F$66,FALSE) -> 0 | G86: =VLOOKUP($A86,'Mat of App'!$B$7:$AP$43,G$66,FALSE) -> 0 | H86: =VLOOKUP($A86,'Mat of App'!$B$7:$AP$43,H$66,FALSE) -> 0 | I86: =VLOOKUP($A86,'Mat of App'!$B$7:$AP$43,I$66,FALSE) -> 0
A87: LV Sub Generation Non-Intermittent no RP charge | B87: =VLOOKUP($A87,'Mat of App'!$B$7:$AP$43,B$66,FALSE) -> 0 | C87: =VLOOKUP($A87,'Mat of App'!$B$7:$AP$43,C$66,FALSE) -> 0 | D87: =VLOOKUP($A87,'Mat of App'!$B$7:$AP$43,D$66,FALSE) -> 0 | E87: =VLOOKUP($A87,'Mat of App'!$B$7:$AP$43,E$66,FALSE) -> 0 | F87: =VLOOKUP($A87,'Mat of App'!$B$7:$AP$43,F$66,FALSE) -> 0 | G87: =VLOOKUP($A87,'Mat of App'!$B$7:$AP$43,G$66,FALSE) -> 0 | H87: =VLOOKUP($A87,'Mat of App'!$B$7:$AP$43,H$66,FALSE) -> 0 | I87: =VLOOKUP($A87,'Mat of App'!$B$7:$AP$43,I$66,FALSE) -> 0
A89: 1026. Matrix of applicability of LV service models to unmetered tariffs
A91: Source: service models
A92: Proportion of service model involved in connecting load of 1 MWh/year
B93: LV service model 1 | C93: LV service model 2 | D93: LV service model 3 | E93: LV service model 4 | F93: LV service model 5 | G93: LV service model 6 | H93: LV service model 7 | I93: LV service model 8
A94: All LV unmetered tariffs | B94: =VLOOKUP($A94,'Mat of App'!$B$7:$AP$43,B$66,FALSE) -> 0 | C94: =VLOOKUP($A94,'Mat of App'!$B$7:$AP$43,C$66,FALSE) -> 0 | D94: =VLOOKUP($A94,'Mat of App'!$B$7:$AP$43,D$66,FALSE) -> 0 | E94: =VLOOKUP($A94,'Mat of App'!$B$7:$AP$43,E$66,FALSE) -> 0 | F94: =VLOOKUP($A94,'Mat of App'!$B$7:$AP$43,F$66,FALSE) -> 0 | G94: =VLOOKUP($A94,'Mat of App'!$B$7:$AP$43,G$66,FALSE) -> 0 | H94: =VLOOKUP($A94,'Mat of App'!$B$7:$AP$43,H$66,FALSE) -> 0 | I94: =VLOOKUP($A94,'Mat of App'!$B$7:$AP$43,I$66,FALSE) -> 0.488
A96: 1028. Matrix of applicability of HV service models to tariffs with fixed charges
B97: 7 | C97: =B97+1 -> 8 | D97: =C97+1 -> 9 | E97: =D97+1 -> 10 | F97: =E97+1 -> 11
B98: HV service model 1 | C98: HV service model 2 | D98: HV service model 3 | E98: HV service model 4 | F98: HV service model 5
A99: HV Medium Non-Domestic | B99: =VLOOKUP($A99,'Mat of App'!$B$7:$AP$43,B$97,FALSE) -> 1 | C99: =VLOOKUP($A99,'Mat of App'!$B$7:$AP$43,C$97,FALSE) -> 0 | D99: =VLOOKUP($A99,'Mat of App'!$B$7:$AP$43,D$97,FALSE) -> 0 | E99: =VLOOKUP($A99,'Mat of App'!$B$7:$AP$43,E$97,FALSE) -> 0 | F99: =VLOOKUP($A99,'Mat of App'!$B$7:$AP$43,F$97,FALSE) -> 0
A100: HV HH Metered | B100: =VLOOKUP($A100,'Mat of App'!$B$7:$AP$43,B$97,FALSE) -> 1 | C100: =VLOOKUP($A100,'Mat of App'!$B$7:$AP$43,C$97,FALSE) -> 0 | D100: =VLOOKUP($A100,'Mat of App'!$B$7:$AP$43,D$97,FALSE) -> 0 | E100: =VLOOKUP($A100,'Mat of App'!$B$7:$AP$43,E$97,FALSE) -> 0 | F100: =VLOOKUP($A100,'Mat of App'!$B$7:$AP$43,F$97,FALSE) -> 0
A101: HV Generation Intermittent | B101: =VLOOKUP($A101,'Mat of App'!$B$7:$AP$43,B$97,FALSE) -> 0 | C101: =VLOOKUP($A101,'Mat of App'!$B$7:$AP$43,C$97,FALSE) -> 1 | D101: =VLOOKUP($A101,'Mat of App'!$B$7:$AP$43,D$97,FALSE) -> 0 | E101: =VLOOKUP($A101,'Mat of App'!$B$7:$AP$43,E$97,FALSE) -> 0 | F101: =VLOOKUP($A101,'Mat of App'!$B$7:$AP$43,F$97,FALSE) -> 0
A102: HV Generation Intermittent no RP charge | B102: =VLOOKUP($A102,'Mat of App'!$B$7:$AP$43,B$97,FALSE) -> 0 | C102: =VLOOKUP($A102,'Mat of App'!$B$7:$AP$43,C$97,FALSE) -> 1 | D102: =VLOOKUP($A102,'Mat of App'!$B$7:$AP$43,D$97,FALSE) -> 0 | E102: =VLOOKUP($A102,'Mat of App'!$B$7:$AP$43,E$97,FALSE) -> 0 | F102: =VLOOKUP($A102,'Mat of App'!$B$7:$AP$43,F$97,FALSE) -> 0
A103: HV Generation Non-Intermittent | B103: =VLOOKUP($A103,'Mat of App'!$B$7:$AP$43,B$97,FALSE) -> 0 | C103: =VLOOKUP($A103,'Mat of App'!$B$7:$AP$43,C$97,FALSE) -> 1 | D103: =VLOOKUP($A103,'Mat of App'!$B$7:$AP$43,D$97,FALSE) -> 0 | E103: =VLOOKUP($A103,'Mat of App'!$B$7:$AP$43,E$97,FALSE) -> 0 | F103: =VLOOKUP($A103,'Mat of App'!$B$7:$AP$43,F$97,FALSE) -> 0
A104: HV Generation Non-Intermittent no RP charge | B104: =VLOOKUP($A104,'Mat of App'!$B$7:$AP$43,B$97,FALSE) -> 0 | C104: =VLOOKUP($A104,'Mat of App'!$B$7:$AP$43,C$97,FALSE) -> 1 | D104: =VLOOKUP($A104,'Mat of App'!$B$7:$AP$43,D$97,FALSE) -> 0 | E104: =VLOOKUP($A104,'Mat of App'!$B$7:$AP$43,E$97,FALSE) -> 0 | F104: =VLOOKUP($A104,'Mat of App'!$B$7:$AP$43,F$97,FALSE) -> 0
A106: 1032. Loss adjustment factors to transmission
A108: Source: losses model or loss adjustment factors at time of system peak.
B109: 132kV | C109: 132kV/EHV | D109: EHV | E109: EHV/HV | F109: HV | G109: HV/LV | H109: LV circuits
A110: Loss adjustment factor | B110: =VLOOKUP(Vlookup!B69,'CDCM Forecast Data'!$A$14:$I$271,6,FALSE) -> 1.002 | C110: =VLOOKUP(Vlookup!C69,'CDCM Forecast Data'!$A$14:$I$271,6,FALSE) -> 1.006 | D110: =VLOOKUP(Vlookup!D69,'CDCM Forecast Data'!$A$14:$I$271,6,FALSE) -> 1.012 | E110: =VLOOKUP(Vlookup!E69,'CDCM Forecast Data'!$A$14:$I$271,6,FALSE) -> 1.021 | F110: =VLOOKUP(Vlookup!F69,'CDCM Forecast Data'!$A$14:$I$271,6,FALSE) -> 1.038 | G110: =VLOOKUP(Vlookup!G69,'CDCM Forecast Data'!$A$14:$I$271,6,FALSE) -> 1.049 | H110: =VLOOKUP(Vlookup!H69,'CDCM Forecast Data'!$A$14:$I$271,6,FALSE) -> 1.062
A112: 1037. Embedded network (LDNO) discounts
A114: Source: separate price control disaggregation model.
B115: No discount | C115: LDNO LV: LV user | D115: LDNO HV: LV user | E115: LDNO HV: LV sub user | F115: LDNO HV: HV user
A116: LDNO discount | C116: =VLOOKUP(Vlookup!C75,'CDCM Forecast Data'!$A$14:$I$271,6,FALSE) -> 0.3726799999 | D116: =VLOOKUP(Vlookup!D75,'CDCM Forecast Data'!$A$14:$I$271,6,FALSE) -> 0.6188090826 | E116: =VLOOKUP(Vlookup!E75,'CDCM Forecast Data'!$A$14:$I$271,6,FALSE) -> 0.3749541673 | F116: =VLOOKUP(Vlookup!F75,'CDCM Forecast Data'!$A$14:$I$271,6,FALSE) -> 0.2586328942
A118: 1041. Load profile data for demand users
A120: Source: load data analysis.
B121: Coincidence factor | C121: Load factor
A122: Domestic Unrestricted | B122: =VLOOKUP(Vlookup!B81,'CDCM Forecast Data'!$A$14:$I$271,6,FALSE) -> 0.916120013 | C122: =VLOOKUP(Vlookup!C81,'CDCM Forecast Data'!$A$14:$I$271,6,FALSE) -> 0.4179484873
A123: Domestic Two Rate | B123: =VLOOKUP(Vlookup!B82,'CDCM Forecast Data'!$A$14:$I$271,6,FALSE) -> 0.3425106348 | C123: =VLOOKUP(Vlookup!C82,'CDCM Forecast Data'!$A$14:$I$271,6,FALSE) -> 0.2578726855
A124: Domestic Off Peak (related MPAN) | C124: =VLOOKUP(Vlookup!C83,'CDCM Forecast Data'!$A$14:$I$271,6,FALSE) -> 0.1440818751
A125: Small Non Domestic Unrestricted | B125: =VLOOKUP(Vlookup!B84,'CDCM Forecast Data'!$A$14:$I$271,6,FALSE) -> 0.6358102486 | C125: =VLOOKUP(Vlookup!C84,'CDCM Forecast Data'!$A$14:$I$271,6,FALSE) -> 0.3916832263
A126: Small Non Domestic Two Rate | B126: =VLOOKUP(Vlookup!B85,'CDCM Forecast Data'!$A$14:$I$271,6,FALSE) -> 0.5884054495 | C126: =VLOOKUP(Vlookup!C85,'CDCM Forecast Data'!$A$14:$I$271,6,FALSE) -> 0.4286725136
A127: Small Non Domestic Off Peak (related MPAN) | C127: =VLOOKUP(Vlookup!C86,'CDCM Forecast Data'!$A$14:$I$271,6,FALSE) -> 0.1529440454
A128: LV Medium Non-Domestic | B128: =VLOOKUP(Vlookup!B87,'CDCM Forecast Data'!$A$14:$I$271,6,FALSE) -> 0.8585513205 | C128: =VLOOKUP(Vlookup!C87,'CDCM Forecast Data'!$A$14:$I$271,6,FALSE) -> 0.593601508
A129: LV Sub Medium Non-Domestic | B129: =VLOOKUP(Vlookup!B88,'CDCM Forecast Data'!$A$14:$I$271,6,FALSE) -> 0.8382314172 | C129: =VLOOKUP(Vlookup!C88,'CDCM Forecast Data'!$A$14:$I$271,6,FALSE) -> 0.6000900558
A130: HV Medium Non-Domestic | B130: =VLOOKUP(Vlookup!B89,'CDCM Forecast Data'!$A$14:$I$271,6,FALSE) -> 0.6632207801 | C130: =VLOOKUP(Vlookup!C89,'CDCM Forecast Data'!$A$14:$I$271,6,FALSE) -> 0.4549084208
A131: LV Network Domestic | B131: =VLOOKUP(Vlookup!B90,'CDCM Forecast Data'!$A$14:$I$271,6,FALSE) -> 0.8259895753 | C131: =VLOOKUP(Vlookup!C90,'CDCM Forecast Data'!$A$14:$I$271,6,FALSE) -> 0.3899928896
A132: LV Network Non-Domestic Non-CT | B132: =VLOOKUP(Vlookup!B91,'CDCM Forecast Data'!$A$14:$I$271,6,FALSE) -> 0.6262796049 | C132: =VLOOKUP(Vlookup!C91,'CDCM Forecast Data'!$A$14:$I$271,6,FALSE) -> 0.3930495306
A133: LV HH Metered | B133: =VLOOKUP(Vlookup!B92,'CDCM Forecast Data'!$A$14:$I$271,6,FALSE) -> 0.803287895 | C133: =VLOOKUP(Vlookup!C92,'CDCM Forecast Data'!$A$14:$I$271,6,FALSE) -> 0.5875803245
A134: LV Sub HH Metered | B134: =VLOOKUP(Vlookup!B93,'CDCM Forecast Data'!$A$14:$I$271,6,FALSE) -> 0.7658193845 | C134: =VLOOKUP(Vlookup!C93,'CDCM Forecast Data'!$A$14:$I$271,6,FALSE) -> 0.6115171759
A135: HV HH Metered | B135: =VLOOKUP(Vlookup!B94,'CDCM Forecast Data'!$A$14:$I$271,6,FALSE) -> 0.8005762642 | C135: =VLOOKUP(Vlookup!C94,'CDCM Forecast Data'!$A$14:$I$271,6,FALSE) -> 0.7228719463
A136: NHH UMS category A | B136: =VLOOKUP(Vlookup!B95,'CDCM Forecast Data'!$A$14:$I$271,6,FALSE) -> 1 | C136: =VLOOKUP(Vlookup!C95,'CDCM Forecast Data'!$A$14:$I$271,6,FALSE) -> 1
A137: NHH UMS category B | B137: =VLOOKUP(Vlookup!B96,'CDCM Forecast Data'!$A$14:$I$271,6,FALSE) -> 0.983875969 | C137: =VLOOKUP(Vlookup!C96,'CDCM Forecast Data'!$A$14:$I$271,6,FALSE) -> 0.4749547891
A138: NHH UMS category C | B138: =VLOOKUP(Vlookup!B97,'CDCM Forecast Data'!$A$14:$I$271,6,FALSE) -> 0.8805058428 | C138: =VLOOKUP(Vlookup!C97,'CDCM Forecast Data'!$A$14:$I$271,6,FALSE) -> 0.2463161498
A139: NHH UMS category D | B139: =VLOOKUP(Vlookup!B98,'CDCM Forecast Data'!$A$14:$I$271,6,FALSE) -> 0 | C139: =VLOOKUP(Vlookup!C98,'CDCM Forecast Data'!$A$14:$I$271,6,FALSE) -> 0.5152659389
A140: LV UMS (Pseudo HH Metered) | B140: =VLOOKUP(Vlookup!B99,'CDCM Forecast Data'!$A$14:$I$271,6,FALSE) -> 0.9713745501 | C140: =VLOOKUP(Vlookup!C99,'CDCM Forecast Data'!$A$14:$I$271,6,FALSE) -> 0.4554929434
A142: 1053. Volume forecasts for the charging year
B143: 11 | C143: 12 | D143: 13 | E143: 14 | F143: 15 | G143: 16 | H143: 17
A144: Source: forecast.
A145: Please include MPAN counts for tariffs with no fixed charge (e.g. off-peak tariffs),
A146: but exclude MPANs on tariffs with a fixed charge that are not subject to a fixed charge due to a site grouping arrangement.
B147: Rate 1 units (MWh) | C147: Rate 2 units (MWh) | D147: Rate 3 units (MWh) | E147: MPANs | F147: Import capacity (kVA) | G147: Exceeded capacity (kVA) | H147: Reactive power units (MVArh)
A148: > Domestic Unrestricted | B148: =VLOOKUP(Vlookup!$B107,'CDCM Volume Forecasts'!$A$28:$AL$136,B$143,FALSE) -> 0 | C148: =VLOOKUP(Vlookup!$B107,'CDCM Volume Forecasts'!$A$28:$AL$136,C$143,FALSE) -> 0 | D148: =VLOOKUP(Vlookup!$B107,'CDCM Volume Forecasts'!$A$28:$AL$136,D$143,FALSE) -> 0 | E148: =VLOOKUP(Vlookup!$B107,'CDCM Volume Forecasts'!$A$28:$AL$136,E$143,FALSE) -> 0 | F148: =VLOOKUP(Vlookup!$B107,'CDCM Volume Forecasts'!$A$28:$AL$136,F$143,FALSE) -> 0 | H148: =VLOOKUP(Vlookup!$B107,'CDCM Volume Forecasts'!$A$28:$AL$136,G$143,FALSE) -> 0
A149: Domestic Unrestricted | B149: =VLOOKUP(Vlookup!$B108,'CDCM Volume Forecasts'!$A$28:$AL$136,B$143,FALSE) -> 4308328.18 | E149: =VLOOKUP(Vlookup!$B108,'CDCM Volume Forecasts'!$A$28:$AL$136,E$143,FALSE) -> 1249039.053
A150: LDNO LV: Domestic Unrestricted | B150: =VLOOKUP(Vlookup!$B109,'CDCM Volume Forecasts'!$A$28:$AL$136,B$143,FALSE) -> 17317.24498 | E150: =VLOOKUP(Vlookup!$B109,'CDCM Volume Forecasts'!$A$28:$AL$136,E$143,FALSE) -> 6432.470402
A151: LDNO HV: Domestic Unrestricted | B151: =VLOOKUP(Vlookup!$B110,'CDCM Volume Forecasts'!$A$28:$AL$136,B$143,FALSE) -> 30359.98623 | E151: =VLOOKUP(Vlookup!$B110,'CDCM Volume Forecasts'!$A$28:$AL$136,E$143,FALSE) -> 11844.01251
A152: > Domestic Two Rate
A153: Domestic Two Rate | B153: =VLOOKUP(Vlookup!$B112,'CDCM Volume Forecasts'!$A$28:$AL$136,B$143,FALSE) -> 607941.0703 | C153: =VLOOKUP(Vlookup!$B112,'CDCM Volume Forecasts'!$A$28:$AL$136,C$143,FALSE) -> 664320.7424 | E153: =VLOOKUP(Vlookup!$B112,'CDCM Volume Forecasts'!$A$28:$AL$136,E$143,FALSE) -> 209037.5145
A154: LDNO LV: Domestic Two Rate | B154: =VLOOKUP(Vlookup!$B113,'CDCM Volume Forecasts'!$A$28:$AL$136,B$143,FALSE) -> 996.3345458 | C154: =VLOOKUP(Vlookup!$B113,'CDCM Volume Forecasts'!$A$28:$AL$136,C$143,FALSE) -> 464.3154495 | E154: =VLOOKUP(Vlookup!$B113,'CDCM Volume Forecasts'!$A$28:$AL$136,E$143,FALSE) -> 424.578489
A155: LDNO HV: Domestic Two Rate | B155: =VLOOKUP(Vlookup!$B114,'CDCM Volume Forecasts'!$A$28:$AL$136,B$143,FALSE) -> 958.1884868 | C155: =VLOOKUP(Vlookup!$B114,'CDCM Volume Forecasts'!$A$28:$AL$136,C$143,FALSE) -> 407.9568851 | E155: =VLOOKUP(Vlookup!$B114,'CDCM Volume Forecasts'!$A$28:$AL$136,E$143,FALSE) -> 368.3969014
A156: > Domestic Off Peak (related MPAN)
A157: Domestic Off Peak (related MPAN) | B157: =VLOOKUP(Vlookup!$B116,'CDCM Volume Forecasts'!$A$28:$AL$136,B$143,FALSE) -> 45959.70836 | E157: =VLOOKUP(Vlookup!$B116,'CDCM Volume Forecasts'!$A$28:$AL$136,E$143,FALSE) -> 15622
A158: LDNO LV: Domestic Off Peak (related MPAN) | B158: =VLOOKUP(Vlookup!$B117,'CDCM Volume Forecasts'!$A$28:$AL$136,B$143,FALSE) -> 0 | E158: =VLOOKUP(Vlookup!$B117,'CDCM Volume Forecasts'!$A$28:$AL$136,E$143,FALSE) -> 0
A159: LDNO HV: Domestic Off Peak (related MPAN) | B159: =VLOOKUP(Vlookup!$B118,'CDCM Volume Forecasts'!$A$28:$AL$136,B$143,FALSE) -> 0 | E159: =VLOOKUP(Vlookup!$B118,'CDCM Volume Forecasts'!$A$28:$AL$136,E$143,FALSE) -> 0
A160: > Small Non Domestic Unrestricted
A161: Small Non Domestic Unrestricted | B161: =VLOOKUP(Vlookup!$B120,'CDCM Volume Forecasts'!$A$28:$AL$136,B$143,FALSE) -> 1179331.529 | E161: =VLOOKUP(Vlookup!$B120,'CDCM Volume Forecasts'!$A$28:$AL$136,E$143,FALSE) -> 110093.2397
A162: LDNO LV: Small Non Domestic Unrestricted | B162: =VLOOKUP(Vlookup!$B121,'CDCM Volume Forecasts'!$A$28:$AL$136,B$143,FALSE) -> 788.4367595 | E162: =VLOOKUP(Vlookup!$B121,'CDCM Volume Forecasts'!$A$28:$AL$136,E$143,FALSE) -> 127.8314014
A163: LDNO HV: Small Non Domestic Unrestricted | B163: =VLOOKUP(Vlookup!$B122,'CDCM Volume Forecasts'!$A$28:$AL$136,B$143,FALSE) -> 7392.773379 | E163: =VLOOKUP(Vlookup!$B122,'CDCM Volume Forecasts'!$A$28:$AL$136,E$143,FALSE) -> 462.2006219
A164: > Small Non Domestic Two Rate
A165: Small Non Domestic Two Rate | B165: =VLOOKUP(Vlookup!$B124,'CDCM Volume Forecasts'!$A$28:$AL$136,B$143,FALSE) -> 394405.6541 | C165: =VLOOKUP(Vlookup!$B124,'CDCM Volume Forecasts'!$A$28:$AL$136,C$143,FALSE) -> 183263.231 | E165: =VLOOKUP(Vlookup!$B124,'CDCM Volume Forecasts'!$A$28:$AL$136,E$143,FALSE) -> 29443.26826
A166: LDNO LV: Small Non Domestic Two Rate | B166: =VLOOKUP(Vlookup!$B125,'CDCM Volume Forecasts'!$A$28:$AL$136,B$143,FALSE) -> 41.25050511 | C166: =VLOOKUP(Vlookup!$B125,'CDCM Volume Forecasts'!$A$28:$AL$136,C$143,FALSE) -> 17.31810041 | E166: =VLOOKUP(Vlookup!$B125,'CDCM Volume Forecasts'!$A$28:$AL$136,E$143,FALSE) -> 2.757156164
A167: LDNO HV: Small Non Domestic Two Rate | B167: =VLOOKUP(Vlookup!$B126,'CDCM Volume Forecasts'!$A$28:$AL$136,B$143,FALSE) -> 926.2488831 | C167: =VLOOKUP(Vlookup!$B126,'CDCM Volume Forecasts'!$A$28:$AL$136,C$143,FALSE) -> 260.3289682 | E167: =VLOOKUP(Vlookup!$B126,'CDCM Volume Forecasts'!$A$28:$AL$136,E$143,FALSE) -> 23.55483699
A168: > Small Non Domestic Off Peak (related MPAN)
A169: Small Non Domestic Off Peak (related MPAN) | B169: =VLOOKUP(Vlookup!$B128,'CDCM Volume Forecasts'!$A$28:$AL$136,B$143,FALSE) -> 17319.81948 | E169: =VLOOKUP(Vlookup!$B128,'CDCM Volume Forecasts'!$A$28:$AL$136,E$143,FALSE) -> 3339
A170: LDNO LV: Small Non Domestic Off Peak (related MPAN) | B170: =VLOOKUP(Vlookup!$B129,'CDCM Volume Forecasts'!$A$28:$AL$136,B$143,FALSE) -> 0 | E170: =VLOOKUP(Vlookup!$B129,'CDCM Volume Forecasts'!$A$28:$AL$136,E$143,FALSE) -> 0
A171: LDNO HV: Small Non Domestic Off Peak (related MPAN) | B171: =VLOOKUP(Vlookup!$B130,'CDCM Volume Forecasts'!$A$28:$AL$136,B$143,FALSE) -> 0 | E171: =VLOOKUP(Vlookup!$B130,'CDCM Volume Forecasts'!$A$28:$AL$136,E$143,FALSE) -> 0
A172: > LV Medium Non-Domestic
A173: LV Medium Non-Domestic | B173: =VLOOKUP(Vlookup!$B132,'CDCM Volume Forecasts'!$A$28:$AL$136,B$143,FALSE) -> 0.0008013320402 | C173: =VLOOKUP(Vlookup!$B132,'CDCM Volume Forecasts'!$A$28:$AL$136,C$143,FALSE) -> 0.0001986679598 | E173: =VLOOKUP(Vlookup!$B132,'CDCM Volume Forecasts'!$A$28:$AL$136,E$143,FALSE) -> 1.137530625e-05
A174: LDNO LV: LV Medium Non-Domestic | B174: =VLOOKUP(Vlookup!$B133,'CDCM Volume Forecasts'!$A$28:$AL$136,B$143,FALSE) -> 0 | C174: =VLOOKUP(Vlookup!$B133,'CDCM Volume Forecasts'!$A$28:$AL$136,C$143,FALSE) -> 0 | E174: =VLOOKUP(Vlookup!$B133,'CDCM Volume Forecasts'!$A$28:$AL$136,E$143,FALSE) -> 0
A175: LDNO HV: LV Medium Non-Domestic | B175: =VLOOKUP(Vlookup!$B134,'CDCM Volume Forecasts'!$A$28:$AL$136,B$143,FALSE) -> 0 | C175: =VLOOKUP(Vlookup!$B134,'CDCM Volume Forecasts'!$A$28:$AL$136,C$143,FALSE) -> 0 | E175: =VLOOKUP(Vlookup!$B134,'CDCM Volume Forecasts'!$A$28:$AL$136,E$143,FALSE) -> 0
A176: > LV Sub Medium Non-Domestic
A177: LV Sub Medium Non-Domestic | B177: =VLOOKUP(Vlookup!$B136,'CDCM Volume Forecasts'!$A$28:$AL$136,B$143,FALSE) -> 0.0007818763248 | C177: =VLOOKUP(Vlookup!$B136,'CDCM Volume Forecasts'!$A$28:$AL$136,C$143,FALSE) -> 0.0002181236752 | E177: =VLOOKUP(Vlookup!$B136,'CDCM Volume Forecasts'!$A$28:$AL$136,E$143,FALSE) -> 8.365149073e-06
A178: > HV Medium Non-Domestic
A179: HV Medium Non-Domestic | B179: =VLOOKUP(Vlookup!$B138,'CDCM Volume Forecasts'!$A$28:$AL$136,B$143,FALSE) -> 0.0007790295336 | C179: =VLOOKUP(Vlookup!$B138,'CDCM Volume Forecasts'!$A$28:$AL$136,C$143,FALSE) -> 0.0002209704664 | E179: =VLOOKUP(Vlookup!$B138,'CDCM Volume Forecasts'!$A$28:$AL$136,E$143,FALSE) -> 8.891114942e-06
A180: > LV Network Domestic
A181: LV Network Domestic | B181: =VLOOKUP(Vlookup!$B140,'CDCM Volume Forecasts'!$A$28:$AL$136,B$143,FALSE) -> 0.02203840235 | C181: =VLOOKUP(Vlookup!$B140,'CDCM Volume Forecasts'!$A$28:$AL$136,C$143,FALSE) -> 0.05600318601 | D181: =VLOOKUP(Vlookup!$B140,'CDCM Volume Forecasts'!$A$28:$AL$136,D$143,FALSE) -> 0.05289216565 | E181: =VLOOKUP(Vlookup!$B140,'CDCM Volume Forecasts'!$A$28:$AL$136,E$143,FALSE) -> 0.08493150685
A182: LDNO LV: LV Network Domestic | B182: =VLOOKUP(Vlookup!$B141,'CDCM Volume Forecasts'!$A$28:$AL$136,B$143,FALSE) -> 0 | C182: =VLOOKUP(Vlookup!$B141,'CDCM Volume Forecasts'!$A$28:$AL$136,C$143,FALSE) -> 0 | D182: =VLOOKUP(Vlookup!$B141,'CDCM Volume Forecasts'!$A$28:$AL$136,D$143,FALSE) -> 0 | E182: =VLOOKUP(Vlookup!$B141,'CDCM Volume Forecasts'!$A$28:$AL$136,E$143,FALSE) -> 0
A183: LDNO HV: LV Network Domestic | B183: =VLOOKUP(Vlookup!$B142,'CDCM Volume Forecasts'!$A$28:$AL$136,B$143,FALSE) -> 0 | C183: =VLOOKUP(Vlookup!$B142,'CDCM Volume Forecasts'!$A$28:$AL$136,C$143,FALSE) -> 0 | D183: =VLOOKUP(Vlookup!$B142,'CDCM Volume Forecasts'!$A$28:$AL$136,D$143,FALSE) -> 0 | E183: =VLOOKUP(Vlookup!$B142,'CDCM Volume Forecasts'!$A$28:$AL$136,E$143,FALSE) -> 0
A184: > LV Network Non-Domestic Non-CT
A185: LV Network Non-Domestic Non-CT | B185: =VLOOKUP(Vlookup!$B144,'CDCM Volume Forecasts'!$A$28:$AL$136,B$143,FALSE) -> 26809.77633 | C185: =VLOOKUP(Vlookup!$B144,'CDCM Volume Forecasts'!$A$28:$AL$136,C$143,FALSE) -> 198363.7567 | D185: =VLOOKUP(Vlookup!$B144,'CDCM Volume Forecasts'!$A$28:$AL$136,D$143,FALSE) -> 187790.9274 | E185: =VLOOKUP(Vlookup!$B144,'CDCM Volume Forecasts'!$A$28:$AL$136,E$143,FALSE) -> 6133.360412
A186: LDNO LV: LV Network Non-Domestic Non-CT | B186: =VLOOKUP(Vlookup!$B145,'CDCM Volume Forecasts'!$A$28:$AL$136,B$143,FALSE) -> 3.315741009 | C186: =VLOOKUP(Vlookup!$B145,'CDCM Volume Forecasts'!$A$28:$AL$136,C$143,FALSE) -> 24.61047773 | D186: =VLOOKUP(Vlookup!$B145,'CDCM Volume Forecasts'!$A$28:$AL$136,D$143,FALSE) -> 26.22781745 | E186: =VLOOKUP(Vlookup!$B145,'CDCM Volume Forecasts'!$A$28:$AL$136,E$143,FALSE) -> 1.130099192
A187: LDNO HV: LV Network Non-Domestic Non-CT | B187: =VLOOKUP(Vlookup!$B146,'CDCM Volume Forecasts'!$A$28:$AL$136,B$143,FALSE) -> 208.8552271 | C187: =VLOOKUP(Vlookup!$B146,'CDCM Volume Forecasts'!$A$28:$AL$136,C$143,FALSE) -> 1439.968803 | D187: =VLOOKUP(Vlookup!$B146,'CDCM Volume Forecasts'!$A$28:$AL$136,D$143,FALSE) -> 1182.412841 | E187: =VLOOKUP(Vlookup!$B146,'CDCM Volume Forecasts'!$A$28:$AL$136,E$143,FALSE) -> 39.90660546
A188: > LV HH Metered
A189: LV HH Metered | B189: =VLOOKUP(Vlookup!$B148,'CDCM Volume Forecasts'!$A$28:$AL$136,B$143,FALSE) -> 86224.93817 | C189: =VLOOKUP(Vlookup!$B148,'CDCM Volume Forecasts'!$A$28:$AL$136,C$143,FALSE) -> 626406.1163 | D189: =VLOOKUP(Vlookup!$B148,'CDCM Volume Forecasts'!$A$28:$AL$136,D$143,FALSE) -> 551384.4993 | E189: =VLOOKUP(Vlookup!$B148,'CDCM Volume Forecasts'!$A$28:$AL$136,E$143,FALSE) -> 6675.492152 | F189: =VLOOKUP(Vlookup!$B148,'CDCM Volume Forecasts'!$A$28:$AL$136,F$143,FALSE) -> 679119.4609 | G189: =VLOOKUP(Vlookup!$B148,'CDCM Volume Forecasts'!$A$28:$AL$136,G$143,FALSE) -> 12059.50975 | H189: =VLOOKUP(Vlookup!$B148,'CDCM Volume Forecasts'!$A$28:$AL$136,H$143,FALSE) -> 78582.10889
A190: LDNO LV: LV HH Metered | B190: =VLOOKUP(Vlookup!$B149,'CDCM Volume Forecasts'!$A$28:$AL$136,B$143,FALSE) -> 26.67019633 | C190: =VLOOKUP(Vlookup!$B149,'CDCM Volume Forecasts'!$A$28:$AL$136,C$143,FALSE) -> 184.9098752 | D190: =VLOOKUP(Vlookup!$B149,'CDCM Volume Forecasts'!$A$28:$AL$136,D$143,FALSE) -> 189.0490903 | E190: =VLOOKUP(Vlookup!$B149,'CDCM Volume Forecasts'!$A$28:$AL$136,E$143,FALSE) -> 3.648709712 | F190: =VLOOKUP(Vlookup!$B149,'CDCM Volume Forecasts'!$A$28:$AL$136,F$143,FALSE) -> 385.2056466 | G190: =VLOOKUP(Vlookup!$B149,'CDCM Volume Forecasts'!$A$28:$AL$136,G$143,FALSE) -> 0 | H190: =VLOOKUP(Vlookup!$B149,'CDCM Volume Forecasts'!$A$28:$AL$136,H$143,FALSE) -> 38.89349926
A191: LDNO HV: LV HH Metered | B191: =VLOOKUP(Vlookup!$B150,'CDCM Volume Forecasts'!$A$28:$AL$136,B$143,FALSE) -> 3033.516661 | C191: =VLOOKUP(Vlookup!$B150,'CDCM Volume Forecasts'!$A$28:$AL$136,C$143,FALSE) -> 19778.44449 | D191: =VLOOKUP(Vlookup!$B150,'CDCM Volume Forecasts'!$A$28:$AL$136,D$143,FALSE) -> 17104.93849 | E191: =VLOOKUP(Vlookup!$B150,'CDCM Volume Forecasts'!$A$28:$AL$136,E$143,FALSE) -> 102.5294473 | F191: =VLOOKUP(Vlookup!$B150,'CDCM Volume Forecasts'!$A$28:$AL$136,F$143,FALSE) -> 21251.92895 | G191: =VLOOKUP(Vlookup!$B150,'CDCM Volume Forecasts'!$A$28:$AL$136,G$143,FALSE) -> 85.51865959 | H191: =VLOOKUP(Vlookup!$B150,'CDCM Volume Forecasts'!$A$28:$AL$136,H$143,FALSE) -> 1726.237568
A192: > LV Sub HH Metered
A193: LV Sub HH Metered | B193: =VLOOKUP(Vlookup!$B152,'CDCM Volume Forecasts'!$A$28:$AL$136,B$143,FALSE) -> 49864.36837 | C193: =VLOOKUP(Vlookup!$B152,'CDCM Volume Forecasts'!$A$28:$AL$136,C$143,FALSE) -> 369689.8151 | D193: =VLOOKUP(Vlookup!$B152,'CDCM Volume Forecasts'!$A$28:$AL$136,D$143,FALSE) -> 340515.4834 | E193: =VLOOKUP(Vlookup!$B152,'CDCM Volume Forecasts'!$A$28:$AL$136,E$143,FALSE) -> 1936.985404 | F193: =VLOOKUP(Vlookup!$B152,'CDCM Volume Forecasts'!$A$28:$AL$136,F$143,FALSE) -> 364556.942 | G193: =VLOOKUP(Vlookup!$B152,'CDCM Volume Forecasts'!$A$28:$AL$136,G$143,FALSE) -> 5286.810989 | H193: =VLOOKUP(Vlookup!$B152,'CDCM Volume Forecasts'!$A$28:$AL$136,H$143,FALSE) -> 65191.5981
A194: LDNO HV: LV Sub HH Metered | B194: =VLOOKUP(Vlookup!$B153,'CDCM Volume Forecasts'!$A$28:$AL$136,B$143,FALSE) -> 7.353792898 | C194: =VLOOKUP(Vlookup!$B153,'CDCM Volume Forecasts'!$A$28:$AL$136,C$143,FALSE) -> 37.82020849 | D194: =VLOOKUP(Vlookup!$B153,'CDCM Volume Forecasts'!$A$28:$AL$136,D$143,FALSE) -> 52.29466674 | E194: =VLOOKUP(Vlookup!$B153,'CDCM Volume Forecasts'!$A$28:$AL$136,E$143,FALSE) -> 1.175899315 | F194: =VLOOKUP(Vlookup!$B153,'CDCM Volume Forecasts'!$A$28:$AL$136,F$143,FALSE) -> 626.7543349 | G194: =VLOOKUP(Vlookup!$B153,'CDCM Volume Forecasts'!$A$28:$AL$136,G$143,FALSE) -> 0 | H194: =VLOOKUP(Vlookup!$B153,'CDCM Volume Forecasts'!$A$28:$AL$136,H$143,FALSE) -> 1.4026005
A195: > HV HH Metered
A196: HV HH Metered | B196: =VLOOKUP(Vlookup!$B155,'CDCM Volume Forecasts'!$A$28:$AL$136,B$143,FALSE) -> 153504.2364 | C196: =VLOOKUP(Vlookup!$B155,'CDCM Volume Forecasts'!$A$28:$AL$136,C$143,FALSE) -> 1093420.33 | D196: =VLOOKUP(Vlookup!$B155,'CDCM Volume Forecasts'!$A$28:$AL$136,D$143,FALSE) -> 1183755.414 | E196: =VLOOKUP(Vlookup!$B155,'CDCM Volume Forecasts'!$A$28:$AL$136,E$143,FALSE) -> 1060.270603 | F196: =VLOOKUP(Vlookup!$B155,'CDCM Volume Forecasts'!$A$28:$AL$136,F$143,FALSE) -> 854296.8159 | G196: =VLOOKUP(Vlookup!$B155,'CDCM Volume Forecasts'!$A$28:$AL$136,G$143,FALSE) -> 14165.40125 | H196: =VLOOKUP(Vlookup!$B155,'CDCM Volume Forecasts'!$A$28:$AL$136,H$143,FALSE) -> 163805.2025
A197: LDNO HV: HV HH Metered | B197: =VLOOKUP(Vlookup!$B156,'CDCM Volume Forecasts'!$A$28:$AL$136,B$143,FALSE) -> 835.5652015 | C197: =VLOOKUP(Vlookup!$B156,'CDCM Volume Forecasts'!$A$28:$AL$136,C$143,FALSE) -> 5354.555457 | D197: =VLOOKUP(Vlookup!$B156,'CDCM Volume Forecasts'!$A$28:$AL$136,D$143,FALSE) -> 7404.628738 | E197: =VLOOKUP(Vlookup!$B156,'CDCM Volume Forecasts'!$A$28:$AL$136,E$143,FALSE) -> 7.714177397 | F197: =VLOOKUP(Vlookup!$B156,'CDCM Volume Forecasts'!$A$28:$AL$136,F$143,FALSE) -> 12519.13216 | G197: =VLOOKUP(Vlookup!$B156,'CDCM Volume Forecasts'!$A$28:$AL$136,G$143,FALSE) -> 0 | H197: =VLOOKUP(Vlookup!$B156,'CDCM Volume Forecasts'!$A$28:$AL$136,H$143,FALSE) -> 256.5251014
A198: > NHH UMS category A
A199: NHH UMS category A | B199: =VLOOKUP(Vlookup!$B158,'CDCM Volume Forecasts'!$A$28:$AL$136,B$143,FALSE) -> 10121.81187 | E199: =VLOOKUP(Vlookup!$B158,'CDCM Volume Forecasts'!$A$28:$AL$136,E$143,FALSE) -> 741
A200: LDNO LV: NHH UMS category A | B200: =VLOOKUP(Vlookup!$B159,'CDCM Volume Forecasts'!$A$28:$AL$136,B$143,FALSE) -> 136.7981202 | E200: =VLOOKUP(Vlookup!$B159,'CDCM Volume Forecasts'!$A$28:$AL$136,E$143,FALSE) -> 0
A201: LDNO HV: NHH UMS category A | B201: =VLOOKUP(Vlookup!$B160,'CDCM Volume Forecasts'!$A$28:$AL$136,B$143,FALSE) -> 23.736825 | E201: =VLOOKUP(Vlookup!$B160,'CDCM Volume Forecasts'!$A$28:$AL$136,E$143,FALSE) -> 0
A202: > NHH UMS category B
A203: NHH UMS category B | B203: =VLOOKUP(Vlookup!$B162,'CDCM Volume Forecasts'!$A$28:$AL$136,B$143,FALSE) -> 7712.971613 | E203: =VLOOKUP(Vlookup!$B162,'CDCM Volume Forecasts'!$A$28:$AL$136,E$143,FALSE) -> 689
A204: LDNO LV: NHH UMS category B | B204: =VLOOKUP(Vlookup!$B163,'CDCM Volume Forecasts'!$A$28:$AL$136,B$143,FALSE) -> 75.66701951 | E204: =VLOOKUP(Vlookup!$B163,'CDCM Volume Forecasts'!$A$28:$AL$136,E$143,FALSE) -> 0
A205: LDNO HV: NHH UMS category B | B205: =VLOOKUP(Vlookup!$B164,'CDCM Volume Forecasts'!$A$28:$AL$136,B$143,FALSE) -> 301.337486 | E205: =VLOOKUP(Vlookup!$B164,'CDCM Volume Forecasts'!$A$28:$AL$136,E$143,FALSE) -> 0
A206: > NHH UMS category C
A207: NHH UMS category C | B207: =VLOOKUP(Vlookup!$B166,'CDCM Volume Forecasts'!$A$28:$AL$136,B$143,FALSE) -> 989.1872896 | E207: =VLOOKUP(Vlookup!$B166,'CDCM Volume Forecasts'!$A$28:$AL$136,E$143,FALSE) -> 179
A208: LDNO LV: NHH UMS category C | B208: =VLOOKUP(Vlookup!$B167,'CDCM Volume Forecasts'!$A$28:$AL$136,B$143,FALSE) -> 5.135349957 | E208: =VLOOKUP(Vlookup!$B167,'CDCM Volume Forecasts'!$A$28:$AL$136,E$143,FALSE) -> 0
A209: LDNO HV: NHH UMS category C | B209: =VLOOKUP(Vlookup!$B168,'CDCM Volume Forecasts'!$A$28:$AL$136,B$143,FALSE) -> 2.988394681 | E209: =VLOOKUP(Vlookup!$B168,'CDCM Volume Forecasts'!$A$28:$AL$136,E$143,FALSE) -> 0
A210: > NHH UMS category D
A211: NHH UMS category D | B211: =VLOOKUP(Vlookup!$B170,'CDCM Volume Forecasts'!$A$28:$AL$136,B$143,FALSE) -> 0 | E211: =VLOOKUP(Vlookup!$B170,'CDCM Volume Forecasts'!$A$28:$AL$136,E$143,FALSE) -> 1
A212: LDNO LV: NHH UMS category D | B212: =VLOOKUP(Vlookup!$B171,'CDCM Volume Forecasts'!$A$28:$AL$136,B$143,FALSE) -> 0 | E212: =VLOOKUP(Vlookup!$B171,'CDCM Volume Forecasts'!$A$28:$AL$136,E$143,FALSE) -> 0
A213: LDNO HV: NHH UMS category D | B213: =VLOOKUP(Vlookup!$B172,'CDCM Volume Forecasts'!$A$28:$AL$136,B$143,FALSE) -> 0 | E213: =VLOOKUP(Vlookup!$B172,'CDCM Volume Forecasts'!$A$28:$AL$136,E$143,FALSE) -> 0
A214: > LV UMS (Pseudo HH Metered)
A215: LV UMS (Pseudo HH Metered) | B215: =VLOOKUP(Vlookup!$B174,'CDCM Volume Forecasts'!$A$28:$AL$136,B$143,FALSE) -> 4105.98595 | C215: =VLOOKUP(Vlookup!$B174,'CDCM Volume Forecasts'!$A$28:$AL$136,C$143,FALSE) -> 29544.03496 | D215: =VLOOKUP(Vlookup!$B174,'CDCM Volume Forecasts'!$A$28:$AL$136,D$143,FALSE) -> 79785.80463 | E215: =VLOOKUP(Vlookup!$B174,'CDCM Volume Forecasts'!$A$28:$AL$136,E$143,FALSE) -> 27.44416291
A216: LDNO LV: LV UMS (Pseudo HH Metered) | B216: =VLOOKUP(Vlookup!$B175,'CDCM Volume Forecasts'!$A$28:$AL$136,B$143,FALSE) -> 0 | C216: =VLOOKUP(Vlookup!$B175,'CDCM Volume Forecasts'!$A$28:$AL$136,C$143,FALSE) -> 0 | D216: =VLOOKUP(Vlookup!$B175,'CDCM Volume Forecasts'!$A$28:$AL$136,D$143,FALSE) -> 0 | E216: =VLOOKUP(Vlookup!$B175,'CDCM Volume Forecasts'!$A$28:$AL$136,E$143,FALSE) -> 0
A217: LDNO HV: LV UMS (Pseudo HH Metered) | B217: =VLOOKUP(Vlookup!$B176,'CDCM Volume Forecasts'!$A$28:$AL$136,B$143,FALSE) -> 1.582648648 | C217: =VLOOKUP(Vlookup!$B176,'CDCM Volume Forecasts'!$A$28:$AL$136,C$143,FALSE) -> 5.703542262 | D217: =VLOOKUP(Vlookup!$B176,'CDCM Volume Forecasts'!$A$28:$AL$136,D$143,FALSE) -> 35.25548461 | E217: =VLOOKUP(Vlookup!$B176,'CDCM Volume Forecasts'!$A$28:$AL$136,E$143,FALSE) -> 1.175899315
A218: > LV Generation NHH or Aggregate HH
A219: LV Generation NHH or Aggregate HH | B219: =VLOOKUP(Vlookup!$B178,'CDCM Volume Forecasts'!$A$28:$AL$136,B$143,FALSE) -> 3214.757827 | E219: =VLOOKUP(Vlookup!$B178,'CDCM Volume Forecasts'!$A$28:$AL$136,E$143,FALSE) -> 286
A220: LDNO LV: LV Generation NHH or Aggregate HH | B220: =VLOOKUP(Vlookup!$B179,'CDCM Volume Forecasts'!$A$28:$AL$136,B$143,FALSE) -> 132.8959217 | E220: =VLOOKUP(Vlookup!$B179,'CDCM Volume Forecasts'!$A$28:$AL$136,E$143,FALSE) -> 0
A221: LDNO HV: LV Generation NHH or Aggregate HH | B221: =VLOOKUP(Vlookup!$B180,'CDCM Volume Forecasts'!$A$28:$AL$136,B$143,FALSE) -> 0 | E221: =VLOOKUP(Vlookup!$B180,'CDCM Volume Forecasts'!$A$28:$AL$136,E$143,FALSE) -> 0
A222: > LV Sub Generation NHH
A223: LV Sub Generation NHH | B223: =VLOOKUP(Vlookup!$B182,'CDCM Volume Forecasts'!$A$28:$AL$136,B$143,FALSE) -> 92.07485688 | E223: =VLOOKUP(Vlookup!$B182,'CDCM Volume Forecasts'!$A$28:$AL$136,E$143,FALSE) -> 1
A224: LDNO HV: LV Sub Generation NHH | B224: =VLOOKUP(Vlookup!$B183,'CDCM Volume Forecasts'!$A$28:$AL$136,B$143,FALSE) -> 0 | E224: =VLOOKUP(Vlookup!$B183,'CDCM Volume Forecasts'!$A$28:$AL$136,E$143,FALSE) -> 0
A225: > LV Generation Intermittent
A226: LV Generation Intermittent | B226: =VLOOKUP(Vlookup!$B185,'CDCM Volume Forecasts'!$A$28:$AL$136,B$143,FALSE) -> 78529.09504 | E226: =VLOOKUP(Vlookup!$B185,'CDCM Volume Forecasts'!$A$28:$AL$136,E$143,FALSE) -> 887.0263253 | H226: =VLOOKUP(Vlookup!$B185,'CDCM Volume Forecasts'!$A$28:$AL$136,H$143,FALSE) -> 6221.859222
A227: LDNO LV: LV Generation Intermittent | B227: =VLOOKUP(Vlookup!$B186,'CDCM Volume Forecasts'!$A$28:$AL$136,B$143,FALSE) -> 0 | E227: =VLOOKUP(Vlookup!$B186,'CDCM Volume Forecasts'!$A$28:$AL$136,E$143,FALSE) -> 0 | H227: =VLOOKUP(Vlookup!$B186,'CDCM Volume Forecasts'!$A$28:$AL$136,H$143,FALSE) -> 0
A228: LDNO HV: LV Generation Intermittent | B228: =VLOOKUP(Vlookup!$B187,'CDCM Volume Forecasts'!$A$28:$AL$136,B$143,FALSE) -> 1158.498151 | E228: =VLOOKUP(Vlookup!$B187,'CDCM Volume Forecasts'!$A$28:$AL$136,E$143,FALSE) -> 3.263473973 | H228: =VLOOKUP(Vlookup!$B187,'CDCM Volume Forecasts'!$A$28:$AL$136,H$143,FALSE) -> 14.61924824
... 99 more rows

Sheet (Y+2)
A1: Input data (Y+2)
A4: 1000. Company, charging year, data version
B6: Company | C6: Year | D6: Version
A7: Company, charging year, data version | B7: =VLOOKUP(Vlookup!B7,'CDCM Forecast Data'!$A$14:$I$271,7,FALSE) -> 0 | C7: =VLOOKUP(Vlookup!C7,'CDCM Forecast Data'!$A$14:$I$271,7,FALSE) -> 0 | D7: =VLOOKUP(Vlookup!D7,'CDCM Forecast Data'!$A$14:$I$271,7,FALSE) -> 0
A9: 1010. Financial and general assumptions
A11: Sources: financial assumptions; calendar; network model.
A12: These financial assumptions determine the annuity rate applied to convert the asset values of the network model into an annual charge.
B13: Rate of return | C13: Annualisation period (years) | D13: Annuity proportion for customer-contributed assets | E13: Power factor | F13: Days in the charging period
A14: Financial and general assumptions | B14: =VLOOKUP(Vlookup!B14,'CDCM Forecast Data'!$A$14:$I$271,7,FALSE) -> 0.0421 | C14: =VLOOKUP(Vlookup!C14,'CDCM Forecast Data'!$A$14:$I$271,7,FALSE) -> 40 | E14: =VLOOKUP(Vlookup!E14,'CDCM Forecast Data'!$A$14:$I$271,7,FALSE) -> 0.95 | F14: =VLOOKUP(Vlookup!F14,'CDCM Forecast Data'!$A$14:$I$271,7,FALSE) -> 366
A16: 1017. Diversity allowance between top and bottom of network level
A18: Source: operational data analysis and/or network model.
A19: The diversity figure against GSP is the diversity between GSP Group (the whole system) and individual GSPs.
A20: The diversity figure against 132kV is the diversity between GSPs (the top of the 132kV network) and 132kV/EHV bulk supply points (the bottom of the 132kV network).
A21: The diversity figure against EHV is the diversity between 132kV/EHV bulk supply points (the top of the EHV network) and EHV/HV primary substations (the bottom of the EHV network).
A22: The diversity figure against HV is the diversity between EHV/HV primary substations (the top of the HV network) and HV/LV substations (the bottom of the HV network).
B23: Diversity allowance between top and bottom of network level
A24: GSPs | B24: =VLOOKUP(Vlookup!B24,'CDCM Forecast Data'!$A$14:$I$271,7,FALSE) -> 0.022
A25: 132kV | B25: =VLOOKUP(Vlookup!B25,'CDCM Forecast Data'!$A$14:$I$271,7,FALSE) -> 0.031
A26: 132kV/EHV
A27: EHV | B27: =VLOOKUP(Vlookup!B27,'CDCM Forecast Data'!$A$14:$I$271,7,FALSE) -> 0.075
A28: EHV/HV
A29: HV | B29: =VLOOKUP(Vlookup!B29,'CDCM Forecast Data'!$A$14:$I$271,7,FALSE) -> 0.37
A30: HV/LV
A31: LV circuits
A33: 1018. Proportion of relevant load going through 132kV/HV direct transformation
B35: 132kV/HV
A36: EHV/HV | B36: =VLOOKUP(Vlookup!B36,'CDCM Forecast Data'!$A$14:$I$271,7,FALSE) -> 0
A38: 1019. Network model GSP peak demand (MW)
B40: Network model GSP peak demand (MW)
A41: Network model GSP peak demand (MW) | B41: =VLOOKUP(Vlookup!B41,'CDCM Forecast Data'!$A$14:$I$271,7,FALSE) -> 500
A43: 1020. Gross asset cost by network level (£)
B45: Gross assets £
A46: 132kV | B46: =VLOOKUP(Vlookup!B46,'CDCM Forecast Data'!$A$14:$I$271,7,FALSE) -> 125756994
A47: 132kV/EHV | B47: =VLOOKUP(Vlookup!B47,'CDCM Forecast Data'!$A$14:$I$271,7,FALSE) -> 17812126.21
A48: EHV | B48: =VLOOKUP(Vlookup!B48,'CDCM Forecast Data'!$A$14:$I$271,7,FALSE) -> 44966658.73
A49: EHV/HV | B49: =VLOOKUP(Vlookup!B49,'CDCM Forecast Data'!$A$14:$I$271,7,FALSE) -> 45193569.5
A50: 132kV/HV | B50: =VLOOKUP(Vlookup!B50,'CDCM Forecast Data'!$A$14:$I$271,7,FALSE) -> 0
A51: HV | B51: =VLOOKUP(Vlookup!B51,'CDCM Forecast Data'!$A$14:$I$271,7,FALSE) -> 160952709
A52: HV/LV | B52: =VLOOKUP(Vlookup!B52,'CDCM Forecast Data'!$A$14:$I$271,7,FALSE) -> 68588842.74
A53: LV circuits | B53: =VLOOKUP(Vlookup!B53,'CDCM Forecast Data'!$A$14:$I$271,7,FALSE) -> 147310723.7
A55: 1022. LV service model asset cost (£)
B57: LV service model 1 | C57: LV service model 2 | D57: LV service model 3 | E57: LV service model 4 | F57: LV service model 5 | G57: LV service model 6 | H57: LV service model 7 | I57: LV service model 8
A58: LV service model asset cost (£) | B58: =VLOOKUP(Vlookup!B58,'CDCM Forecast Data'!$A$14:$I$271,7,FALSE) -> 5762.090109 | C58: =VLOOKUP(Vlookup!C58,'CDCM Forecast Data'!$A$14:$I$271,7,FALSE) -> 648.1775285 | D58: =VLOOKUP(Vlookup!D58,'CDCM Forecast Data'!$A$14:$I$271,7,FALSE) -> 789.151523 | E58: =VLOOKUP(Vlookup!E58,'CDCM Forecast Data'!$A$14:$I$271,7,FALSE) -> 585.2505268 | F58: =VLOOKUP(Vlookup!F58,'CDCM Forecast Data'!$A$14:$I$271,7,FALSE) -> 1330.404691 | G58: =VLOOKUP(Vlookup!G58,'CDCM Forecast Data'!$A$14:$I$271,7,FALSE) -> 1024.695107 | H58: =VLOOKUP(Vlookup!H58,'CDCM Forecast Data'!$A$14:$I$271,7,FALSE) -> 0 | I58: =VLOOKUP(Vlookup!I58,'CDCM Forecast Data'!$A$14:$I$271,7,FALSE) -> 535.9215193
A60: 1023. HV service model asset cost (£)
B62: HV service model 1 | C62: HV service model 2 | D62: HV service model 3 | E62: HV service model 4 | F62: HV service model 5
A63: HV service model asset cost (£) | B63: =VLOOKUP(Vlookup!B63,'CDCM Forecast Data'!$A$14:$I$271,7,FALSE) -> 10166.16448 | C63: =VLOOKUP(Vlookup!C63,'CDCM Forecast Data'!$A$14:$I$271,7,FALSE) -> 4901.451322 | D63: =VLOOKUP(Vlookup!D63,'CDCM Forecast Data'!$A$14:$I$271,7,FALSE) -> 0 | E63: =VLOOKUP(Vlookup!E63,'CDCM Forecast Data'!$A$14:$I$271,7,FALSE) -> 0 | F63: =VLOOKUP(Vlookup!F63,'CDCM Forecast Data'!$A$14:$I$271,7,FALSE) -> 0
A65: 1025. Matrix of applicability of LV service models to tariffs with fixed charges
B66: 18 | C66: =B66+1 -> 19 | D66: 20 | E66: 21 | F66: 22 | G66: 23 | H66: 24 | I66: 25
B67: LV service model 1 | C67: LV service model 2 | D67: LV service model 3 | E67: LV service model 4 | F67: LV service model 5 | G67: LV service model 6 | H67: LV service model 7 | I67: LV service model 8
A68: Domestic Unrestricted | B68: =VLOOKUP($A68,'Mat of App'!$B$7:$AP$43,B$66,FALSE) -> 0.05 | C68: =VLOOKUP($A68,'Mat of App'!$B$7:$AP$43,C$66,FALSE) -> 0 | D68: =VLOOKUP($A68,'Mat of App'!$B$7:$AP$43,D$66,FALSE) -> 0 | E68: =VLOOKUP($A68,'Mat of App'!$B$7:$AP$43,E$66,FALSE) -> 0 | F68: =VLOOKUP($A68,'Mat of App'!$B$7:$AP$43,F$66,FALSE) -> 0 | G68: =VLOOKUP($A68,'Mat of App'!$B$7:$AP$43,G$66,FALSE) -> 0 | H68: =VLOOKUP($A68,'Mat of App'!$B$7:$AP$43,H$66,FALSE) -> 0 | I68: =VLOOKUP($A68,'Mat of App'!$B$7:$AP$43,I$66,FALSE) -> 0
A69: Domestic Two Rate | B69: =VLOOKUP($A69,'Mat of App'!$B$7:$AP$43,B$66,FALSE) -> 0.05 | C69: =VLOOKUP($A69,'Mat of App'!$B$7:$AP$43,C$66,FALSE) -> 0 | D69: =VLOOKUP($A69,'Mat of App'!$B$7:$AP$43,D$66,FALSE) -> 0 | E69: =VLOOKUP($A69,'Mat of App'!$B$7:$AP$43,E$66,FALSE) -> 0 | F69: =VLOOKUP($A69,'Mat of App'!$B$7:$AP$43,F$66,FALSE) -> 0 | G69: =VLOOKUP($A69,'Mat of App'!$B$7:$AP$43,G$66,FALSE) -> 0 | H69: =VLOOKUP($A69,'Mat of App'!$B$7:$AP$43,H$66,FALSE) -> 0 | I69: =VLOOKUP($A69,'Mat of App'!$B$7:$AP$43,I$66,FALSE) -> 0
A70: Small Non Domestic Unrestricted | B70: =VLOOKUP($A70,'Mat of App'!$B$7:$AP$43,B$66,FALSE) -> 0 | C70: =VLOOKUP($A70,'Mat of App'!$B$7:$AP$43,C$66,FALSE) -> 1 | D70: =VLOOKUP($A70,'Mat of App'!$B$7:$AP$43,D$66,FALSE) -> 0 | E70: =VLOOKUP($A70,'Mat of App'!$B$7:$AP$43,E$66,FALSE) -> 0 | F70: =VLOOKUP($A70,'Mat of App'!$B$7:$AP$43,F$66,FALSE) -> 0 | G70: =VLOOKUP($A70,'Mat of App'!$B$7:$AP$43,G$66,FALSE) -> 0 | H70: =VLOOKUP($A70,'Mat of App'!$B$7:$AP$43,H$66,FALSE) -> 0 | I70: =VLOOKUP($A70,'Mat of App'!$B$7:$AP$43,I$66,FALSE) -> 0
A71: Small Non Domestic Two Rate | B71: =VLOOKUP($A71,'Mat of App'!$B$7:$AP$43,B$66,FALSE) -> 0 | C71: =VLOOKUP($A71,'Mat of App'!$B$7:$AP$43,C$66,FALSE) -> 1 | D71: =VLOOKUP($A71,'Mat of App'!$B$7:$AP$43,D$66,FALSE) -> 0 | E71: =VLOOKUP($A71,'Mat of App'!$B$7:$AP$43,E$66,FALSE) -> 0 | F71: =VLOOKUP($A71,'Mat of App'!$B$7:$AP$43,F$66,FALSE) -> 0 | G71: =VLOOKUP($A71,'Mat of App'!$B$7:$AP$43,G$66,FALSE) -> 0 | H71: =VLOOKUP($A71,'Mat of App'!$B$7:$AP$43,H$66,FALSE) -> 0 | I71: =VLOOKUP($A71,'Mat of App'!$B$7:$AP$43,I$66,FALSE) -> 0
